Workbook

Sheet Instrucciones
H1: Instrucciones | AY1: Showtabs
AY2: Hidetabs
AY3: Protect
AY4: privatesubs
I7: PARA CONFIGRAR LA PLANILLA DE REMUNERACION, SIGUE ESTAS INSTRUCCIONES
I9: 1- Ingrese en la Hoja INICIO y Ingrese los datos de la Empresa. Una vez hecho, pinche el boton BASE DE DATOS
I10: 2-Ingresa los nombres de los Empleados, RUT, Fecha Ingreso, Sueldo Base y todos los datos como corresponde.
I11: 3-Una vez hecho, Pincha el Boton DESCUENTOS
I12: 4-Ingresa los datos de descuentos de cada empleado como corresponde
I13: 5-Al pinchar el numero frente del nombre del trabajador puedes visualizar su liquidación de sueldo.
I14: 6- Ahora lo que tienes que hacer cada mes es Solo Pinchar el Boton BASE DE DATOS, ingresar el mes a pagar, el Valor UF del Dia (Por si hay Trabajador con pacto UF) y luego ingresar los dias trabajados de cada Empleado. (Para saber el valor UF del día Solo hacer click sobre el texto "Valor UF del Mes" te abrira una ventana de tu navegador para visualizar el valor UF actual)
I15: TIPS
I16: --Al pinchar el numero frente al nombre del trabajador puede visualizar su liquidación de sueldo.
I17: --Cada hoja se puede imprimir individualmente al pincar el boton IMPRIMIR ESTA HOJA Arriba de la hoja
I18: --Para Imprimir Varias liquidaciones, Pinche el boton IMPRESIÓN VARIAS y ingresa el total de liquidacion a imprimir de 1 a 25
I19: --Puede configurar los parametros proporcionales on dias trabajados en el MENU en BASE DE DATOS y parametros

Sheet MENU
I1: Inicio
L7: SISTEMA DE REMUNERACIÓN
L9: DATOS DE LA EMPRESA
K13: NOMBRE DE TU EMPRESA
K14: RUT DE TU EMPRESA
K15: DIRECCION DE TU EMPRESA

Sheet BDD
A1: E | J1: Base De Datos | M1: Comprar la version FULL
L3: MES A PAGAR | N3: 2024-04-01 | T3: Tope Gratificación | V3: Tope Imponible | AN3: SI | FQ3: SI | FT3: PARAMETROS | FU3: ¿ES PROPORCIONAL CON LOS DIAS TRABAJADOS?
L4: VALOR UF DEL MES | N4: 37838.55 | T4: 182083 | V4: 3100000 | AN4: NO | FQ4: NO | FT4: GRATIFICACION | FU4: NO
AL5: BONOS IMPONIBLES | FT5: =T6 -> BONO COLACIÓN | FU5: NO
I6: NUMERO | J6: NOMBRE | K6: RUT | L6: FECHA ING. | M6: CARGO | N6: SUELDO BASE | O6: valor diario | P6: GRATICACION 30 DIAS | Q6: Gratificacion diario | R6: GRATIFICACION | S6: total imponible | T6: BONO COLACIÓN | U6: bono colacion2 | V6: BONO MOVILIZACIÓN | W6: bono movilizacion2 | X6: VIATICO | Y6: bono produccion2 | Z6: total no imponible | AA6: Dias Trabajados | AB6: TOTAL HABERES | AC6: ANTICIPOS | AD6: Dias ausentes | AE6: valor dias ausentes | AF6: Total a pagar2 | AG6: ASIGNACIÓN OBRA | AH6: Dias Normales | AI6: Valor Hora Extra | AJ6: Factor Hora Extra | AK6: Horas Extras | AL6: BONO IMPONIBLE 1 | AM6: BONO IMPONIBLE 2 | AN6: BONO IMPONIBLE 12 | AO6: BONO IMPONIBLE 22 | AP6: NO_IMPONIBLE1 | AQ6: NO_IMPONIBLE2 | AR6: 13 | AS6: 14 | AT6: 15 | AU6: 16 | AV6: 17 | AW6: NO IMPONIBLE 1 | AX6: NO IMPONIBLE 2 | AY6: 1 | FT6: =V6 -> BONO MOVILIZACIÓN | FU6: NO
H7: 1 | I7: 1 | J7: Trabajador 1 | K7: 16.346.113-7 | L7: 44986 | M7: Lider Especialista de Control Centralizado | N7: 1200000 | O7: =Tabla3[[#This Row],[SUELDO BASE]]/Tabla3[[#This Row],[Dias Normales]] -> 40000 | P7: =IF(Tabla3[[#This Row],[GRATIFICACION]]="NO",0,IF(Tabla3[[#This Row],[SUELDO BASE]]/4<=$T$4,Tabla3[[#This Row],[SUELDO BASE]]/4,$T$4)) -> 182083 | Q7: =IF($FU$4="NO",Tabla3[[#This Row],[GRATICACION 30 DIAS]],IF(R7="SI",Tabla3[[#This Row],[GRATICACION 30 DIAS]]/Tabla3[[#This Row],[Dias Normales]]*Tabla3[[#This Row],[Dias Trabajados]],0)) -> 182083 | R7: SI | S7: =Tabla3[[#This Row],[Dias Trabajados]]*Tabla3[[#This Row],[valor diario]]+Tabla3[[#This Row],[Gratificacion diario]]+Tabla3[[#This Row],[Valor Hora Extra]]+Tabla3[[#This Row],[BONO IMPONIBLE 12]]+Tabla3[[#This Row],[BONO IMPONIBLE 22]] -> 1382083 | U7: =IF($FU$5="NO",Tabla3[[#This Row],[BONO COLACIÓN]],Tabla3[[#This Row],[BONO COLACIÓN]]/Tabla3[[#This Row],[Dias Normales]]*Tabla3[[#This Row],[Dias Trabajados]]) -> 0 | W7: =IF($FU$6="NO",Tabla3[[#This Row],[BONO MOVILIZACIÓN]],Tabla3[[#This Row],[BONO MOVILIZACIÓN]]/Tabla3[[#This Row],[Dias Normales]]*Tabla3[[#This Row],[Dias Trabajados]]) -> 0 | Y7: =IF($FU$7="NO",Tabla3[[#This Row],[VIATICO]],Tabla3[[#This Row],[VIATICO]]/Tabla3[[#This Row],[Dias Normales]]*Tabla3[[#This Row],[Dias Trabajados]]) -> 0 | Z7: =Tabla3[[#This Row],[bono colacion2]]+Tabla3[[#This Row],[bono movilizacion2]]+Tabla3[[#This Row],[bono produccion2]]+Tabla3[[#This Row],[NO_IMPONIBLE1]]+Tabla3[[#This Row],[NO_IMPONIBLE2]] -> 0 | AA7: 30 | AB7: =Tabla3[[#This Row],[total imponible]]+Tabla3[[#This Row],[total no imponible]] -> 1382083 | AD7: =Tabla3[[#This Row],[Dias Normales]]-Tabla3[[#This Row],[Dias Trabajados]] -> 0 | AE7: =Tabla3[[#This Row],[Dias ausentes]]*Tabla3[[#This Row],[valor diario]] -> 0 | AF7: =(Tabla3[[#This Row],[TOTAL HABERES]]-DESC.!AD5)-Tabla3[[#This Row],[ANTICIPOS]] -> 1092978.186 | AH7: 30 | AI7: =IF(FV12="SI",(((((Tabla3[[#This Row],[SUELDO BASE]]+Tabla3[[#This Row],[GRATICACION 30 DIAS]])/Tabla3[[#This Row],[Dias Normales]])*7)/45)*Tabla3[[#This Row],[Factor Hora Extra]])*Tabla3[[#This Row],[Horas Extras]],(((((Tabla3[[#This Row],[SUELDO BASE]])/Tabla3[[#This Row],[Dias Normales]])*7)/45)*Tabla3[[#This Row],[Factor Hora Extra]])*Tabla3[[#This Row],[Horas Extras]]) -> 0 | AJ7: 2 | AN7: =IF($FU$8="NO",Tabla3[[#This Row],[BONO IMPONIBLE 1]],Tabla3[[#This Row],[BONO IMPONIBLE 1]]/Tabla3[[#This Row],[Dias Normales]]*Tabla3[[#This Row],[Dias Trabajados]]) -> 0 | AO7: =IF($FU$9="NO",Tabla3[[#This Row],[BONO IMPONIBLE 2]],Tabla3[[#This Row],[BONO IMPONIBLE 2]]/Tabla3[[#This Row],[Dias Normales]]*Tabla3[[#This Row],[Dias Trabajados]]) -> 0 | AP7: =IF($FU$10="NO",Tabla3[[#This Row],[NO IMPONIBLE 1]],Tabla3[[#This Row],[NO IMPONIBLE 1]]/Tabla3[[#This Row],[Dias Normales]]*Tabla3[[#This Row],[Dias Trabajados]]) -> 0 | AQ7: =IF($FU$11="NO",Tabla3[[#This Row],[NO IMPONIBLE 2]],Tabla3[[#This Row],[NO IMPONIBLE 2]]/Tabla3[[#This Row],[Dias Normales]]*Tabla3[[#This Row],[Dias Trabajados]]) -> 0 | FT7: =X6 -> VIATICO | FU7: NO
H8: 2 | I8: 2 | J8: Trabajador 2 | K8: 25.607.046-4 | L8: 44986 | M8: Dibujante | N8: 900000 | O8: =Tabla3[[#This Row],[SUELDO BASE]]/Tabla3[[#This Row],[Dias Normales]] -> 30000 | P8: =IF(Tabla3[[#This Row],[GRATIFICACION]]="NO",0,IF(Tabla3[[#This Row],[SUELDO BASE]]/4<=$T$4,Tabla3[[#This Row],[SUELDO BASE]]/4,$T$4)) -> 0 | Q8: =IF($FU$4="NO",Tabla3[[#This Row],[GRATICACION 30 DIAS]],IF(R8="SI",Tabla3[[#This Row],[GRATICACION 30 DIAS]]/Tabla3[[#This Row],[Dias Normales]]*Tabla3[[#This Row],[Dias Trabajados]],0)) -> 0 | R8: NO | S8: =Tabla3[[#This Row],[Dias Trabajados]]*Tabla3[[#This Row],[valor diario]]+Tabla3[[#This Row],[Gratificacion diario]]+Tabla3[[#This Row],[Valor Hora Extra]]+Tabla3[[#This Row],[BONO IMPONIBLE 12]]+Tabla3[[#This Row],[BONO IMPONIBLE 22]] -> 900000 | T8: 87500 | U8: =IF($FU$5="NO",Tabla3[[#This Row],[BONO COLACIÓN]],Tabla3[[#This Row],[BONO COLACIÓN]]/Tabla3[[#This Row],[Dias Normales]]*Tabla3[[#This Row],[Dias Trabajados]]) -> 87500 | V8: 87500 | W8: =IF($FU$6="NO",Tabla3[[#This Row],[BONO MOVILIZACIÓN]],Tabla3[[#This Row],[BONO MOVILIZACIÓN]]/Tabla3[[#This Row],[Dias Normales]]*Tabla3[[#This Row],[Dias Trabajados]]) -> 87500 | X8: 207438 | Y8: =IF($FU$7="NO",Tabla3[[#This Row],[VIATICO]],Tabla3[[#This Row],[VIATICO]]/Tabla3[[#This Row],[Dias Normales]]*Tabla3[[#This Row],[Dias Trabajados]]) -> 207438 | Z8: =Tabla3[[#This Row],[bono colacion2]]+Tabla3[[#This Row],[bono movilizacion2]]+Tabla3[[#This Row],[bono produccion2]]+Tabla3[[#This Row],[NO_IMPONIBLE1]]+Tabla3[[#This Row],[NO_IMPONIBLE2]] -> 382438 | AA8: 30 | AB8: =Tabla3[[#This Row],[total imponible]]+Tabla3[[#This Row],[total no imponible]] -> 1282438 | AD8: =Tabla3[[#This Row],[Dias Normales]]-Tabla3[[#This Row],[Dias Trabajados]] -> 0 | AE8: =Tabla3[[#This Row],[Dias ausentes]]*Tabla3[[#This Row],[valor diario]] -> 0 | AF8: =(Tabla3[[#This Row],[TOTAL HABERES]]-DESC.!AD6)-Tabla3[[#This Row],[ANTICIPOS]] -> 1118998 | AH8: 30 | AI8: =IF(FV13="SI",(((((Tabla3[[#This Row],[SUELDO BASE]]+Tabla3[[#This Row],[GRATICACION 30 DIAS]])/Tabla3[[#This Row],[Dias Normales]])*7)/45)*Tabla3[[#This Row],[Factor Hora Extra]])*Tabla3[[#This Row],[Horas Extras]],(((((Tabla3[[#This Row],[SUELDO BASE]])/Tabla3[[#This Row],[Dias Normales]])*7)/45)*Tabla3[[#This Row],[Factor Hora Extra]])*Tabla3[[#This Row],[Horas Extras]]) -> 0 | AJ8: 1.5 | AN8: =IF($FU$8="NO",Tabla3[[#This Row],[BONO IMPONIBLE 1]],Tabla3[[#This Row],[BONO IMPONIBLE 1]]/Tabla3[[#This Row],[Dias Normales]]*Tabla3[[#This Row],[Dias Trabajados]]) -> 0 | AO8: =IF($FU$9="NO",Tabla3[[#This Row],[BONO IMPONIBLE 2]],Tabla3[[#This Row],[BONO IMPONIBLE 2]]/Tabla3[[#This Row],[Dias Normales]]*Tabla3[[#This Row],[Dias Trabajados]]) -> 0 | AP8: =IF($FU$10="NO",Tabla3[[#This Row],[NO IMPONIBLE 1]],Tabla3[[#This Row],[NO IMPONIBLE 1]]/Tabla3[[#This Row],[Dias Normales]]*Tabla3[[#This Row],[Dias Trabajados]]) -> 0 | AQ8: =IF($FU$11="NO",Tabla3[[#This Row],[NO IMPONIBLE 2]],Tabla3[[#This Row],[NO IMPONIBLE 2]]/Tabla3[[#This Row],[Dias Normales]]*Tabla3[[#This Row],[Dias Trabajados]]) -> 0 | FT8: =Tabla3[[#Headers],[BONO IMPONIBLE 1]] -> BONO IMPONIBLE 1 | FU8: NO
H9: 3 | I9: 3 | J9: Trabajador 3 | K9: 16.322.537-9 | L9: 44986 | M9: Especialista de Control Centralizado | N9: 1850000 | O9: =Tabla3[[#This Row],[SUELDO BASE]]/Tabla3[[#This Row],[Dias Normales]] -> 61666.66667 | P9: =IF(Tabla3[[#This Row],[GRATIFICACION]]="NO",0,IF(Tabla3[[#This Row],[SUELDO BASE]]/4<=$T$4,Tabla3[[#This Row],[SUELDO BASE]]/4,$T$4)) -> 0 | Q9: =IF($FU$4="NO",Tabla3[[#This Row],[GRATICACION 30 DIAS]],IF(R9="SI",Tabla3[[#This Row],[GRATICACION 30 DIAS]]/Tabla3[[#This Row],[Dias Normales]]*Tabla3[[#This Row],[Dias Trabajados]],0)) -> 0 | R9: NO | S9: =Tabla3[[#This Row],[Dias Trabajados]]*Tabla3[[#This Row],[valor diario]]+Tabla3[[#This Row],[Gratificacion diario]]+Tabla3[[#This Row],[Valor Hora Extra]]+Tabla3[[#This Row],[BONO IMPONIBLE 12]]+Tabla3[[#This Row],[BONO IMPONIBLE 22]] -> 1850000 | T9: 93750 | U9: =IF($FU$5="NO",Tabla3[[#This Row],[BONO COLACIÓN]],Tabla3[[#This Row],[BONO COLACIÓN]]/Tabla3[[#This Row],[Dias Normales]]*Tabla3[[#This Row],[Dias Trabajados]]) -> 93750 | V9: 93750 | W9: =IF($FU$6="NO",Tabla3[[#This Row],[BONO MOVILIZACIÓN]],Tabla3[[#This Row],[BONO MOVILIZACIÓN]]/Tabla3[[#This Row],[Dias Normales]]*Tabla3[[#This Row],[Dias Trabajados]]) -> 93750 | X9: 430980 | Y9: =IF($FU$7="NO",Tabla3[[#This Row],[VIATICO]],Tabla3[[#This Row],[VIATICO]]/Tabla3[[#This Row],[Dias Normales]]*Tabla3[[#This Row],[Dias Trabajados]]) -> 430980 | Z9: =Tabla3[[#This Row],[bono colacion2]]+Tabla3[[#This Row],[bono movilizacion2]]+Tabla3[[#This Row],[bono produccion2]]+Tabla3[[#This Row],[NO_IMPONIBLE1]]+Tabla3[[#This Row],[NO_IMPONIBLE2]] -> 618480 | AA9: 30 | AB9: =Tabla3[[#This Row],[total imponible]]+Tabla3[[#This Row],[total no imponible]] -> 2468480 | AD9: =Tabla3[[#This Row],[Dias Normales]]-Tabla3[[#This Row],[Dias Trabajados]] -> 0 | AE9: =Tabla3[[#This Row],[Dias ausentes]]*Tabla3[[#This Row],[valor diario]] -> 0 | AF9: =(Tabla3[[#This Row],[TOTAL HABERES]]-DESC.!AD7)-Tabla3[[#This Row],[ANTICIPOS]] -> 2098643.859 | AH9: 30 | AI9: =IF(FV14="SI",(((((Tabla3[[#This Row],[SUELDO BASE]]+Tabla3[[#This Row],[GRATICACION 30 DIAS]])/Tabla3[[#This Row],[Dias Normales]])*7)/45)*Tabla3[[#This Row],[Factor Hora Extra]])*Tabla3[[#This Row],[Horas Extras]],(((((Tabla3[[#This Row],[SUELDO BASE]])/Tabla3[[#This Row],[Dias Normales]])*7)/45)*Tabla3[[#This Row],[Factor Hora Extra]])*Tabla3[[#This Row],[Horas Extras]]) -> 0 | AJ9: 1.5 | AN9: =IF($FU$8="NO",Tabla3[[#This Row],[BONO IMPONIBLE 1]],Tabla3[[#This Row],[BONO IMPONIBLE 1]]/Tabla3[[#This Row],[Dias Normales]]*Tabla3[[#This Row],[Dias Trabajados]]) -> 0 | AO9: =IF($FU$9="NO",Tabla3[[#This Row],[BONO IMPONIBLE 2]],Tabla3[[#This Row],[BONO IMPONIBLE 2]]/Tabla3[[#This Row],[Dias Normales]]*Tabla3[[#This Row],[Dias Trabajados]]) -> 0 | AP9: =IF($FU$10="NO",Tabla3[[#This Row],[NO IMPONIBLE 1]],Tabla3[[#This Row],[NO IMPONIBLE 1]]/Tabla3[[#This Row],[Dias Normales]]*Tabla3[[#This Row],[Dias Trabajados]]) -> 0 | AQ9: =IF($FU$11="NO",Tabla3[[#This Row],[NO IMPONIBLE 2]],Tabla3[[#This Row],[NO IMPONIBLE 2]]/Tabla3[[#This Row],[Dias Normales]]*Tabla3[[#This Row],[Dias Trabajados]]) -> 0 | FT9: =Tabla3[[#Headers],[BONO IMPONIBLE 2]] -> BONO IMPONIBLE 2 | FU9: NO
H10: 4 | I10: 4 | J10: Trabajador 4 | K10: 17.486.100-5 | L10: 44986 | M10: Técnico Control Centralizado | N10: 1100000 | O10: =Tabla3[[#This Row],[SUELDO BASE]]/Tabla3[[#This Row],[Dias Normales]] -> 36666.66667 | P10: =IF(Tabla3[[#This Row],[GRATIFICACION]]="NO",0,IF(Tabla3[[#This Row],[SUELDO BASE]]/4<=$T$4,Tabla3[[#This Row],[SUELDO BASE]]/4,$T$4)) -> 0 | Q10: =IF($FU$4="NO",Tabla3[[#This Row],[GRATICACION 30 DIAS]],IF(R10="SI",Tabla3[[#This Row],[GRATICACION 30 DIAS]]/Tabla3[[#This Row],[Dias Normales]]*Tabla3[[#This Row],[Dias Trabajados]],0)) -> 0 | R10: NO | S10: =Tabla3[[#This Row],[Dias Trabajados]]*Tabla3[[#This Row],[valor diario]]+Tabla3[[#This Row],[Gratificacion diario]]+Tabla3[[#This Row],[Valor Hora Extra]]+Tabla3[[#This Row],[BONO IMPONIBLE 12]]+Tabla3[[#This Row],[BONO IMPONIBLE 22]] -> 1100000 | T10: 62500 | U10: =IF($FU$5="NO",Tabla3[[#This Row],[BONO COLACIÓN]],Tabla3[[#This Row],[BONO COLACIÓN]]/Tabla3[[#This Row],[Dias Normales]]*Tabla3[[#This Row],[Dias Trabajados]]) -> 62500 | V10: 62500 | W10: =IF($FU$6="NO",Tabla3[[#This Row],[BONO MOVILIZACIÓN]],Tabla3[[#This Row],[BONO MOVILIZACIÓN]]/Tabla3[[#This Row],[Dias Normales]]*Tabla3[[#This Row],[Dias Trabajados]]) -> 62500 | X10: 253366 | Y10: =IF($FU$7="NO",Tabla3[[#This Row],[VIATICO]],Tabla3[[#This Row],[VIATICO]]/Tabla3[[#This Row],[Dias Normales]]*Tabla3[[#This Row],[Dias Trabajados]]) -> 253366 | Z10: =Tabla3[[#This Row],[bono colacion2]]+Tabla3[[#This Row],[bono movilizacion2]]+Tabla3[[#This Row],[bono produccion2]]+Tabla3[[#This Row],[NO_IMPONIBLE1]]+Tabla3[[#This Row],[NO_IMPONIBLE2]] -> 378366 | AA10: 30 | AB10: =Tabla3[[#This Row],[total imponible]]+Tabla3[[#This Row],[total no imponible]] -> 1478366 | AD10: =Tabla3[[#This Row],[Dias Normales]]-Tabla3[[#This Row],[Dias Trabajados]] -> 0 | AE10: =Tabla3[[#This Row],[Dias ausentes]]*Tabla3[[#This Row],[valor diario]] -> 0 | AF10: =(Tabla3[[#This Row],[TOTAL HABERES]]-DESC.!AD8)-Tabla3[[#This Row],[ANTICIPOS]] -> 1283397.84 | AH10: 30 | AI10: =IF(FV15="SI",(((((Tabla3[[#This Row],[SUELDO BASE]]+Tabla3[[#This Row],[GRATICACION 30 DIAS]])/Tabla3[[#This Row],[Dias Normales]])*7)/45)*Tabla3[[#This Row],[Factor Hora Extra]])*Tabla3[[#This Row],[Horas Extras]],(((((Tabla3[[#This Row],[SUELDO BASE]])/Tabla3[[#This Row],[Dias Normales]])*7)/45)*Tabla3[[#This Row],[Factor Hora Extra]])*Tabla3[[#This Row],[Horas Extras]]) -> 0 | AJ10: 1.5 | AN10: =IF($FU$8="NO",Tabla3[[#This Row],[BONO IMPONIBLE 1]],Tabla3[[#This Row],[BONO IMPONIBLE 1]]/Tabla3[[#This Row],[Dias Normales]]*Tabla3[[#This Row],[Dias Trabajados]]) -> 0 | AO10: =IF($FU$9="NO",Tabla3[[#This Row],[BONO IMPONIBLE 2]],Tabla3[[#This Row],[BONO IMPONIBLE 2]]/Tabla3[[#This Row],[Dias Normales]]*Tabla3[[#This Row],[Dias Trabajados]]) -> 0 | AP10: =IF($FU$10="NO",Tabla3[[#This Row],[NO IMPONIBLE 1]],Tabla3[[#This Row],[NO IMPONIBLE 1]]/Tabla3[[#This Row],[Dias Normales]]*Tabla3[[#This Row],[Dias Trabajados]]) -> 0 | AQ10: =IF($FU$11="NO",Tabla3[[#This Row],[NO IMPONIBLE 2]],Tabla3[[#This Row],[NO IMPONIBLE 2]]/Tabla3[[#This Row],[Dias Normales]]*Tabla3[[#This Row],[Dias Trabajados]]) -> 0 | FT10: =$AW$6 -> NO IMPONIBLE 1 | FU10: SI
H11: 5 | I11: 5 | J11: Trabajador 5 | K11: 16.932.429-8 | L11: 44986 | M11: Asistente Documental | N11: 460000 | O11: =Tabla3[[#This Row],[SUELDO BASE]]/Tabla3[[#This Row],[Dias Normales]] -> 15333.33333 | P11: =IF(Tabla3[[#This Row],[GRATIFICACION]]="NO",0,IF(Tabla3[[#This Row],[SUELDO BASE]]/4<=$T$4,Tabla3[[#This Row],[SUELDO BASE]]/4,$T$4)) -> 115000 | Q11: =IF($FU$4="NO",Tabla3[[#This Row],[GRATICACION 30 DIAS]],IF(R11="SI",Tabla3[[#This Row],[GRATICACION 30 DIAS]]/Tabla3[[#This Row],[Dias Normales]]*Tabla3[[#This Row],[Dias Trabajados]],0)) -> 115000 | R11: SI | S11: =Tabla3[[#This Row],[Dias Trabajados]]*Tabla3[[#This Row],[valor diario]]+Tabla3[[#This Row],[Gratificacion diario]]+Tabla3[[#This Row],[Valor Hora Extra]]+Tabla3[[#This Row],[BONO IMPONIBLE 12]]+Tabla3[[#This Row],[BONO IMPONIBLE 22]] -> 575000 | T11: 25000 | U11: =IF($FU$5="NO",Tabla3[[#This Row],[BONO COLACIÓN]],Tabla3[[#This Row],[BONO COLACIÓN]]/Tabla3[[#This Row],[Dias Normales]]*Tabla3[[#This Row],[Dias Trabajados]]) -> 25000 | V11: 25000 | W11: =IF($FU$6="NO",Tabla3[[#This Row],[BONO MOVILIZACIÓN]],Tabla3[[#This Row],[BONO MOVILIZACIÓN]]/Tabla3[[#This Row],[Dias Normales]]*Tabla3[[#This Row],[Dias Trabajados]]) -> 25000 | X11: 131850 | Y11: =IF($FU$7="NO",Tabla3[[#This Row],[VIATICO]],Tabla3[[#This Row],[VIATICO]]/Tabla3[[#This Row],[Dias Normales]]*Tabla3[[#This Row],[Dias Trabajados]]) -> 131850 | Z11: =Tabla3[[#This Row],[bono colacion2]]+Tabla3[[#This Row],[bono movilizacion2]]+Tabla3[[#This Row],[bono produccion2]]+Tabla3[[#This Row],[NO_IMPONIBLE1]]+Tabla3[[#This Row],[NO_IMPONIBLE2]] -> 181850 | AA11: 30 | AB11: =Tabla3[[#This Row],[total imponible]]+Tabla3[[#This Row],[total no imponible]] -> 756850 | AD11: =Tabla3[[#This Row],[Dias Normales]]-Tabla3[[#This Row],[Dias Trabajados]] -> 0 | AE11: =Tabla3[[#This Row],[Dias ausentes]]*Tabla3[[#This Row],[valor diario]] -> 0 | AF11: =(Tabla3[[#This Row],[TOTAL HABERES]]-DESC.!AD9)-Tabla3[[#This Row],[ANTICIPOS]] -> 655765 | AH11: 30 | AI11: =IF(FV16="SI",(((((Tabla3[[#This Row],[SUELDO BASE]]+Tabla3[[#This Row],[GRATICACION 30 DIAS]])/Tabla3[[#This Row],[Dias Normales]])*7)/45)*Tabla3[[#This Row],[Factor Hora Extra]])*Tabla3[[#This Row],[Horas Extras]],(((((Tabla3[[#This Row],[SUELDO BASE]])/Tabla3[[#This Row],[Dias Normales]])*7)/45)*Tabla3[[#This Row],[Factor Hora Extra]])*Tabla3[[#This Row],[Horas Extras]]) -> 0 | AJ11: 1.5 | AN11: =IF($FU$8="NO",Tabla3[[#This Row],[BONO IMPONIBLE 1]],Tabla3[[#This Row],[BONO IMPONIBLE 1]]/Tabla3[[#This Row],[Dias Normales]]*Tabla3[[#This Row],[Dias Trabajados]]) -> 0 | AO11: =IF($FU$9="NO",Tabla3[[#This Row],[BONO IMPONIBLE 2]],Tabla3[[#This Row],[BONO IMPONIBLE 2]]/Tabla3[[#This Row],[Dias Normales]]*Tabla3[[#This Row],[Dias Trabajados]]) -> 0 | AP11: =IF($FU$10="NO",Tabla3[[#This Row],[NO IMPONIBLE 1]],Tabla3[[#This Row],[NO IMPONIBLE 1]]/Tabla3[[#This Row],[Dias Normales]]*Tabla3[[#This Row],[Dias Trabajados]]) -> 0 | AQ11: =IF($FU$11="NO",Tabla3[[#This Row],[NO IMPONIBLE 2]],Tabla3[[#This Row],[NO IMPONIBLE 2]]/Tabla3[[#This Row],[Dias Normales]]*Tabla3[[#This Row],[Dias Trabajados]]) -> 0 | FT11: =$AX$6 -> NO IMPONIBLE 2 | FU11: SI
H12: 6 | I12: 6 | O12: =Tabla3[[#This Row],[SUELDO BASE]]/Tabla3[[#This Row],[Dias Normales]] -> 0 | P12: =IF(Tabla3[[#This Row],[GRATIFICACION]]="NO",0,IF(Tabla3[[#This Row],[SUELDO BASE]]/4<=$T$4,Tabla3[[#This Row],[SUELDO BASE]]/4,$T$4)) -> 0 | Q12: =IF($FU$4="NO",Tabla3[[#This Row],[GRATICACION 30 DIAS]],IF(R12="SI",Tabla3[[#This Row],[GRATICACION 30 DIAS]]/Tabla3[[#This Row],[Dias Normales]]*Tabla3[[#This Row],[Dias Trabajados]],0)) -> 0 | R12: SI | S12: =Tabla3[[#This Row],[Dias Trabajados]]*Tabla3[[#This Row],[valor diario]]+Tabla3[[#This Row],[Gratificacion diario]]+Tabla3[[#This Row],[Valor Hora Extra]]+Tabla3[[#This Row],[BONO IMPONIBLE 12]]+Tabla3[[#This Row],[BONO IMPONIBLE 22]] -> 0 | U12: =IF($FU$5="NO",Tabla3[[#This Row],[BONO COLACIÓN]],Tabla3[[#This Row],[BONO COLACIÓN]]/Tabla3[[#This Row],[Dias Normales]]*Tabla3[[#This Row],[Dias Trabajados]]) -> 0 | W12: =IF($FU$6="NO",Tabla3[[#This Row],[BONO MOVILIZACIÓN]],Tabla3[[#This Row],[BONO MOVILIZACIÓN]]/Tabla3[[#This Row],[Dias Normales]]*Tabla3[[#This Row],[Dias Trabajados]]) -> 0 | Y12: =IF($FU$7="NO",Tabla3[[#This Row],[VIATICO]],Tabla3[[#This Row],[VIATICO]]/Tabla3[[#This Row],[Dias Normales]]*Tabla3[[#This Row],[Dias Trabajados]]) -> 0 | Z12: =Tabla3[[#This Row],[bono colacion2]]+Tabla3[[#This Row],[bono movilizacion2]]+Tabla3[[#This Row],[bono produccion2]]+Tabla3[[#This Row],[NO_IMPONIBLE1]]+Tabla3[[#This Row],[NO_IMPONIBLE2]] -> 0 | AA12: 30 | AB12: =Tabla3[[#This Row],[total imponible]]+Tabla3[[#This Row],[total no imponible]] -> 0 | AD12: =Tabla3[[#This Row],[Dias Normales]]-Tabla3[[#This Row],[Dias Trabajados]] -> 0 | AE12: =Tabla3[[#This Row],[Dias ausentes]]*Tabla3[[#This Row],[valor diario]] -> 0 | AF12: =(Tabla3[[#This Row],[TOTAL HABERES]]-DESC.!AD10)-Tabla3[[#This Row],[ANTICIPOS]] -> 0 | AH12: 30 | AI12: =IF(FV17="SI",(((((Tabla3[[#This Row],[SUELDO BASE]]+Tabla3[[#This Row],[GRATICACION 30 DIAS]])/Tabla3[[#This Row],[Dias Normales]])*7)/45)*Tabla3[[#This Row],[Factor Hora Extra]])*Tabla3[[#This Row],[Horas Extras]],(((((Tabla3[[#This Row],[SUELDO BASE]])/Tabla3[[#This Row],[Dias Normales]])*7)/45)*Tabla3[[#This Row],[Factor Hora Extra]])*Tabla3[[#This Row],[Horas Extras]]) -> 0 | AJ12: 1.5 | AN12: =IF($FU$8="NO",Tabla3[[#This Row],[BONO IMPONIBLE 1]],Tabla3[[#This Row],[BONO IMPONIBLE 1]]/Tabla3[[#This Row],[Dias Normales]]*Tabla3[[#This Row],[Dias Trabajados]]) -> 0 | AO12: =IF($FU$9="NO",Tabla3[[#This Row],[BONO IMPONIBLE 2]],Tabla3[[#This Row],[BONO IMPONIBLE 2]]/Tabla3[[#This Row],[Dias Normales]]*Tabla3[[#This Row],[Dias Trabajados]]) -> 0 | AP12: =IF($FU$10="NO",Tabla3[[#This Row],[NO IMPONIBLE 1]],Tabla3[[#This Row],[NO IMPONIBLE 1]]/Tabla3[[#This Row],[Dias Normales]]*Tabla3[[#This Row],[Dias Trabajados]]) -> 0 | AQ12: =IF($FU$11="NO",Tabla3[[#This Row],[NO IMPONIBLE 2]],Tabla3[[#This Row],[NO IMPONIBLE 2]]/Tabla3[[#This Row],[Dias Normales]]*Tabla3[[#This Row],[Dias Trabajados]]) -> 0 | FT12: INCLUIR GRATIFICACION EN EL CALCULO DE HORA EXTRA | FV12: NO
H13: 7 | I13: 7 | O13: =Tabla3[[#This Row],[SUELDO BASE]]/Tabla3[[#This Row],[Dias Normales]] -> 0 | P13: =IF(Tabla3[[#This Row],[GRATIFICACION]]="NO",0,IF(Tabla3[[#This Row],[SUELDO BASE]]/4<=$T$4,Tabla3[[#This Row],[SUELDO BASE]]/4,$T$4)) -> 0 | Q13: =IF($FU$4="NO",Tabla3[[#This Row],[GRATICACION 30 DIAS]],IF(R13="SI",Tabla3[[#This Row],[GRATICACION 30 DIAS]]/Tabla3[[#This Row],[Dias Normales]]*Tabla3[[#This Row],[Dias Trabajados]],0)) -> 0 | R13: SI | S13: =Tabla3[[#This Row],[Dias Trabajados]]*Tabla3[[#This Row],[valor diario]]+Tabla3[[#This Row],[Gratificacion diario]]+Tabla3[[#This Row],[Valor Hora Extra]]+Tabla3[[#This Row],[BONO IMPONIBLE 12]]+Tabla3[[#This Row],[BONO IMPONIBLE 22]] -> 0 | U13: =IF($FU$5="NO",Tabla3[[#This Row],[BONO COLACIÓN]],Tabla3[[#This Row],[BONO COLACIÓN]]/Tabla3[[#This Row],[Dias Normales]]*Tabla3[[#This Row],[Dias Trabajados]]) -> 0 | W13: =IF($FU$6="NO",Tabla3[[#This Row],[BONO MOVILIZACIÓN]],Tabla3[[#This Row],[BONO MOVILIZACIÓN]]/Tabla3[[#This Row],[Dias Normales]]*Tabla3[[#This Row],[Dias Trabajados]]) -> 0 | Y13: =IF($FU$7="NO",Tabla3[[#This Row],[VIATICO]],Tabla3[[#This Row],[VIATICO]]/Tabla3[[#This Row],[Dias Normales]]*Tabla3[[#This Row],[Dias Trabajados]]) -> 0 | Z13: =Tabla3[[#This Row],[bono colacion2]]+Tabla3[[#This Row],[bono movilizacion2]]+Tabla3[[#This Row],[bono produccion2]]+Tabla3[[#This Row],[NO_IMPONIBLE1]]+Tabla3[[#This Row],[NO_IMPONIBLE2]] -> 0 | AB13: =Tabla3[[#This Row],[total imponible]]+Tabla3[[#This Row],[total no imponible]] -> 0 | AD13: =Tabla3[[#This Row],[Dias Normales]]-Tabla3[[#This Row],[Dias Trabajados]] -> 30 | AE13: =Tabla3[[#This Row],[Dias ausentes]]*Tabla3[[#This Row],[valor diario]] -> 0 | AF13: =(Tabla3[[#This Row],[TOTAL HABERES]]-DESC.!AD11)-Tabla3[[#This Row],[ANTICIPOS]] -> 0 | AH13: 30 | AI13: =IF(FV18="SI",(((((Tabla3[[#This Row],[SUELDO BASE]]+Tabla3[[#This Row],[GRATICACION 30 DIAS]])/Tabla3[[#This Row],[Dias Normales]])*7)/45)*Tabla3[[#This Row],[Factor Hora Extra]])*Tabla3[[#This Row],[Horas Extras]],(((((Tabla3[[#This Row],[SUELDO BASE]])/Tabla3[[#This Row],[Dias Normales]])*7)/45)*Tabla3[[#This Row],[Factor Hora Extra]])*Tabla3[[#This Row],[Horas Extras]]) -> 0 | AJ13: 1.5 | AN13: =IF($FU$8="NO",Tabla3[[#This Row],[BONO IMPONIBLE 1]],Tabla3[[#This Row],[BONO IMPONIBLE 1]]/Tabla3[[#This Row],[Dias Normales]]*Tabla3[[#This Row],[Dias Trabajados]]) -> 0 | AO13: =IF($FU$9="NO",Tabla3[[#This Row],[BONO IMPONIBLE 2]],Tabla3[[#This Row],[BONO IMPONIBLE 2]]/Tabla3[[#This Row],[Dias Normales]]*Tabla3[[#This Row],[Dias Trabajados]]) -> 0 | AP13: =IF($FU$10="NO",Tabla3[[#This Row],[NO IMPONIBLE 1]],Tabla3[[#This Row],[NO IMPONIBLE 1]]/Tabla3[[#This Row],[Dias Normales]]*Tabla3[[#This Row],[Dias Trabajados]]) -> 0 | AQ13: =IF($FU$11="NO",Tabla3[[#This Row],[NO IMPONIBLE 2]],Tabla3[[#This Row],[NO IMPONIBLE 2]]/Tabla3[[#This Row],[Dias Normales]]*Tabla3[[#This Row],[Dias Trabajados]]) -> 0
H14: 8 | I14: 8 | O14: =Tabla3[[#This Row],[SUELDO BASE]]/Tabla3[[#This Row],[Dias Normales]] -> 0 | P14: =IF(Tabla3[[#This Row],[GRATIFICACION]]="NO",0,IF(Tabla3[[#This Row],[SUELDO BASE]]/4<=$T$4,Tabla3[[#This Row],[SUELDO BASE]]/4,$T$4)) -> 0 | Q14: =IF($FU$4="NO",Tabla3[[#This Row],[GRATICACION 30 DIAS]],IF(R14="SI",Tabla3[[#This Row],[GRATICACION 30 DIAS]]/Tabla3[[#This Row],[Dias Normales]]*Tabla3[[#This Row],[Dias Trabajados]],0)) -> 0 | R14: SI | S14: =Tabla3[[#This Row],[Dias Trabajados]]*Tabla3[[#This Row],[valor diario]]+Tabla3[[#This Row],[Gratificacion diario]]+Tabla3[[#This Row],[Valor Hora Extra]]+Tabla3[[#This Row],[BONO IMPONIBLE 12]]+Tabla3[[#This Row],[BONO IMPONIBLE 22]] -> 0 | U14: =IF($FU$5="NO",Tabla3[[#This Row],[BONO COLACIÓN]],Tabla3[[#This Row],[BONO COLACIÓN]]/Tabla3[[#This Row],[Dias Normales]]*Tabla3[[#This Row],[Dias Trabajados]]) -> 0 | W14: =IF($FU$6="NO",Tabla3[[#This Row],[BONO MOVILIZACIÓN]],Tabla3[[#This Row],[BONO MOVILIZACIÓN]]/Tabla3[[#This Row],[Dias Normales]]*Tabla3[[#This Row],[Dias Trabajados]]) -> 0 | Y14: =IF($FU$7="NO",Tabla3[[#This Row],[VIATICO]],Tabla3[[#This Row],[VIATICO]]/Tabla3[[#This Row],[Dias Normales]]*Tabla3[[#This Row],[Dias Trabajados]]) -> 0 | Z14: =Tabla3[[#This Row],[bono colacion2]]+Tabla3[[#This Row],[bono movilizacion2]]+Tabla3[[#This Row],[bono produccion2]]+Tabla3[[#This Row],[NO_IMPONIBLE1]]+Tabla3[[#This Row],[NO_IMPONIBLE2]] -> 0 | AB14: =Tabla3[[#This Row],[total imponible]]+Tabla3[[#This Row],[total no imponible]] -> 0 | AD14: =Tabla3[[#This Row],[Dias Normales]]-Tabla3[[#This Row],[Dias Trabajados]] -> 30 | AE14: =Tabla3[[#This Row],[Dias ausentes]]*Tabla3[[#This Row],[valor diario]] -> 0 | AF14: =(Tabla3[[#This Row],[TOTAL HABERES]]-DESC.!AD12)-Tabla3[[#This Row],[ANTICIPOS]] -> 0 | AH14: 30 | AI14: =IF(FV19="SI",(((((Tabla3[[#This Row],[SUELDO BASE]]+Tabla3[[#This Row],[GRATICACION 30 DIAS]])/Tabla3[[#This Row],[Dias Normales]])*7)/45)*Tabla3[[#This Row],[Factor Hora Extra]])*Tabla3[[#This Row],[Horas Extras]],(((((Tabla3[[#This Row],[SUELDO BASE]])/Tabla3[[#This Row],[Dias Normales]])*7)/45)*Tabla3[[#This Row],[Factor Hora Extra]])*Tabla3[[#This Row],[Horas Extras]]) -> 0 | AJ14: 1.5 | AN14: =IF($FU$8="NO",Tabla3[[#This Row],[BONO IMPONIBLE 1]],Tabla3[[#This Row],[BONO IMPONIBLE 1]]/Tabla3[[#This Row],[Dias Normales]]*Tabla3[[#This Row],[Dias Trabajados]]) -> 0 | AO14: =IF($FU$9="NO",Tabla3[[#This Row],[BONO IMPONIBLE 2]],Tabla3[[#This Row],[BONO IMPONIBLE 2]]/Tabla3[[#This Row],[Dias Normales]]*Tabla3[[#This Row],[Dias Trabajados]]) -> 0 | AP14: =IF($FU$10="NO",Tabla3[[#This Row],[NO IMPONIBLE 1]],Tabla3[[#This Row],[NO IMPONIBLE 1]]/Tabla3[[#This Row],[Dias Normales]]*Tabla3[[#This Row],[Dias Trabajados]]) -> 0 | AQ14: =IF($FU$11="NO",Tabla3[[#This Row],[NO IMPONIBLE 2]],Tabla3[[#This Row],[NO IMPONIBLE 2]]/Tabla3[[#This Row],[Dias Normales]]*Tabla3[[#This Row],[Dias Trabajados]]) -> 0
H15: 9 | I15: 9 | O15: =Tabla3[[#This Row],[SUELDO BASE]]/Tabla3[[#This Row],[Dias Normales]] -> 0 | P15: =IF(Tabla3[[#This Row],[GRATIFICACION]]="NO",0,IF(Tabla3[[#This Row],[SUELDO BASE]]/4<=$T$4,Tabla3[[#This Row],[SUELDO BASE]]/4,$T$4)) -> 0 | Q15: =IF($FU$4="NO",Tabla3[[#This Row],[GRATICACION 30 DIAS]],IF(R15="SI",Tabla3[[#This Row],[GRATICACION 30 DIAS]]/Tabla3[[#This Row],[Dias Normales]]*Tabla3[[#This Row],[Dias Trabajados]],0)) -> 0 | R15: SI | S15: =Tabla3[[#This Row],[Dias Trabajados]]*Tabla3[[#This Row],[valor diario]]+Tabla3[[#This Row],[Gratificacion diario]]+Tabla3[[#This Row],[Valor Hora Extra]]+Tabla3[[#This Row],[BONO IMPONIBLE 12]]+Tabla3[[#This Row],[BONO IMPONIBLE 22]] -> 0 | U15: =IF($FU$5="NO",Tabla3[[#This Row],[BONO COLACIÓN]],Tabla3[[#This Row],[BONO COLACIÓN]]/Tabla3[[#This Row],[Dias Normales]]*Tabla3[[#This Row],[Dias Trabajados]]) -> 0 | W15: =IF($FU$6="NO",Tabla3[[#This Row],[BONO MOVILIZACIÓN]],Tabla3[[#This Row],[BONO MOVILIZACIÓN]]/Tabla3[[#This Row],[Dias Normales]]*Tabla3[[#This Row],[Dias Trabajados]]) -> 0 | Y15: =IF($FU$7="NO",Tabla3[[#This Row],[VIATICO]],Tabla3[[#This Row],[VIATICO]]/Tabla3[[#This Row],[Dias Normales]]*Tabla3[[#This Row],[Dias Trabajados]]) -> 0 | Z15: =Tabla3[[#This Row],[bono colacion2]]+Tabla3[[#This Row],[bono movilizacion2]]+Tabla3[[#This Row],[bono produccion2]]+Tabla3[[#This Row],[NO_IMPONIBLE1]]+Tabla3[[#This Row],[NO_IMPONIBLE2]] -> 0 | AB15: =Tabla3[[#This Row],[total imponible]]+Tabla3[[#This Row],[total no imponible]] -> 0 | AD15: =Tabla3[[#This Row],[Dias Normales]]-Tabla3[[#This Row],[Dias Trabajados]] -> 30 | AE15: =Tabla3[[#This Row],[Dias ausentes]]*Tabla3[[#This Row],[valor diario]] -> 0 | AF15: =(Tabla3[[#This Row],[TOTAL HABERES]]-DESC.!AD13)-Tabla3[[#This Row],[ANTICIPOS]] -> 0 | AH15: 30 | AI15: =IF(FV20="SI",(((((Tabla3[[#This Row],[SUELDO BASE]]+Tabla3[[#This Row],[GRATICACION 30 DIAS]])/Tabla3[[#This Row],[Dias Normales]])*7)/45)*Tabla3[[#This Row],[Factor Hora Extra]])*Tabla3[[#This Row],[Horas Extras]],(((((Tabla3[[#This Row],[SUELDO BASE]])/Tabla3[[#This Row],[Dias Normales]])*7)/45)*Tabla3[[#This Row],[Factor Hora Extra]])*Tabla3[[#This Row],[Horas Extras]]) -> 0 | AJ15: 1.5 | AN15: =IF($FU$8="NO",Tabla3[[#This Row],[BONO IMPONIBLE 1]],Tabla3[[#This Row],[BONO IMPONIBLE 1]]/Tabla3[[#This Row],[Dias Normales]]*Tabla3[[#This Row],[Dias Trabajados]]) -> 0 | AO15: =IF($FU$9="NO",Tabla3[[#This Row],[BONO IMPONIBLE 2]],Tabla3[[#This Row],[BONO IMPONIBLE 2]]/Tabla3[[#This Row],[Dias Normales]]*Tabla3[[#This Row],[Dias Trabajados]]) -> 0 | AP15: =IF($FU$10="NO",Tabla3[[#This Row],[NO IMPONIBLE 1]],Tabla3[[#This Row],[NO IMPONIBLE 1]]/Tabla3[[#This Row],[Dias Normales]]*Tabla3[[#This Row],[Dias Trabajados]]) -> 0 | AQ15: =IF($FU$11="NO",Tabla3[[#This Row],[NO IMPONIBLE 2]],Tabla3[[#This Row],[NO IMPONIBLE 2]]/Tabla3[[#This Row],[Dias Normales]]*Tabla3[[#This Row],[Dias Trabajados]]) -> 0
... 3 more rows

Sheet DESC.
A1: X | L1: Descuentos | AG1: ACA PUEDES COLOCAR DESCRIPCION Y VALOR DE CUALQUIER OTRO DESCUENTO | AS1: Tabla Impuesto Unico
L4: NOMBRE | M4: AFP | N4: %AFP | O4: TOTAL AFP | P4: SALUD | Q4: %SALUD | R4: TOTAL SALUD | S4: SEGURO CESANTIA | T4: %SEGURO | U4: TOTAL SEGURO CESANTIA | V4: ISAPRE | W4: TOTAL ADICIONAL | X4: PACTO UF | Y4: VALOR UF | Z4: TOTAL UF | AA4: IMPUESTO UNICO | AB4: PASO DESC. UNIC. | AC4: VALOR IMP U. | AD4: TOTAL DESC. | AE4: TIPO CONTRATO | AF4: aporte del empleador | AG4: Columna1 | AH4: VALOR OTRO 1 | AI4: OTRO 2 | AJ4: VALOR OTRO 2 | AK4: SIS | AL4: % SIS | AM4: valor sis | AN4: MUTUAL | AO4: %MUTUAL | AP4: valor mutual | AS4: DESDE | AT4: HASTA | AU4: FACTOR | AV4: REBAJA | AY4: INDEFINIDO
J5: 1 | K5: 1 | L5: =IF(BDD!J7=0," ",BDD!J7) -> Trabajador 1 | M5: AFP CAPITAL | N5: 0.1144 | O5: =IF(BDD!S7<_TOPEIMPONIBLE,BDD!S7*Tabla4[[#This Row],[%AFP]],_TOPEIMPONIBLE*Tabla4[[#This Row],[%AFP]]) -> 158110.2952 | P5: BANMEDICA | R5: =IF(BDD!S7<_TOPEIMPONIBLE,BDD!S7*Tabla4[[#This Row],[%SALUD]],_TOPEIMPONIBLE*Tabla4[[#This Row],[%SALUD]]) -> 0 | S5: SEGURO CESANTIA | T5: 0 | U5: =BDD!S7*Tabla4[[#This Row],[%SEGURO]] -> 0 | V5: BANMEDICA 3,213UF | W5: =IF(Tabla4[[#This Row],[TOTAL UF]]-Tabla4[[#This Row],[TOTAL SALUD]]<=0,0,Tabla4[[#This Row],[TOTAL UF]]-Tabla4[[#This Row],[TOTAL SALUD]]) -> 121575.2612 | X5: 3.213 | Y5: =BDD!$N$4 -> 37838.55 | Z5: =Tabla4[[#This Row],[PACTO UF]]*Tabla4[[#This Row],[VALOR UF]] -> 121575.2612 | AA5: IMPUESTO UNICO | AB5: =BDD!S7-Tabla4[[#This Row],[TOTAL AFP]]-Tabla4[[#This Row],[TOTAL SALUD]]-Tabla4[[#This Row],[TOTAL SEGURO CESANTIA]]-Tabla4[[#This Row],[TOTAL ADICIONAL]] -> 1102397.444 | AC5: =IF(Tabla4[[#This Row],[PASO DESC. UNIC.]]<=$AT$5,0,IF(Tabla4[[#This Row],[PASO DESC. UNIC.]]<=$AT$6,Tabla4[[#This Row],[PASO DESC. UNIC.]]*$AU$6-$AV$6,IF(Tabla4[[#This Row],[PASO DESC. UNIC.]]<=$AT$7,Tabla4[[#This Row],[PASO DESC. UNIC.]]*$AU$7-$AV$7,IF(Tabla4[[#This Row],[PASO DESC. UNIC.]]<=$AT$8,Tabla4[[#This Row],[PASO DESC. UNIC.]]*$AU$8-$AV$8,IF(Tabla4[[#This Row],[PASO DESC. UNIC.]]<=$AT$9,Tabla4[[#This Row],[PASO DESC. UNIC.]]*$AU$9-$AV$9,IF(Tabla4[[#This Row],[PASO DESC. UNIC.]]<=$AT$10,Tabla4[[#This Row],[PASO DESC. UNIC.]]*$AU$10-$AV$10,IF(Tabla4[[#This Row],[PASO DESC. UNIC.]]>=$AS$11,Tabla4[[#This Row],[PASO DESC. UNIC.]]*$AU$11-$AV$11))))))) -> 9419.257746 | AD5: =Tabla4[[#This Row],[TOTAL AFP]]+Tabla4[[#This Row],[TOTAL SALUD]]+Tabla4[[#This Row],[TOTAL SEGURO CESANTIA]]+Tabla4[[#This Row],[TOTAL ADICIONAL]]+Tabla4[[#This Row],[VALOR IMP U.]]+Tabla4[[#This Row],[VALOR OTRO 2]]+Tabla4[[#This Row],[VALOR OTRO 1]] -> 289104.8141 | AE5: PLAZO FIJO | AF5: =IF($BP$8 = "SI",IF(Tabla4[[#This Row],[TIPO CONTRATO]]="Indefinido",BDD!S7*2.4%,IF(Tabla4[[#This Row],[TIPO CONTRATO]]="PLAZO FIJO",BDD!S7*3%,0)),0) -> 41462.49 | AK5: SIS | AL5: 0.0155 | AM5: =BDD!S7*Tabla4[[#This Row],[% SIS]] -> 21422.2865 | AN5: MUTUAL | AO5: 0.0095 | AP5: =BDD!S7*Tabla4[[#This Row],[%MUTUAL]] -> 13129.7885 | AS5: 0 | AT5: 866916 | AU5: 0 | AV5: 0 | AY5: PLAZO FIJO
J6: 2 | K6: 2 | L6: =IF(BDD!J8=0," ",BDD!J8) -> Trabajador 2 | M6: PLAN VITAL | N6: 0.1116 | O6: =IF(BDD!S8<_TOPEIMPONIBLE,BDD!S8*Tabla4[[#This Row],[%AFP]],_TOPEIMPONIBLE*Tabla4[[#This Row],[%AFP]]) -> 100440 | P6: FONASA | Q6: 0.07 | R6: =IF(BDD!S8<_TOPEIMPONIBLE,BDD!S8*Tabla4[[#This Row],[%SALUD]],_TOPEIMPONIBLE*Tabla4[[#This Row],[%SALUD]]) -> 63000 | S6: SEGURO CESANTIA | T6: 0 | U6: =BDD!S8*Tabla4[[#This Row],[%SEGURO]] -> 0 | W6: =IF(Tabla4[[#This Row],[TOTAL UF]]-Tabla4[[#This Row],[TOTAL SALUD]]<=0,0,Tabla4[[#This Row],[TOTAL UF]]-Tabla4[[#This Row],[TOTAL SALUD]]) -> 0 | Y6: =BDD!$N$4 -> 37838.55 | Z6: =Tabla4[[#This Row],[PACTO UF]]*Tabla4[[#This Row],[VALOR UF]] -> 0 | AA6: IMPUESTO UNICO | AB6: =BDD!S8-Tabla4[[#This Row],[TOTAL AFP]]-Tabla4[[#This Row],[TOTAL SALUD]]-Tabla4[[#This Row],[TOTAL SEGURO CESANTIA]]-Tabla4[[#This Row],[TOTAL ADICIONAL]] -> 736560 | AC6: =IF(Tabla4[[#This Row],[PASO DESC. UNIC.]]<=$AT$5,0,IF(Tabla4[[#This Row],[PASO DESC. UNIC.]]<=$AT$6,Tabla4[[#This Row],[PASO DESC. UNIC.]]*$AU$6-$AV$6,IF(Tabla4[[#This Row],[PASO DESC. UNIC.]]<=$AT$7,Tabla4[[#This Row],[PASO DESC. UNIC.]]*$AU$7-$AV$7,IF(Tabla4[[#This Row],[PASO DESC. UNIC.]]<=$AT$8,Tabla4[[#This Row],[PASO DESC. UNIC.]]*$AU$8-$AV$8,IF(Tabla4[[#This Row],[PASO DESC. UNIC.]]<=$AT$9,Tabla4[[#This Row],[PASO DESC. UNIC.]]*$AU$9-$AV$9,IF(Tabla4[[#This Row],[PASO DESC. UNIC.]]<=$AT$10,Tabla4[[#This Row],[PASO DESC. UNIC.]]*$AU$10-$AV$10,IF(Tabla4[[#This Row],[PASO DESC. UNIC.]]>=$AS$11,Tabla4[[#This Row],[PASO DESC. UNIC.]]*$AU$11-$AV$11))))))) -> 0 | AD6: =Tabla4[[#This Row],[TOTAL AFP]]+Tabla4[[#This Row],[TOTAL SALUD]]+Tabla4[[#This Row],[TOTAL SEGURO CESANTIA]]+Tabla4[[#This Row],[TOTAL ADICIONAL]]+Tabla4[[#This Row],[VALOR IMP U.]]+Tabla4[[#This Row],[VALOR OTRO 2]]+Tabla4[[#This Row],[VALOR OTRO 1]] -> 163440 | AE6: PLAZO FIJO | AF6: =IF($BP$8 = "SI",IF(Tabla4[[#This Row],[TIPO CONTRATO]]="Indefinido",BDD!S8*2.4%,IF(Tabla4[[#This Row],[TIPO CONTRATO]]="PLAZO FIJO",BDD!S8*3%,0)),0) -> 27000 | AK6: SIS | AL6: 0.0155 | AM6: =BDD!S8*Tabla4[[#This Row],[% SIS]] -> 13950 | AN6: MUTUAL | AO6: 0.0095 | AP6: =BDD!S8*Tabla4[[#This Row],[%MUTUAL]] -> 8550 | AS6: 866916.01 | AT6: 1926480 | AU6: 0.04 | AV6: 34676.64 | BI6: PARAMETROS SEGURO DE CESANTIA
J7: 3 | K7: 3 | L7: =IF(BDD!J9=0," ",BDD!J9) -> Trabajador 3 | M7: AFP MODELO | N7: 0.1058 | O7: =IF(BDD!S9<_TOPEIMPONIBLE,BDD!S9*Tabla4[[#This Row],[%AFP]],_TOPEIMPONIBLE*Tabla4[[#This Row],[%AFP]]) -> 195730 | P7: BANMEDICA | R7: =IF(BDD!S9<_TOPEIMPONIBLE,BDD!S9*Tabla4[[#This Row],[%SALUD]],_TOPEIMPONIBLE*Tabla4[[#This Row],[%SALUD]]) -> 0 | S7: SEGURO CESANTIA | T7: 0 | U7: =BDD!S9*Tabla4[[#This Row],[%SEGURO]] -> 0 | V7: BANMEDICA 3,926UF | W7: =IF(Tabla4[[#This Row],[TOTAL UF]]-Tabla4[[#This Row],[TOTAL SALUD]]<=0,0,Tabla4[[#This Row],[TOTAL UF]]-Tabla4[[#This Row],[TOTAL SALUD]]) -> 148554.1473 | X7: 3.926 | Y7: =BDD!$N$4 -> 37838.55 | Z7: =Tabla4[[#This Row],[PACTO UF]]*Tabla4[[#This Row],[VALOR UF]] -> 148554.1473 | AA7: IMPUESTO UNICO | AB7: =BDD!S9-Tabla4[[#This Row],[TOTAL AFP]]-Tabla4[[#This Row],[TOTAL SALUD]]-Tabla4[[#This Row],[TOTAL SEGURO CESANTIA]]-Tabla4[[#This Row],[TOTAL ADICIONAL]] -> 1505715.853 | AC7: =IF(Tabla4[[#This Row],[PASO DESC. UNIC.]]<=$AT$5,0,IF(Tabla4[[#This Row],[PASO DESC. UNIC.]]<=$AT$6,Tabla4[[#This Row],[PASO DESC. UNIC.]]*$AU$6-$AV$6,IF(Tabla4[[#This Row],[PASO DESC. UNIC.]]<=$AT$7,Tabla4[[#This Row],[PASO DESC. UNIC.]]*$AU$7-$AV$7,IF(Tabla4[[#This Row],[PASO DESC. UNIC.]]<=$AT$8,Tabla4[[#This Row],[PASO DESC. UNIC.]]*$AU$8-$AV$8,IF(Tabla4[[#This Row],[PASO DESC. UNIC.]]<=$AT$9,Tabla4[[#This Row],[PASO DESC. UNIC.]]*$AU$9-$AV$9,IF(Tabla4[[#This Row],[PASO DESC. UNIC.]]<=$AT$10,Tabla4[[#This Row],[PASO DESC. UNIC.]]*$AU$10-$AV$10,IF(Tabla4[[#This Row],[PASO DESC. UNIC.]]>=$AS$11,Tabla4[[#This Row],[PASO DESC. UNIC.]]*$AU$11-$AV$11))))))) -> 25551.99411 | AD7: =Tabla4[[#This Row],[TOTAL AFP]]+Tabla4[[#This Row],[TOTAL SALUD]]+Tabla4[[#This Row],[TOTAL SEGURO CESANTIA]]+Tabla4[[#This Row],[TOTAL ADICIONAL]]+Tabla4[[#This Row],[VALOR IMP U.]]+Tabla4[[#This Row],[VALOR OTRO 2]]+Tabla4[[#This Row],[VALOR OTRO 1]] -> 369836.1414 | AE7: PLAZO FIJO | AF7: =IF($BP$8 = "SI",IF(Tabla4[[#This Row],[TIPO CONTRATO]]="Indefinido",BDD!S9*2.4%,IF(Tabla4[[#This Row],[TIPO CONTRATO]]="PLAZO FIJO",BDD!S9*3%,0)),0) -> 55500 | AK7: SIS | AL7: 0.0155 | AM7: =BDD!S9*Tabla4[[#This Row],[% SIS]] -> 28675 | AN7: MUTUAL | AO7: 0.0095 | AP7: =BDD!S9*Tabla4[[#This Row],[%MUTUAL]] -> 17575 | AS7: 1926480.01 | AT7: 3210800 | AU7: 0.08 | AV7: 111735.84 | BF7: SI
J8: 4 | K8: 4 | L8: =IF(BDD!J10=0," ",BDD!J10) -> Trabajador 4 | M8: AFP MODELO | N8: 0.1058 | O8: =IF(BDD!S10<_TOPEIMPONIBLE,BDD!S10*Tabla4[[#This Row],[%AFP]],_TOPEIMPONIBLE*Tabla4[[#This Row],[%AFP]]) -> 116380 | P8: FONASA | Q8: 0.07 | R8: =IF(BDD!S10<_TOPEIMPONIBLE,BDD!S10*Tabla4[[#This Row],[%SALUD]],_TOPEIMPONIBLE*Tabla4[[#This Row],[%SALUD]]) -> 77000 | S8: SEGURO CESANTIA | T8: 0 | U8: =BDD!S10*Tabla4[[#This Row],[%SEGURO]] -> 0 | W8: =IF(Tabla4[[#This Row],[TOTAL UF]]-Tabla4[[#This Row],[TOTAL SALUD]]<=0,0,Tabla4[[#This Row],[TOTAL UF]]-Tabla4[[#This Row],[TOTAL SALUD]]) -> 0 | Y8: =BDD!$N$4 -> 37838.55 | Z8: =Tabla4[[#This Row],[PACTO UF]]*Tabla4[[#This Row],[VALOR UF]] -> 0 | AA8: IMPUESTO UNICO | AB8: =BDD!S10-Tabla4[[#This Row],[TOTAL AFP]]-Tabla4[[#This Row],[TOTAL SALUD]]-Tabla4[[#This Row],[TOTAL SEGURO CESANTIA]]-Tabla4[[#This Row],[TOTAL ADICIONAL]] -> 906620 | AC8: =IF(Tabla4[[#This Row],[PASO DESC. UNIC.]]<=$AT$5,0,IF(Tabla4[[#This Row],[PASO DESC. UNIC.]]<=$AT$6,Tabla4[[#This Row],[PASO DESC. UNIC.]]*$AU$6-$AV$6,IF(Tabla4[[#This Row],[PASO DESC. UNIC.]]<=$AT$7,Tabla4[[#This Row],[PASO DESC. UNIC.]]*$AU$7-$AV$7,IF(Tabla4[[#This Row],[PASO DESC. UNIC.]]<=$AT$8,Tabla4[[#This Row],[PASO DESC. UNIC.]]*$AU$8-$AV$8,IF(Tabla4[[#This Row],[PASO DESC. UNIC.]]<=$AT$9,Tabla4[[#This Row],[PASO DESC. UNIC.]]*$AU$9-$AV$9,IF(Tabla4[[#This Row],[PASO DESC. UNIC.]]<=$AT$10,Tabla4[[#This Row],[PASO DESC. UNIC.]]*$AU$10-$AV$10,IF(Tabla4[[#This Row],[PASO DESC. UNIC.]]>=$AS$11,Tabla4[[#This Row],[PASO DESC. UNIC.]]*$AU$11-$AV$11))))))) -> 1588.16 | AD8: =Tabla4[[#This Row],[TOTAL AFP]]+Tabla4[[#This Row],[TOTAL SALUD]]+Tabla4[[#This Row],[TOTAL SEGURO CESANTIA]]+Tabla4[[#This Row],[TOTAL ADICIONAL]]+Tabla4[[#This Row],[VALOR IMP U.]]+Tabla4[[#This Row],[VALOR OTRO 2]]+Tabla4[[#This Row],[VALOR OTRO 1]] -> 194968.16 | AE8: PLAZO FIJO | AF8: =IF($BP$8 = "SI",IF(Tabla4[[#This Row],[TIPO CONTRATO]]="Indefinido",BDD!S10*2.4%,IF(Tabla4[[#This Row],[TIPO CONTRATO]]="PLAZO FIJO",BDD!S10*3%,0)),0) -> 33000 | AK8: SIS | AL8: 0.0155 | AM8: =BDD!S10*Tabla4[[#This Row],[% SIS]] -> 17050 | AN8: MUTUAL | AO8: 0.0095 | AP8: =BDD!S10*Tabla4[[#This Row],[%MUTUAL]] -> 10450 | AS8: 3210800.01 | AT8: 4495120 | AU8: 0.135 | AV8: 288329.84 | BF8: NO | BI8: ¿EL EMPLEADOR APORTA EN EL SEGURO DE CESANTIA DE LOS TRABAJADORES? | BP8: SI
J9: 5 | K9: 5 | L9: =IF(BDD!J11=0," ",BDD!J11) -> Trabajador 5 | M9: AFP MODELO | N9: 0.1058 | O9: =IF(BDD!S11<_TOPEIMPONIBLE,BDD!S11*Tabla4[[#This Row],[%AFP]],_TOPEIMPONIBLE*Tabla4[[#This Row],[%AFP]]) -> 60835 | P9: FONASA | Q9: 0.07 | R9: =IF(BDD!S11<_TOPEIMPONIBLE,BDD!S11*Tabla4[[#This Row],[%SALUD]],_TOPEIMPONIBLE*Tabla4[[#This Row],[%SALUD]]) -> 40250 | S9: SEGURO CESANTIA | T9: 0 | U9: =BDD!S11*Tabla4[[#This Row],[%SEGURO]] -> 0 | W9: =IF(Tabla4[[#This Row],[TOTAL UF]]-Tabla4[[#This Row],[TOTAL SALUD]]<=0,0,Tabla4[[#This Row],[TOTAL UF]]-Tabla4[[#This Row],[TOTAL SALUD]]) -> 0 | Y9: =BDD!$N$4 -> 37838.55 | Z9: =Tabla4[[#This Row],[PACTO UF]]*Tabla4[[#This Row],[VALOR UF]] -> 0 | AA9: IMPUESTO UNICO | AB9: =BDD!S11-Tabla4[[#This Row],[TOTAL AFP]]-Tabla4[[#This Row],[TOTAL SALUD]]-Tabla4[[#This Row],[TOTAL SEGURO CESANTIA]]-Tabla4[[#This Row],[TOTAL ADICIONAL]] -> 473915 | AC9: =IF(Tabla4[[#This Row],[PASO DESC. UNIC.]]<=$AT$5,0,IF(Tabla4[[#This Row],[PASO DESC. UNIC.]]<=$AT$6,Tabla4[[#This Row],[PASO DESC. UNIC.]]*$AU$6-$AV$6,IF(Tabla4[[#This Row],[PASO DESC. UNIC.]]<=$AT$7,Tabla4[[#This Row],[PASO DESC. UNIC.]]*$AU$7-$AV$7,IF(Tabla4[[#This Row],[PASO DESC. UNIC.]]<=$AT$8,Tabla4[[#This Row],[PASO DESC. UNIC.]]*$AU$8-$AV$8,IF(Tabla4[[#This Row],[PASO DESC. UNIC.]]<=$AT$9,Tabla4[[#This Row],[PASO DESC. UNIC.]]*$AU$9-$AV$9,IF(Tabla4[[#This Row],[PASO DESC. UNIC.]]<=$AT$10,Tabla4[[#This Row],[PASO DESC. UNIC.]]*$AU$10-$AV$10,IF(Tabla4[[#This Row],[PASO DESC. UNIC.]]>=$AS$11,Tabla4[[#This Row],[PASO DESC. UNIC.]]*$AU$11-$AV$11))))))) -> 0 | AD9: =Tabla4[[#This Row],[TOTAL AFP]]+Tabla4[[#This Row],[TOTAL SALUD]]+Tabla4[[#This Row],[TOTAL SEGURO CESANTIA]]+Tabla4[[#This Row],[TOTAL ADICIONAL]]+Tabla4[[#This Row],[VALOR IMP U.]]+Tabla4[[#This Row],[VALOR OTRO 2]]+Tabla4[[#This Row],[VALOR OTRO 1]] -> 101085 | AE9: PLAZO FIJO | AF9: =IF($BP$8 = "SI",IF(Tabla4[[#This Row],[TIPO CONTRATO]]="Indefinido",BDD!S11*2.4%,IF(Tabla4[[#This Row],[TIPO CONTRATO]]="PLAZO FIJO",BDD!S11*3%,0)),0) -> 17250 | AK9: SIS | AL9: 0.0155 | AM9: =BDD!S11*Tabla4[[#This Row],[% SIS]] -> 8912.5 | AN9: MUTUAL | AO9: 0.0095 | AP9: =BDD!S11*Tabla4[[#This Row],[%MUTUAL]] -> 5462.5 | AS9: 4495120.01 | AT9: 5779440 | AU9: 0.23 | AV9: 715366.24
J10: 6 | K10: 6 | L10: =IF(BDD!J12=0," ",BDD!J12) ->  | O10: =IF(BDD!S12<_TOPEIMPONIBLE,BDD!S12*Tabla4[[#This Row],[%AFP]],_TOPEIMPONIBLE*Tabla4[[#This Row],[%AFP]]) -> 0 | R10: =IF(BDD!S12<_TOPEIMPONIBLE,BDD!S12*Tabla4[[#This Row],[%SALUD]],_TOPEIMPONIBLE*Tabla4[[#This Row],[%SALUD]]) -> 0 | U10: =BDD!S12*Tabla4[[#This Row],[%SEGURO]] -> 0 | W10: =IF(Tabla4[[#This Row],[TOTAL UF]]-Tabla4[[#This Row],[TOTAL SALUD]]<=0,0,Tabla4[[#This Row],[TOTAL UF]]-Tabla4[[#This Row],[TOTAL SALUD]]) -> 0 | Y10: =BDD!$N$4 -> 37838.55 | Z10: =Tabla4[[#This Row],[PACTO UF]]*Tabla4[[#This Row],[VALOR UF]] -> 0 | AA10: IMPUESTO UNICO | AB10: =BDD!S12-Tabla4[[#This Row],[TOTAL AFP]]-Tabla4[[#This Row],[TOTAL SALUD]]-Tabla4[[#This Row],[TOTAL SEGURO CESANTIA]]-Tabla4[[#This Row],[TOTAL ADICIONAL]] -> 0 | AC10: =IF(Tabla4[[#This Row],[PASO DESC. UNIC.]]<=$AT$5,0,IF(Tabla4[[#This Row],[PASO DESC. UNIC.]]<=$AT$6,Tabla4[[#This Row],[PASO DESC. UNIC.]]*$AU$6-$AV$6,IF(Tabla4[[#This Row],[PASO DESC. UNIC.]]<=$AT$7,Tabla4[[#This Row],[PASO DESC. UNIC.]]*$AU$7-$AV$7,IF(Tabla4[[#This Row],[PASO DESC. UNIC.]]<=$AT$8,Tabla4[[#This Row],[PASO DESC. UNIC.]]*$AU$8-$AV$8,IF(Tabla4[[#This Row],[PASO DESC. UNIC.]]<=$AT$9,Tabla4[[#This Row],[PASO DESC. UNIC.]]*$AU$9-$AV$9,IF(Tabla4[[#This Row],[PASO DESC. UNIC.]]<=$AT$10,Tabla4[[#This Row],[PASO DESC. UNIC.]]*$AU$10-$AV$10,IF(Tabla4[[#This Row],[PASO DESC. UNIC.]]>=$AS$11,Tabla4[[#This Row],[PASO DESC. UNIC.]]*$AU$11-$AV$11))))))) -> 0 | AD10: =Tabla4[[#This Row],[TOTAL AFP]]+Tabla4[[#This Row],[TOTAL SALUD]]+Tabla4[[#This Row],[TOTAL SEGURO CESANTIA]]+Tabla4[[#This Row],[TOTAL ADICIONAL]]+Tabla4[[#This Row],[VALOR IMP U.]]+Tabla4[[#This Row],[VALOR OTRO 2]]+Tabla4[[#This Row],[VALOR OTRO 1]] -> 0 | AF10: =IF($BP$8 = "SI",IF(Tabla4[[#This Row],[TIPO CONTRATO]]="Indefinido",BDD!S12*2.4%,IF(Tabla4[[#This Row],[TIPO CONTRATO]]="PLAZO FIJO",BDD!S12*3%,0)),0) -> 0 | AM10: =BDD!S12*Tabla4[[#This Row],[% SIS]] -> 0 | AP10: =BDD!S12*Tabla4[[#This Row],[%MUTUAL]] -> 0 | AS10: 5779440.01 | AT10: 7705920 | AU10: 0.304 | AV10: 1143044.8 | BI10: PARA CONTRATOS INDEFINIDOS
J11: 7 | K11: 7 | L11: =IF(BDD!J13=0," ",BDD!J13) ->  | O11: =IF(BDD!S13<_TOPEIMPONIBLE,BDD!S13*Tabla4[[#This Row],[%AFP]],_TOPEIMPONIBLE*Tabla4[[#This Row],[%AFP]]) -> 0 | R11: =IF(BDD!S13<_TOPEIMPONIBLE,BDD!S13*Tabla4[[#This Row],[%SALUD]],_TOPEIMPONIBLE*Tabla4[[#This Row],[%SALUD]]) -> 0 | U11: =BDD!S13*Tabla4[[#This Row],[%SEGURO]] -> 0 | W11: =IF(Tabla4[[#This Row],[TOTAL UF]]-Tabla4[[#This Row],[TOTAL SALUD]]<=0,0,Tabla4[[#This Row],[TOTAL UF]]-Tabla4[[#This Row],[TOTAL SALUD]]) -> 0 | Y11: =BDD!$N$4 -> 37838.55 | Z11: =Tabla4[[#This Row],[PACTO UF]]*Tabla4[[#This Row],[VALOR UF]] -> 0 | AA11: IMPUESTO UNICO | AB11: =BDD!S13-Tabla4[[#This Row],[TOTAL AFP]]-Tabla4[[#This Row],[TOTAL SALUD]]-Tabla4[[#This Row],[TOTAL SEGURO CESANTIA]]-Tabla4[[#This Row],[TOTAL ADICIONAL]] -> 0 | AC11: =IF(Tabla4[[#This Row],[PASO DESC. UNIC.]]<=$AT$5,0,IF(Tabla4[[#This Row],[PASO DESC. UNIC.]]<=$AT$6,Tabla4[[#This Row],[PASO DESC. UNIC.]]*$AU$6-$AV$6,IF(Tabla4[[#This Row],[PASO DESC. UNIC.]]<=$AT$7,Tabla4[[#This Row],[PASO DESC. UNIC.]]*$AU$7-$AV$7,IF(Tabla4[[#This Row],[PASO DESC. UNIC.]]<=$AT$8,Tabla4[[#This Row],[PASO DESC. UNIC.]]*$AU$8-$AV$8,IF(Tabla4[[#This Row],[PASO DESC. UNIC.]]<=$AT$9,Tabla4[[#This Row],[PASO DESC. UNIC.]]*$AU$9-$AV$9,IF(Tabla4[[#This Row],[PASO DESC. UNIC.]]<=$AT$10,Tabla4[[#This Row],[PASO DESC. UNIC.]]*$AU$10-$AV$10,IF(Tabla4[[#This Row],[PASO DESC. UNIC.]]>=$AS$11,Tabla4[[#This Row],[PASO DESC. UNIC.]]*$AU$11-$AV$11))))))) -> 0 | AD11: =Tabla4[[#This Row],[TOTAL AFP]]+Tabla4[[#This Row],[TOTAL SALUD]]+Tabla4[[#This Row],[TOTAL SEGURO CESANTIA]]+Tabla4[[#This Row],[TOTAL ADICIONAL]]+Tabla4[[#This Row],[VALOR IMP U.]]+Tabla4[[#This Row],[VALOR OTRO 2]]+Tabla4[[#This Row],[VALOR OTRO 1]] -> 0 | AF11: =IF($BP$8 = "SI",IF(Tabla4[[#This Row],[TIPO CONTRATO]]="Indefinido",BDD!S13*2.4%,IF(Tabla4[[#This Row],[TIPO CONTRATO]]="PLAZO FIJO",BDD!S13*3%,0)),0) -> 0 | AM11: =BDD!S13*Tabla4[[#This Row],[% SIS]] -> 0 | AP11: =BDD!S13*Tabla4[[#This Row],[%MUTUAL]] -> 0 | AS11: 7705920.01 | AT11: Y MAS | AU11: 0.35 | AV11: 1497517.12
J12: 8 | K12: 8 | L12: =IF(BDD!J14=0," ",BDD!J14) ->  | O12: =IF(BDD!S14<_TOPEIMPONIBLE,BDD!S14*Tabla4[[#This Row],[%AFP]],_TOPEIMPONIBLE*Tabla4[[#This Row],[%AFP]]) -> 0 | R12: =IF(BDD!S14<_TOPEIMPONIBLE,BDD!S14*Tabla4[[#This Row],[%SALUD]],_TOPEIMPONIBLE*Tabla4[[#This Row],[%SALUD]]) -> 0 | U12: =BDD!S14*Tabla4[[#This Row],[%SEGURO]] -> 0 | W12: =IF(Tabla4[[#This Row],[TOTAL UF]]-Tabla4[[#This Row],[TOTAL SALUD]]<=0,0,Tabla4[[#This Row],[TOTAL UF]]-Tabla4[[#This Row],[TOTAL SALUD]]) -> 0 | Y12: =BDD!$N$4 -> 37838.55 | Z12: =Tabla4[[#This Row],[PACTO UF]]*Tabla4[[#This Row],[VALOR UF]] -> 0 | AA12: IMPUESTO UNICO | AB12: =BDD!S14-Tabla4[[#This Row],[TOTAL AFP]]-Tabla4[[#This Row],[TOTAL SALUD]]-Tabla4[[#This Row],[TOTAL SEGURO CESANTIA]]-Tabla4[[#This Row],[TOTAL ADICIONAL]] -> 0 | AC12: =IF(Tabla4[[#This Row],[PASO DESC. UNIC.]]<=$AT$5,0,IF(Tabla4[[#This Row],[PASO DESC. UNIC.]]<=$AT$6,Tabla4[[#This Row],[PASO DESC. UNIC.]]*$AU$6-$AV$6,IF(Tabla4[[#This Row],[PASO DESC. UNIC.]]<=$AT$7,Tabla4[[#This Row],[PASO DESC. UNIC.]]*$AU$7-$AV$7,IF(Tabla4[[#This Row],[PASO DESC. UNIC.]]<=$AT$8,Tabla4[[#This Row],[PASO DESC. UNIC.]]*$AU$8-$AV$8,IF(Tabla4[[#This Row],[PASO DESC. UNIC.]]<=$AT$9,Tabla4[[#This Row],[PASO DESC. UNIC.]]*$AU$9-$AV$9,IF(Tabla4[[#This Row],[PASO DESC. UNIC.]]<=$AT$10,Tabla4[[#This Row],[PASO DESC. UNIC.]]*$AU$10-$AV$10,IF(Tabla4[[#This Row],[PASO DESC. UNIC.]]>=$AS$11,Tabla4[[#This Row],[PASO DESC. UNIC.]]*$AU$11-$AV$11))))))) -> 0 | AD12: =Tabla4[[#This Row],[TOTAL AFP]]+Tabla4[[#This Row],[TOTAL SALUD]]+Tabla4[[#This Row],[TOTAL SEGURO CESANTIA]]+Tabla4[[#This Row],[TOTAL ADICIONAL]]+Tabla4[[#This Row],[VALOR IMP U.]]+Tabla4[[#This Row],[VALOR OTRO 2]]+Tabla4[[#This Row],[VALOR OTRO 1]] -> 0 | AF12: =IF($BP$8 = "SI",IF(Tabla4[[#This Row],[TIPO CONTRATO]]="Indefinido",BDD!S14*2.4%,IF(Tabla4[[#This Row],[TIPO CONTRATO]]="PLAZO FIJO",BDD!S14*3%,0)),0) -> 0 | AM12: =BDD!S14*Tabla4[[#This Row],[% SIS]] -> 0 | AP12: =BDD!S14*Tabla4[[#This Row],[%MUTUAL]] -> 0 | BI12: APORTE DEL TRABAJADOR | BM12: 0.006
J13: 9 | K13: 9 | L13: =IF(BDD!J15=0," ",BDD!J15) ->  | O13: =IF(BDD!S15<_TOPEIMPONIBLE,BDD!S15*Tabla4[[#This Row],[%AFP]],_TOPEIMPONIBLE*Tabla4[[#This Row],[%AFP]]) -> 0 | R13: =IF(BDD!S15<_TOPEIMPONIBLE,BDD!S15*Tabla4[[#This Row],[%SALUD]],_TOPEIMPONIBLE*Tabla4[[#This Row],[%SALUD]]) -> 0 | U13: =BDD!S15*Tabla4[[#This Row],[%SEGURO]] -> 0 | W13: =IF(Tabla4[[#This Row],[TOTAL UF]]-Tabla4[[#This Row],[TOTAL SALUD]]<=0,0,Tabla4[[#This Row],[TOTAL UF]]-Tabla4[[#This Row],[TOTAL SALUD]]) -> 0 | Y13: =BDD!$N$4 -> 37838.55 | Z13: =Tabla4[[#This Row],[PACTO UF]]*Tabla4[[#This Row],[VALOR UF]] -> 0 | AA13: IMPUESTO UNICO | AB13: =BDD!S15-Tabla4[[#This Row],[TOTAL AFP]]-Tabla4[[#This Row],[TOTAL SALUD]]-Tabla4[[#This Row],[TOTAL SEGURO CESANTIA]]-Tabla4[[#This Row],[TOTAL ADICIONAL]] -> 0 | AC13: =IF(Tabla4[[#This Row],[PASO DESC. UNIC.]]<=$AT$5,0,IF(Tabla4[[#This Row],[PASO DESC. UNIC.]]<=$AT$6,Tabla4[[#This Row],[PASO DESC. UNIC.]]*$AU$6-$AV$6,IF(Tabla4[[#This Row],[PASO DESC. UNIC.]]<=$AT$7,Tabla4[[#This Row],[PASO DESC. UNIC.]]*$AU$7-$AV$7,IF(Tabla4[[#This Row],[PASO DESC. UNIC.]]<=$AT$8,Tabla4[[#This Row],[PASO DESC. UNIC.]]*$AU$8-$AV$8,IF(Tabla4[[#This Row],[PASO DESC. UNIC.]]<=$AT$9,Tabla4[[#This Row],[PASO DESC. UNIC.]]*$AU$9-$AV$9,IF(Tabla4[[#This Row],[PASO DESC. UNIC.]]<=$AT$10,Tabla4[[#This Row],[PASO DESC. UNIC.]]*$AU$10-$AV$10,IF(Tabla4[[#This Row],[PASO DESC. UNIC.]]>=$AS$11,Tabla4[[#This Row],[PASO DESC. UNIC.]]*$AU$11-$AV$11))))))) -> 0 | AD13: =Tabla4[[#This Row],[TOTAL AFP]]+Tabla4[[#This Row],[TOTAL SALUD]]+Tabla4[[#This Row],[TOTAL SEGURO CESANTIA]]+Tabla4[[#This Row],[TOTAL ADICIONAL]]+Tabla4[[#This Row],[VALOR IMP U.]]+Tabla4[[#This Row],[VALOR OTRO 2]]+Tabla4[[#This Row],[VALOR OTRO 1]] -> 0 | AF13: =IF($BP$8 = "SI",IF(Tabla4[[#This Row],[TIPO CONTRATO]]="Indefinido",BDD!S15*2.4%,IF(Tabla4[[#This Row],[TIPO CONTRATO]]="PLAZO FIJO",BDD!S15*3%,0)),0) -> 0 | AM13: =BDD!S15*Tabla4[[#This Row],[% SIS]] -> 0 | AP13: =BDD!S15*Tabla4[[#This Row],[%MUTUAL]] -> 0 | BI13: APORTE DEL EMPLEADOR | BM13: 0.024
J14: 10 | K14: 10 | L14: =IF(BDD!J16=0," ",BDD!J16) ->  | O14: =IF(BDD!S16<_TOPEIMPONIBLE,BDD!S16*Tabla4[[#This Row],[%AFP]],_TOPEIMPONIBLE*Tabla4[[#This Row],[%AFP]]) -> 0 | R14: =IF(BDD!S16<_TOPEIMPONIBLE,BDD!S16*Tabla4[[#This Row],[%SALUD]],_TOPEIMPONIBLE*Tabla4[[#This Row],[%SALUD]]) -> 0 | U14: =BDD!S16*Tabla4[[#This Row],[%SEGURO]] -> 0 | W14: =IF(Tabla4[[#This Row],[TOTAL UF]]-Tabla4[[#This Row],[TOTAL SALUD]]<=0,0,Tabla4[[#This Row],[TOTAL UF]]-Tabla4[[#This Row],[TOTAL SALUD]]) -> 0 | Y14: =BDD!$N$4 -> 37838.55 | Z14: =Tabla4[[#This Row],[PACTO UF]]*Tabla4[[#This Row],[VALOR UF]] -> 0 | AA14: IMPUESTO UNICO | AB14: =BDD!S16-Tabla4[[#This Row],[TOTAL AFP]]-Tabla4[[#This Row],[TOTAL SALUD]]-Tabla4[[#This Row],[TOTAL SEGURO CESANTIA]]-Tabla4[[#This Row],[TOTAL ADICIONAL]] -> 0 | AC14: =IF(Tabla4[[#This Row],[PASO DESC. UNIC.]]<=$AT$5,0,IF(Tabla4[[#This Row],[PASO DESC. UNIC.]]<=$AT$6,Tabla4[[#This Row],[PASO DESC. UNIC.]]*$AU$6-$AV$6,IF(Tabla4[[#This Row],[PASO DESC. UNIC.]]<=$AT$7,Tabla4[[#This Row],[PASO DESC. UNIC.]]*$AU$7-$AV$7,IF(Tabla4[[#This Row],[PASO DESC. UNIC.]]<=$AT$8,Tabla4[[#This Row],[PASO DESC. UNIC.]]*$AU$8-$AV$8,IF(Tabla4[[#This Row],[PASO DESC. UNIC.]]<=$AT$9,Tabla4[[#This Row],[PASO DESC. UNIC.]]*$AU$9-$AV$9,IF(Tabla4[[#This Row],[PASO DESC. UNIC.]]<=$AT$10,Tabla4[[#This Row],[PASO DESC. UNIC.]]*$AU$10-$AV$10,IF(Tabla4[[#This Row],[PASO DESC. UNIC.]]>=$AS$11,Tabla4[[#This Row],[PASO DESC. UNIC.]]*$AU$11-$AV$11))))))) -> 0 | AD14: =Tabla4[[#This Row],[TOTAL AFP]]+Tabla4[[#This Row],[TOTAL SALUD]]+Tabla4[[#This Row],[TOTAL SEGURO CESANTIA]]+Tabla4[[#This Row],[TOTAL ADICIONAL]]+Tabla4[[#This Row],[VALOR IMP U.]]+Tabla4[[#This Row],[VALOR OTRO 2]]+Tabla4[[#This Row],[VALOR OTRO 1]] -> 0 | AF14: =IF($BP$8 = "SI",IF(Tabla4[[#This Row],[TIPO CONTRATO]]="Indefinido",BDD!S16*2.4%,IF(Tabla4[[#This Row],[TIPO CONTRATO]]="PLAZO FIJO",BDD!S16*3%,0)),0) -> 0 | AM14: =BDD!S16*Tabla4[[#This Row],[% SIS]] -> 0 | AP14: =BDD!S16*Tabla4[[#This Row],[%MUTUAL]] -> 0 | AS14: PARA MODIFICAR LA TABLA DESBLOQUEA LA HOJA USANDO LA
J15: 11 | K15: 11 | L15: =IF(BDD!J17=0," ",BDD!J17) ->  | O15: =IF(BDD!S17<_TOPEIMPONIBLE,BDD!S17*Tabla4[[#This Row],[%AFP]],_TOPEIMPONIBLE*Tabla4[[#This Row],[%AFP]]) -> 0 | R15: =IF(BDD!S17<_TOPEIMPONIBLE,BDD!S17*Tabla4[[#This Row],[%SALUD]],_TOPEIMPONIBLE*Tabla4[[#This Row],[%SALUD]]) -> 0 | U15: =BDD!S17*Tabla4[[#This Row],[%SEGURO]] -> 0 | W15: =IF(Tabla4[[#This Row],[TOTAL UF]]-Tabla4[[#This Row],[TOTAL SALUD]]<=0,0,Tabla4[[#This Row],[TOTAL UF]]-Tabla4[[#This Row],[TOTAL SALUD]]) -> 0 | Y15: =BDD!$N$4 -> 37838.55 | Z15: =Tabla4[[#This Row],[PACTO UF]]*Tabla4[[#This Row],[VALOR UF]] -> 0 | AA15: IMPUESTO UNICO | AB15: =BDD!S17-Tabla4[[#This Row],[TOTAL AFP]]-Tabla4[[#This Row],[TOTAL SALUD]]-Tabla4[[#This Row],[TOTAL SEGURO CESANTIA]]-Tabla4[[#This Row],[TOTAL ADICIONAL]] -> 0 | AC15: =IF(Tabla4[[#This Row],[PASO DESC. UNIC.]]<=$AT$5,0,IF(Tabla4[[#This Row],[PASO DESC. UNIC.]]<=$AT$6,Tabla4[[#This Row],[PASO DESC. UNIC.]]*$AU$6-$AV$6,IF(Tabla4[[#This Row],[PASO DESC. UNIC.]]<=$AT$7,Tabla4[[#This Row],[PASO DESC. UNIC.]]*$AU$7-$AV$7,IF(Tabla4[[#This Row],[PASO DESC. UNIC.]]<=$AT$8,Tabla4[[#This Row],[PASO DESC. UNIC.]]*$AU$8-$AV$8,IF(Tabla4[[#This Row],[PASO DESC. UNIC.]]<=$AT$9,Tabla4[[#This Row],[PASO DESC. UNIC.]]*$AU$9-$AV$9,IF(Tabla4[[#This Row],[PASO DESC. UNIC.]]<=$AT$10,Tabla4[[#This Row],[PASO DESC. UNIC.]]*$AU$10-$AV$10,IF(Tabla4[[#This Row],[PASO DESC. UNIC.]]>=$AS$11,Tabla4[[#This Row],[PASO DESC. UNIC.]]*$AU$11-$AV$11))))))) -> 0 | AD15: =Tabla4[[#This Row],[TOTAL AFP]]+Tabla4[[#This Row],[TOTAL SALUD]]+Tabla4[[#This Row],[TOTAL SEGURO CESANTIA]]+Tabla4[[#This Row],[TOTAL ADICIONAL]]+Tabla4[[#This Row],[VALOR IMP U.]]+Tabla4[[#This Row],[VALOR OTRO 2]]+Tabla4[[#This Row],[VALOR OTRO 1]] -> 0 | AF15: =IF($BP$8 = "SI",IF(Tabla4[[#This Row],[TIPO CONTRATO]]="Indefinido",BDD!S17*2.4%,IF(Tabla4[[#This Row],[TIPO CONTRATO]]="PLAZO FIJO",BDD!S17*3%,0)),0) -> 0 | AM15: =BDD!S17*Tabla4[[#This Row],[% SIS]] -> 0 | AP15: =BDD!S17*Tabla4[[#This Row],[%MUTUAL]] -> 0 | AS15: CLAVE "DESCUENTOS" Y AJUSTA LA TABLA CON LOS NUEVOS VALORES | BI15: PARA CONTRATOS A PLAZO FIJO
J16: 12 | K16: 12 | L16: =IF(BDD!J18=0," ",BDD!J18) ->  | O16: =IF(BDD!S18<_TOPEIMPONIBLE,BDD!S18*Tabla4[[#This Row],[%AFP]],_TOPEIMPONIBLE*Tabla4[[#This Row],[%AFP]]) -> 0 | R16: =IF(BDD!S18<_TOPEIMPONIBLE,BDD!S18*Tabla4[[#This Row],[%SALUD]],_TOPEIMPONIBLE*Tabla4[[#This Row],[%SALUD]]) -> 0 | U16: =BDD!S18*Tabla4[[#This Row],[%SEGURO]] -> 0 | W16: =IF(Tabla4[[#This Row],[TOTAL UF]]-Tabla4[[#This Row],[TOTAL SALUD]]<=0,0,Tabla4[[#This Row],[TOTAL UF]]-Tabla4[[#This Row],[TOTAL SALUD]]) -> 0 | Y16: =BDD!$N$4 -> 37838.55 | Z16: =Tabla4[[#This Row],[PACTO UF]]*Tabla4[[#This Row],[VALOR UF]] -> 0 | AA16: IMPUESTO UNICO | AB16: =BDD!S18-Tabla4[[#This Row],[TOTAL AFP]]-Tabla4[[#This Row],[TOTAL SALUD]]-Tabla4[[#This Row],[TOTAL SEGURO CESANTIA]]-Tabla4[[#This Row],[TOTAL ADICIONAL]] -> 0 | AC16: =IF(Tabla4[[#This Row],[PASO DESC. UNIC.]]<=$AT$5,0,IF(Tabla4[[#This Row],[PASO DESC. UNIC.]]<=$AT$6,Tabla4[[#This Row],[PASO DESC. UNIC.]]*$AU$6-$AV$6,IF(Tabla4[[#This Row],[PASO DESC. UNIC.]]<=$AT$7,Tabla4[[#This Row],[PASO DESC. UNIC.]]*$AU$7-$AV$7,IF(Tabla4[[#This Row],[PASO DESC. UNIC.]]<=$AT$8,Tabla4[[#This Row],[PASO DESC. UNIC.]]*$AU$8-$AV$8,IF(Tabla4[[#This Row],[PASO DESC. UNIC.]]<=$AT$9,Tabla4[[#This Row],[PASO DESC. UNIC.]]*$AU$9-$AV$9,IF(Tabla4[[#This Row],[PASO DESC. UNIC.]]<=$AT$10,Tabla4[[#This Row],[PASO DESC. UNIC.]]*$AU$10-$AV$10,IF(Tabla4[[#This Row],[PASO DESC. UNIC.]]>=$AS$11,Tabla4[[#This Row],[PASO DESC. UNIC.]]*$AU$11-$AV$11))))))) -> 0 | AD16: =Tabla4[[#This Row],[TOTAL AFP]]+Tabla4[[#This Row],[TOTAL SALUD]]+Tabla4[[#This Row],[TOTAL SEGURO CESANTIA]]+Tabla4[[#This Row],[TOTAL ADICIONAL]]+Tabla4[[#This Row],[VALOR IMP U.]]+Tabla4[[#This Row],[VALOR OTRO 2]]+Tabla4[[#This Row],[VALOR OTRO 1]] -> 0 | AF16: =IF($BP$8 = "SI",IF(Tabla4[[#This Row],[TIPO CONTRATO]]="Indefinido",BDD!S18*2.4%,IF(Tabla4[[#This Row],[TIPO CONTRATO]]="PLAZO FIJO",BDD!S18*3%,0)),0) -> 0 | AM16: =BDD!S18*Tabla4[[#This Row],[% SIS]] -> 0 | AP16: =BDD!S18*Tabla4[[#This Row],[%MUTUAL]] -> 0 | AS16: LUEGO BLOQUEA LA HOJA DE NUEVO PARA EL BUEN FUNCIONAMIENTO
J17: 13 | K17: 13 | L17: =IF(BDD!J19=0," ",BDD!J19) ->  | O17: =IF(BDD!S19<_TOPEIMPONIBLE,BDD!S19*Tabla4[[#This Row],[%AFP]],_TOPEIMPONIBLE*Tabla4[[#This Row],[%AFP]]) -> 0 | R17: =IF(BDD!S19<_TOPEIMPONIBLE,BDD!S19*Tabla4[[#This Row],[%SALUD]],_TOPEIMPONIBLE*Tabla4[[#This Row],[%SALUD]]) -> 0 | U17: =BDD!S19*Tabla4[[#This Row],[%SEGURO]] -> 0 | W17: =IF(Tabla4[[#This Row],[TOTAL UF]]-Tabla4[[#This Row],[TOTAL SALUD]]<=0,0,Tabla4[[#This Row],[TOTAL UF]]-Tabla4[[#This Row],[TOTAL SALUD]]) -> 0 | Y17: =BDD!$N$4 -> 37838.55 | Z17: =Tabla4[[#This Row],[PACTO UF]]*Tabla4[[#This Row],[VALOR UF]] -> 0 | AA17: IMPUESTO UNICO | AB17: =BDD!S19-Tabla4[[#This Row],[TOTAL AFP]]-Tabla4[[#This Row],[TOTAL SALUD]]-Tabla4[[#This Row],[TOTAL SEGURO CESANTIA]]-Tabla4[[#This Row],[TOTAL ADICIONAL]] -> 0 | AC17: =IF(Tabla4[[#This Row],[PASO DESC. UNIC.]]<=$AT$5,0,IF(Tabla4[[#This Row],[PASO DESC. UNIC.]]<=$AT$6,Tabla4[[#This Row],[PASO DESC. UNIC.]]*$AU$6-$AV$6,IF(Tabla4[[#This Row],[PASO DESC. UNIC.]]<=$AT$7,Tabla4[[#This Row],[PASO DESC. UNIC.]]*$AU$7-$AV$7,IF(Tabla4[[#This Row],[PASO DESC. UNIC.]]<=$AT$8,Tabla4[[#This Row],[PASO DESC. UNIC.]]*$AU$8-$AV$8,IF(Tabla4[[#This Row],[PASO DESC. UNIC.]]<=$AT$9,Tabla4[[#This Row],[PASO DESC. UNIC.]]*$AU$9-$AV$9,IF(Tabla4[[#This Row],[PASO DESC. UNIC.]]<=$AT$10,Tabla4[[#This Row],[PASO DESC. UNIC.]]*$AU$10-$AV$10,IF(Tabla4[[#This Row],[PASO DESC. UNIC.]]>=$AS$11,Tabla4[[#This Row],[PASO DESC. UNIC.]]*$AU$11-$AV$11))))))) -> 0 | AD17: =Tabla4[[#This Row],[TOTAL AFP]]+Tabla4[[#This Row],[TOTAL SALUD]]+Tabla4[[#This Row],[TOTAL SEGURO CESANTIA]]+Tabla4[[#This Row],[TOTAL ADICIONAL]]+Tabla4[[#This Row],[VALOR IMP U.]]+Tabla4[[#This Row],[VALOR OTRO 2]]+Tabla4[[#This Row],[VALOR OTRO 1]] -> 0 | AF17: =IF($BP$8 = "SI",IF(Tabla4[[#This Row],[TIPO CONTRATO]]="Indefinido",BDD!S19*2.4%,IF(Tabla4[[#This Row],[TIPO CONTRATO]]="PLAZO FIJO",BDD!S19*3%,0)),0) -> 0 | AM17: =BDD!S19*Tabla4[[#This Row],[% SIS]] -> 0 | AP17: =BDD!S19*Tabla4[[#This Row],[%MUTUAL]] -> 0 | AS17: DE LA PLANILLA. | BI17: APORTE DEL TRABAJADOR | BM17: NINGUNO
J18: 14 | K18: 14 | L18: =IF(BDD!J20=0," ",BDD!J20) ->  | O18: =IF(BDD!S20<_TOPEIMPONIBLE,BDD!S20*Tabla4[[#This Row],[%AFP]],_TOPEIMPONIBLE*Tabla4[[#This Row],[%AFP]]) -> 0 | R18: =IF(BDD!S20<_TOPEIMPONIBLE,BDD!S20*Tabla4[[#This Row],[%SALUD]],_TOPEIMPONIBLE*Tabla4[[#This Row],[%SALUD]]) -> 0 | U18: =BDD!S20*Tabla4[[#This Row],[%SEGURO]] -> 0 | W18: =IF(Tabla4[[#This Row],[TOTAL UF]]-Tabla4[[#This Row],[TOTAL SALUD]]<=0,0,Tabla4[[#This Row],[TOTAL UF]]-Tabla4[[#This Row],[TOTAL SALUD]]) -> 0 | Y18: =BDD!$N$4 -> 37838.55 | Z18: =Tabla4[[#This Row],[PACTO UF]]*Tabla4[[#This Row],[VALOR UF]] -> 0 | AA18: IMPUESTO UNICO | AB18: =BDD!S20-Tabla4[[#This Row],[TOTAL AFP]]-Tabla4[[#This Row],[TOTAL SALUD]]-Tabla4[[#This Row],[TOTAL SEGURO CESANTIA]]-Tabla4[[#This Row],[TOTAL ADICIONAL]] -> 0 | AC18: =IF(Tabla4[[#This Row],[PASO DESC. UNIC.]]<=$AT$5,0,IF(Tabla4[[#This Row],[PASO DESC. UNIC.]]<=$AT$6,Tabla4[[#This Row],[PASO DESC. UNIC.]]*$AU$6-$AV$6,IF(Tabla4[[#This Row],[PASO DESC. UNIC.]]<=$AT$7,Tabla4[[#This Row],[PASO DESC. UNIC.]]*$AU$7-$AV$7,IF(Tabla4[[#This Row],[PASO DESC. UNIC.]]<=$AT$8,Tabla4[[#This Row],[PASO DESC. UNIC.]]*$AU$8-$AV$8,IF(Tabla4[[#This Row],[PASO DESC. UNIC.]]<=$AT$9,Tabla4[[#This Row],[PASO DESC. UNIC.]]*$AU$9-$AV$9,IF(Tabla4[[#This Row],[PASO DESC. UNIC.]]<=$AT$10,Tabla4[[#This Row],[PASO DESC. UNIC.]]*$AU$10-$AV$10,IF(Tabla4[[#This Row],[PASO DESC. UNIC.]]>=$AS$11,Tabla4[[#This Row],[PASO DESC. UNIC.]]*$AU$11-$AV$11))))))) -> 0 | AD18: =Tabla4[[#This Row],[TOTAL AFP]]+Tabla4[[#This Row],[TOTAL SALUD]]+Tabla4[[#This Row],[TOTAL SEGURO CESANTIA]]+Tabla4[[#This Row],[TOTAL ADICIONAL]]+Tabla4[[#This Row],[VALOR IMP U.]]+Tabla4[[#This Row],[VALOR OTRO 2]]+Tabla4[[#This Row],[VALOR OTRO 1]] -> 0 | AF18: =IF($BP$8 = "SI",IF(Tabla4[[#This Row],[TIPO CONTRATO]]="Indefinido",BDD!S20*2.4%,IF(Tabla4[[#This Row],[TIPO CONTRATO]]="PLAZO FIJO",BDD!S20*3%,0)),0) -> 0 | AM18: =BDD!S20*Tabla4[[#This Row],[% SIS]] -> 0 | AP18: =BDD!S20*Tabla4[[#This Row],[%MUTUAL]] -> 0 | BI18: APORTE DEL EMPLEADOR | BM18: 0.03
J19: 15 | K19: 15 | L19: =IF(BDD!J21=0," ",BDD!J21) ->  | O19: =IF(BDD!S21<_TOPEIMPONIBLE,BDD!S21*Tabla4[[#This Row],[%AFP]],_TOPEIMPONIBLE*Tabla4[[#This Row],[%AFP]]) -> 0 | R19: =IF(BDD!S21<_TOPEIMPONIBLE,BDD!S21*Tabla4[[#This Row],[%SALUD]],_TOPEIMPONIBLE*Tabla4[[#This Row],[%SALUD]]) -> 0 | U19: =BDD!S21*Tabla4[[#This Row],[%SEGURO]] -> 0 | W19: =IF(Tabla4[[#This Row],[TOTAL UF]]-Tabla4[[#This Row],[TOTAL SALUD]]<=0,0,Tabla4[[#This Row],[TOTAL UF]]-Tabla4[[#This Row],[TOTAL SALUD]]) -> 0 | Y19: =BDD!$N$4 -> 37838.55 | Z19: =Tabla4[[#This Row],[PACTO UF]]*Tabla4[[#This Row],[VALOR UF]] -> 0 | AA19: IMPUESTO UNICO | AB19: =BDD!S21-Tabla4[[#This Row],[TOTAL AFP]]-Tabla4[[#This Row],[TOTAL SALUD]]-Tabla4[[#This Row],[TOTAL SEGURO CESANTIA]]-Tabla4[[#This Row],[TOTAL ADICIONAL]] -> 0 | AC19: =IF(Tabla4[[#This Row],[PASO DESC. UNIC.]]<=$AT$5,0,IF(Tabla4[[#This Row],[PASO DESC. UNIC.]]<=$AT$6,Tabla4[[#This Row],[PASO DESC. UNIC.]]*$AU$6-$AV$6,IF(Tabla4[[#This Row],[PASO DESC. UNIC.]]<=$AT$7,Tabla4[[#This Row],[PASO DESC. UNIC.]]*$AU$7-$AV$7,IF(Tabla4[[#This Row],[PASO DESC. UNIC.]]<=$AT$8,Tabla4[[#This Row],[PASO DESC. UNIC.]]*$AU$8-$AV$8,IF(Tabla4[[#This Row],[PASO DESC. UNIC.]]<=$AT$9,Tabla4[[#This Row],[PASO DESC. UNIC.]]*$AU$9-$AV$9,IF(Tabla4[[#This Row],[PASO DESC. UNIC.]]<=$AT$10,Tabla4[[#This Row],[PASO DESC. UNIC.]]*$AU$10-$AV$10,IF(Tabla4[[#This Row],[PASO DESC. UNIC.]]>=$AS$11,Tabla4[[#This Row],[PASO DESC. UNIC.]]*$AU$11-$AV$11))))))) -> 0 | AD19: =Tabla4[[#This Row],[TOTAL AFP]]+Tabla4[[#This Row],[TOTAL SALUD]]+Tabla4[[#This Row],[TOTAL SEGURO CESANTIA]]+Tabla4[[#This Row],[TOTAL ADICIONAL]]+Tabla4[[#This Row],[VALOR IMP U.]]+Tabla4[[#This Row],[VALOR OTRO 2]]+Tabla4[[#This Row],[VALOR OTRO 1]] -> 0 | AF19: =IF($BP$8 = "SI",IF(Tabla4[[#This Row],[TIPO CONTRATO]]="Indefinido",BDD!S21*2.4%,IF(Tabla4[[#This Row],[TIPO CONTRATO]]="PLAZO FIJO",BDD!S21*3%,0)),0) -> 0 | AM19: =BDD!S21*Tabla4[[#This Row],[% SIS]] -> 0 | AP19: =BDD!S21*Tabla4[[#This Row],[%MUTUAL]] -> 0
J20: 16 | K20: 16 | L20: =IF(BDD!J22=0," ",BDD!J22) ->  | O20: =IF(BDD!S22<_TOPEIMPONIBLE,BDD!S22*Tabla4[[#This Row],[%AFP]],_TOPEIMPONIBLE*Tabla4[[#This Row],[%AFP]]) -> 0 | R20: =IF(BDD!S22<_TOPEIMPONIBLE,BDD!S22*Tabla4[[#This Row],[%SALUD]],_TOPEIMPONIBLE*Tabla4[[#This Row],[%SALUD]]) -> 0 | U20: =BDD!S22*Tabla4[[#This Row],[%SEGURO]] -> 0 | W20: =IF(Tabla4[[#This Row],[TOTAL UF]]-Tabla4[[#This Row],[TOTAL SALUD]]<=0,0,Tabla4[[#This Row],[TOTAL UF]]-Tabla4[[#This Row],[TOTAL SALUD]]) -> 0 | Y20: =BDD!$N$4 -> 37838.55 | Z20: =Tabla4[[#This Row],[PACTO UF]]*Tabla4[[#This Row],[VALOR UF]] -> 0 | AA20: IMPUESTO UNICO | AB20: =BDD!S22-Tabla4[[#This Row],[TOTAL AFP]]-Tabla4[[#This Row],[TOTAL SALUD]]-Tabla4[[#This Row],[TOTAL SEGURO CESANTIA]]-Tabla4[[#This Row],[TOTAL ADICIONAL]] -> 0 | AC20: =IF(Tabla4[[#This Row],[PASO DESC. UNIC.]]<=$AT$5,0,IF(Tabla4[[#This Row],[PASO DESC. UNIC.]]<=$AT$6,Tabla4[[#This Row],[PASO DESC. UNIC.]]*$AU$6-$AV$6,IF(Tabla4[[#This Row],[PASO DESC. UNIC.]]<=$AT$7,Tabla4[[#This Row],[PASO DESC. UNIC.]]*$AU$7-$AV$7,IF(Tabla4[[#This Row],[PASO DESC. UNIC.]]<=$AT$8,Tabla4[[#This Row],[PASO DESC. UNIC.]]*$AU$8-$AV$8,IF(Tabla4[[#This Row],[PASO DESC. UNIC.]]<=$AT$9,Tabla4[[#This Row],[PASO DESC. UNIC.]]*$AU$9-$AV$9,IF(Tabla4[[#This Row],[PASO DESC. UNIC.]]<=$AT$10,Tabla4[[#This Row],[PASO DESC. UNIC.]]*$AU$10-$AV$10,IF(Tabla4[[#This Row],[PASO DESC. UNIC.]]>=$AS$11,Tabla4[[#This Row],[PASO DESC. UNIC.]]*$AU$11-$AV$11))))))) -> 0 | AD20: =Tabla4[[#This Row],[TOTAL AFP]]+Tabla4[[#This Row],[TOTAL SALUD]]+Tabla4[[#This Row],[TOTAL SEGURO CESANTIA]]+Tabla4[[#This Row],[TOTAL ADICIONAL]]+Tabla4[[#This Row],[VALOR IMP U.]]+Tabla4[[#This Row],[VALOR OTRO 2]]+Tabla4[[#This Row],[VALOR OTRO 1]] -> 0 | AF20: =IF($BP$8 = "SI",IF(Tabla4[[#This Row],[TIPO CONTRATO]]="Indefinido",BDD!S22*2.4%,IF(Tabla4[[#This Row],[TIPO CONTRATO]]="PLAZO FIJO",BDD!S22*3%,0)),0) -> 0 | AM20: =BDD!S22*Tabla4[[#This Row],[% SIS]] -> 0 | AP20: =BDD!S22*Tabla4[[#This Row],[%MUTUAL]] -> 0
J21: 17 | K21: 17 | L21: =IF(BDD!J23=0," ",BDD!J23) ->  | O21: =IF(BDD!S23<_TOPEIMPONIBLE,BDD!S23*Tabla4[[#This Row],[%AFP]],_TOPEIMPONIBLE*Tabla4[[#This Row],[%AFP]]) -> 0 | R21: =IF(BDD!S23<_TOPEIMPONIBLE,BDD!S23*Tabla4[[#This Row],[%SALUD]],_TOPEIMPONIBLE*Tabla4[[#This Row],[%SALUD]]) -> 0 | U21: =BDD!S23*Tabla4[[#This Row],[%SEGURO]] -> 0 | W21: =IF(Tabla4[[#This Row],[TOTAL UF]]-Tabla4[[#This Row],[TOTAL SALUD]]<=0,0,Tabla4[[#This Row],[TOTAL UF]]-Tabla4[[#This Row],[TOTAL SALUD]]) -> 0 | Y21: =BDD!$N$4 -> 37838.55 | Z21: =Tabla4[[#This Row],[PACTO UF]]*Tabla4[[#This Row],[VALOR UF]] -> 0 | AA21: IMPUESTO UNICO | AB21: =BDD!S23-Tabla4[[#This Row],[TOTAL AFP]]-Tabla4[[#This Row],[TOTAL SALUD]]-Tabla4[[#This Row],[TOTAL SEGURO CESANTIA]]-Tabla4[[#This Row],[TOTAL ADICIONAL]] -> 0 | AC21: =IF(Tabla4[[#This Row],[PASO DESC. UNIC.]]<=$AT$5,0,IF(Tabla4[[#This Row],[PASO DESC. UNIC.]]<=$AT$6,Tabla4[[#This Row],[PASO DESC. UNIC.]]*$AU$6-$AV$6,IF(Tabla4[[#This Row],[PASO DESC. UNIC.]]<=$AT$7,Tabla4[[#This Row],[PASO DESC. UNIC.]]*$AU$7-$AV$7,IF(Tabla4[[#This Row],[PASO DESC. UNIC.]]<=$AT$8,Tabla4[[#This Row],[PASO DESC. UNIC.]]*$AU$8-$AV$8,IF(Tabla4[[#This Row],[PASO DESC. UNIC.]]<=$AT$9,Tabla4[[#This Row],[PASO DESC. UNIC.]]*$AU$9-$AV$9,IF(Tabla4[[#This Row],[PASO DESC. UNIC.]]<=$AT$10,Tabla4[[#This Row],[PASO DESC. UNIC.]]*$AU$10-$AV$10,IF(Tabla4[[#This Row],[PASO DESC. UNIC.]]>=$AS$11,Tabla4[[#This Row],[PASO DESC. UNIC.]]*$AU$11-$AV$11))))))) -> 0 | AD21: =Tabla4[[#This Row],[TOTAL AFP]]+Tabla4[[#This Row],[TOTAL SALUD]]+Tabla4[[#This Row],[TOTAL SEGURO CESANTIA]]+Tabla4[[#This Row],[TOTAL ADICIONAL]]+Tabla4[[#This Row],[VALOR IMP U.]]+Tabla4[[#This Row],[VALOR OTRO 2]]+Tabla4[[#This Row],[VALOR OTRO 1]] -> 0 | AF21: =IF($BP$8 = "SI",IF(Tabla4[[#This Row],[TIPO CONTRATO]]="Indefinido",BDD!S23*2.4%,IF(Tabla4[[#This Row],[TIPO CONTRATO]]="PLAZO FIJO",BDD!S23*3%,0)),0) -> 0 | AM21: =BDD!S23*Tabla4[[#This Row],[% SIS]] -> 0 | AP21: =BDD!S23*Tabla4[[#This Row],[%MUTUAL]] -> 0
J22: 18 | K22: 18 | L22: =IF(BDD!J24=0," ",BDD!J24) ->  | O22: =IF(BDD!S24<_TOPEIMPONIBLE,BDD!S24*Tabla4[[#This Row],[%AFP]],_TOPEIMPONIBLE*Tabla4[[#This Row],[%AFP]]) -> 0 | R22: =IF(BDD!S24<_TOPEIMPONIBLE,BDD!S24*Tabla4[[#This Row],[%SALUD]],_TOPEIMPONIBLE*Tabla4[[#This Row],[%SALUD]]) -> 0 | U22: =BDD!S24*Tabla4[[#This Row],[%SEGURO]] -> 0 | W22: =IF(Tabla4[[#This Row],[TOTAL UF]]-Tabla4[[#This Row],[TOTAL SALUD]]<=0,0,Tabla4[[#This Row],[TOTAL UF]]-Tabla4[[#This Row],[TOTAL SALUD]]) -> 0 | Y22: =BDD!$N$4 -> 37838.55 | Z22: =Tabla4[[#This Row],[PACTO UF]]*Tabla4[[#This Row],[VALOR UF]] -> 0 | AA22: IMPUESTO UNICO | AB22: =BDD!S24-Tabla4[[#This Row],[TOTAL AFP]]-Tabla4[[#This Row],[TOTAL SALUD]]-Tabla4[[#This Row],[TOTAL SEGURO CESANTIA]]-Tabla4[[#This Row],[TOTAL ADICIONAL]] -> 0 | AC22: =IF(Tabla4[[#This Row],[PASO DESC. UNIC.]]<=$AT$5,0,IF(Tabla4[[#This Row],[PASO DESC. UNIC.]]<=$AT$6,Tabla4[[#This Row],[PASO DESC. UNIC.]]*$AU$6-$AV$6,IF(Tabla4[[#This Row],[PASO DESC. UNIC.]]<=$AT$7,Tabla4[[#This Row],[PASO DESC. UNIC.]]*$AU$7-$AV$7,IF(Tabla4[[#This Row],[PASO DESC. UNIC.]]<=$AT$8,Tabla4[[#This Row],[PASO DESC. UNIC.]]*$AU$8-$AV$8,IF(Tabla4[[#This Row],[PASO DESC. UNIC.]]<=$AT$9,Tabla4[[#This Row],[PASO DESC. UNIC.]]*$AU$9-$AV$9,IF(Tabla4[[#This Row],[PASO DESC. UNIC.]]<=$AT$10,Tabla4[[#This Row],[PASO DESC. UNIC.]]*$AU$10-$AV$10,IF(Tabla4[[#This Row],[PASO DESC. UNIC.]]>=$AS$11,Tabla4[[#This Row],[PASO DESC. UNIC.]]*$AU$11-$AV$11))))))) -> 0 | AD22: =Tabla4[[#This Row],[TOTAL AFP]]+Tabla4[[#This Row],[TOTAL SALUD]]+Tabla4[[#This Row],[TOTAL SEGURO CESANTIA]]+Tabla4[[#This Row],[TOTAL ADICIONAL]]+Tabla4[[#This Row],[VALOR IMP U.]]+Tabla4[[#This Row],[VALOR OTRO 2]]+Tabla4[[#This Row],[VALOR OTRO 1]] -> 0 | AF22: =IF($BP$8 = "SI",IF(Tabla4[[#This Row],[TIPO CONTRATO]]="Indefinido",BDD!S24*2.4%,IF(Tabla4[[#This Row],[TIPO CONTRATO]]="PLAZO FIJO",BDD!S24*3%,0)),0) -> 0 | AM22: =BDD!S24*Tabla4[[#This Row],[% SIS]] -> 0 | AP22: =BDD!S24*Tabla4[[#This Row],[%MUTUAL]] -> 0
J23: 19 | K23: 19 | L23: =IF(BDD!J25=0," ",BDD!J25) ->  | O23: =IF(BDD!S25<_TOPEIMPONIBLE,BDD!S25*Tabla4[[#This Row],[%AFP]],_TOPEIMPONIBLE*Tabla4[[#This Row],[%AFP]]) -> 0 | R23: =IF(BDD!S25<_TOPEIMPONIBLE,BDD!S25*Tabla4[[#This Row],[%SALUD]],_TOPEIMPONIBLE*Tabla4[[#This Row],[%SALUD]]) -> 0 | U23: =BDD!S25*Tabla4[[#This Row],[%SEGURO]] -> 0 | W23: =IF(Tabla4[[#This Row],[TOTAL UF]]-Tabla4[[#This Row],[TOTAL SALUD]]<=0,0,Tabla4[[#This Row],[TOTAL UF]]-Tabla4[[#This Row],[TOTAL SALUD]]) -> 0 | Y23: =BDD!$N$4 -> 37838.55 | Z23: =Tabla4[[#This Row],[PACTO UF]]*Tabla4[[#This Row],[VALOR UF]] -> 0 | AA23: IMPUESTO UNICO | AB23: =BDD!S25-Tabla4[[#This Row],[TOTAL AFP]]-Tabla4[[#This Row],[TOTAL SALUD]]-Tabla4[[#This Row],[TOTAL SEGURO CESANTIA]]-Tabla4[[#This Row],[TOTAL ADICIONAL]] -> 0 | AC23: =IF(Tabla4[[#This Row],[PASO DESC. UNIC.]]<=$AT$5,0,IF(Tabla4[[#This Row],[PASO DESC. UNIC.]]<=$AT$6,Tabla4[[#This Row],[PASO DESC. UNIC.]]*$AU$6-$AV$6,IF(Tabla4[[#This Row],[PASO DESC. UNIC.]]<=$AT$7,Tabla4[[#This Row],[PASO DESC. UNIC.]]*$AU$7-$AV$7,IF(Tabla4[[#This Row],[PASO DESC. UNIC.]]<=$AT$8,Tabla4[[#This Row],[PASO DESC. UNIC.]]*$AU$8-$AV$8,IF(Tabla4[[#This Row],[PASO DESC. UNIC.]]<=$AT$9,Tabla4[[#This Row],[PASO DESC. UNIC.]]*$AU$9-$AV$9,IF(Tabla4[[#This Row],[PASO DESC. UNIC.]]<=$AT$10,Tabla4[[#This Row],[PASO DESC. UNIC.]]*$AU$10-$AV$10,IF(Tabla4[[#This Row],[PASO DESC. UNIC.]]>=$AS$11,Tabla4[[#This Row],[PASO DESC. UNIC.]]*$AU$11-$AV$11))))))) -> 0 | AD23: =Tabla4[[#This Row],[TOTAL AFP]]+Tabla4[[#This Row],[TOTAL SALUD]]+Tabla4[[#This Row],[TOTAL SEGURO CESANTIA]]+Tabla4[[#This Row],[TOTAL ADICIONAL]]+Tabla4[[#This Row],[VALOR IMP U.]]+Tabla4[[#This Row],[VALOR OTRO 2]]+Tabla4[[#This Row],[VALOR OTRO 1]] -> 0 | AF23: =IF($BP$8 = "SI",IF(Tabla4[[#This Row],[TIPO CONTRATO]]="Indefinido",BDD!S25*2.4%,IF(Tabla4[[#This Row],[TIPO CONTRATO]]="PLAZO FIJO",BDD!S25*3%,0)),0) -> 0 | AM23: =BDD!S25*Tabla4[[#This Row],[% SIS]] -> 0 | AP23: =BDD!S25*Tabla4[[#This Row],[%MUTUAL]] -> 0
J24: 20 | K24: 20 | L24: =IF(BDD!J26=0," ",BDD!J26) ->  | O24: =IF(BDD!S26<_TOPEIMPONIBLE,BDD!S26*Tabla4[[#This Row],[%AFP]],_TOPEIMPONIBLE*Tabla4[[#This Row],[%AFP]]) -> 0 | R24: =IF(BDD!S26<_TOPEIMPONIBLE,BDD!S26*Tabla4[[#This Row],[%SALUD]],_TOPEIMPONIBLE*Tabla4[[#This Row],[%SALUD]]) -> 0 | U24: =BDD!S26*Tabla4[[#This Row],[%SEGURO]] -> 0 | W24: =IF(Tabla4[[#This Row],[TOTAL UF]]-Tabla4[[#This Row],[TOTAL SALUD]]<=0,0,Tabla4[[#This Row],[TOTAL UF]]-Tabla4[[#This Row],[TOTAL SALUD]]) -> 0 | Y24: =BDD!$N$4 -> 37838.55 | Z24: =Tabla4[[#This Row],[PACTO UF]]*Tabla4[[#This Row],[VALOR UF]] -> 0 | AA24: IMPUESTO UNICO | AB24: =BDD!S26-Tabla4[[#This Row],[TOTAL AFP]]-Tabla4[[#This Row],[TOTAL SALUD]]-Tabla4[[#This Row],[TOTAL SEGURO CESANTIA]]-Tabla4[[#This Row],[TOTAL ADICIONAL]] -> 0 | AC24: =IF(Tabla4[[#This Row],[PASO DESC. UNIC.]]<=$AT$5,0,IF(Tabla4[[#This Row],[PASO DESC. UNIC.]]<=$AT$6,Tabla4[[#This Row],[PASO DESC. UNIC.]]*$AU$6-$AV$6,IF(Tabla4[[#This Row],[PASO DESC. UNIC.]]<=$AT$7,Tabla4[[#This Row],[PASO DESC. UNIC.]]*$AU$7-$AV$7,IF(Tabla4[[#This Row],[PASO DESC. UNIC.]]<=$AT$8,Tabla4[[#This Row],[PASO DESC. UNIC.]]*$AU$8-$AV$8,IF(Tabla4[[#This Row],[PASO DESC. UNIC.]]<=$AT$9,Tabla4[[#This Row],[PASO DESC. UNIC.]]*$AU$9-$AV$9,IF(Tabla4[[#This Row],[PASO DESC. UNIC.]]<=$AT$10,Tabla4[[#This Row],[PASO DESC. UNIC.]]*$AU$10-$AV$10,IF(Tabla4[[#This Row],[PASO DESC. UNIC.]]>=$AS$11,Tabla4[[#This Row],[PASO DESC. UNIC.]]*$AU$11-$AV$11))))))) -> 0 | AD24: =Tabla4[[#This Row],[TOTAL AFP]]+Tabla4[[#This Row],[TOTAL SALUD]]+Tabla4[[#This Row],[TOTAL SEGURO CESANTIA]]+Tabla4[[#This Row],[TOTAL ADICIONAL]]+Tabla4[[#This Row],[VALOR IMP U.]]+Tabla4[[#This Row],[VALOR OTRO 2]]+Tabla4[[#This Row],[VALOR OTRO 1]] -> 0 | AF24: =IF($BP$8 = "SI",IF(Tabla4[[#This Row],[TIPO CONTRATO]]="Indefinido",BDD!S26*2.4%,IF(Tabla4[[#This Row],[TIPO CONTRATO]]="PLAZO FIJO",BDD!S26*3%,0)),0) -> 0 | AM24: =BDD!S26*Tabla4[[#This Row],[% SIS]] -> 0 | AP24: =BDD!S26*Tabla4[[#This Row],[%MUTUAL]] -> 0
B25: PARAMETROS SEGURO CESANTIA | J25: 21 | K25: 21 | L25: =IF(BDD!J27=0," ",BDD!J27) ->  | O25: =IF(BDD!S27<_TOPEIMPONIBLE,BDD!S27*Tabla4[[#This Row],[%AFP]],_TOPEIMPONIBLE*Tabla4[[#This Row],[%AFP]]) -> 0 | R25: =IF(BDD!S27<_TOPEIMPONIBLE,BDD!S27*Tabla4[[#This Row],[%SALUD]],_TOPEIMPONIBLE*Tabla4[[#This Row],[%SALUD]]) -> 0 | U25: =BDD!S27*Tabla4[[#This Row],[%SEGURO]] -> 0 | W25: =IF(Tabla4[[#This Row],[TOTAL UF]]-Tabla4[[#This Row],[TOTAL SALUD]]<=0,0,Tabla4[[#This Row],[TOTAL UF]]-Tabla4[[#This Row],[TOTAL SALUD]]) -> 0 | Y25: =BDD!$N$4 -> 37838.55 | Z25: =Tabla4[[#This Row],[PACTO UF]]*Tabla4[[#This Row],[VALOR UF]] -> 0 | AA25: IMPUESTO UNICO | AB25: =BDD!S27-Tabla4[[#This Row],[TOTAL AFP]]-Tabla4[[#This Row],[TOTAL SALUD]]-Tabla4[[#This Row],[TOTAL SEGURO CESANTIA]]-Tabla4[[#This Row],[TOTAL ADICIONAL]] -> 0 | AC25: =IF(Tabla4[[#This Row],[PASO DESC. UNIC.]]<=$AT$5,0,IF(Tabla4[[#This Row],[PASO DESC. UNIC.]]<=$AT$6,Tabla4[[#This Row],[PASO DESC. UNIC.]]*$AU$6-$AV$6,IF(Tabla4[[#This Row],[PASO DESC. UNIC.]]<=$AT$7,Tabla4[[#This Row],[PASO DESC. UNIC.]]*$AU$7-$AV$7,IF(Tabla4[[#This Row],[PASO DESC. UNIC.]]<=$AT$8,Tabla4[[#This Row],[PASO DESC. UNIC.]]*$AU$8-$AV$8,IF(Tabla4[[#This Row],[PASO DESC. UNIC.]]<=$AT$9,Tabla4[[#This Row],[PASO DESC. UNIC.]]*$AU$9-$AV$9,IF(Tabla4[[#This Row],[PASO DESC. UNIC.]]<=$AT$10,Tabla4[[#This Row],[PASO DESC. UNIC.]]*$AU$10-$AV$10,IF(Tabla4[[#This Row],[PASO DESC. UNIC.]]>=$AS$11,Tabla4[[#This Row],[PASO DESC. UNIC.]]*$AU$11-$AV$11))))))) -> 0 | AD25: =Tabla4[[#This Row],[TOTAL AFP]]+Tabla4[[#This Row],[TOTAL SALUD]]+Tabla4[[#This Row],[TOTAL SEGURO CESANTIA]]+Tabla4[[#This Row],[TOTAL ADICIONAL]]+Tabla4[[#This Row],[VALOR IMP U.]]+Tabla4[[#This Row],[VALOR OTRO 2]]+Tabla4[[#This Row],[VALOR OTRO 1]] -> 0 | AF25: =IF($BP$8 = "SI",IF(Tabla4[[#This Row],[TIPO CONTRATO]]="Indefinido",BDD!S27*2.4%,IF(Tabla4[[#This Row],[TIPO CONTRATO]]="PLAZO FIJO",BDD!S27*3%,0)),0) -> 0 | AM25: =BDD!S27*Tabla4[[#This Row],[% SIS]] -> 0 | AP25: =BDD!S27*Tabla4[[#This Row],[%MUTUAL]] -> 0
J26: 22 | K26: 22 | L26: =IF(BDD!J28=0," ",BDD!J28) ->  | O26: =IF(BDD!S28<_TOPEIMPONIBLE,BDD!S28*Tabla4[[#This Row],[%AFP]],_TOPEIMPONIBLE*Tabla4[[#This Row],[%AFP]]) -> 0 | R26: =IF(BDD!S28<_TOPEIMPONIBLE,BDD!S28*Tabla4[[#This Row],[%SALUD]],_TOPEIMPONIBLE*Tabla4[[#This Row],[%SALUD]]) -> 0 | U26: =BDD!S28*Tabla4[[#This Row],[%SEGURO]] -> 0 | W26: =IF(Tabla4[[#This Row],[TOTAL UF]]-Tabla4[[#This Row],[TOTAL SALUD]]<=0,0,Tabla4[[#This Row],[TOTAL UF]]-Tabla4[[#This Row],[TOTAL SALUD]]) -> 0 | Y26: =BDD!$N$4 -> 37838.55 | Z26: =Tabla4[[#This Row],[PACTO UF]]*Tabla4[[#This Row],[VALOR UF]] -> 0 | AA26: IMPUESTO UNICO | AB26: =BDD!S28-Tabla4[[#This Row],[TOTAL AFP]]-Tabla4[[#This Row],[TOTAL SALUD]]-Tabla4[[#This Row],[TOTAL SEGURO CESANTIA]]-Tabla4[[#This Row],[TOTAL ADICIONAL]] -> 0 | AC26: =IF(Tabla4[[#This Row],[PASO DESC. UNIC.]]<=$AT$5,0,IF(Tabla4[[#This Row],[PASO DESC. UNIC.]]<=$AT$6,Tabla4[[#This Row],[PASO DESC. UNIC.]]*$AU$6-$AV$6,IF(Tabla4[[#This Row],[PASO DESC. UNIC.]]<=$AT$7,Tabla4[[#This Row],[PASO DESC. UNIC.]]*$AU$7-$AV$7,IF(Tabla4[[#This Row],[PASO DESC. UNIC.]]<=$AT$8,Tabla4[[#This Row],[PASO DESC. UNIC.]]*$AU$8-$AV$8,IF(Tabla4[[#This Row],[PASO DESC. UNIC.]]<=$AT$9,Tabla4[[#This Row],[PASO DESC. UNIC.]]*$AU$9-$AV$9,IF(Tabla4[[#This Row],[PASO DESC. UNIC.]]<=$AT$10,Tabla4[[#This Row],[PASO DESC. UNIC.]]*$AU$10-$AV$10,IF(Tabla4[[#This Row],[PASO DESC. UNIC.]]>=$AS$11,Tabla4[[#This Row],[PASO DESC. UNIC.]]*$AU$11-$AV$11))))))) -> 0 | AD26: =Tabla4[[#This Row],[TOTAL AFP]]+Tabla4[[#This Row],[TOTAL SALUD]]+Tabla4[[#This Row],[TOTAL SEGURO CESANTIA]]+Tabla4[[#This Row],[TOTAL ADICIONAL]]+Tabla4[[#This Row],[VALOR IMP U.]]+Tabla4[[#This Row],[VALOR OTRO 2]]+Tabla4[[#This Row],[VALOR OTRO 1]] -> 0 | AF26: =IF($BP$8 = "SI",IF(Tabla4[[#This Row],[TIPO CONTRATO]]="Indefinido",BDD!S28*2.4%,IF(Tabla4[[#This Row],[TIPO CONTRATO]]="PLAZO FIJO",BDD!S28*3%,0)),0) -> 0 | AM26: =BDD!S28*Tabla4[[#This Row],[% SIS]] -> 0 | AP26: =BDD!S28*Tabla4[[#This Row],[%MUTUAL]] -> 0
J27: 23 | K27: 23 | L27: =IF(BDD!J29=0," ",BDD!J29) ->  | O27: =IF(BDD!S29<_TOPEIMPONIBLE,BDD!S29*Tabla4[[#This Row],[%AFP]],_TOPEIMPONIBLE*Tabla4[[#This Row],[%AFP]]) -> 0 | R27: =IF(BDD!S29<_TOPEIMPONIBLE,BDD!S29*Tabla4[[#This Row],[%SALUD]],_TOPEIMPONIBLE*Tabla4[[#This Row],[%SALUD]]) -> 0 | U27: =BDD!S29*Tabla4[[#This Row],[%SEGURO]] -> 0 | W27: =IF(Tabla4[[#This Row],[TOTAL UF]]-Tabla4[[#This Row],[TOTAL SALUD]]<=0,0,Tabla4[[#This Row],[TOTAL UF]]-Tabla4[[#This Row],[TOTAL SALUD]]) -> 0 | Y27: =BDD!$N$4 -> 37838.55 | Z27: =Tabla4[[#This Row],[PACTO UF]]*Tabla4[[#This Row],[VALOR UF]] -> 0 | AA27: IMPUESTO UNICO | AB27: =BDD!S29-Tabla4[[#This Row],[TOTAL AFP]]-Tabla4[[#This Row],[TOTAL SALUD]]-Tabla4[[#This Row],[TOTAL SEGURO CESANTIA]]-Tabla4[[#This Row],[TOTAL ADICIONAL]] -> 0 | AC27: =IF(Tabla4[[#This Row],[PASO DESC. UNIC.]]<=$AT$5,0,IF(Tabla4[[#This Row],[PASO DESC. UNIC.]]<=$AT$6,Tabla4[[#This Row],[PASO DESC. UNIC.]]*$AU$6-$AV$6,IF(Tabla4[[#This Row],[PASO DESC. UNIC.]]<=$AT$7,Tabla4[[#This Row],[PASO DESC. UNIC.]]*$AU$7-$AV$7,IF(Tabla4[[#This Row],[PASO DESC. UNIC.]]<=$AT$8,Tabla4[[#This Row],[PASO DESC. UNIC.]]*$AU$8-$AV$8,IF(Tabla4[[#This Row],[PASO DESC. UNIC.]]<=$AT$9,Tabla4[[#This Row],[PASO DESC. UNIC.]]*$AU$9-$AV$9,IF(Tabla4[[#This Row],[PASO DESC. UNIC.]]<=$AT$10,Tabla4[[#This Row],[PASO DESC. UNIC.]]*$AU$10-$AV$10,IF(Tabla4[[#This Row],[PASO DESC. UNIC.]]>=$AS$11,Tabla4[[#This Row],[PASO DESC. UNIC.]]*$AU$11-$AV$11))))))) -> 0 | AD27: =Tabla4[[#This Row],[TOTAL AFP]]+Tabla4[[#This Row],[TOTAL SALUD]]+Tabla4[[#This Row],[TOTAL SEGURO CESANTIA]]+Tabla4[[#This Row],[TOTAL ADICIONAL]]+Tabla4[[#This Row],[VALOR IMP U.]]+Tabla4[[#This Row],[VALOR OTRO 2]]+Tabla4[[#This Row],[VALOR OTRO 1]] -> 0 | AF27: =IF($BP$8 = "SI",IF(Tabla4[[#This Row],[TIPO CONTRATO]]="Indefinido",BDD!S29*2.4%,IF(Tabla4[[#This Row],[TIPO CONTRATO]]="PLAZO FIJO",BDD!S29*3%,0)),0) -> 0 | AM27: =BDD!S29*Tabla4[[#This Row],[% SIS]] -> 0 | AP27: =BDD!S29*Tabla4[[#This Row],[%MUTUAL]] -> 0
J28: 24 | K28: 24 | L28: =IF(BDD!J30=0," ",BDD!J30) ->  | O28: =IF(BDD!S30<_TOPEIMPONIBLE,BDD!S30*Tabla4[[#This Row],[%AFP]],_TOPEIMPONIBLE*Tabla4[[#This Row],[%AFP]]) -> 0 | R28: =IF(BDD!S30<_TOPEIMPONIBLE,BDD!S30*Tabla4[[#This Row],[%SALUD]],_TOPEIMPONIBLE*Tabla4[[#This Row],[%SALUD]]) -> 0 | U28: =BDD!S30*Tabla4[[#This Row],[%SEGURO]] -> 0 | W28: =IF(Tabla4[[#This Row],[TOTAL UF]]-Tabla4[[#This Row],[TOTAL SALUD]]<=0,0,Tabla4[[#This Row],[TOTAL UF]]-Tabla4[[#This Row],[TOTAL SALUD]]) -> 0 | Y28: =BDD!$N$4 -> 37838.55 | Z28: =Tabla4[[#This Row],[PACTO UF]]*Tabla4[[#This Row],[VALOR UF]] -> 0 | AA28: IMPUESTO UNICO | AB28: =BDD!S30-Tabla4[[#This Row],[TOTAL AFP]]-Tabla4[[#This Row],[TOTAL SALUD]]-Tabla4[[#This Row],[TOTAL SEGURO CESANTIA]]-Tabla4[[#This Row],[TOTAL ADICIONAL]] -> 0 | AC28: =IF(Tabla4[[#This Row],[PASO DESC. UNIC.]]<=$AT$5,0,IF(Tabla4[[#This Row],[PASO DESC. UNIC.]]<=$AT$6,Tabla4[[#This Row],[PASO DESC. UNIC.]]*$AU$6-$AV$6,IF(Tabla4[[#This Row],[PASO DESC. UNIC.]]<=$AT$7,Tabla4[[#This Row],[PASO DESC. UNIC.]]*$AU$7-$AV$7,IF(Tabla4[[#This Row],[PASO DESC. UNIC.]]<=$AT$8,Tabla4[[#This Row],[PASO DESC. UNIC.]]*$AU$8-$AV$8,IF(Tabla4[[#This Row],[PASO DESC. UNIC.]]<=$AT$9,Tabla4[[#This Row],[PASO DESC. UNIC.]]*$AU$9-$AV$9,IF(Tabla4[[#This Row],[PASO DESC. UNIC.]]<=$AT$10,Tabla4[[#This Row],[PASO DESC. UNIC.]]*$AU$10-$AV$10,IF(Tabla4[[#This Row],[PASO DESC. UNIC.]]>=$AS$11,Tabla4[[#This Row],[PASO DESC. UNIC.]]*$AU$11-$AV$11))))))) -> 0 | AD28: =Tabla4[[#This Row],[TOTAL AFP]]+Tabla4[[#This Row],[TOTAL SALUD]]+Tabla4[[#This Row],[TOTAL SEGURO CESANTIA]]+Tabla4[[#This Row],[TOTAL ADICIONAL]]+Tabla4[[#This Row],[VALOR IMP U.]]+Tabla4[[#This Row],[VALOR OTRO 2]]+Tabla4[[#This Row],[VALOR OTRO 1]] -> 0 | AF28: =IF($BP$8 = "SI",IF(Tabla4[[#This Row],[TIPO CONTRATO]]="Indefinido",BDD!S30*2.4%,IF(Tabla4[[#This Row],[TIPO CONTRATO]]="PLAZO FIJO",BDD!S30*3%,0)),0) -> 0 | AM28: =BDD!S30*Tabla4[[#This Row],[% SIS]] -> 0 | AP28: =BDD!S30*Tabla4[[#This Row],[%MUTUAL]] -> 0
J29: 25 | K29: 25 | L29: =IF(BDD!J31=0," ",BDD!J31) ->  | O29: =IF(BDD!S31<_TOPEIMPONIBLE,BDD!S31*Tabla4[[#This Row],[%AFP]],_TOPEIMPONIBLE*Tabla4[[#This Row],[%AFP]]) -> 0 | R29: =IF(BDD!S31<_TOPEIMPONIBLE,BDD!S31*Tabla4[[#This Row],[%SALUD]],_TOPEIMPONIBLE*Tabla4[[#This Row],[%SALUD]]) -> 0 | U29: =BDD!S31*Tabla4[[#This Row],[%SEGURO]] -> 0 | W29: =IF(Tabla4[[#This Row],[TOTAL UF]]-Tabla4[[#This Row],[TOTAL SALUD]]<=0,0,Tabla4[[#This Row],[TOTAL UF]]-Tabla4[[#This Row],[TOTAL SALUD]]) -> 0 | Y29: =BDD!$N$4 -> 37838.55 | Z29: =Tabla4[[#This Row],[PACTO UF]]*Tabla4[[#This Row],[VALOR UF]] -> 0 | AA29: IMPUESTO UNICO | AB29: =BDD!S31-Tabla4[[#This Row],[TOTAL AFP]]-Tabla4[[#This Row],[TOTAL SALUD]]-Tabla4[[#This Row],[TOTAL SEGURO CESANTIA]]-Tabla4[[#This Row],[TOTAL ADICIONAL]] -> 0 | AC29: =IF(Tabla4[[#This Row],[PASO DESC. UNIC.]]<=$AT$5,0,IF(Tabla4[[#This Row],[PASO DESC. UNIC.]]<=$AT$6,Tabla4[[#This Row],[PASO DESC. UNIC.]]*$AU$6-$AV$6,IF(Tabla4[[#This Row],[PASO DESC. UNIC.]]<=$AT$7,Tabla4[[#This Row],[PASO DESC. UNIC.]]*$AU$7-$AV$7,IF(Tabla4[[#This Row],[PASO DESC. UNIC.]]<=$AT$8,Tabla4[[#This Row],[PASO DESC. UNIC.]]*$AU$8-$AV$8,IF(Tabla4[[#This Row],[PASO DESC. UNIC.]]<=$AT$9,Tabla4[[#This Row],[PASO DESC. UNIC.]]*$AU$9-$AV$9,IF(Tabla4[[#This Row],[PASO DESC. UNIC.]]<=$AT$10,Tabla4[[#This Row],[PASO DESC. UNIC.]]*$AU$10-$AV$10,IF(Tabla4[[#This Row],[PASO DESC. UNIC.]]>=$AS$11,Tabla4[[#This Row],[PASO DESC. UNIC.]]*$AU$11-$AV$11))))))) -> 0 | AD29: =Tabla4[[#This Row],[TOTAL AFP]]+Tabla4[[#This Row],[TOTAL SALUD]]+Tabla4[[#This Row],[TOTAL SEGURO CESANTIA]]+Tabla4[[#This Row],[TOTAL ADICIONAL]]+Tabla4[[#This Row],[VALOR IMP U.]]+Tabla4[[#This Row],[VALOR OTRO 2]]+Tabla4[[#This Row],[VALOR OTRO 1]] -> 0 | AF29: =IF($BP$8 = "SI",IF(Tabla4[[#This Row],[TIPO CONTRATO]]="Indefinido",BDD!S31*2.4%,IF(Tabla4[[#This Row],[TIPO CONTRATO]]="PLAZO FIJO",BDD!S31*3%,0)),0) -> 0 | AM29: =BDD!S31*Tabla4[[#This Row],[% SIS]] -> 0 | AP29: =BDD!S31*Tabla4[[#This Row],[%MUTUAL]] -> 0
J30: 26 | K30: 26 | L30: =IF(BDD!J32=0," ",BDD!J32) ->  | O30: =IF(BDD!S32<_TOPEIMPONIBLE,BDD!S32*Tabla4[[#This Row],[%AFP]],_TOPEIMPONIBLE*Tabla4[[#This Row],[%AFP]]) -> 0 | R30: =IF(BDD!S32<_TOPEIMPONIBLE,BDD!S32*Tabla4[[#This Row],[%SALUD]],_TOPEIMPONIBLE*Tabla4[[#This Row],[%SALUD]]) -> 0 | U30: =BDD!S32*Tabla4[[#This Row],[%SEGURO]] -> 0 | W30: =IF(Tabla4[[#This Row],[TOTAL UF]]-Tabla4[[#This Row],[TOTAL SALUD]]<=0,0,Tabla4[[#This Row],[TOTAL UF]]-Tabla4[[#This Row],[TOTAL SALUD]]) -> 0 | Y30: =BDD!$N$4 -> 37838.55 | Z30: =Tabla4[[#This Row],[PACTO UF]]*Tabla4[[#This Row],[VALOR UF]] -> 0 | AA30: IMPUESTO UNICO | AB30: =BDD!S32-Tabla4[[#This Row],[TOTAL AFP]]-Tabla4[[#This Row],[TOTAL SALUD]]-Tabla4[[#This Row],[TOTAL SEGURO CESANTIA]]-Tabla4[[#This Row],[TOTAL ADICIONAL]] -> 0 | AC30: =IF(Tabla4[[#This Row],[PASO DESC. UNIC.]]<=$AT$5,0,IF(Tabla4[[#This Row],[PASO DESC. UNIC.]]<=$AT$6,Tabla4[[#This Row],[PASO DESC. UNIC.]]*$AU$6-$AV$6,IF(Tabla4[[#This Row],[PASO DESC. UNIC.]]<=$AT$7,Tabla4[[#This Row],[PASO DESC. UNIC.]]*$AU$7-$AV$7,IF(Tabla4[[#This Row],[PASO DESC. UNIC.]]<=$AT$8,Tabla4[[#This Row],[PASO DESC. UNIC.]]*$AU$8-$AV$8,IF(Tabla4[[#This Row],[PASO DESC. UNIC.]]<=$AT$9,Tabla4[[#This Row],[PASO DESC. UNIC.]]*$AU$9-$AV$9,IF(Tabla4[[#This Row],[PASO DESC. UNIC.]]<=$AT$10,Tabla4[[#This Row],[PASO DESC. UNIC.]]*$AU$10-$AV$10,IF(Tabla4[[#This Row],[PASO DESC. UNIC.]]>=$AS$11,Tabla4[[#This Row],[PASO DESC. UNIC.]]*$AU$11-$AV$11))))))) -> 0 | AD30: =Tabla4[[#This Row],[TOTAL AFP]]+Tabla4[[#This Row],[TOTAL SALUD]]+Tabla4[[#This Row],[TOTAL SEGURO CESANTIA]]+Tabla4[[#This Row],[TOTAL ADICIONAL]]+Tabla4[[#This Row],[VALOR IMP U.]]+Tabla4[[#This Row],[VALOR OTRO 2]]+Tabla4[[#This Row],[VALOR OTRO 1]] -> 0 | AF30: =IF($BP$8 = "SI",IF(Tabla4[[#This Row],[TIPO CONTRATO]]="Indefinido",BDD!S32*2.4%,IF(Tabla4[[#This Row],[TIPO CONTRATO]]="PLAZO FIJO",BDD!S32*3%,0)),0) -> 0 | AM30: =BDD!S32*Tabla4[[#This Row],[% SIS]] -> 0 | AP30: =BDD!S32*Tabla4[[#This Row],[%MUTUAL]] -> 0
J31: 27 | K31: 27 | L31: =IF(BDD!J33=0," ",BDD!J33) ->  | O31: =IF(BDD!S33<_TOPEIMPONIBLE,BDD!S33*Tabla4[[#This Row],[%AFP]],_TOPEIMPONIBLE*Tabla4[[#This Row],[%AFP]]) -> 0 | R31: =IF(BDD!S33<_TOPEIMPONIBLE,BDD!S33*Tabla4[[#This Row],[%SALUD]],_TOPEIMPONIBLE*Tabla4[[#This Row],[%SALUD]]) -> 0 | U31: =BDD!S33*Tabla4[[#This Row],[%SEGURO]] -> 0 | W31: =IF(Tabla4[[#This Row],[TOTAL UF]]-Tabla4[[#This Row],[TOTAL SALUD]]<=0,0,Tabla4[[#This Row],[TOTAL UF]]-Tabla4[[#This Row],[TOTAL SALUD]]) -> 0 | Y31: =BDD!$N$4 -> 37838.55 | Z31: =Tabla4[[#This Row],[PACTO UF]]*Tabla4[[#This Row],[VALOR UF]] -> 0 | AA31: IMPUESTO UNICO | AB31: =BDD!S33-Tabla4[[#This Row],[TOTAL AFP]]-Tabla4[[#This Row],[TOTAL SALUD]]-Tabla4[[#This Row],[TOTAL SEGURO CESANTIA]]-Tabla4[[#This Row],[TOTAL ADICIONAL]] -> 0 | AC31: =IF(Tabla4[[#This Row],[PASO DESC. UNIC.]]<=$AT$5,0,IF(Tabla4[[#This Row],[PASO DESC. UNIC.]]<=$AT$6,Tabla4[[#This Row],[PASO DESC. UNIC.]]*$AU$6-$AV$6,IF(Tabla4[[#This Row],[PASO DESC. UNIC.]]<=$AT$7,Tabla4[[#This Row],[PASO DESC. UNIC.]]*$AU$7-$AV$7,IF(Tabla4[[#This Row],[PASO DESC. UNIC.]]<=$AT$8,Tabla4[[#This Row],[PASO DESC. UNIC.]]*$AU$8-$AV$8,IF(Tabla4[[#This Row],[PASO DESC. UNIC.]]<=$AT$9,Tabla4[[#This Row],[PASO DESC. UNIC.]]*$AU$9-$AV$9,IF(Tabla4[[#This Row],[PASO DESC. UNIC.]]<=$AT$10,Tabla4[[#This Row],[PASO DESC. UNIC.]]*$AU$10-$AV$10,IF(Tabla4[[#This Row],[PASO DESC. UNIC.]]>=$AS$11,Tabla4[[#This Row],[PASO DESC. UNIC.]]*$AU$11-$AV$11))))))) -> 0 | AD31: =Tabla4[[#This Row],[TOTAL AFP]]+Tabla4[[#This Row],[TOTAL SALUD]]+Tabla4[[#This Row],[TOTAL SEGURO CESANTIA]]+Tabla4[[#This Row],[TOTAL ADICIONAL]]+Tabla4[[#This Row],[VALOR IMP U.]]+Tabla4[[#This Row],[VALOR OTRO 2]]+Tabla4[[#This Row],[VALOR OTRO 1]] -> 0 | AF31: =IF($BP$8 = "SI",IF(Tabla4[[#This Row],[TIPO CONTRATO]]="Indefinido",BDD!S33*2.4%,IF(Tabla4[[#This Row],[TIPO CONTRATO]]="PLAZO FIJO",BDD!S33*3%,0)),0) -> 0 | AM31: =BDD!S33*Tabla4[[#This Row],[% SIS]] -> 0 | AP31: =BDD!S33*Tabla4[[#This Row],[%MUTUAL]] -> 0
J32: 28 | K32: 28 | L32: =IF(BDD!J34=0," ",BDD!J34) ->  | O32: =IF(BDD!S34<_TOPEIMPONIBLE,BDD!S34*Tabla4[[#This Row],[%AFP]],_TOPEIMPONIBLE*Tabla4[[#This Row],[%AFP]]) -> 0 | R32: =IF(BDD!S34<_TOPEIMPONIBLE,BDD!S34*Tabla4[[#This Row],[%SALUD]],_TOPEIMPONIBLE*Tabla4[[#This Row],[%SALUD]]) -> 0 | U32: =BDD!S34*Tabla4[[#This Row],[%SEGURO]] -> 0 | W32: =IF(Tabla4[[#This Row],[TOTAL UF]]-Tabla4[[#This Row],[TOTAL SALUD]]<=0,0,Tabla4[[#This Row],[TOTAL UF]]-Tabla4[[#This Row],[TOTAL SALUD]]) -> 0 | Y32: =BDD!$N$4 -> 37838.55 | Z32: =Tabla4[[#This Row],[PACTO UF]]*Tabla4[[#This Row],[VALOR UF]] -> 0 | AA32: IMPUESTO UNICO | AB32: =BDD!S34-Tabla4[[#This Row],[TOTAL AFP]]-Tabla4[[#This Row],[TOTAL SALUD]]-Tabla4[[#This Row],[TOTAL SEGURO CESANTIA]]-Tabla4[[#This Row],[TOTAL ADICIONAL]] -> 0 | AC32: =IF(Tabla4[[#This Row],[PASO DESC. UNIC.]]<=$AT$5,0,IF(Tabla4[[#This Row],[PASO DESC. UNIC.]]<=$AT$6,Tabla4[[#This Row],[PASO DESC. UNIC.]]*$AU$6-$AV$6,IF(Tabla4[[#This Row],[PASO DESC. UNIC.]]<=$AT$7,Tabla4[[#This Row],[PASO DESC. UNIC.]]*$AU$7-$AV$7,IF(Tabla4[[#This Row],[PASO DESC. UNIC.]]<=$AT$8,Tabla4[[#This Row],[PASO DESC. UNIC.]]*$AU$8-$AV$8,IF(Tabla4[[#This Row],[PASO DESC. UNIC.]]<=$AT$9,Tabla4[[#This Row],[PASO DESC. UNIC.]]*$AU$9-$AV$9,IF(Tabla4[[#This Row],[PASO DESC. UNIC.]]<=$AT$10,Tabla4[[#This Row],[PASO DESC. UNIC.]]*$AU$10-$AV$10,IF(Tabla4[[#This Row],[PASO DESC. UNIC.]]>=$AS$11,Tabla4[[#This Row],[PASO DESC. UNIC.]]*$AU$11-$AV$11))))))) -> 0 | AD32: =Tabla4[[#This Row],[TOTAL AFP]]+Tabla4[[#This Row],[TOTAL SALUD]]+Tabla4[[#This Row],[TOTAL SEGURO CESANTIA]]+Tabla4[[#This Row],[TOTAL ADICIONAL]]+Tabla4[[#This Row],[VALOR IMP U.]]+Tabla4[[#This Row],[VALOR OTRO 2]]+Tabla4[[#This Row],[VALOR OTRO 1]] -> 0 | AF32: =IF($BP$8 = "SI",IF(Tabla4[[#This Row],[TIPO CONTRATO]]="Indefinido",BDD!S34*2.4%,IF(Tabla4[[#This Row],[TIPO CONTRATO]]="PLAZO FIJO",BDD!S34*3%,0)),0) -> 0 | AM32: =BDD!S34*Tabla4[[#This Row],[% SIS]] -> 0 | AP32: =BDD!S34*Tabla4[[#This Row],[%MUTUAL]] -> 0
J33: 29 | K33: 29 | L33: =IF(BDD!J35=0," ",BDD!J35) ->  | O33: =IF(BDD!S35<_TOPEIMPONIBLE,BDD!S35*Tabla4[[#This Row],[%AFP]],_TOPEIMPONIBLE*Tabla4[[#This Row],[%AFP]]) -> 0 | R33: =IF(BDD!S35<_TOPEIMPONIBLE,BDD!S35*Tabla4[[#This Row],[%SALUD]],_TOPEIMPONIBLE*Tabla4[[#This Row],[%SALUD]]) -> 0 | U33: =BDD!S35*Tabla4[[#This Row],[%SEGURO]] -> 0 | W33: =IF(Tabla4[[#This Row],[TOTAL UF]]-Tabla4[[#This Row],[TOTAL SALUD]]<=0,0,Tabla4[[#This Row],[TOTAL UF]]-Tabla4[[#This Row],[TOTAL SALUD]]) -> 0 | Y33: =BDD!$N$4 -> 37838.55 | Z33: =Tabla4[[#This Row],[PACTO UF]]*Tabla4[[#This Row],[VALOR UF]] -> 0 | AA33: IMPUESTO UNICO | AB33: =BDD!S35-Tabla4[[#This Row],[TOTAL AFP]]-Tabla4[[#This Row],[TOTAL SALUD]]-Tabla4[[#This Row],[TOTAL SEGURO CESANTIA]]-Tabla4[[#This Row],[TOTAL ADICIONAL]] -> 0 | AC33: =IF(Tabla4[[#This Row],[PASO DESC. UNIC.]]<=$AT$5,0,IF(Tabla4[[#This Row],[PASO DESC. UNIC.]]<=$AT$6,Tabla4[[#This Row],[PASO DESC. UNIC.]]*$AU$6-$AV$6,IF(Tabla4[[#This Row],[PASO DESC. UNIC.]]<=$AT$7,Tabla4[[#This Row],[PASO DESC. UNIC.]]*$AU$7-$AV$7,IF(Tabla4[[#This Row],[PASO DESC. UNIC.]]<=$AT$8,Tabla4[[#This Row],[PASO DESC. UNIC.]]*$AU$8-$AV$8,IF(Tabla4[[#This Row],[PASO DESC. UNIC.]]<=$AT$9,Tabla4[[#This Row],[PASO DESC. UNIC.]]*$AU$9-$AV$9,IF(Tabla4[[#This Row],[PASO DESC. UNIC.]]<=$AT$10,Tabla4[[#This Row],[PASO DESC. UNIC.]]*$AU$10-$AV$10,IF(Tabla4[[#This Row],[PASO DESC. UNIC.]]>=$AS$11,Tabla4[[#This Row],[PASO DESC. UNIC.]]*$AU$11-$AV$11))))))) -> 0 | AD33: =Tabla4[[#This Row],[TOTAL AFP]]+Tabla4[[#This Row],[TOTAL SALUD]]+Tabla4[[#This Row],[TOTAL SEGURO CESANTIA]]+Tabla4[[#This Row],[TOTAL ADICIONAL]]+Tabla4[[#This Row],[VALOR IMP U.]]+Tabla4[[#This Row],[VALOR OTRO 2]]+Tabla4[[#This Row],[VALOR OTRO 1]] -> 0 | AF33: =IF($BP$8 = "SI",IF(Tabla4[[#This Row],[TIPO CONTRATO]]="Indefinido",BDD!S35*2.4%,IF(Tabla4[[#This Row],[TIPO CONTRATO]]="PLAZO FIJO",BDD!S35*3%,0)),0) -> 0 | AM33: =BDD!S35*Tabla4[[#This Row],[% SIS]] -> 0 | AP33: =BDD!S35*Tabla4[[#This Row],[%MUTUAL]] -> 0
J34: 30 | K34: 30 | L34: =IF(BDD!J36=0," ",BDD!J36) ->  | O34: =IF(BDD!S36<_TOPEIMPONIBLE,BDD!S36*Tabla4[[#This Row],[%AFP]],_TOPEIMPONIBLE*Tabla4[[#This Row],[%AFP]]) -> 0 | R34: =IF(BDD!S36<_TOPEIMPONIBLE,BDD!S36*Tabla4[[#This Row],[%SALUD]],_TOPEIMPONIBLE*Tabla4[[#This Row],[%SALUD]]) -> 0 | U34: =BDD!S36*Tabla4[[#This Row],[%SEGURO]] -> 0 | W34: =IF(Tabla4[[#This Row],[TOTAL UF]]-Tabla4[[#This Row],[TOTAL SALUD]]<=0,0,Tabla4[[#This Row],[TOTAL UF]]-Tabla4[[#This Row],[TOTAL SALUD]]) -> 0 | Y34: =BDD!$N$4 -> 37838.55 | Z34: =Tabla4[[#This Row],[PACTO UF]]*Tabla4[[#This Row],[VALOR UF]] -> 0 | AA34: IMPUESTO UNICO | AB34: =BDD!S36-Tabla4[[#This Row],[TOTAL AFP]]-Tabla4[[#This Row],[TOTAL SALUD]]-Tabla4[[#This Row],[TOTAL SEGURO CESANTIA]]-Tabla4[[#This Row],[TOTAL ADICIONAL]] -> 0 | AC34: =IF(Tabla4[[#This Row],[PASO DESC. UNIC.]]<=$AT$5,0,IF(Tabla4[[#This Row],[PASO DESC. UNIC.]]<=$AT$6,Tabla4[[#This Row],[PASO DESC. UNIC.]]*$AU$6-$AV$6,IF(Tabla4[[#This Row],[PASO DESC. UNIC.]]<=$AT$7,Tabla4[[#This Row],[PASO DESC. UNIC.]]*$AU$7-$AV$7,IF(Tabla4[[#This Row],[PASO DESC. UNIC.]]<=$AT$8,Tabla4[[#This Row],[PASO DESC. UNIC.]]*$AU$8-$AV$8,IF(Tabla4[[#This Row],[PASO DESC. UNIC.]]<=$AT$9,Tabla4[[#This Row],[PASO DESC. UNIC.]]*$AU$9-$AV$9,IF(Tabla4[[#This Row],[PASO DESC. UNIC.]]<=$AT$10,Tabla4[[#This Row],[PASO DESC. UNIC.]]*$AU$10-$AV$10,IF(Tabla4[[#This Row],[PASO DESC. UNIC.]]>=$AS$11,Tabla4[[#This Row],[PASO DESC. UNIC.]]*$AU$11-$AV$11))))))) -> 0 | AD34: =Tabla4[[#This Row],[TOTAL AFP]]+Tabla4[[#This Row],[TOTAL SALUD]]+Tabla4[[#This Row],[TOTAL SEGURO CESANTIA]]+Tabla4[[#This Row],[TOTAL ADICIONAL]]+Tabla4[[#This Row],[VALOR IMP U.]]+Tabla4[[#This Row],[VALOR OTRO 2]]+Tabla4[[#This Row],[VALOR OTRO 1]] -> 0 | AF34: =IF($BP$8 = "SI",IF(Tabla4[[#This Row],[TIPO CONTRATO]]="Indefinido",BDD!S36*2.4%,IF(Tabla4[[#This Row],[TIPO CONTRATO]]="PLAZO FIJO",BDD!S36*3%,0)),0) -> 0 | AM34: =BDD!S36*Tabla4[[#This Row],[% SIS]] -> 0 | AP34: =BDD!S36*Tabla4[[#This Row],[%MUTUAL]] -> 0
J35: 31 | K35: 31 | L35: =IF(BDD!J37=0," ",BDD!J37) ->  | O35: =IF(BDD!S37<_TOPEIMPONIBLE,BDD!S37*Tabla4[[#This Row],[%AFP]],_TOPEIMPONIBLE*Tabla4[[#This Row],[%AFP]]) -> 0 | R35: =IF(BDD!S37<_TOPEIMPONIBLE,BDD!S37*Tabla4[[#This Row],[%SALUD]],_TOPEIMPONIBLE*Tabla4[[#This Row],[%SALUD]]) -> 0 | U35: =BDD!S37*Tabla4[[#This Row],[%SEGURO]] -> 0 | W35: =IF(Tabla4[[#This Row],[TOTAL UF]]-Tabla4[[#This Row],[TOTAL SALUD]]<=0,0,Tabla4[[#This Row],[TOTAL UF]]-Tabla4[[#This Row],[TOTAL SALUD]]) -> 0 | Y35: =BDD!$N$4 -> 37838.55 | Z35: =Tabla4[[#This Row],[PACTO UF]]*Tabla4[[#This Row],[VALOR UF]] -> 0 | AA35: IMPUESTO UNICO | AB35: =BDD!S37-Tabla4[[#This Row],[TOTAL AFP]]-Tabla4[[#This Row],[TOTAL SALUD]]-Tabla4[[#This Row],[TOTAL SEGURO CESANTIA]]-Tabla4[[#This Row],[TOTAL ADICIONAL]] -> 0 | AC35: =IF(Tabla4[[#This Row],[PASO DESC. UNIC.]]<=$AT$5,0,IF(Tabla4[[#This Row],[PASO DESC. UNIC.]]<=$AT$6,Tabla4[[#This Row],[PASO DESC. UNIC.]]*$AU$6-$AV$6,IF(Tabla4[[#This Row],[PASO DESC. UNIC.]]<=$AT$7,Tabla4[[#This Row],[PASO DESC. UNIC.]]*$AU$7-$AV$7,IF(Tabla4[[#This Row],[PASO DESC. UNIC.]]<=$AT$8,Tabla4[[#This Row],[PASO DESC. UNIC.]]*$AU$8-$AV$8,IF(Tabla4[[#This Row],[PASO DESC. UNIC.]]<=$AT$9,Tabla4[[#This Row],[PASO DESC. UNIC.]]*$AU$9-$AV$9,IF(Tabla4[[#This Row],[PASO DESC. UNIC.]]<=$AT$10,Tabla4[[#This Row],[PASO DESC. UNIC.]]*$AU$10-$AV$10,IF(Tabla4[[#This Row],[PASO DESC. UNIC.]]>=$AS$11,Tabla4[[#This Row],[PASO DESC. UNIC.]]*$AU$11-$AV$11))))))) -> 0 | AD35: =Tabla4[[#This Row],[TOTAL AFP]]+Tabla4[[#This Row],[TOTAL SALUD]]+Tabla4[[#This Row],[TOTAL SEGURO CESANTIA]]+Tabla4[[#This Row],[TOTAL ADICIONAL]]+Tabla4[[#This Row],[VALOR IMP U.]]+Tabla4[[#This Row],[VALOR OTRO 2]]+Tabla4[[#This Row],[VALOR OTRO 1]] -> 0 | AF35: =IF($BP$8 = "SI",IF(Tabla4[[#This Row],[TIPO CONTRATO]]="Indefinido",BDD!S37*2.4%,IF(Tabla4[[#This Row],[TIPO CONTRATO]]="PLAZO FIJO",BDD!S37*3%,0)),0) -> 0 | AM35: =BDD!S37*Tabla4[[#This Row],[% SIS]] -> 0 | AP35: =BDD!S37*Tabla4[[#This Row],[%MUTUAL]] -> 0
J36: 32 | K36: 32 | L36: =IF(BDD!J38=0," ",BDD!J38) ->  | O36: =IF(BDD!S38<_TOPEIMPONIBLE,BDD!S38*Tabla4[[#This Row],[%AFP]],_TOPEIMPONIBLE*Tabla4[[#This Row],[%AFP]]) -> 0 | R36: =IF(BDD!S38<_TOPEIMPONIBLE,BDD!S38*Tabla4[[#This Row],[%SALUD]],_TOPEIMPONIBLE*Tabla4[[#This Row],[%SALUD]]) -> 0 | U36: =BDD!S38*Tabla4[[#This Row],[%SEGURO]] -> 0 | W36: =IF(Tabla4[[#This Row],[TOTAL UF]]-Tabla4[[#This Row],[TOTAL SALUD]]<=0,0,Tabla4[[#This Row],[TOTAL UF]]-Tabla4[[#This Row],[TOTAL SALUD]]) -> 0 | Y36: =BDD!$N$4 -> 37838.55 | Z36: =Tabla4[[#This Row],[PACTO UF]]*Tabla4[[#This Row],[VALOR UF]] -> 0 | AA36: IMPUESTO UNICO | AB36: =BDD!S38-Tabla4[[#This Row],[TOTAL AFP]]-Tabla4[[#This Row],[TOTAL SALUD]]-Tabla4[[#This Row],[TOTAL SEGURO CESANTIA]]-Tabla4[[#This Row],[TOTAL ADICIONAL]] -> 0 | AC36: =IF(Tabla4[[#This Row],[PASO DESC. UNIC.]]<=$AT$5,0,IF(Tabla4[[#This Row],[PASO DESC. UNIC.]]<=$AT$6,Tabla4[[#This Row],[PASO DESC. UNIC.]]*$AU$6-$AV$6,IF(Tabla4[[#This Row],[PASO DESC. UNIC.]]<=$AT$7,Tabla4[[#This Row],[PASO DESC. UNIC.]]*$AU$7-$AV$7,IF(Tabla4[[#This Row],[PASO DESC. UNIC.]]<=$AT$8,Tabla4[[#This Row],[PASO DESC. UNIC.]]*$AU$8-$AV$8,IF(Tabla4[[#This Row],[PASO DESC. UNIC.]]<=$AT$9,Tabla4[[#This Row],[PASO DESC. UNIC.]]*$AU$9-$AV$9,IF(Tabla4[[#This Row],[PASO DESC. UNIC.]]<=$AT$10,Tabla4[[#This Row],[PASO DESC. UNIC.]]*$AU$10-$AV$10,IF(Tabla4[[#This Row],[PASO DESC. UNIC.]]>=$AS$11,Tabla4[[#This Row],[PASO DESC. UNIC.]]*$AU$11-$AV$11))))))) -> 0 | AD36: =Tabla4[[#This Row],[TOTAL AFP]]+Tabla4[[#This Row],[TOTAL SALUD]]+Tabla4[[#This Row],[TOTAL SEGURO CESANTIA]]+Tabla4[[#This Row],[TOTAL ADICIONAL]]+Tabla4[[#This Row],[VALOR IMP U.]]+Tabla4[[#This Row],[VALOR OTRO 2]]+Tabla4[[#This Row],[VALOR OTRO 1]] -> 0 | AF36: =IF($BP$8 = "SI",IF(Tabla4[[#This Row],[TIPO CONTRATO]]="Indefinido",BDD!S38*2.4%,IF(Tabla4[[#This Row],[TIPO CONTRATO]]="PLAZO FIJO",BDD!S38*3%,0)),0) -> 0 | AM36: =BDD!S38*Tabla4[[#This Row],[% SIS]] -> 0 | AP36: =BDD!S38*Tabla4[[#This Row],[%MUTUAL]] -> 0
J37: 33 | K37: 33 | L37: =IF(BDD!J39=0," ",BDD!J39) ->  | O37: =IF(BDD!S39<_TOPEIMPONIBLE,BDD!S39*Tabla4[[#This Row],[%AFP]],_TOPEIMPONIBLE*Tabla4[[#This Row],[%AFP]]) -> 0 | R37: =IF(BDD!S39<_TOPEIMPONIBLE,BDD!S39*Tabla4[[#This Row],[%SALUD]],_TOPEIMPONIBLE*Tabla4[[#This Row],[%SALUD]]) -> 0 | U37: =BDD!S39*Tabla4[[#This Row],[%SEGURO]] -> 0 | W37: =IF(Tabla4[[#This Row],[TOTAL UF]]-Tabla4[[#This Row],[TOTAL SALUD]]<=0,0,Tabla4[[#This Row],[TOTAL UF]]-Tabla4[[#This Row],[TOTAL SALUD]]) -> 0 | Y37: =BDD!$N$4 -> 37838.55 | Z37: =Tabla4[[#This Row],[PACTO UF]]*Tabla4[[#This Row],[VALOR UF]] -> 0 | AA37: IMPUESTO UNICO | AB37: =BDD!S39-Tabla4[[#This Row],[TOTAL AFP]]-Tabla4[[#This Row],[TOTAL SALUD]]-Tabla4[[#This Row],[TOTAL SEGURO CESANTIA]]-Tabla4[[#This Row],[TOTAL ADICIONAL]] -> 0 | AC37: =IF(Tabla4[[#This Row],[PASO DESC. UNIC.]]<=$AT$5,0,IF(Tabla4[[#This Row],[PASO DESC. UNIC.]]<=$AT$6,Tabla4[[#This Row],[PASO DESC. UNIC.]]*$AU$6-$AV$6,IF(Tabla4[[#This Row],[PASO DESC. UNIC.]]<=$AT$7,Tabla4[[#This Row],[PASO DESC. UNIC.]]*$AU$7-$AV$7,IF(Tabla4[[#This Row],[PASO DESC. UNIC.]]<=$AT$8,Tabla4[[#This Row],[PASO DESC. UNIC.]]*$AU$8-$AV$8,IF(Tabla4[[#This Row],[PASO DESC. UNIC.]]<=$AT$9,Tabla4[[#This Row],[PASO DESC. UNIC.]]*$AU$9-$AV$9,IF(Tabla4[[#This Row],[PASO DESC. UNIC.]]<=$AT$10,Tabla4[[#This Row],[PASO DESC. UNIC.]]*$AU$10-$AV$10,IF(Tabla4[[#This Row],[PASO DESC. UNIC.]]>=$AS$11,Tabla4[[#This Row],[PASO DESC. UNIC.]]*$AU$11-$AV$11))))))) -> 0 | AD37: =Tabla4[[#This Row],[TOTAL AFP]]+Tabla4[[#This Row],[TOTAL SALUD]]+Tabla4[[#This Row],[TOTAL SEGURO CESANTIA]]+Tabla4[[#This Row],[TOTAL ADICIONAL]]+Tabla4[[#This Row],[VALOR IMP U.]]+Tabla4[[#This Row],[VALOR OTRO 2]]+Tabla4[[#This Row],[VALOR OTRO 1]] -> 0 | AF37: =IF($BP$8 = "SI",IF(Tabla4[[#This Row],[TIPO CONTRATO]]="Indefinido",BDD!S39*2.4%,IF(Tabla4[[#This Row],[TIPO CONTRATO]]="PLAZO FIJO",BDD!S39*3%,0)),0) -> 0 | AM37: =BDD!S39*Tabla4[[#This Row],[% SIS]] -> 0 | AP37: =BDD!S39*Tabla4[[#This Row],[%MUTUAL]] -> 0
J38: 34 | K38: 34 | L38: =IF(BDD!J40=0," ",BDD!J40) ->  | O38: =IF(BDD!S40<_TOPEIMPONIBLE,BDD!S40*Tabla4[[#This Row],[%AFP]],_TOPEIMPONIBLE*Tabla4[[#This Row],[%AFP]]) -> 0 | R38: =IF(BDD!S40<_TOPEIMPONIBLE,BDD!S40*Tabla4[[#This Row],[%SALUD]],_TOPEIMPONIBLE*Tabla4[[#This Row],[%SALUD]]) -> 0 | U38: =BDD!S40*Tabla4[[#This Row],[%SEGURO]] -> 0 | W38: =IF(Tabla4[[#This Row],[TOTAL UF]]-Tabla4[[#This Row],[TOTAL SALUD]]<=0,0,Tabla4[[#This Row],[TOTAL UF]]-Tabla4[[#This Row],[TOTAL SALUD]]) -> 0 | Y38: =BDD!$N$4 -> 37838.55 | Z38: =Tabla4[[#This Row],[PACTO UF]]*Tabla4[[#This Row],[VALOR UF]] -> 0 | AA38: IMPUESTO UNICO | AB38: =BDD!S40-Tabla4[[#This Row],[TOTAL AFP]]-Tabla4[[#This Row],[TOTAL SALUD]]-Tabla4[[#This Row],[TOTAL SEGURO CESANTIA]]-Tabla4[[#This Row],[TOTAL ADICIONAL]] -> 0 | AC38: =IF(Tabla4[[#This Row],[PASO DESC. UNIC.]]<=$AT$5,0,IF(Tabla4[[#This Row],[PASO DESC. UNIC.]]<=$AT$6,Tabla4[[#This Row],[PASO DESC. UNIC.]]*$AU$6-$AV$6,IF(Tabla4[[#This Row],[PASO DESC. UNIC.]]<=$AT$7,Tabla4[[#This Row],[PASO DESC. UNIC.]]*$AU$7-$AV$7,IF(Tabla4[[#This Row],[PASO DESC. UNIC.]]<=$AT$8,Tabla4[[#This Row],[PASO DESC. UNIC.]]*$AU$8-$AV$8,IF(Tabla4[[#This Row],[PASO DESC. UNIC.]]<=$AT$9,Tabla4[[#This Row],[PASO DESC. UNIC.]]*$AU$9-$AV$9,IF(Tabla4[[#This Row],[PASO DESC. UNIC.]]<=$AT$10,Tabla4[[#This Row],[PASO DESC. UNIC.]]*$AU$10-$AV$10,IF(Tabla4[[#This Row],[PASO DESC. UNIC.]]>=$AS$11,Tabla4[[#This Row],[PASO DESC. UNIC.]]*$AU$11-$AV$11))))))) -> 0 | AD38: =Tabla4[[#This Row],[TOTAL AFP]]+Tabla4[[#This Row],[TOTAL SALUD]]+Tabla4[[#This Row],[TOTAL SEGURO CESANTIA]]+Tabla4[[#This Row],[TOTAL ADICIONAL]]+Tabla4[[#This Row],[VALOR IMP U.]]+Tabla4[[#This Row],[VALOR OTRO 2]]+Tabla4[[#This Row],[VALOR OTRO 1]] -> 0 | AF38: =IF($BP$8 = "SI",IF(Tabla4[[#This Row],[TIPO CONTRATO]]="Indefinido",BDD!S40*2.4%,IF(Tabla4[[#This Row],[TIPO CONTRATO]]="PLAZO FIJO",BDD!S40*3%,0)),0) -> 0 | AM38: =BDD!S40*Tabla4[[#This Row],[% SIS]] -> 0 | AP38: =BDD!S40*Tabla4[[#This Row],[%MUTUAL]] -> 0
J39: 35 | K39: 35 | L39: =IF(BDD!J41=0," ",BDD!J41) ->  | O39: =IF(BDD!S41<_TOPEIMPONIBLE,BDD!S41*Tabla4[[#This Row],[%AFP]],_TOPEIMPONIBLE*Tabla4[[#This Row],[%AFP]]) -> 0 | R39: =IF(BDD!S41<_TOPEIMPONIBLE,BDD!S41*Tabla4[[#This Row],[%SALUD]],_TOPEIMPONIBLE*Tabla4[[#This Row],[%SALUD]]) -> 0 | U39: =BDD!S41*Tabla4[[#This Row],[%SEGURO]] -> 0 | W39: =IF(Tabla4[[#This Row],[TOTAL UF]]-Tabla4[[#This Row],[TOTAL SALUD]]<=0,0,Tabla4[[#This Row],[TOTAL UF]]-Tabla4[[#This Row],[TOTAL SALUD]]) -> 0 | Y39: =BDD!$N$4 -> 37838.55 | Z39: =Tabla4[[#This Row],[PACTO UF]]*Tabla4[[#This Row],[VALOR UF]] -> 0 | AA39: IMPUESTO UNICO | AB39: =BDD!S41-Tabla4[[#This Row],[TOTAL AFP]]-Tabla4[[#This Row],[TOTAL SALUD]]-Tabla4[[#This Row],[TOTAL SEGURO CESANTIA]]-Tabla4[[#This Row],[TOTAL ADICIONAL]] -> 0 | AC39: =IF(Tabla4[[#This Row],[PASO DESC. UNIC.]]<=$AT$5,0,IF(Tabla4[[#This Row],[PASO DESC. UNIC.]]<=$AT$6,Tabla4[[#This Row],[PASO DESC. UNIC.]]*$AU$6-$AV$6,IF(Tabla4[[#This Row],[PASO DESC. UNIC.]]<=$AT$7,Tabla4[[#This Row],[PASO DESC. UNIC.]]*$AU$7-$AV$7,IF(Tabla4[[#This Row],[PASO DESC. UNIC.]]<=$AT$8,Tabla4[[#This Row],[PASO DESC. UNIC.]]*$AU$8-$AV$8,IF(Tabla4[[#This Row],[PASO DESC. UNIC.]]<=$AT$9,Tabla4[[#This Row],[PASO DESC. UNIC.]]*$AU$9-$AV$9,IF(Tabla4[[#This Row],[PASO DESC. UNIC.]]<=$AT$10,Tabla4[[#This Row],[PASO DESC. UNIC.]]*$AU$10-$AV$10,IF(Tabla4[[#This Row],[PASO DESC. UNIC.]]>=$AS$11,Tabla4[[#This Row],[PASO DESC. UNIC.]]*$AU$11-$AV$11))))))) -> 0 | AD39: =Tabla4[[#This Row],[TOTAL AFP]]+Tabla4[[#This Row],[TOTAL SALUD]]+Tabla4[[#This Row],[TOTAL SEGURO CESANTIA]]+Tabla4[[#This Row],[TOTAL ADICIONAL]]+Tabla4[[#This Row],[VALOR IMP U.]]+Tabla4[[#This Row],[VALOR OTRO 2]]+Tabla4[[#This Row],[VALOR OTRO 1]] -> 0 | AF39: =IF($BP$8 = "SI",IF(Tabla4[[#This Row],[TIPO CONTRATO]]="Indefinido",BDD!S41*2.4%,IF(Tabla4[[#This Row],[TIPO CONTRATO]]="PLAZO FIJO",BDD!S41*3%,0)),0) -> 0 | AM39: =BDD!S41*Tabla4[[#This Row],[% SIS]] -> 0 | AP39: =BDD!S41*Tabla4[[#This Row],[%MUTUAL]] -> 0
J40: 36 | K40: 36 | L40: =IF(BDD!J42=0," ",BDD!J42) ->  | O40: =IF(BDD!S42<_TOPEIMPONIBLE,BDD!S42*Tabla4[[#This Row],[%AFP]],_TOPEIMPONIBLE*Tabla4[[#This Row],[%AFP]]) -> 0 | R40: =IF(BDD!S42<_TOPEIMPONIBLE,BDD!S42*Tabla4[[#This Row],[%SALUD]],_TOPEIMPONIBLE*Tabla4[[#This Row],[%SALUD]]) -> 0 | U40: =BDD!S42*Tabla4[[#This Row],[%SEGURO]] -> 0 | W40: =IF(Tabla4[[#This Row],[TOTAL UF]]-Tabla4[[#This Row],[TOTAL SALUD]]<=0,0,Tabla4[[#This Row],[TOTAL UF]]-Tabla4[[#This Row],[TOTAL SALUD]]) -> 0 | Y40: =BDD!$N$4 -> 37838.55 | Z40: =Tabla4[[#This Row],[PACTO UF]]*Tabla4[[#This Row],[VALOR UF]] -> 0 | AA40: IMPUESTO UNICO | AB40: =BDD!S42-Tabla4[[#This Row],[TOTAL AFP]]-Tabla4[[#This Row],[TOTAL SALUD]]-Tabla4[[#This Row],[TOTAL SEGURO CESANTIA]]-Tabla4[[#This Row],[TOTAL ADICIONAL]] -> 0 | AC40: =IF(Tabla4[[#This Row],[PASO DESC. UNIC.]]<=$AT$5,0,IF(Tabla4[[#This Row],[PASO DESC. UNIC.]]<=$AT$6,Tabla4[[#This Row],[PASO DESC. UNIC.]]*$AU$6-$AV$6,IF(Tabla4[[#This Row],[PASO DESC. UNIC.]]<=$AT$7,Tabla4[[#This Row],[PASO DESC. UNIC.]]*$AU$7-$AV$7,IF(Tabla4[[#This Row],[PASO DESC. UNIC.]]<=$AT$8,Tabla4[[#This Row],[PASO DESC. UNIC.]]*$AU$8-$AV$8,IF(Tabla4[[#This Row],[PASO DESC. UNIC.]]<=$AT$9,Tabla4[[#This Row],[PASO DESC. UNIC.]]*$AU$9-$AV$9,IF(Tabla4[[#This Row],[PASO DESC. UNIC.]]<=$AT$10,Tabla4[[#This Row],[PASO DESC. UNIC.]]*$AU$10-$AV$10,IF(Tabla4[[#This Row],[PASO DESC. UNIC.]]>=$AS$11,Tabla4[[#This Row],[PASO DESC. UNIC.]]*$AU$11-$AV$11))))))) -> 0 | AD40: =Tabla4[[#This Row],[TOTAL AFP]]+Tabla4[[#This Row],[TOTAL SALUD]]+Tabla4[[#This Row],[TOTAL SEGURO CESANTIA]]+Tabla4[[#This Row],[TOTAL ADICIONAL]]+Tabla4[[#This Row],[VALOR IMP U.]]+Tabla4[[#This Row],[VALOR OTRO 2]]+Tabla4[[#This Row],[VALOR OTRO 1]] -> 0 | AF40: =IF($BP$8 = "SI",IF(Tabla4[[#This Row],[TIPO CONTRATO]]="Indefinido",BDD!S42*2.4%,IF(Tabla4[[#This Row],[TIPO CONTRATO]]="PLAZO FIJO",BDD!S42*3%,0)),0) -> 0 | AM40: =BDD!S42*Tabla4[[#This Row],[% SIS]] -> 0 | AP40: =BDD!S42*Tabla4[[#This Row],[%MUTUAL]] -> 0
J41: 37 | K41: 37 | L41: =IF(BDD!J43=0," ",BDD!J43) ->  | O41: =IF(BDD!S43<_TOPEIMPONIBLE,BDD!S43*Tabla4[[#This Row],[%AFP]],_TOPEIMPONIBLE*Tabla4[[#This Row],[%AFP]]) -> 0 | R41: =IF(BDD!S43<_TOPEIMPONIBLE,BDD!S43*Tabla4[[#This Row],[%SALUD]],_TOPEIMPONIBLE*Tabla4[[#This Row],[%SALUD]]) -> 0 | U41: =BDD!S43*Tabla4[[#This Row],[%SEGURO]] -> 0 | W41: =IF(Tabla4[[#This Row],[TOTAL UF]]-Tabla4[[#This Row],[TOTAL SALUD]]<=0,0,Tabla4[[#This Row],[TOTAL UF]]-Tabla4[[#This Row],[TOTAL SALUD]]) -> 0 | Y41: =BDD!$N$4 -> 37838.55 | Z41: =Tabla4[[#This Row],[PACTO UF]]*Tabla4[[#This Row],[VALOR UF]] -> 0 | AA41: IMPUESTO UNICO | AB41: =BDD!S43-Tabla4[[#This Row],[TOTAL AFP]]-Tabla4[[#This Row],[TOTAL SALUD]]-Tabla4[[#This Row],[TOTAL SEGURO CESANTIA]]-Tabla4[[#This Row],[TOTAL ADICIONAL]] -> 0 | AC41: =IF(Tabla4[[#This Row],[PASO DESC. UNIC.]]<=$AT$5,0,IF(Tabla4[[#This Row],[PASO DESC. UNIC.]]<=$AT$6,Tabla4[[#This Row],[PASO DESC. UNIC.]]*$AU$6-$AV$6,IF(Tabla4[[#This Row],[PASO DESC. UNIC.]]<=$AT$7,Tabla4[[#This Row],[PASO DESC. UNIC.]]*$AU$7-$AV$7,IF(Tabla4[[#This Row],[PASO DESC. UNIC.]]<=$AT$8,Tabla4[[#This Row],[PASO DESC. UNIC.]]*$AU$8-$AV$8,IF(Tabla4[[#This Row],[PASO DESC. UNIC.]]<=$AT$9,Tabla4[[#This Row],[PASO DESC. UNIC.]]*$AU$9-$AV$9,IF(Tabla4[[#This Row],[PASO DESC. UNIC.]]<=$AT$10,Tabla4[[#This Row],[PASO DESC. UNIC.]]*$AU$10-$AV$10,IF(Tabla4[[#This Row],[PASO DESC. UNIC.]]>=$AS$11,Tabla4[[#This Row],[PASO DESC. UNIC.]]*$AU$11-$AV$11))))))) -> 0 | AD41: =Tabla4[[#This Row],[TOTAL AFP]]+Tabla4[[#This Row],[TOTAL SALUD]]+Tabla4[[#This Row],[TOTAL SEGURO CESANTIA]]+Tabla4[[#This Row],[TOTAL ADICIONAL]]+Tabla4[[#This Row],[VALOR IMP U.]]+Tabla4[[#This Row],[VALOR OTRO 2]]+Tabla4[[#This Row],[VALOR OTRO 1]] -> 0 | AF41: =IF($BP$8 = "SI",IF(Tabla4[[#This Row],[TIPO CONTRATO]]="Indefinido",BDD!S43*2.4%,IF(Tabla4[[#This Row],[TIPO CONTRATO]]="PLAZO FIJO",BDD!S43*3%,0)),0) -> 0 | AM41: =BDD!S43*Tabla4[[#This Row],[% SIS]] -> 0 | AP41: =BDD!S43*Tabla4[[#This Row],[%MUTUAL]] -> 0
J42: 38 | K42: 38 | L42: =IF(BDD!J44=0," ",BDD!J44) ->  | O42: =IF(BDD!S44<_TOPEIMPONIBLE,BDD!S44*Tabla4[[#This Row],[%AFP]],_TOPEIMPONIBLE*Tabla4[[#This Row],[%AFP]]) -> 0 | R42: =IF(BDD!S44<_TOPEIMPONIBLE,BDD!S44*Tabla4[[#This Row],[%SALUD]],_TOPEIMPONIBLE*Tabla4[[#This Row],[%SALUD]]) -> 0 | U42: =BDD!S44*Tabla4[[#This Row],[%SEGURO]] -> 0 | W42: =IF(Tabla4[[#This Row],[TOTAL UF]]-Tabla4[[#This Row],[TOTAL SALUD]]<=0,0,Tabla4[[#This Row],[TOTAL UF]]-Tabla4[[#This Row],[TOTAL SALUD]]) -> 0 | Y42: =BDD!$N$4 -> 37838.55 | Z42: =Tabla4[[#This Row],[PACTO UF]]*Tabla4[[#This Row],[VALOR UF]] -> 0 | AA42: IMPUESTO UNICO | AB42: =BDD!S44-Tabla4[[#This Row],[TOTAL AFP]]-Tabla4[[#This Row],[TOTAL SALUD]]-Tabla4[[#This Row],[TOTAL SEGURO CESANTIA]]-Tabla4[[#This Row],[TOTAL ADICIONAL]] -> 0 | AC42: =IF(Tabla4[[#This Row],[PASO DESC. UNIC.]]<=$AT$5,0,IF(Tabla4[[#This Row],[PASO DESC. UNIC.]]<=$AT$6,Tabla4[[#This Row],[PASO DESC. UNIC.]]*$AU$6-$AV$6,IF(Tabla4[[#This Row],[PASO DESC. UNIC.]]<=$AT$7,Tabla4[[#This Row],[PASO DESC. UNIC.]]*$AU$7-$AV$7,IF(Tabla4[[#This Row],[PASO DESC. UNIC.]]<=$AT$8,Tabla4[[#This Row],[PASO DESC. UNIC.]]*$AU$8-$AV$8,IF(Tabla4[[#This Row],[PASO DESC. UNIC.]]<=$AT$9,Tabla4[[#This Row],[PASO DESC. UNIC.]]*$AU$9-$AV$9,IF(Tabla4[[#This Row],[PASO DESC. UNIC.]]<=$AT$10,Tabla4[[#This Row],[PASO DESC. UNIC.]]*$AU$10-$AV$10,IF(Tabla4[[#This Row],[PASO DESC. UNIC.]]>=$AS$11,Tabla4[[#This Row],[PASO DESC. UNIC.]]*$AU$11-$AV$11))))))) -> 0 | AD42: =Tabla4[[#This Row],[TOTAL AFP]]+Tabla4[[#This Row],[TOTAL SALUD]]+Tabla4[[#This Row],[TOTAL SEGURO CESANTIA]]+Tabla4[[#This Row],[TOTAL ADICIONAL]]+Tabla4[[#This Row],[VALOR IMP U.]]+Tabla4[[#This Row],[VALOR OTRO 2]]+Tabla4[[#This Row],[VALOR OTRO 1]] -> 0 | AF42: =IF($BP$8 = "SI",IF(Tabla4[[#This Row],[TIPO CONTRATO]]="Indefinido",BDD!S44*2.4%,IF(Tabla4[[#This Row],[TIPO CONTRATO]]="PLAZO FIJO",BDD!S44*3%,0)),0) -> 0 | AM42: =BDD!S44*Tabla4[[#This Row],[% SIS]] -> 0 | AP42: =BDD!S44*Tabla4[[#This Row],[%MUTUAL]] -> 0
J43: 39 | K43: 39 | L43: =IF(BDD!J45=0," ",BDD!J45) ->  | O43: =IF(BDD!S45<_TOPEIMPONIBLE,BDD!S45*Tabla4[[#This Row],[%AFP]],_TOPEIMPONIBLE*Tabla4[[#This Row],[%AFP]]) -> 0 | R43: =IF(BDD!S45<_TOPEIMPONIBLE,BDD!S45*Tabla4[[#This Row],[%SALUD]],_TOPEIMPONIBLE*Tabla4[[#This Row],[%SALUD]]) -> 0 | U43: =BDD!S45*Tabla4[[#This Row],[%SEGURO]] -> 0 | W43: =IF(Tabla4[[#This Row],[TOTAL UF]]-Tabla4[[#This Row],[TOTAL SALUD]]<=0,0,Tabla4[[#This Row],[TOTAL UF]]-Tabla4[[#This Row],[TOTAL SALUD]]) -> 0 | Y43: =BDD!$N$4 -> 37838.55 | Z43: =Tabla4[[#This Row],[PACTO UF]]*Tabla4[[#This Row],[VALOR UF]] -> 0 | AA43: IMPUESTO UNICO | AB43: =BDD!S45-Tabla4[[#This Row],[TOTAL AFP]]-Tabla4[[#This Row],[TOTAL SALUD]]-Tabla4[[#This Row],[TOTAL SEGURO CESANTIA]]-Tabla4[[#This Row],[TOTAL ADICIONAL]] -> 0 | AC43: =IF(Tabla4[[#This Row],[PASO DESC. UNIC.]]<=$AT$5,0,IF(Tabla4[[#This Row],[PASO DESC. UNIC.]]<=$AT$6,Tabla4[[#This Row],[PASO DESC. UNIC.]]*$AU$6-$AV$6,IF(Tabla4[[#This Row],[PASO DESC. UNIC.]]<=$AT$7,Tabla4[[#This Row],[PASO DESC. UNIC.]]*$AU$7-$AV$7,IF(Tabla4[[#This Row],[PASO DESC. UNIC.]]<=$AT$8,Tabla4[[#This Row],[PASO DESC. UNIC.]]*$AU$8-$AV$8,IF(Tabla4[[#This Row],[PASO DESC. UNIC.]]<=$AT$9,Tabla4[[#This Row],[PASO DESC. UNIC.]]*$AU$9-$AV$9,IF(Tabla4[[#This Row],[PASO DESC. UNIC.]]<=$AT$10,Tabla4[[#This Row],[PASO DESC. UNIC.]]*$AU$10-$AV$10,IF(Tabla4[[#This Row],[PASO DESC. UNIC.]]>=$AS$11,Tabla4[[#This Row],[PASO DESC. UNIC.]]*$AU$11-$AV$11))))))) -> 0 | AD43: =Tabla4[[#This Row],[TOTAL AFP]]+Tabla4[[#This Row],[TOTAL SALUD]]+Tabla4[[#This Row],[TOTAL SEGURO CESANTIA]]+Tabla4[[#This Row],[TOTAL ADICIONAL]]+Tabla4[[#This Row],[VALOR IMP U.]]+Tabla4[[#This Row],[VALOR OTRO 2]]+Tabla4[[#This Row],[VALOR OTRO 1]] -> 0 | AF43: =IF($BP$8 = "SI",IF(Tabla4[[#This Row],[TIPO CONTRATO]]="Indefinido",BDD!S45*2.4%,IF(Tabla4[[#This Row],[TIPO CONTRATO]]="PLAZO FIJO",BDD!S45*3%,0)),0) -> 0 | AM43: =BDD!S45*Tabla4[[#This Row],[% SIS]] -> 0 | AP43: =BDD!S45*Tabla4[[#This Row],[%MUTUAL]] -> 0
J44: 40 | K44: 40 | L44: =IF(BDD!J46=0," ",BDD!J46) ->  | O44: =IF(BDD!S46<_TOPEIMPONIBLE,BDD!S46*Tabla4[[#This Row],[%AFP]],_TOPEIMPONIBLE*Tabla4[[#This Row],[%AFP]]) -> 0 | R44: =IF(BDD!S46<_TOPEIMPONIBLE,BDD!S46*Tabla4[[#This Row],[%SALUD]],_TOPEIMPONIBLE*Tabla4[[#This Row],[%SALUD]]) -> 0 | U44: =BDD!S46*Tabla4[[#This Row],[%SEGURO]] -> 0 | W44: =IF(Tabla4[[#This Row],[TOTAL UF]]-Tabla4[[#This Row],[TOTAL SALUD]]<=0,0,Tabla4[[#This Row],[TOTAL UF]]-Tabla4[[#This Row],[TOTAL SALUD]]) -> 0 | Y44: =BDD!$N$4 -> 37838.55 | Z44: =Tabla4[[#This Row],[PACTO UF]]*Tabla4[[#This Row],[VALOR UF]] -> 0 | AA44: IMPUESTO UNICO | AB44: =BDD!S46-Tabla4[[#This Row],[TOTAL AFP]]-Tabla4[[#This Row],[TOTAL SALUD]]-Tabla4[[#This Row],[TOTAL SEGURO CESANTIA]]-Tabla4[[#This Row],[TOTAL ADICIONAL]] -> 0 | AC44: =IF(Tabla4[[#This Row],[PASO DESC. UNIC.]]<=$AT$5,0,IF(Tabla4[[#This Row],[PASO DESC. UNIC.]]<=$AT$6,Tabla4[[#This Row],[PASO DESC. UNIC.]]*$AU$6-$AV$6,IF(Tabla4[[#This Row],[PASO DESC. UNIC.]]<=$AT$7,Tabla4[[#This Row],[PASO DESC. UNIC.]]*$AU$7-$AV$7,IF(Tabla4[[#This Row],[PASO DESC. UNIC.]]<=$AT$8,Tabla4[[#This Row],[PASO DESC. UNIC.]]*$AU$8-$AV$8,IF(Tabla4[[#This Row],[PASO DESC. UNIC.]]<=$AT$9,Tabla4[[#This Row],[PASO DESC. UNIC.]]*$AU$9-$AV$9,IF(Tabla4[[#This Row],[PASO DESC. UNIC.]]<=$AT$10,Tabla4[[#This Row],[PASO DESC. UNIC.]]*$AU$10-$AV$10,IF(Tabla4[[#This Row],[PASO DESC. UNIC.]]>=$AS$11,Tabla4[[#This Row],[PASO DESC. UNIC.]]*$AU$11-$AV$11))))))) -> 0 | AD44: =Tabla4[[#This Row],[TOTAL AFP]]+Tabla4[[#This Row],[TOTAL SALUD]]+Tabla4[[#This Row],[TOTAL SEGURO CESANTIA]]+Tabla4[[#This Row],[TOTAL ADICIONAL]]+Tabla4[[#This Row],[VALOR IMP U.]]+Tabla4[[#This Row],[VALOR OTRO 2]]+Tabla4[[#This Row],[VALOR OTRO 1]] -> 0 | AF44: =IF($BP$8 = "SI",IF(Tabla4[[#This Row],[TIPO CONTRATO]]="Indefinido",BDD!S46*2.4%,IF(Tabla4[[#This Row],[TIPO CONTRATO]]="PLAZO FIJO",BDD!S46*3%,0)),0) -> 0 | AM44: =BDD!S46*Tabla4[[#This Row],[% SIS]] -> 0 | AP44: =BDD!S46*Tabla4[[#This Row],[%MUTUAL]] -> 0
J45: 41 | K45: 41 | L45: =IF(BDD!J47=0," ",BDD!J47) ->  | O45: =IF(BDD!S47<_TOPEIMPONIBLE,BDD!S47*Tabla4[[#This Row],[%AFP]],_TOPEIMPONIBLE*Tabla4[[#This Row],[%AFP]]) -> 0 | R45: =IF(BDD!S47<_TOPEIMPONIBLE,BDD!S47*Tabla4[[#This Row],[%SALUD]],_TOPEIMPONIBLE*Tabla4[[#This Row],[%SALUD]]) -> 0 | U45: =BDD!S47*Tabla4[[#This Row],[%SEGURO]] -> 0 | W45: =IF(Tabla4[[#This Row],[TOTAL UF]]-Tabla4[[#This Row],[TOTAL SALUD]]<=0,0,Tabla4[[#This Row],[TOTAL UF]]-Tabla4[[#This Row],[TOTAL SALUD]]) -> 0 | Y45: =BDD!$N$4 -> 37838.55 | Z45: =Tabla4[[#This Row],[PACTO UF]]*Tabla4[[#This Row],[VALOR UF]] -> 0 | AA45: IMPUESTO UNICO | AB45: =BDD!S47-Tabla4[[#This Row],[TOTAL AFP]]-Tabla4[[#This Row],[TOTAL SALUD]]-Tabla4[[#This Row],[TOTAL SEGURO CESANTIA]]-Tabla4[[#This Row],[TOTAL ADICIONAL]] -> 0 | AC45: =IF(Tabla4[[#This Row],[PASO DESC. UNIC.]]<=$AT$5,0,IF(Tabla4[[#This Row],[PASO DESC. UNIC.]]<=$AT$6,Tabla4[[#This Row],[PASO DESC. UNIC.]]*$AU$6-$AV$6,IF(Tabla4[[#This Row],[PASO DESC. UNIC.]]<=$AT$7,Tabla4[[#This Row],[PASO DESC. UNIC.]]*$AU$7-$AV$7,IF(Tabla4[[#This Row],[PASO DESC. UNIC.]]<=$AT$8,Tabla4[[#This Row],[PASO DESC. UNIC.]]*$AU$8-$AV$8,IF(Tabla4[[#This Row],[PASO DESC. UNIC.]]<=$AT$9,Tabla4[[#This Row],[PASO DESC. UNIC.]]*$AU$9-$AV$9,IF(Tabla4[[#This Row],[PASO DESC. UNIC.]]<=$AT$10,Tabla4[[#This Row],[PASO DESC. UNIC.]]*$AU$10-$AV$10,IF(Tabla4[[#This Row],[PASO DESC. UNIC.]]>=$AS$11,Tabla4[[#This Row],[PASO DESC. UNIC.]]*$AU$11-$AV$11))))))) -> 0 | AD45: =Tabla4[[#This Row],[TOTAL AFP]]+Tabla4[[#This Row],[TOTAL SALUD]]+Tabla4[[#This Row],[TOTAL SEGURO CESANTIA]]+Tabla4[[#This Row],[TOTAL ADICIONAL]]+Tabla4[[#This Row],[VALOR IMP U.]]+Tabla4[[#This Row],[VALOR OTRO 2]]+Tabla4[[#This Row],[VALOR OTRO 1]] -> 0 | AF45: =IF($BP$8 = "SI",IF(Tabla4[[#This Row],[TIPO CONTRATO]]="Indefinido",BDD!S47*2.4%,IF(Tabla4[[#This Row],[TIPO CONTRATO]]="PLAZO FIJO",BDD!S47*3%,0)),0) -> 0 | AM45: =BDD!S47*Tabla4[[#This Row],[% SIS]] -> 0 | AP45: =BDD!S47*Tabla4[[#This Row],[%MUTUAL]] -> 0
J46: 42 | K46: 42 | L46: =IF(BDD!J48=0," ",BDD!J48) ->  | O46: =IF(BDD!S48<_TOPEIMPONIBLE,BDD!S48*Tabla4[[#This Row],[%AFP]],_TOPEIMPONIBLE*Tabla4[[#This Row],[%AFP]]) -> 0 | R46: =IF(BDD!S48<_TOPEIMPONIBLE,BDD!S48*Tabla4[[#This Row],[%SALUD]],_TOPEIMPONIBLE*Tabla4[[#This Row],[%SALUD]]) -> 0 | U46: =BDD!S48*Tabla4[[#This Row],[%SEGURO]] -> 0 | W46: =IF(Tabla4[[#This Row],[TOTAL UF]]-Tabla4[[#This Row],[TOTAL SALUD]]<=0,0,Tabla4[[#This Row],[TOTAL UF]]-Tabla4[[#This Row],[TOTAL SALUD]]) -> 0 | Y46: =BDD!$N$4 -> 37838.55 | Z46: =Tabla4[[#This Row],[PACTO UF]]*Tabla4[[#This Row],[VALOR UF]] -> 0 | AA46: IMPUESTO UNICO | AB46: =BDD!S48-Tabla4[[#This Row],[TOTAL AFP]]-Tabla4[[#This Row],[TOTAL SALUD]]-Tabla4[[#This Row],[TOTAL SEGURO CESANTIA]]-Tabla4[[#This Row],[TOTAL ADICIONAL]] -> 0 | AC46: =IF(Tabla4[[#This Row],[PASO DESC. UNIC.]]<=$AT$5,0,IF(Tabla4[[#This Row],[PASO DESC. UNIC.]]<=$AT$6,Tabla4[[#This Row],[PASO DESC. UNIC.]]*$AU$6-$AV$6,IF(Tabla4[[#This Row],[PASO DESC. UNIC.]]<=$AT$7,Tabla4[[#This Row],[PASO DESC. UNIC.]]*$AU$7-$AV$7,IF(Tabla4[[#This Row],[PASO DESC. UNIC.]]<=$AT$8,Tabla4[[#This Row],[PASO DESC. UNIC.]]*$AU$8-$AV$8,IF(Tabla4[[#This Row],[PASO DESC. UNIC.]]<=$AT$9,Tabla4[[#This Row],[PASO DESC. UNIC.]]*$AU$9-$AV$9,IF(Tabla4[[#This Row],[PASO DESC. UNIC.]]<=$AT$10,Tabla4[[#This Row],[PASO DESC. UNIC.]]*$AU$10-$AV$10,IF(Tabla4[[#This Row],[PASO DESC. UNIC.]]>=$AS$11,Tabla4[[#This Row],[PASO DESC. UNIC.]]*$AU$11-$AV$11))))))) -> 0 | AD46: =Tabla4[[#This Row],[TOTAL AFP]]+Tabla4[[#This Row],[TOTAL SALUD]]+Tabla4[[#This Row],[TOTAL SEGURO CESANTIA]]+Tabla4[[#This Row],[TOTAL ADICIONAL]]+Tabla4[[#This Row],[VALOR IMP U.]]+Tabla4[[#This Row],[VALOR OTRO 2]]+Tabla4[[#This Row],[VALOR OTRO 1]] -> 0 | AF46: =IF($BP$8 = "SI",IF(Tabla4[[#This Row],[TIPO CONTRATO]]="Indefinido",BDD!S48*2.4%,IF(Tabla4[[#This Row],[TIPO CONTRATO]]="PLAZO FIJO",BDD!S48*3%,0)),0) -> 0 | AM46: =BDD!S48*Tabla4[[#This Row],[% SIS]] -> 0 | AP46: =BDD!S48*Tabla4[[#This Row],[%MUTUAL]] -> 0
J47: 43 | K47: 43 | L47: =IF(BDD!J49=0," ",BDD!J49) ->  | O47: =IF(BDD!S49<_TOPEIMPONIBLE,BDD!S49*Tabla4[[#This Row],[%AFP]],_TOPEIMPONIBLE*Tabla4[[#This Row],[%AFP]]) -> 0 | R47: =IF(BDD!S49<_TOPEIMPONIBLE,BDD!S49*Tabla4[[#This Row],[%SALUD]],_TOPEIMPONIBLE*Tabla4[[#This Row],[%SALUD]]) -> 0 | U47: =BDD!S49*Tabla4[[#This Row],[%SEGURO]] -> 0 | W47: =IF(Tabla4[[#This Row],[TOTAL UF]]-Tabla4[[#This Row],[TOTAL SALUD]]<=0,0,Tabla4[[#This Row],[TOTAL UF]]-Tabla4[[#This Row],[TOTAL SALUD]]) -> 0 | Y47: =BDD!$N$4 -> 37838.55 | Z47: =Tabla4[[#This Row],[PACTO UF]]*Tabla4[[#This Row],[VALOR UF]] -> 0 | AA47: IMPUESTO UNICO | AB47: =BDD!S49-Tabla4[[#This Row],[TOTAL AFP]]-Tabla4[[#This Row],[TOTAL SALUD]]-Tabla4[[#This Row],[TOTAL SEGURO CESANTIA]]-Tabla4[[#This Row],[TOTAL ADICIONAL]] -> 0 | AC47: =IF(Tabla4[[#This Row],[PASO DESC. UNIC.]]<=$AT$5,0,IF(Tabla4[[#This Row],[PASO DESC. UNIC.]]<=$AT$6,Tabla4[[#This Row],[PASO DESC. UNIC.]]*$AU$6-$AV$6,IF(Tabla4[[#This Row],[PASO DESC. UNIC.]]<=$AT$7,Tabla4[[#This Row],[PASO DESC. UNIC.]]*$AU$7-$AV$7,IF(Tabla4[[#This Row],[PASO DESC. UNIC.]]<=$AT$8,Tabla4[[#This Row],[PASO DESC. UNIC.]]*$AU$8-$AV$8,IF(Tabla4[[#This Row],[PASO DESC. UNIC.]]<=$AT$9,Tabla4[[#This Row],[PASO DESC. UNIC.]]*$AU$9-$AV$9,IF(Tabla4[[#This Row],[PASO DESC. UNIC.]]<=$AT$10,Tabla4[[#This Row],[PASO DESC. UNIC.]]*$AU$10-$AV$10,IF(Tabla4[[#This Row],[PASO DESC. UNIC.]]>=$AS$11,Tabla4[[#This Row],[PASO DESC. UNIC.]]*$AU$11-$AV$11))))))) -> 0 | AD47: =Tabla4[[#This Row],[TOTAL AFP]]+Tabla4[[#This Row],[TOTAL SALUD]]+Tabla4[[#This Row],[TOTAL SEGURO CESANTIA]]+Tabla4[[#This Row],[TOTAL ADICIONAL]]+Tabla4[[#This Row],[VALOR IMP U.]]+Tabla4[[#This Row],[VALOR OTRO 2]]+Tabla4[[#This Row],[VALOR OTRO 1]] -> 0 | AF47: =IF($BP$8 = "SI",IF(Tabla4[[#This Row],[TIPO CONTRATO]]="Indefinido",BDD!S49*2.4%,IF(Tabla4[[#This Row],[TIPO CONTRATO]]="PLAZO FIJO",BDD!S49*3%,0)),0) -> 0 | AM47: =BDD!S49*Tabla4[[#This Row],[% SIS]] -> 0 | AP47: =BDD!S49*Tabla4[[#This Row],[%MUTUAL]] -> 0
J48: 44 | K48: 44 | L48: =IF(BDD!J50=0," ",BDD!J50) ->  | O48: =IF(BDD!S50<_TOPEIMPONIBLE,BDD!S50*Tabla4[[#This Row],[%AFP]],_TOPEIMPONIBLE*Tabla4[[#This Row],[%AFP]]) -> 0 | R48: =IF(BDD!S50<_TOPEIMPONIBLE,BDD!S50*Tabla4[[#This Row],[%SALUD]],_TOPEIMPONIBLE*Tabla4[[#This Row],[%SALUD]]) -> 0 | U48: =BDD!S50*Tabla4[[#This Row],[%SEGURO]] -> 0 | W48: =IF(Tabla4[[#This Row],[TOTAL UF]]-Tabla4[[#This Row],[TOTAL SALUD]]<=0,0,Tabla4[[#This Row],[TOTAL UF]]-Tabla4[[#This Row],[TOTAL SALUD]]) -> 0 | Y48: =BDD!$N$4 -> 37838.55 | Z48: =Tabla4[[#This Row],[PACTO UF]]*Tabla4[[#This Row],[VALOR UF]] -> 0 | AA48: IMPUESTO UNICO | AB48: =BDD!S50-Tabla4[[#This Row],[TOTAL AFP]]-Tabla4[[#This Row],[TOTAL SALUD]]-Tabla4[[#This Row],[TOTAL SEGURO CESANTIA]]-Tabla4[[#This Row],[TOTAL ADICIONAL]] -> 0 | AC48: =IF(Tabla4[[#This Row],[PASO DESC. UNIC.]]<=$AT$5,0,IF(Tabla4[[#This Row],[PASO DESC. UNIC.]]<=$AT$6,Tabla4[[#This Row],[PASO DESC. UNIC.]]*$AU$6-$AV$6,IF(Tabla4[[#This Row],[PASO DESC. UNIC.]]<=$AT$7,Tabla4[[#This Row],[PASO DESC. UNIC.]]*$AU$7-$AV$7,IF(Tabla4[[#This Row],[PASO DESC. UNIC.]]<=$AT$8,Tabla4[[#This Row],[PASO DESC. UNIC.]]*$AU$8-$AV$8,IF(Tabla4[[#This Row],[PASO DESC. UNIC.]]<=$AT$9,Tabla4[[#This Row],[PASO DESC. UNIC.]]*$AU$9-$AV$9,IF(Tabla4[[#This Row],[PASO DESC. UNIC.]]<=$AT$10,Tabla4[[#This Row],[PASO DESC. UNIC.]]*$AU$10-$AV$10,IF(Tabla4[[#This Row],[PASO DESC. UNIC.]]>=$AS$11,Tabla4[[#This Row],[PASO DESC. UNIC.]]*$AU$11-$AV$11))))))) -> 0 | AD48: =Tabla4[[#This Row],[TOTAL AFP]]+Tabla4[[#This Row],[TOTAL SALUD]]+Tabla4[[#This Row],[TOTAL SEGURO CESANTIA]]+Tabla4[[#This Row],[TOTAL ADICIONAL]]+Tabla4[[#This Row],[VALOR IMP U.]]+Tabla4[[#This Row],[VALOR OTRO 2]]+Tabla4[[#This Row],[VALOR OTRO 1]] -> 0 | AF48: =IF($BP$8 = "SI",IF(Tabla4[[#This Row],[TIPO CONTRATO]]="Indefinido",BDD!S50*2.4%,IF(Tabla4[[#This Row],[TIPO CONTRATO]]="PLAZO FIJO",BDD!S50*3%,0)),0) -> 0 | AM48: =BDD!S50*Tabla4[[#This Row],[% SIS]] -> 0 | AP48: =BDD!S50*Tabla4[[#This Row],[%MUTUAL]] -> 0
J49: 45 | K49: 45 | L49: =IF(BDD!J51=0," ",BDD!J51) ->  | O49: =IF(BDD!S51<_TOPEIMPONIBLE,BDD!S51*Tabla4[[#This Row],[%AFP]],_TOPEIMPONIBLE*Tabla4[[#This Row],[%AFP]]) -> 0 | R49: =IF(BDD!S51<_TOPEIMPONIBLE,BDD!S51*Tabla4[[#This Row],[%SALUD]],_TOPEIMPONIBLE*Tabla4[[#This Row],[%SALUD]]) -> 0 | U49: =BDD!S51*Tabla4[[#This Row],[%SEGURO]] -> 0 | W49: =IF(Tabla4[[#This Row],[TOTAL UF]]-Tabla4[[#This Row],[TOTAL SALUD]]<=0,0,Tabla4[[#This Row],[TOTAL UF]]-Tabla4[[#This Row],[TOTAL SALUD]]) -> 0 | Y49: =BDD!$N$4 -> 37838.55 | Z49: =Tabla4[[#This Row],[PACTO UF]]*Tabla4[[#This Row],[VALOR UF]] -> 0 | AA49: IMPUESTO UNICO | AB49: =BDD!S51-Tabla4[[#This Row],[TOTAL AFP]]-Tabla4[[#This Row],[TOTAL SALUD]]-Tabla4[[#This Row],[TOTAL SEGURO CESANTIA]]-Tabla4[[#This Row],[TOTAL ADICIONAL]] -> 0 | AC49: =IF(Tabla4[[#This Row],[PASO DESC. UNIC.]]<=$AT$5,0,IF(Tabla4[[#This Row],[PASO DESC. UNIC.]]<=$AT$6,Tabla4[[#This Row],[PASO DESC. UNIC.]]*$AU$6-$AV$6,IF(Tabla4[[#This Row],[PASO DESC. UNIC.]]<=$AT$7,Tabla4[[#This Row],[PASO DESC. UNIC.]]*$AU$7-$AV$7,IF(Tabla4[[#This Row],[PASO DESC. UNIC.]]<=$AT$8,Tabla4[[#This Row],[PASO DESC. UNIC.]]*$AU$8-$AV$8,IF(Tabla4[[#This Row],[PASO DESC. UNIC.]]<=$AT$9,Tabla4[[#This Row],[PASO DESC. UNIC.]]*$AU$9-$AV$9,IF(Tabla4[[#This Row],[PASO DESC. UNIC.]]<=$AT$10,Tabla4[[#This Row],[PASO DESC. UNIC.]]*$AU$10-$AV$10,IF(Tabla4[[#This Row],[PASO DESC. UNIC.]]>=$AS$11,Tabla4[[#This Row],[PASO DESC. UNIC.]]*$AU$11-$AV$11))))))) -> 0 | AD49: =Tabla4[[#This Row],[TOTAL AFP]]+Tabla4[[#This Row],[TOTAL SALUD]]+Tabla4[[#This Row],[TOTAL SEGURO CESANTIA]]+Tabla4[[#This Row],[TOTAL ADICIONAL]]+Tabla4[[#This Row],[VALOR IMP U.]]+Tabla4[[#This Row],[VALOR OTRO 2]]+Tabla4[[#This Row],[VALOR OTRO 1]] -> 0 | AF49: =IF($BP$8 = "SI",IF(Tabla4[[#This Row],[TIPO CONTRATO]]="Indefinido",BDD!S51*2.4%,IF(Tabla4[[#This Row],[TIPO CONTRATO]]="PLAZO FIJO",BDD!S51*3%,0)),0) -> 0 | AM49: =BDD!S51*Tabla4[[#This Row],[% SIS]] -> 0 | AP49: =BDD!S51*Tabla4[[#This Row],[%MUTUAL]] -> 0
J50: 46 | K50: 46 | L50: =IF(BDD!J52=0," ",BDD!J52) ->  | O50: =IF(BDD!S52<_TOPEIMPONIBLE,BDD!S52*Tabla4[[#This Row],[%AFP]],_TOPEIMPONIBLE*Tabla4[[#This Row],[%AFP]]) -> 0 | R50: =IF(BDD!S52<_TOPEIMPONIBLE,BDD!S52*Tabla4[[#This Row],[%SALUD]],_TOPEIMPONIBLE*Tabla4[[#This Row],[%SALUD]]) -> 0 | U50: =BDD!S52*Tabla4[[#This Row],[%SEGURO]] -> 0 | W50: =IF(Tabla4[[#This Row],[TOTAL UF]]-Tabla4[[#This Row],[TOTAL SALUD]]<=0,0,Tabla4[[#This Row],[TOTAL UF]]-Tabla4[[#This Row],[TOTAL SALUD]]) -> 0 | Y50: =BDD!$N$4 -> 37838.55 | Z50: =Tabla4[[#This Row],[PACTO UF]]*Tabla4[[#This Row],[VALOR UF]] -> 0 | AA50: IMPUESTO UNICO | AB50: =BDD!S52-Tabla4[[#This Row],[TOTAL AFP]]-Tabla4[[#This Row],[TOTAL SALUD]]-Tabla4[[#This Row],[TOTAL SEGURO CESANTIA]]-Tabla4[[#This Row],[TOTAL ADICIONAL]] -> 0 | AC50: =IF(Tabla4[[#This Row],[PASO DESC. UNIC.]]<=$AT$5,0,IF(Tabla4[[#This Row],[PASO DESC. UNIC.]]<=$AT$6,Tabla4[[#This Row],[PASO DESC. UNIC.]]*$AU$6-$AV$6,IF(Tabla4[[#This Row],[PASO DESC. UNIC.]]<=$AT$7,Tabla4[[#This Row],[PASO DESC. UNIC.]]*$AU$7-$AV$7,IF(Tabla4[[#This Row],[PASO DESC. UNIC.]]<=$AT$8,Tabla4[[#This Row],[PASO DESC. UNIC.]]*$AU$8-$AV$8,IF(Tabla4[[#This Row],[PASO DESC. UNIC.]]<=$AT$9,Tabla4[[#This Row],[PASO DESC. UNIC.]]*$AU$9-$AV$9,IF(Tabla4[[#This Row],[PASO DESC. UNIC.]]<=$AT$10,Tabla4[[#This Row],[PASO DESC. UNIC.]]*$AU$10-$AV$10,IF(Tabla4[[#This Row],[PASO DESC. UNIC.]]>=$AS$11,Tabla4[[#This Row],[PASO DESC. UNIC.]]*$AU$11-$AV$11))))))) -> 0 | AD50: =Tabla4[[#This Row],[TOTAL AFP]]+Tabla4[[#This Row],[TOTAL SALUD]]+Tabla4[[#This Row],[TOTAL SEGURO CESANTIA]]+Tabla4[[#This Row],[TOTAL ADICIONAL]]+Tabla4[[#This Row],[VALOR IMP U.]]+Tabla4[[#This Row],[VALOR OTRO 2]]+Tabla4[[#This Row],[VALOR OTRO 1]] -> 0 | AF50: =IF($BP$8 = "SI",IF(Tabla4[[#This Row],[TIPO CONTRATO]]="Indefinido",BDD!S52*2.4%,IF(Tabla4[[#This Row],[TIPO CONTRATO]]="PLAZO FIJO",BDD!S52*3%,0)),0) -> 0 | AM50: =BDD!S52*Tabla4[[#This Row],[% SIS]] -> 0 | AP50: =BDD!S52*Tabla4[[#This Row],[%MUTUAL]] -> 0
J51: 47 | K51: 47 | L51: =IF(BDD!J53=0," ",BDD!J53) ->  | O51: =IF(BDD!S53<_TOPEIMPONIBLE,BDD!S53*Tabla4[[#This Row],[%AFP]],_TOPEIMPONIBLE*Tabla4[[#This Row],[%AFP]]) -> 0 | R51: =IF(BDD!S53<_TOPEIMPONIBLE,BDD!S53*Tabla4[[#This Row],[%SALUD]],_TOPEIMPONIBLE*Tabla4[[#This Row],[%SALUD]]) -> 0 | U51: =BDD!S53*Tabla4[[#This Row],[%SEGURO]] -> 0 | W51: =IF(Tabla4[[#This Row],[TOTAL UF]]-Tabla4[[#This Row],[TOTAL SALUD]]<=0,0,Tabla4[[#This Row],[TOTAL UF]]-Tabla4[[#This Row],[TOTAL SALUD]]) -> 0 | Y51: =BDD!$N$4 -> 37838.55 | Z51: =Tabla4[[#This Row],[PACTO UF]]*Tabla4[[#This Row],[VALOR UF]] -> 0 | AA51: IMPUESTO UNICO | AB51: =BDD!S53-Tabla4[[#This Row],[TOTAL AFP]]-Tabla4[[#This Row],[TOTAL SALUD]]-Tabla4[[#This Row],[TOTAL SEGURO CESANTIA]]-Tabla4[[#This Row],[TOTAL ADICIONAL]] -> 0 | AC51: =IF(Tabla4[[#This Row],[PASO DESC. UNIC.]]<=$AT$5,0,IF(Tabla4[[#This Row],[PASO DESC. UNIC.]]<=$AT$6,Tabla4[[#This Row],[PASO DESC. UNIC.]]*$AU$6-$AV$6,IF(Tabla4[[#This Row],[PASO DESC. UNIC.]]<=$AT$7,Tabla4[[#This Row],[PASO DESC. UNIC.]]*$AU$7-$AV$7,IF(Tabla4[[#This Row],[PASO DESC. UNIC.]]<=$AT$8,Tabla4[[#This Row],[PASO DESC. UNIC.]]*$AU$8-$AV$8,IF(Tabla4[[#This Row],[PASO DESC. UNIC.]]<=$AT$9,Tabla4[[#This Row],[PASO DESC. UNIC.]]*$AU$9-$AV$9,IF(Tabla4[[#This Row],[PASO DESC. UNIC.]]<=$AT$10,Tabla4[[#This Row],[PASO DESC. UNIC.]]*$AU$10-$AV$10,IF(Tabla4[[#This Row],[PASO DESC. UNIC.]]>=$AS$11,Tabla4[[#This Row],[PASO DESC. UNIC.]]*$AU$11-$AV$11))))))) -> 0 | AD51: =Tabla4[[#This Row],[TOTAL AFP]]+Tabla4[[#This Row],[TOTAL SALUD]]+Tabla4[[#This Row],[TOTAL SEGURO CESANTIA]]+Tabla4[[#This Row],[TOTAL ADICIONAL]]+Tabla4[[#This Row],[VALOR IMP U.]]+Tabla4[[#This Row],[VALOR OTRO 2]]+Tabla4[[#This Row],[VALOR OTRO 1]] -> 0 | AF51: =IF($BP$8 = "SI",IF(Tabla4[[#This Row],[TIPO CONTRATO]]="Indefinido",BDD!S53*2.4%,IF(Tabla4[[#This Row],[TIPO CONTRATO]]="PLAZO FIJO",BDD!S53*3%,0)),0) -> 0 | AM51: =BDD!S53*Tabla4[[#This Row],[% SIS]] -> 0 | AP51: =BDD!S53*Tabla4[[#This Row],[%MUTUAL]] -> 0
J52: 48 | K52: 48 | L52: =IF(BDD!J54=0," ",BDD!J54) ->  | O52: =IF(BDD!S54<_TOPEIMPONIBLE,BDD!S54*Tabla4[[#This Row],[%AFP]],_TOPEIMPONIBLE*Tabla4[[#This Row],[%AFP]]) -> 0 | R52: =IF(BDD!S54<_TOPEIMPONIBLE,BDD!S54*Tabla4[[#This Row],[%SALUD]],_TOPEIMPONIBLE*Tabla4[[#This Row],[%SALUD]]) -> 0 | U52: =BDD!S54*Tabla4[[#This Row],[%SEGURO]] -> 0 | W52: =IF(Tabla4[[#This Row],[TOTAL UF]]-Tabla4[[#This Row],[TOTAL SALUD]]<=0,0,Tabla4[[#This Row],[TOTAL UF]]-Tabla4[[#This Row],[TOTAL SALUD]]) -> 0 | Y52: =BDD!$N$4 -> 37838.55 | Z52: =Tabla4[[#This Row],[PACTO UF]]*Tabla4[[#This Row],[VALOR UF]] -> 0 | AA52: IMPUESTO UNICO | AB52: =BDD!S54-Tabla4[[#This Row],[TOTAL AFP]]-Tabla4[[#This Row],[TOTAL SALUD]]-Tabla4[[#This Row],[TOTAL SEGURO CESANTIA]]-Tabla4[[#This Row],[TOTAL ADICIONAL]] -> 0 | AC52: =IF(Tabla4[[#This Row],[PASO DESC. UNIC.]]<=$AT$5,0,IF(Tabla4[[#This Row],[PASO DESC. UNIC.]]<=$AT$6,Tabla4[[#This Row],[PASO DESC. UNIC.]]*$AU$6-$AV$6,IF(Tabla4[[#This Row],[PASO DESC. UNIC.]]<=$AT$7,Tabla4[[#This Row],[PASO DESC. UNIC.]]*$AU$7-$AV$7,IF(Tabla4[[#This Row],[PASO DESC. UNIC.]]<=$AT$8,Tabla4[[#This Row],[PASO DESC. UNIC.]]*$AU$8-$AV$8,IF(Tabla4[[#This Row],[PASO DESC. UNIC.]]<=$AT$9,Tabla4[[#This Row],[PASO DESC. UNIC.]]*$AU$9-$AV$9,IF(Tabla4[[#This Row],[PASO DESC. UNIC.]]<=$AT$10,Tabla4[[#This Row],[PASO DESC. UNIC.]]*$AU$10-$AV$10,IF(Tabla4[[#This Row],[PASO DESC. UNIC.]]>=$AS$11,Tabla4[[#This Row],[PASO DESC. UNIC.]]*$AU$11-$AV$11))))))) -> 0 | AD52: =Tabla4[[#This Row],[TOTAL AFP]]+Tabla4[[#This Row],[TOTAL SALUD]]+Tabla4[[#This Row],[TOTAL SEGURO CESANTIA]]+Tabla4[[#This Row],[TOTAL ADICIONAL]]+Tabla4[[#This Row],[VALOR IMP U.]]+Tabla4[[#This Row],[VALOR OTRO 2]]+Tabla4[[#This Row],[VALOR OTRO 1]] -> 0 | AF52: =IF($BP$8 = "SI",IF(Tabla4[[#This Row],[TIPO CONTRATO]]="Indefinido",BDD!S54*2.4%,IF(Tabla4[[#This Row],[TIPO CONTRATO]]="PLAZO FIJO",BDD!S54*3%,0)),0) -> 0 | AM52: =BDD!S54*Tabla4[[#This Row],[% SIS]] -> 0 | AP52: =BDD!S54*Tabla4[[#This Row],[%MUTUAL]] -> 0
J53: 49 | K53: 49 | L53: =IF(BDD!J55=0," ",BDD!J55) ->  | O53: =IF(BDD!S55<_TOPEIMPONIBLE,BDD!S55*Tabla4[[#This Row],[%AFP]],_TOPEIMPONIBLE*Tabla4[[#This Row],[%AFP]]) -> 0 | R53: =IF(BDD!S55<_TOPEIMPONIBLE,BDD!S55*Tabla4[[#This Row],[%SALUD]],_TOPEIMPONIBLE*Tabla4[[#This Row],[%SALUD]]) -> 0 | U53: =BDD!S55*Tabla4[[#This Row],[%SEGURO]] -> 0 | W53: =IF(Tabla4[[#This Row],[TOTAL UF]]-Tabla4[[#This Row],[TOTAL SALUD]]<=0,0,Tabla4[[#This Row],[TOTAL UF]]-Tabla4[[#This Row],[TOTAL SALUD]]) -> 0 | Y53: =BDD!$N$4 -> 37838.55 | Z53: =Tabla4[[#This Row],[PACTO UF]]*Tabla4[[#This Row],[VALOR UF]] -> 0 | AA53: IMPUESTO UNICO | AB53: =BDD!S55-Tabla4[[#This Row],[TOTAL AFP]]-Tabla4[[#This Row],[TOTAL SALUD]]-Tabla4[[#This Row],[TOTAL SEGURO CESANTIA]]-Tabla4[[#This Row],[TOTAL ADICIONAL]] -> 0 | AC53: =IF(Tabla4[[#This Row],[PASO DESC. UNIC.]]<=$AT$5,0,IF(Tabla4[[#This Row],[PASO DESC. UNIC.]]<=$AT$6,Tabla4[[#This Row],[PASO DESC. UNIC.]]*$AU$6-$AV$6,IF(Tabla4[[#This Row],[PASO DESC. UNIC.]]<=$AT$7,Tabla4[[#This Row],[PASO DESC. UNIC.]]*$AU$7-$AV$7,IF(Tabla4[[#This Row],[PASO DESC. UNIC.]]<=$AT$8,Tabla4[[#This Row],[PASO DESC. UNIC.]]*$AU$8-$AV$8,IF(Tabla4[[#This Row],[PASO DESC. UNIC.]]<=$AT$9,Tabla4[[#This Row],[PASO DESC. UNIC.]]*$AU$9-$AV$9,IF(Tabla4[[#This Row],[PASO DESC. UNIC.]]<=$AT$10,Tabla4[[#This Row],[PASO DESC. UNIC.]]*$AU$10-$AV$10,IF(Tabla4[[#This Row],[PASO DESC. UNIC.]]>=$AS$11,Tabla4[[#This Row],[PASO DESC. UNIC.]]*$AU$11-$AV$11))))))) -> 0 | AD53: =Tabla4[[#This Row],[TOTAL AFP]]+Tabla4[[#This Row],[TOTAL SALUD]]+Tabla4[[#This Row],[TOTAL SEGURO CESANTIA]]+Tabla4[[#This Row],[TOTAL ADICIONAL]]+Tabla4[[#This Row],[VALOR IMP U.]]+Tabla4[[#This Row],[VALOR OTRO 2]]+Tabla4[[#This Row],[VALOR OTRO 1]] -> 0 | AF53: =IF($BP$8 = "SI",IF(Tabla4[[#This Row],[TIPO CONTRATO]]="Indefinido",BDD!S55*2.4%,IF(Tabla4[[#This Row],[TIPO CONTRATO]]="PLAZO FIJO",BDD!S55*3%,0)),0) -> 0 | AM53: =BDD!S55*Tabla4[[#This Row],[% SIS]] -> 0 | AP53: =BDD!S55*Tabla4[[#This Row],[%MUTUAL]] -> 0
J54: 50 | K54: 50 | L54: =IF(BDD!J56=0," ",BDD!J56) ->  | O54: =IF(BDD!S56<_TOPEIMPONIBLE,BDD!S56*Tabla4[[#This Row],[%AFP]],_TOPEIMPONIBLE*Tabla4[[#This Row],[%AFP]]) -> 0 | R54: =IF(BDD!S56<_TOPEIMPONIBLE,BDD!S56*Tabla4[[#This Row],[%SALUD]],_TOPEIMPONIBLE*Tabla4[[#This Row],[%SALUD]]) -> 0 | U54: =BDD!S56*Tabla4[[#This Row],[%SEGURO]] -> 0 | W54: =IF(Tabla4[[#This Row],[TOTAL UF]]-Tabla4[[#This Row],[TOTAL SALUD]]<=0,0,Tabla4[[#This Row],[TOTAL UF]]-Tabla4[[#This Row],[TOTAL SALUD]]) -> 0 | Y54: =BDD!$N$4 -> 37838.55 | Z54: =Tabla4[[#This Row],[PACTO UF]]*Tabla4[[#This Row],[VALOR UF]] -> 0 | AA54: IMPUESTO UNICO | AB54: =BDD!S56-Tabla4[[#This Row],[TOTAL AFP]]-Tabla4[[#This Row],[TOTAL SALUD]]-Tabla4[[#This Row],[TOTAL SEGURO CESANTIA]]-Tabla4[[#This Row],[TOTAL ADICIONAL]] -> 0 | AC54: =IF(Tabla4[[#This Row],[PASO DESC. UNIC.]]<=$AT$5,0,IF(Tabla4[[#This Row],[PASO DESC. UNIC.]]<=$AT$6,Tabla4[[#This Row],[PASO DESC. UNIC.]]*$AU$6-$AV$6,IF(Tabla4[[#This Row],[PASO DESC. UNIC.]]<=$AT$7,Tabla4[[#This Row],[PASO DESC. UNIC.]]*$AU$7-$AV$7,IF(Tabla4[[#This Row],[PASO DESC. UNIC.]]<=$AT$8,Tabla4[[#This Row],[PASO DESC. UNIC.]]*$AU$8-$AV$8,IF(Tabla4[[#This Row],[PASO DESC. UNIC.]]<=$AT$9,Tabla4[[#This Row],[PASO DESC. UNIC.]]*$AU$9-$AV$9,IF(Tabla4[[#This Row],[PASO DESC. UNIC.]]<=$AT$10,Tabla4[[#This Row],[PASO DESC. UNIC.]]*$AU$10-$AV$10,IF(Tabla4[[#This Row],[PASO DESC. UNIC.]]>=$AS$11,Tabla4[[#This Row],[PASO DESC. UNIC.]]*$AU$11-$AV$11))))))) -> 0 | AD54: =Tabla4[[#This Row],[TOTAL AFP]]+Tabla4[[#This Row],[TOTAL SALUD]]+Tabla4[[#This Row],[TOTAL SEGURO CESANTIA]]+Tabla4[[#This Row],[TOTAL ADICIONAL]]+Tabla4[[#This Row],[VALOR IMP U.]]+Tabla4[[#This Row],[VALOR OTRO 2]]+Tabla4[[#This Row],[VALOR OTRO 1]] -> 0 | AF54: =IF($BP$8 = "SI",IF(Tabla4[[#This Row],[TIPO CONTRATO]]="Indefinido",BDD!S56*2.4%,IF(Tabla4[[#This Row],[TIPO CONTRATO]]="PLAZO FIJO",BDD!S56*3%,0)),0) -> 0 | AM54: =BDD!S56*Tabla4[[#This Row],[% SIS]] -> 0 | AP54: =BDD!S56*Tabla4[[#This Row],[%MUTUAL]] -> 0
K55: 51 | L55: =IF(BDD!J57=0," ",BDD!J57) ->  | O55: =IF(BDD!S57<_TOPEIMPONIBLE,BDD!S57*Tabla4[[#This Row],[%AFP]],_TOPEIMPONIBLE*Tabla4[[#This Row],[%AFP]]) -> 0 | R55: =IF(BDD!S57<_TOPEIMPONIBLE,BDD!S57*Tabla4[[#This Row],[%SALUD]],_TOPEIMPONIBLE*Tabla4[[#This Row],[%SALUD]]) -> 0 | U55: =BDD!S57*Tabla4[[#This Row],[%SEGURO]] -> 0 | W55: =IF(Tabla4[[#This Row],[TOTAL UF]]-Tabla4[[#This Row],[TOTAL SALUD]]<=0,0,Tabla4[[#This Row],[TOTAL UF]]-Tabla4[[#This Row],[TOTAL SALUD]]) -> 0 | Y55: =BDD!$N$4 -> 37838.55 | Z55: =Tabla4[[#This Row],[PACTO UF]]*Tabla4[[#This Row],[VALOR UF]] -> 0 | AA55: IMPUESTO UNICO | AB55: =BDD!S57-Tabla4[[#This Row],[TOTAL AFP]]-Tabla4[[#This Row],[TOTAL SALUD]]-Tabla4[[#This Row],[TOTAL SEGURO CESANTIA]]-Tabla4[[#This Row],[TOTAL ADICIONAL]] -> 0 | AC55: =IF(Tabla4[[#This Row],[PASO DESC. UNIC.]]<=$AT$5,0,IF(Tabla4[[#This Row],[PASO DESC. UNIC.]]<=$AT$6,Tabla4[[#This Row],[PASO DESC. UNIC.]]*$AU$6-$AV$6,IF(Tabla4[[#This Row],[PASO DESC. UNIC.]]<=$AT$7,Tabla4[[#This Row],[PASO DESC. UNIC.]]*$AU$7-$AV$7,IF(Tabla4[[#This Row],[PASO DESC. UNIC.]]<=$AT$8,Tabla4[[#This Row],[PASO DESC. UNIC.]]*$AU$8-$AV$8,IF(Tabla4[[#This Row],[PASO DESC. UNIC.]]<=$AT$9,Tabla4[[#This Row],[PASO DESC. UNIC.]]*$AU$9-$AV$9,IF(Tabla4[[#This Row],[PASO DESC. UNIC.]]<=$AT$10,Tabla4[[#This Row],[PASO DESC. UNIC.]]*$AU$10-$AV$10,IF(Tabla4[[#This Row],[PASO DESC. UNIC.]]>=$AS$11,Tabla4[[#This Row],[PASO DESC. UNIC.]]*$AU$11-$AV$11))))))) -> 0 | AD55: =Tabla4[[#This Row],[TOTAL AFP]]+Tabla4[[#This Row],[TOTAL SALUD]]+Tabla4[[#This Row],[TOTAL SEGURO CESANTIA]]+Tabla4[[#This Row],[TOTAL ADICIONAL]]+Tabla4[[#This Row],[VALOR IMP U.]]+Tabla4[[#This Row],[VALOR OTRO 2]]+Tabla4[[#This Row],[VALOR OTRO 1]] -> 0 | AF55: =IF($BP$8 = "SI",IF(Tabla4[[#This Row],[TIPO CONTRATO]]="Indefinido",BDD!S57*2.4%,IF(Tabla4[[#This Row],[TIPO CONTRATO]]="PLAZO FIJO",BDD!S57*3%,0)),0) -> 0 | AM55: =BDD!S57*Tabla4[[#This Row],[% SIS]] -> 0 | AP55: =BDD!S57*Tabla4[[#This Row],[%MUTUAL]] -> 0
K56: 52 | L56: =IF(BDD!J58=0," ",BDD!J58) ->  | O56: =IF(BDD!S58<_TOPEIMPONIBLE,BDD!S58*Tabla4[[#This Row],[%AFP]],_TOPEIMPONIBLE*Tabla4[[#This Row],[%AFP]]) -> 0 | R56: =IF(BDD!S58<_TOPEIMPONIBLE,BDD!S58*Tabla4[[#This Row],[%SALUD]],_TOPEIMPONIBLE*Tabla4[[#This Row],[%SALUD]]) -> 0 | U56: =BDD!S58*Tabla4[[#This Row],[%SEGURO]] -> 0 | W56: =IF(Tabla4[[#This Row],[TOTAL UF]]-Tabla4[[#This Row],[TOTAL SALUD]]<=0,0,Tabla4[[#This Row],[TOTAL UF]]-Tabla4[[#This Row],[TOTAL SALUD]]) -> 0 | Y56: =BDD!$N$4 -> 37838.55 | Z56: =Tabla4[[#This Row],[PACTO UF]]*Tabla4[[#This Row],[VALOR UF]] -> 0 | AA56: IMPUESTO UNICO | AB56: =BDD!S58-Tabla4[[#This Row],[TOTAL AFP]]-Tabla4[[#This Row],[TOTAL SALUD]]-Tabla4[[#This Row],[TOTAL SEGURO CESANTIA]]-Tabla4[[#This Row],[TOTAL ADICIONAL]] -> 0 | AC56: =IF(Tabla4[[#This Row],[PASO DESC. UNIC.]]<=$AT$5,0,IF(Tabla4[[#This Row],[PASO DESC. UNIC.]]<=$AT$6,Tabla4[[#This Row],[PASO DESC. UNIC.]]*$AU$6-$AV$6,IF(Tabla4[[#This Row],[PASO DESC. UNIC.]]<=$AT$7,Tabla4[[#This Row],[PASO DESC. UNIC.]]*$AU$7-$AV$7,IF(Tabla4[[#This Row],[PASO DESC. UNIC.]]<=$AT$8,Tabla4[[#This Row],[PASO DESC. UNIC.]]*$AU$8-$AV$8,IF(Tabla4[[#This Row],[PASO DESC. UNIC.]]<=$AT$9,Tabla4[[#This Row],[PASO DESC. UNIC.]]*$AU$9-$AV$9,IF(Tabla4[[#This Row],[PASO DESC. UNIC.]]<=$AT$10,Tabla4[[#This Row],[PASO DESC. UNIC.]]*$AU$10-$AV$10,IF(Tabla4[[#This Row],[PASO DESC. UNIC.]]>=$AS$11,Tabla4[[#This Row],[PASO DESC. UNIC.]]*$AU$11-$AV$11))))))) -> 0 | AD56: =Tabla4[[#This Row],[TOTAL AFP]]+Tabla4[[#This Row],[TOTAL SALUD]]+Tabla4[[#This Row],[TOTAL SEGURO CESANTIA]]+Tabla4[[#This Row],[TOTAL ADICIONAL]]+Tabla4[[#This Row],[VALOR IMP U.]]+Tabla4[[#This Row],[VALOR OTRO 2]]+Tabla4[[#This Row],[VALOR OTRO 1]] -> 0 | AF56: =IF($BP$8 = "SI",IF(Tabla4[[#This Row],[TIPO CONTRATO]]="Indefinido",BDD!S58*2.4%,IF(Tabla4[[#This Row],[TIPO CONTRATO]]="PLAZO FIJO",BDD!S58*3%,0)),0) -> 0 | AM56: =BDD!S58*Tabla4[[#This Row],[% SIS]] -> 0 | AP56: =BDD!S58*Tabla4[[#This Row],[%MUTUAL]] -> 0
K57: 53 | L57: =IF(BDD!J59=0," ",BDD!J59) ->  | O57: =IF(BDD!S59<_TOPEIMPONIBLE,BDD!S59*Tabla4[[#This Row],[%AFP]],_TOPEIMPONIBLE*Tabla4[[#This Row],[%AFP]]) -> 0 | R57: =IF(BDD!S59<_TOPEIMPONIBLE,BDD!S59*Tabla4[[#This Row],[%SALUD]],_TOPEIMPONIBLE*Tabla4[[#This Row],[%SALUD]]) -> 0 | U57: =BDD!S59*Tabla4[[#This Row],[%SEGURO]] -> 0 | W57: =IF(Tabla4[[#This Row],[TOTAL UF]]-Tabla4[[#This Row],[TOTAL SALUD]]<=0,0,Tabla4[[#This Row],[TOTAL UF]]-Tabla4[[#This Row],[TOTAL SALUD]]) -> 0 | Y57: =BDD!$N$4 -> 37838.55 | Z57: =Tabla4[[#This Row],[PACTO UF]]*Tabla4[[#This Row],[VALOR UF]] -> 0 | AA57: IMPUESTO UNICO | AB57: =BDD!S59-Tabla4[[#This Row],[TOTAL AFP]]-Tabla4[[#This Row],[TOTAL SALUD]]-Tabla4[[#This Row],[TOTAL SEGURO CESANTIA]]-Tabla4[[#This Row],[TOTAL ADICIONAL]] -> 0 | AC57: =IF(Tabla4[[#This Row],[PASO DESC. UNIC.]]<=$AT$5,0,IF(Tabla4[[#This Row],[PASO DESC. UNIC.]]<=$AT$6,Tabla4[[#This Row],[PASO DESC. UNIC.]]*$AU$6-$AV$6,IF(Tabla4[[#This Row],[PASO DESC. UNIC.]]<=$AT$7,Tabla4[[#This Row],[PASO DESC. UNIC.]]*$AU$7-$AV$7,IF(Tabla4[[#This Row],[PASO DESC. UNIC.]]<=$AT$8,Tabla4[[#This Row],[PASO DESC. UNIC.]]*$AU$8-$AV$8,IF(Tabla4[[#This Row],[PASO DESC. UNIC.]]<=$AT$9,Tabla4[[#This Row],[PASO DESC. UNIC.]]*$AU$9-$AV$9,IF(Tabla4[[#This Row],[PASO DESC. UNIC.]]<=$AT$10,Tabla4[[#This Row],[PASO DESC. UNIC.]]*$AU$10-$AV$10,IF(Tabla4[[#This Row],[PASO DESC. UNIC.]]>=$AS$11,Tabla4[[#This Row],[PASO DESC. UNIC.]]*$AU$11-$AV$11))))))) -> 0 | AD57: =Tabla4[[#This Row],[TOTAL AFP]]+Tabla4[[#This Row],[TOTAL SALUD]]+Tabla4[[#This Row],[TOTAL SEGURO CESANTIA]]+Tabla4[[#This Row],[TOTAL ADICIONAL]]+Tabla4[[#This Row],[VALOR IMP U.]]+Tabla4[[#This Row],[VALOR OTRO 2]]+Tabla4[[#This Row],[VALOR OTRO 1]] -> 0 | AF57: =IF($BP$8 = "SI",IF(Tabla4[[#This Row],[TIPO CONTRATO]]="Indefinido",BDD!S59*2.4%,IF(Tabla4[[#This Row],[TIPO CONTRATO]]="PLAZO FIJO",BDD!S59*3%,0)),0) -> 0 | AM57: =BDD!S59*Tabla4[[#This Row],[% SIS]] -> 0 | AP57: =BDD!S59*Tabla4[[#This Row],[%MUTUAL]] -> 0
K58: 54 | L58: =IF(BDD!J60=0," ",BDD!J60) ->  | O58: =IF(BDD!S60<_TOPEIMPONIBLE,BDD!S60*Tabla4[[#This Row],[%AFP]],_TOPEIMPONIBLE*Tabla4[[#This Row],[%AFP]]) -> 0 | R58: =IF(BDD!S60<_TOPEIMPONIBLE,BDD!S60*Tabla4[[#This Row],[%SALUD]],_TOPEIMPONIBLE*Tabla4[[#This Row],[%SALUD]]) -> 0 | U58: =BDD!S60*Tabla4[[#This Row],[%SEGURO]] -> 0 | W58: =IF(Tabla4[[#This Row],[TOTAL UF]]-Tabla4[[#This Row],[TOTAL SALUD]]<=0,0,Tabla4[[#This Row],[TOTAL UF]]-Tabla4[[#This Row],[TOTAL SALUD]]) -> 0 | Y58: =BDD!$N$4 -> 37838.55 | Z58: =Tabla4[[#This Row],[PACTO UF]]*Tabla4[[#This Row],[VALOR UF]] -> 0 | AA58: IMPUESTO UNICO | AB58: =BDD!S60-Tabla4[[#This Row],[TOTAL AFP]]-Tabla4[[#This Row],[TOTAL SALUD]]-Tabla4[[#This Row],[TOTAL SEGURO CESANTIA]]-Tabla4[[#This Row],[TOTAL ADICIONAL]] -> 0 | AC58: =IF(Tabla4[[#This Row],[PASO DESC. UNIC.]]<=$AT$5,0,IF(Tabla4[[#This Row],[PASO DESC. UNIC.]]<=$AT$6,Tabla4[[#This Row],[PASO DESC. UNIC.]]*$AU$6-$AV$6,IF(Tabla4[[#This Row],[PASO DESC. UNIC.]]<=$AT$7,Tabla4[[#This Row],[PASO DESC. UNIC.]]*$AU$7-$AV$7,IF(Tabla4[[#This Row],[PASO DESC. UNIC.]]<=$AT$8,Tabla4[[#This Row],[PASO DESC. UNIC.]]*$AU$8-$AV$8,IF(Tabla4[[#This Row],[PASO DESC. UNIC.]]<=$AT$9,Tabla4[[#This Row],[PASO DESC. UNIC.]]*$AU$9-$AV$9,IF(Tabla4[[#This Row],[PASO DESC. UNIC.]]<=$AT$10,Tabla4[[#This Row],[PASO DESC. UNIC.]]*$AU$10-$AV$10,IF(Tabla4[[#This Row],[PASO DESC. UNIC.]]>=$AS$11,Tabla4[[#This Row],[PASO DESC. UNIC.]]*$AU$11-$AV$11))))))) -> 0 | AD58: =Tabla4[[#This Row],[TOTAL AFP]]+Tabla4[[#This Row],[TOTAL SALUD]]+Tabla4[[#This Row],[TOTAL SEGURO CESANTIA]]+Tabla4[[#This Row],[TOTAL ADICIONAL]]+Tabla4[[#This Row],[VALOR IMP U.]]+Tabla4[[#This Row],[VALOR OTRO 2]]+Tabla4[[#This Row],[VALOR OTRO 1]] -> 0 | AF58: =IF($BP$8 = "SI",IF(Tabla4[[#This Row],[TIPO CONTRATO]]="Indefinido",BDD!S60*2.4%,IF(Tabla4[[#This Row],[TIPO CONTRATO]]="PLAZO FIJO",BDD!S60*3%,0)),0) -> 0 | AM58: =BDD!S60*Tabla4[[#This Row],[% SIS]] -> 0 | AP58: =BDD!S60*Tabla4[[#This Row],[%MUTUAL]] -> 0
K59: 55 | L59: =IF(BDD!J61=0," ",BDD!J61) ->  | O59: =IF(BDD!S61<_TOPEIMPONIBLE,BDD!S61*Tabla4[[#This Row],[%AFP]],_TOPEIMPONIBLE*Tabla4[[#This Row],[%AFP]]) -> 0 | R59: =IF(BDD!S61<_TOPEIMPONIBLE,BDD!S61*Tabla4[[#This Row],[%SALUD]],_TOPEIMPONIBLE*Tabla4[[#This Row],[%SALUD]]) -> 0 | U59: =BDD!S61*Tabla4[[#This Row],[%SEGURO]] -> 0 | W59: =IF(Tabla4[[#This Row],[TOTAL UF]]-Tabla4[[#This Row],[TOTAL SALUD]]<=0,0,Tabla4[[#This Row],[TOTAL UF]]-Tabla4[[#This Row],[TOTAL SALUD]]) -> 0 | Y59: =BDD!$N$4 -> 37838.55 | Z59: =Tabla4[[#This Row],[PACTO UF]]*Tabla4[[#This Row],[VALOR UF]] -> 0 | AA59: IMPUESTO UNICO | AB59: =BDD!S61-Tabla4[[#This Row],[TOTAL AFP]]-Tabla4[[#This Row],[TOTAL SALUD]]-Tabla4[[#This Row],[TOTAL SEGURO CESANTIA]]-Tabla4[[#This Row],[TOTAL ADICIONAL]] -> 0 | AC59: =IF(Tabla4[[#This Row],[PASO DESC. UNIC.]]<=$AT$5,0,IF(Tabla4[[#This Row],[PASO DESC. UNIC.]]<=$AT$6,Tabla4[[#This Row],[PASO DESC. UNIC.]]*$AU$6-$AV$6,IF(Tabla4[[#This Row],[PASO DESC. UNIC.]]<=$AT$7,Tabla4[[#This Row],[PASO DESC. UNIC.]]*$AU$7-$AV$7,IF(Tabla4[[#This Row],[PASO DESC. UNIC.]]<=$AT$8,Tabla4[[#This Row],[PASO DESC. UNIC.]]*$AU$8-$AV$8,IF(Tabla4[[#This Row],[PASO DESC. UNIC.]]<=$AT$9,Tabla4[[#This Row],[PASO DESC. UNIC.]]*$AU$9-$AV$9,IF(Tabla4[[#This Row],[PASO DESC. UNIC.]]<=$AT$10,Tabla4[[#This Row],[PASO DESC. UNIC.]]*$AU$10-$AV$10,IF(Tabla4[[#This Row],[PASO DESC. UNIC.]]>=$AS$11,Tabla4[[#This Row],[PASO DESC. UNIC.]]*$AU$11-$AV$11))))))) -> 0 | AD59: =Tabla4[[#This Row],[TOTAL AFP]]+Tabla4[[#This Row],[TOTAL SALUD]]+Tabla4[[#This Row],[TOTAL SEGURO CESANTIA]]+Tabla4[[#This Row],[TOTAL ADICIONAL]]+Tabla4[[#This Row],[VALOR IMP U.]]+Tabla4[[#This Row],[VALOR OTRO 2]]+Tabla4[[#This Row],[VALOR OTRO 1]] -> 0 | AF59: =IF($BP$8 = "SI",IF(Tabla4[[#This Row],[TIPO CONTRATO]]="Indefinido",BDD!S61*2.4%,IF(Tabla4[[#This Row],[TIPO CONTRATO]]="PLAZO FIJO",BDD!S61*3%,0)),0) -> 0 | AM59: =BDD!S61*Tabla4[[#This Row],[% SIS]] -> 0 | AP59: =BDD!S61*Tabla4[[#This Row],[%MUTUAL]] -> 0
K60: 56 | L60: =IF(BDD!J62=0," ",BDD!J62) ->  | O60: =IF(BDD!S62<_TOPEIMPONIBLE,BDD!S62*Tabla4[[#This Row],[%AFP]],_TOPEIMPONIBLE*Tabla4[[#This Row],[%AFP]]) -> 0 | R60: =IF(BDD!S62<_TOPEIMPONIBLE,BDD!S62*Tabla4[[#This Row],[%SALUD]],_TOPEIMPONIBLE*Tabla4[[#This Row],[%SALUD]]) -> 0 | U60: =BDD!S62*Tabla4[[#This Row],[%SEGURO]] -> 0 | W60: =IF(Tabla4[[#This Row],[TOTAL UF]]-Tabla4[[#This Row],[TOTAL SALUD]]<=0,0,Tabla4[[#This Row],[TOTAL UF]]-Tabla4[[#This Row],[TOTAL SALUD]]) -> 0 | Y60: =BDD!$N$4 -> 37838.55 | Z60: =Tabla4[[#This Row],[PACTO UF]]*Tabla4[[#This Row],[VALOR UF]] -> 0 | AA60: IMPUESTO UNICO | AB60: =BDD!S62-Tabla4[[#This Row],[TOTAL AFP]]-Tabla4[[#This Row],[TOTAL SALUD]]-Tabla4[[#This Row],[TOTAL SEGURO CESANTIA]]-Tabla4[[#This Row],[TOTAL ADICIONAL]] -> 0 | AC60: =IF(Tabla4[[#This Row],[PASO DESC. UNIC.]]<=$AT$5,0,IF(Tabla4[[#This Row],[PASO DESC. UNIC.]]<=$AT$6,Tabla4[[#This Row],[PASO DESC. UNIC.]]*$AU$6-$AV$6,IF(Tabla4[[#This Row],[PASO DESC. UNIC.]]<=$AT$7,Tabla4[[#This Row],[PASO DESC. UNIC.]]*$AU$7-$AV$7,IF(Tabla4[[#This Row],[PASO DESC. UNIC.]]<=$AT$8,Tabla4[[#This Row],[PASO DESC. UNIC.]]*$AU$8-$AV$8,IF(Tabla4[[#This Row],[PASO DESC. UNIC.]]<=$AT$9,Tabla4[[#This Row],[PASO DESC. UNIC.]]*$AU$9-$AV$9,IF(Tabla4[[#This Row],[PASO DESC. UNIC.]]<=$AT$10,Tabla4[[#This Row],[PASO DESC. UNIC.]]*$AU$10-$AV$10,IF(Tabla4[[#This Row],[PASO DESC. UNIC.]]>=$AS$11,Tabla4[[#This Row],[PASO DESC. UNIC.]]*$AU$11-$AV$11))))))) -> 0 | AD60: =Tabla4[[#This Row],[TOTAL AFP]]+Tabla4[[#This Row],[TOTAL SALUD]]+Tabla4[[#This Row],[TOTAL SEGURO CESANTIA]]+Tabla4[[#This Row],[TOTAL ADICIONAL]]+Tabla4[[#This Row],[VALOR IMP U.]]+Tabla4[[#This Row],[VALOR OTRO 2]]+Tabla4[[#This Row],[VALOR OTRO 1]] -> 0 | AF60: =IF($BP$8 = "SI",IF(Tabla4[[#This Row],[TIPO CONTRATO]]="Indefinido",BDD!S62*2.4%,IF(Tabla4[[#This Row],[TIPO CONTRATO]]="PLAZO FIJO",BDD!S62*3%,0)),0) -> 0 | AM60: =BDD!S62*Tabla4[[#This Row],[% SIS]] -> 0 | AP60: =BDD!S62*Tabla4[[#This Row],[%MUTUAL]] -> 0
K61: 57 | L61: =IF(BDD!J63=0," ",BDD!J63) ->  | O61: =IF(BDD!S63<_TOPEIMPONIBLE,BDD!S63*Tabla4[[#This Row],[%AFP]],_TOPEIMPONIBLE*Tabla4[[#This Row],[%AFP]]) -> 0 | R61: =IF(BDD!S63<_TOPEIMPONIBLE,BDD!S63*Tabla4[[#This Row],[%SALUD]],_TOPEIMPONIBLE*Tabla4[[#This Row],[%SALUD]]) -> 0 | U61: =BDD!S63*Tabla4[[#This Row],[%SEGURO]] -> 0 | W61: =IF(Tabla4[[#This Row],[TOTAL UF]]-Tabla4[[#This Row],[TOTAL SALUD]]<=0,0,Tabla4[[#This Row],[TOTAL UF]]-Tabla4[[#This Row],[TOTAL SALUD]]) -> 0 | Y61: =BDD!$N$4 -> 37838.55 | Z61: =Tabla4[[#This Row],[PACTO UF]]*Tabla4[[#This Row],[VALOR UF]] -> 0 | AA61: IMPUESTO UNICO | AB61: =BDD!S63-Tabla4[[#This Row],[TOTAL AFP]]-Tabla4[[#This Row],[TOTAL SALUD]]-Tabla4[[#This Row],[TOTAL SEGURO CESANTIA]]-Tabla4[[#This Row],[TOTAL ADICIONAL]] -> 0 | AC61: =IF(Tabla4[[#This Row],[PASO DESC. UNIC.]]<=$AT$5,0,IF(Tabla4[[#This Row],[PASO DESC. UNIC.]]<=$AT$6,Tabla4[[#This Row],[PASO DESC. UNIC.]]*$AU$6-$AV$6,IF(Tabla4[[#This Row],[PASO DESC. UNIC.]]<=$AT$7,Tabla4[[#This Row],[PASO DESC. UNIC.]]*$AU$7-$AV$7,IF(Tabla4[[#This Row],[PASO DESC. UNIC.]]<=$AT$8,Tabla4[[#This Row],[PASO DESC. UNIC.]]*$AU$8-$AV$8,IF(Tabla4[[#This Row],[PASO DESC. UNIC.]]<=$AT$9,Tabla4[[#This Row],[PASO DESC. UNIC.]]*$AU$9-$AV$9,IF(Tabla4[[#This Row],[PASO DESC. UNIC.]]<=$AT$10,Tabla4[[#This Row],[PASO DESC. UNIC.]]*$AU$10-$AV$10,IF(Tabla4[[#This Row],[PASO DESC. UNIC.]]>=$AS$11,Tabla4[[#This Row],[PASO DESC. UNIC.]]*$AU$11-$AV$11))))))) -> 0 | AD61: =Tabla4[[#This Row],[TOTAL AFP]]+Tabla4[[#This Row],[TOTAL SALUD]]+Tabla4[[#This Row],[TOTAL SEGURO CESANTIA]]+Tabla4[[#This Row],[TOTAL ADICIONAL]]+Tabla4[[#This Row],[VALOR IMP U.]]+Tabla4[[#This Row],[VALOR OTRO 2]]+Tabla4[[#This Row],[VALOR OTRO 1]] -> 0 | AF61: =IF($BP$8 = "SI",IF(Tabla4[[#This Row],[TIPO CONTRATO]]="Indefinido",BDD!S63*2.4%,IF(Tabla4[[#This Row],[TIPO CONTRATO]]="PLAZO FIJO",BDD!S63*3%,0)),0) -> 0 | AM61: =BDD!S63*Tabla4[[#This Row],[% SIS]] -> 0 | AP61: =BDD!S63*Tabla4[[#This Row],[%MUTUAL]] -> 0
K62: 58 | L62: =IF(BDD!J64=0," ",BDD!J64) ->  | O62: =IF(BDD!S64<_TOPEIMPONIBLE,BDD!S64*Tabla4[[#This Row],[%AFP]],_TOPEIMPONIBLE*Tabla4[[#This Row],[%AFP]]) -> 0 | R62: =IF(BDD!S64<_TOPEIMPONIBLE,BDD!S64*Tabla4[[#This Row],[%SALUD]],_TOPEIMPONIBLE*Tabla4[[#This Row],[%SALUD]]) -> 0 | U62: =BDD!S64*Tabla4[[#This Row],[%SEGURO]] -> 0 | W62: =IF(Tabla4[[#This Row],[TOTAL UF]]-Tabla4[[#This Row],[TOTAL SALUD]]<=0,0,Tabla4[[#This Row],[TOTAL UF]]-Tabla4[[#This Row],[TOTAL SALUD]]) -> 0 | Y62: =BDD!$N$4 -> 37838.55 | Z62: =Tabla4[[#This Row],[PACTO UF]]*Tabla4[[#This Row],[VALOR UF]] -> 0 | AA62: IMPUESTO UNICO | AB62: =BDD!S64-Tabla4[[#This Row],[TOTAL AFP]]-Tabla4[[#This Row],[TOTAL SALUD]]-Tabla4[[#This Row],[TOTAL SEGURO CESANTIA]]-Tabla4[[#This Row],[TOTAL ADICIONAL]] -> 0 | AC62: =IF(Tabla4[[#This Row],[PASO DESC. UNIC.]]<=$AT$5,0,IF(Tabla4[[#This Row],[PASO DESC. UNIC.]]<=$AT$6,Tabla4[[#This Row],[PASO DESC. UNIC.]]*$AU$6-$AV$6,IF(Tabla4[[#This Row],[PASO DESC. UNIC.]]<=$AT$7,Tabla4[[#This Row],[PASO DESC. UNIC.]]*$AU$7-$AV$7,IF(Tabla4[[#This Row],[PASO DESC. UNIC.]]<=$AT$8,Tabla4[[#This Row],[PASO DESC. UNIC.]]*$AU$8-$AV$8,IF(Tabla4[[#This Row],[PASO DESC. UNIC.]]<=$AT$9,Tabla4[[#This Row],[PASO DESC. UNIC.]]*$AU$9-$AV$9,IF(Tabla4[[#This Row],[PASO DESC. UNIC.]]<=$AT$10,Tabla4[[#This Row],[PASO DESC. UNIC.]]*$AU$10-$AV$10,IF(Tabla4[[#This Row],[PASO DESC. UNIC.]]>=$AS$11,Tabla4[[#This Row],[PASO DESC. UNIC.]]*$AU$11-$AV$11))))))) -> 0 | AD62: =Tabla4[[#This Row],[TOTAL AFP]]+Tabla4[[#This Row],[TOTAL SALUD]]+Tabla4[[#This Row],[TOTAL SEGURO CESANTIA]]+Tabla4[[#This Row],[TOTAL ADICIONAL]]+Tabla4[[#This Row],[VALOR IMP U.]]+Tabla4[[#This Row],[VALOR OTRO 2]]+Tabla4[[#This Row],[VALOR OTRO 1]] -> 0 | AF62: =IF($BP$8 = "SI",IF(Tabla4[[#This Row],[TIPO CONTRATO]]="Indefinido",BDD!S64*2.4%,IF(Tabla4[[#This Row],[TIPO CONTRATO]]="PLAZO FIJO",BDD!S64*3%,0)),0) -> 0 | AM62: =BDD!S64*Tabla4[[#This Row],[% SIS]] -> 0 | AP62: =BDD!S64*Tabla4[[#This Row],[%MUTUAL]] -> 0
K63: 59 | L63: =IF(BDD!J65=0," ",BDD!J65) ->  | O63: =IF(BDD!S65<_TOPEIMPONIBLE,BDD!S65*Tabla4[[#This Row],[%AFP]],_TOPEIMPONIBLE*Tabla4[[#This Row],[%AFP]]) -> 0 | R63: =IF(BDD!S65<_TOPEIMPONIBLE,BDD!S65*Tabla4[[#This Row],[%SALUD]],_TOPEIMPONIBLE*Tabla4[[#This Row],[%SALUD]]) -> 0 | U63: =BDD!S65*Tabla4[[#This Row],[%SEGURO]] -> 0 | W63: =IF(Tabla4[[#This Row],[TOTAL UF]]-Tabla4[[#This Row],[TOTAL SALUD]]<=0,0,Tabla4[[#This Row],[TOTAL UF]]-Tabla4[[#This Row],[TOTAL SALUD]]) -> 0 | Y63: =BDD!$N$4 -> 37838.55 | Z63: =Tabla4[[#This Row],[PACTO UF]]*Tabla4[[#This Row],[VALOR UF]] -> 0 | AA63: IMPUESTO UNICO | AB63: =BDD!S65-Tabla4[[#This Row],[TOTAL AFP]]-Tabla4[[#This Row],[TOTAL SALUD]]-Tabla4[[#This Row],[TOTAL SEGURO CESANTIA]]-Tabla4[[#This Row],[TOTAL ADICIONAL]] -> 0 | AC63: =IF(Tabla4[[#This Row],[PASO DESC. UNIC.]]<=$AT$5,0,IF(Tabla4[[#This Row],[PASO DESC. UNIC.]]<=$AT$6,Tabla4[[#This Row],[PASO DESC. UNIC.]]*$AU$6-$AV$6,IF(Tabla4[[#This Row],[PASO DESC. UNIC.]]<=$AT$7,Tabla4[[#This Row],[PASO DESC. UNIC.]]*$AU$7-$AV$7,IF(Tabla4[[#This Row],[PASO DESC. UNIC.]]<=$AT$8,Tabla4[[#This Row],[PASO DESC. UNIC.]]*$AU$8-$AV$8,IF(Tabla4[[#This Row],[PASO DESC. UNIC.]]<=$AT$9,Tabla4[[#This Row],[PASO DESC. UNIC.]]*$AU$9-$AV$9,IF(Tabla4[[#This Row],[PASO DESC. UNIC.]]<=$AT$10,Tabla4[[#This Row],[PASO DESC. UNIC.]]*$AU$10-$AV$10,IF(Tabla4[[#This Row],[PASO DESC. UNIC.]]>=$AS$11,Tabla4[[#This Row],[PASO DESC. UNIC.]]*$AU$11-$AV$11))))))) -> 0 | AD63: =Tabla4[[#This Row],[TOTAL AFP]]+Tabla4[[#This Row],[TOTAL SALUD]]+Tabla4[[#This Row],[TOTAL SEGURO CESANTIA]]+Tabla4[[#This Row],[TOTAL ADICIONAL]]+Tabla4[[#This Row],[VALOR IMP U.]]+Tabla4[[#This Row],[VALOR OTRO 2]]+Tabla4[[#This Row],[VALOR OTRO 1]] -> 0 | AF63: =IF($BP$8 = "SI",IF(Tabla4[[#This Row],[TIPO CONTRATO]]="Indefinido",BDD!S65*2.4%,IF(Tabla4[[#This Row],[TIPO CONTRATO]]="PLAZO FIJO",BDD!S65*3%,0)),0) -> 0 | AM63: =BDD!S65*Tabla4[[#This Row],[% SIS]] -> 0 | AP63: =BDD!S65*Tabla4[[#This Row],[%MUTUAL]] -> 0
K64: 60 | L64: =IF(BDD!J66=0," ",BDD!J66) ->  | O64: =IF(BDD!S66<_TOPEIMPONIBLE,BDD!S66*Tabla4[[#This Row],[%AFP]],_TOPEIMPONIBLE*Tabla4[[#This Row],[%AFP]]) -> 0 | R64: =IF(BDD!S66<_TOPEIMPONIBLE,BDD!S66*Tabla4[[#This Row],[%SALUD]],_TOPEIMPONIBLE*Tabla4[[#This Row],[%SALUD]]) -> 0 | U64: =BDD!S66*Tabla4[[#This Row],[%SEGURO]] -> 0 | W64: =IF(Tabla4[[#This Row],[TOTAL UF]]-Tabla4[[#This Row],[TOTAL SALUD]]<=0,0,Tabla4[[#This Row],[TOTAL UF]]-Tabla4[[#This Row],[TOTAL SALUD]]) -> 0 | Y64: =BDD!$N$4 -> 37838.55 | Z64: =Tabla4[[#This Row],[PACTO UF]]*Tabla4[[#This Row],[VALOR UF]] -> 0 | AA64: IMPUESTO UNICO | AB64: =BDD!S66-Tabla4[[#This Row],[TOTAL AFP]]-Tabla4[[#This Row],[TOTAL SALUD]]-Tabla4[[#This Row],[TOTAL SEGURO CESANTIA]]-Tabla4[[#This Row],[TOTAL ADICIONAL]] -> 0 | AC64: =IF(Tabla4[[#This Row],[PASO DESC. UNIC.]]<=$AT$5,0,IF(Tabla4[[#This Row],[PASO DESC. UNIC.]]<=$AT$6,Tabla4[[#This Row],[PASO DESC. UNIC.]]*$AU$6-$AV$6,IF(Tabla4[[#This Row],[PASO DESC. UNIC.]]<=$AT$7,Tabla4[[#This Row],[PASO DESC. UNIC.]]*$AU$7-$AV$7,IF(Tabla4[[#This Row],[PASO DESC. UNIC.]]<=$AT$8,Tabla4[[#This Row],[PASO DESC. UNIC.]]*$AU$8-$AV$8,IF(Tabla4[[#This Row],[PASO DESC. UNIC.]]<=$AT$9,Tabla4[[#This Row],[PASO DESC. UNIC.]]*$AU$9-$AV$9,IF(Tabla4[[#This Row],[PASO DESC. UNIC.]]<=$AT$10,Tabla4[[#This Row],[PASO DESC. UNIC.]]*$AU$10-$AV$10,IF(Tabla4[[#This Row],[PASO DESC. UNIC.]]>=$AS$11,Tabla4[[#This Row],[PASO DESC. UNIC.]]*$AU$11-$AV$11))))))) -> 0 | AD64: =Tabla4[[#This Row],[TOTAL AFP]]+Tabla4[[#This Row],[TOTAL SALUD]]+Tabla4[[#This Row],[TOTAL SEGURO CESANTIA]]+Tabla4[[#This Row],[TOTAL ADICIONAL]]+Tabla4[[#This Row],[VALOR IMP U.]]+Tabla4[[#This Row],[VALOR OTRO 2]]+Tabla4[[#This Row],[VALOR OTRO 1]] -> 0 | AF64: =IF($BP$8 = "SI",IF(Tabla4[[#This Row],[TIPO CONTRATO]]="Indefinido",BDD!S66*2.4%,IF(Tabla4[[#This Row],[TIPO CONTRATO]]="PLAZO FIJO",BDD!S66*3%,0)),0) -> 0 | AM64: =BDD!S66*Tabla4[[#This Row],[% SIS]] -> 0 | AP64: =BDD!S66*Tabla4[[#This Row],[%MUTUAL]] -> 0
K65: 61 | L65: =IF(BDD!J67=0," ",BDD!J67) ->  | O65: =IF(BDD!S67<_TOPEIMPONIBLE,BDD!S67*Tabla4[[#This Row],[%AFP]],_TOPEIMPONIBLE*Tabla4[[#This Row],[%AFP]]) -> 0 | R65: =IF(BDD!S67<_TOPEIMPONIBLE,BDD!S67*Tabla4[[#This Row],[%SALUD]],_TOPEIMPONIBLE*Tabla4[[#This Row],[%SALUD]]) -> 0 | U65: =BDD!S67*Tabla4[[#This Row],[%SEGURO]] -> 0 | W65: =IF(Tabla4[[#This Row],[TOTAL UF]]-Tabla4[[#This Row],[TOTAL SALUD]]<=0,0,Tabla4[[#This Row],[TOTAL UF]]-Tabla4[[#This Row],[TOTAL SALUD]]) -> 0 | Y65: =BDD!$N$4 -> 37838.55 | Z65: =Tabla4[[#This Row],[PACTO UF]]*Tabla4[[#This Row],[VALOR UF]] -> 0 | AA65: IMPUESTO UNICO | AB65: =BDD!S67-Tabla4[[#This Row],[TOTAL AFP]]-Tabla4[[#This Row],[TOTAL SALUD]]-Tabla4[[#This Row],[TOTAL SEGURO CESANTIA]]-Tabla4[[#This Row],[TOTAL ADICIONAL]] -> 0 | AC65: =IF(Tabla4[[#This Row],[PASO DESC. UNIC.]]<=$AT$5,0,IF(Tabla4[[#This Row],[PASO DESC. UNIC.]]<=$AT$6,Tabla4[[#This Row],[PASO DESC. UNIC.]]*$AU$6-$AV$6,IF(Tabla4[[#This Row],[PASO DESC. UNIC.]]<=$AT$7,Tabla4[[#This Row],[PASO DESC. UNIC.]]*$AU$7-$AV$7,IF(Tabla4[[#This Row],[PASO DESC. UNIC.]]<=$AT$8,Tabla4[[#This Row],[PASO DESC. UNIC.]]*$AU$8-$AV$8,IF(Tabla4[[#This Row],[PASO DESC. UNIC.]]<=$AT$9,Tabla4[[#This Row],[PASO DESC. UNIC.]]*$AU$9-$AV$9,IF(Tabla4[[#This Row],[PASO DESC. UNIC.]]<=$AT$10,Tabla4[[#This Row],[PASO DESC. UNIC.]]*$AU$10-$AV$10,IF(Tabla4[[#This Row],[PASO DESC. UNIC.]]>=$AS$11,Tabla4[[#This Row],[PASO DESC. UNIC.]]*$AU$11-$AV$11))))))) -> 0 | AD65: =Tabla4[[#This Row],[TOTAL AFP]]+Tabla4[[#This Row],[TOTAL SALUD]]+Tabla4[[#This Row],[TOTAL SEGURO CESANTIA]]+Tabla4[[#This Row],[TOTAL ADICIONAL]]+Tabla4[[#This Row],[VALOR IMP U.]]+Tabla4[[#This Row],[VALOR OTRO 2]]+Tabla4[[#This Row],[VALOR OTRO 1]] -> 0 | AF65: =IF($BP$8 = "SI",IF(Tabla4[[#This Row],[TIPO CONTRATO]]="Indefinido",BDD!S67*2.4%,IF(Tabla4[[#This Row],[TIPO CONTRATO]]="PLAZO FIJO",BDD!S67*3%,0)),0) -> 0 | AM65: =BDD!S67*Tabla4[[#This Row],[% SIS]] -> 0 | AP65: =BDD!S67*Tabla4[[#This Row],[%MUTUAL]] -> 0
K66: 62 | L66: =IF(BDD!J68=0," ",BDD!J68) ->  | O66: =IF(BDD!S68<_TOPEIMPONIBLE,BDD!S68*Tabla4[[#This Row],[%AFP]],_TOPEIMPONIBLE*Tabla4[[#This Row],[%AFP]]) -> 0 | R66: =IF(BDD!S68<_TOPEIMPONIBLE,BDD!S68*Tabla4[[#This Row],[%SALUD]],_TOPEIMPONIBLE*Tabla4[[#This Row],[%SALUD]]) -> 0 | U66: =BDD!S68*Tabla4[[#This Row],[%SEGURO]] -> 0 | W66: =IF(Tabla4[[#This Row],[TOTAL UF]]-Tabla4[[#This Row],[TOTAL SALUD]]<=0,0,Tabla4[[#This Row],[TOTAL UF]]-Tabla4[[#This Row],[TOTAL SALUD]]) -> 0 | Y66: =BDD!$N$4 -> 37838.55 | Z66: =Tabla4[[#This Row],[PACTO UF]]*Tabla4[[#This Row],[VALOR UF]] -> 0 | AA66: IMPUESTO UNICO | AB66: =BDD!S68-Tabla4[[#This Row],[TOTAL AFP]]-Tabla4[[#This Row],[TOTAL SALUD]]-Tabla4[[#This Row],[TOTAL SEGURO CESANTIA]]-Tabla4[[#This Row],[TOTAL ADICIONAL]] -> 0 | AC66: =IF(Tabla4[[#This Row],[PASO DESC. UNIC.]]<=$AT$5,0,IF(Tabla4[[#This Row],[PASO DESC. UNIC.]]<=$AT$6,Tabla4[[#This Row],[PASO DESC. UNIC.]]*$AU$6-$AV$6,IF(Tabla4[[#This Row],[PASO DESC. UNIC.]]<=$AT$7,Tabla4[[#This Row],[PASO DESC. UNIC.]]*$AU$7-$AV$7,IF(Tabla4[[#This Row],[PASO DESC. UNIC.]]<=$AT$8,Tabla4[[#This Row],[PASO DESC. UNIC.]]*$AU$8-$AV$8,IF(Tabla4[[#This Row],[PASO DESC. UNIC.]]<=$AT$9,Tabla4[[#This Row],[PASO DESC. UNIC.]]*$AU$9-$AV$9,IF(Tabla4[[#This Row],[PASO DESC. UNIC.]]<=$AT$10,Tabla4[[#This Row],[PASO DESC. UNIC.]]*$AU$10-$AV$10,IF(Tabla4[[#This Row],[PASO DESC. UNIC.]]>=$AS$11,Tabla4[[#This Row],[PASO DESC. UNIC.]]*$AU$11-$AV$11))))))) -> 0 | AD66: =Tabla4[[#This Row],[TOTAL AFP]]+Tabla4[[#This Row],[TOTAL SALUD]]+Tabla4[[#This Row],[TOTAL SEGURO CESANTIA]]+Tabla4[[#This Row],[TOTAL ADICIONAL]]+Tabla4[[#This Row],[VALOR IMP U.]]+Tabla4[[#This Row],[VALOR OTRO 2]]+Tabla4[[#This Row],[VALOR OTRO 1]] -> 0 | AF66: =IF($BP$8 = "SI",IF(Tabla4[[#This Row],[TIPO CONTRATO]]="Indefinido",BDD!S68*2.4%,IF(Tabla4[[#This Row],[TIPO CONTRATO]]="PLAZO FIJO",BDD!S68*3%,0)),0) -> 0 | AM66: =BDD!S68*Tabla4[[#This Row],[% SIS]] -> 0 | AP66: =BDD!S68*Tabla4[[#This Row],[%MUTUAL]] -> 0
K67: 63 | L67: =IF(BDD!J69=0," ",BDD!J69) ->  | O67: =IF(BDD!S69<_TOPEIMPONIBLE,BDD!S69*Tabla4[[#This Row],[%AFP]],_TOPEIMPONIBLE*Tabla4[[#This Row],[%AFP]]) -> 0 | R67: =IF(BDD!S69<_TOPEIMPONIBLE,BDD!S69*Tabla4[[#This Row],[%SALUD]],_TOPEIMPONIBLE*Tabla4[[#This Row],[%SALUD]]) -> 0 | U67: =BDD!S69*Tabla4[[#This Row],[%SEGURO]] -> 0 | W67: =IF(Tabla4[[#This Row],[TOTAL UF]]-Tabla4[[#This Row],[TOTAL SALUD]]<=0,0,Tabla4[[#This Row],[TOTAL UF]]-Tabla4[[#This Row],[TOTAL SALUD]]) -> 0 | Y67: =BDD!$N$4 -> 37838.55 | Z67: =Tabla4[[#This Row],[PACTO UF]]*Tabla4[[#This Row],[VALOR UF]] -> 0 | AA67: IMPUESTO UNICO | AB67: =BDD!S69-Tabla4[[#This Row],[TOTAL AFP]]-Tabla4[[#This Row],[TOTAL SALUD]]-Tabla4[[#This Row],[TOTAL SEGURO CESANTIA]]-Tabla4[[#This Row],[TOTAL ADICIONAL]] -> 0 | AC67: =IF(Tabla4[[#This Row],[PASO DESC. UNIC.]]<=$AT$5,0,IF(Tabla4[[#This Row],[PASO DESC. UNIC.]]<=$AT$6,Tabla4[[#This Row],[PASO DESC. UNIC.]]*$AU$6-$AV$6,IF(Tabla4[[#This Row],[PASO DESC. UNIC.]]<=$AT$7,Tabla4[[#This Row],[PASO DESC. UNIC.]]*$AU$7-$AV$7,IF(Tabla4[[#This Row],[PASO DESC. UNIC.]]<=$AT$8,Tabla4[[#This Row],[PASO DESC. UNIC.]]*$AU$8-$AV$8,IF(Tabla4[[#This Row],[PASO DESC. UNIC.]]<=$AT$9,Tabla4[[#This Row],[PASO DESC. UNIC.]]*$AU$9-$AV$9,IF(Tabla4[[#This Row],[PASO DESC. UNIC.]]<=$AT$10,Tabla4[[#This Row],[PASO DESC. UNIC.]]*$AU$10-$AV$10,IF(Tabla4[[#This Row],[PASO DESC. UNIC.]]>=$AS$11,Tabla4[[#This Row],[PASO DESC. UNIC.]]*$AU$11-$AV$11))))))) -> 0 | AD67: =Tabla4[[#This Row],[TOTAL AFP]]+Tabla4[[#This Row],[TOTAL SALUD]]+Tabla4[[#This Row],[TOTAL SEGURO CESANTIA]]+Tabla4[[#This Row],[TOTAL ADICIONAL]]+Tabla4[[#This Row],[VALOR IMP U.]]+Tabla4[[#This Row],[VALOR OTRO 2]]+Tabla4[[#This Row],[VALOR OTRO 1]] -> 0 | AF67: =IF($BP$8 = "SI",IF(Tabla4[[#This Row],[TIPO CONTRATO]]="Indefinido",BDD!S69*2.4%,IF(Tabla4[[#This Row],[TIPO CONTRATO]]="PLAZO FIJO",BDD!S69*3%,0)),0) -> 0 | AM67: =BDD!S69*Tabla4[[#This Row],[% SIS]] -> 0 | AP67: =BDD!S69*Tabla4[[#This Row],[%MUTUAL]] -> 0
K68: 64 | L68: =IF(BDD!J70=0," ",BDD!J70) ->  | O68: =IF(BDD!S70<_TOPEIMPONIBLE,BDD!S70*Tabla4[[#This Row],[%AFP]],_TOPEIMPONIBLE*Tabla4[[#This Row],[%AFP]]) -> 0 | R68: =IF(BDD!S70<_TOPEIMPONIBLE,BDD!S70*Tabla4[[#This Row],[%SALUD]],_TOPEIMPONIBLE*Tabla4[[#This Row],[%SALUD]]) -> 0 | U68: =BDD!S70*Tabla4[[#This Row],[%SEGURO]] -> 0 | W68: =IF(Tabla4[[#This Row],[TOTAL UF]]-Tabla4[[#This Row],[TOTAL SALUD]]<=0,0,Tabla4[[#This Row],[TOTAL UF]]-Tabla4[[#This Row],[TOTAL SALUD]]) -> 0 | Y68: =BDD!$N$4 -> 37838.55 | Z68: =Tabla4[[#This Row],[PACTO UF]]*Tabla4[[#This Row],[VALOR UF]] -> 0 | AA68: IMPUESTO UNICO | AB68: =BDD!S70-Tabla4[[#This Row],[TOTAL AFP]]-Tabla4[[#This Row],[TOTAL SALUD]]-Tabla4[[#This Row],[TOTAL SEGURO CESANTIA]]-Tabla4[[#This Row],[TOTAL ADICIONAL]] -> 0 | AC68: =IF(Tabla4[[#This Row],[PASO DESC. UNIC.]]<=$AT$5,0,IF(Tabla4[[#This Row],[PASO DESC. UNIC.]]<=$AT$6,Tabla4[[#This Row],[PASO DESC. UNIC.]]*$AU$6-$AV$6,IF(Tabla4[[#This Row],[PASO DESC. UNIC.]]<=$AT$7,Tabla4[[#This Row],[PASO DESC. UNIC.]]*$AU$7-$AV$7,IF(Tabla4[[#This Row],[PASO DESC. UNIC.]]<=$AT$8,Tabla4[[#This Row],[PASO DESC. UNIC.]]*$AU$8-$AV$8,IF(Tabla4[[#This Row],[PASO DESC. UNIC.]]<=$AT$9,Tabla4[[#This Row],[PASO DESC. UNIC.]]*$AU$9-$AV$9,IF(Tabla4[[#This Row],[PASO DESC. UNIC.]]<=$AT$10,Tabla4[[#This Row],[PASO DESC. UNIC.]]*$AU$10-$AV$10,IF(Tabla4[[#This Row],[PASO DESC. UNIC.]]>=$AS$11,Tabla4[[#This Row],[PASO DESC. UNIC.]]*$AU$11-$AV$11))))))) -> 0 | AD68: =Tabla4[[#This Row],[TOTAL AFP]]+Tabla4[[#This Row],[TOTAL SALUD]]+Tabla4[[#This Row],[TOTAL SEGURO CESANTIA]]+Tabla4[[#This Row],[TOTAL ADICIONAL]]+Tabla4[[#This Row],[VALOR IMP U.]]+Tabla4[[#This Row],[VALOR OTRO 2]]+Tabla4[[#This Row],[VALOR OTRO 1]] -> 0 | AF68: =IF($BP$8 = "SI",IF(Tabla4[[#This Row],[TIPO CONTRATO]]="Indefinido",BDD!S70*2.4%,IF(Tabla4[[#This Row],[TIPO CONTRATO]]="PLAZO FIJO",BDD!S70*3%,0)),0) -> 0 | AM68: =BDD!S70*Tabla4[[#This Row],[% SIS]] -> 0 | AP68: =BDD!S70*Tabla4[[#This Row],[%MUTUAL]] -> 0
K69: 65 | L69: =IF(BDD!J71=0," ",BDD!J71) ->  | O69: =IF(BDD!S71<_TOPEIMPONIBLE,BDD!S71*Tabla4[[#This Row],[%AFP]],_TOPEIMPONIBLE*Tabla4[[#This Row],[%AFP]]) -> 0 | R69: =IF(BDD!S71<_TOPEIMPONIBLE,BDD!S71*Tabla4[[#This Row],[%SALUD]],_TOPEIMPONIBLE*Tabla4[[#This Row],[%SALUD]]) -> 0 | U69: =BDD!S71*Tabla4[[#This Row],[%SEGURO]] -> 0 | W69: =IF(Tabla4[[#This Row],[TOTAL UF]]-Tabla4[[#This Row],[TOTAL SALUD]]<=0,0,Tabla4[[#This Row],[TOTAL UF]]-Tabla4[[#This Row],[TOTAL SALUD]]) -> 0 | Y69: =BDD!$N$4 -> 37838.55 | Z69: =Tabla4[[#This Row],[PACTO UF]]*Tabla4[[#This Row],[VALOR UF]] -> 0 | AA69: IMPUESTO UNICO | AB69: =BDD!S71-Tabla4[[#This Row],[TOTAL AFP]]-Tabla4[[#This Row],[TOTAL SALUD]]-Tabla4[[#This Row],[TOTAL SEGURO CESANTIA]]-Tabla4[[#This Row],[TOTAL ADICIONAL]] -> 0 | AC69: =IF(Tabla4[[#This Row],[PASO DESC. UNIC.]]<=$AT$5,0,IF(Tabla4[[#This Row],[PASO DESC. UNIC.]]<=$AT$6,Tabla4[[#This Row],[PASO DESC. UNIC.]]*$AU$6-$AV$6,IF(Tabla4[[#This Row],[PASO DESC. UNIC.]]<=$AT$7,Tabla4[[#This Row],[PASO DESC. UNIC.]]*$AU$7-$AV$7,IF(Tabla4[[#This Row],[PASO DESC. UNIC.]]<=$AT$8,Tabla4[[#This Row],[PASO DESC. UNIC.]]*$AU$8-$AV$8,IF(Tabla4[[#This Row],[PASO DESC. UNIC.]]<=$AT$9,Tabla4[[#This Row],[PASO DESC. UNIC.]]*$AU$9-$AV$9,IF(Tabla4[[#This Row],[PASO DESC. UNIC.]]<=$AT$10,Tabla4[[#This Row],[PASO DESC. UNIC.]]*$AU$10-$AV$10,IF(Tabla4[[#This Row],[PASO DESC. UNIC.]]>=$AS$11,Tabla4[[#This Row],[PASO DESC. UNIC.]]*$AU$11-$AV$11))))))) -> 0 | AD69: =Tabla4[[#This Row],[TOTAL AFP]]+Tabla4[[#This Row],[TOTAL SALUD]]+Tabla4[[#This Row],[TOTAL SEGURO CESANTIA]]+Tabla4[[#This Row],[TOTAL ADICIONAL]]+Tabla4[[#This Row],[VALOR IMP U.]]+Tabla4[[#This Row],[VALOR OTRO 2]]+Tabla4[[#This Row],[VALOR OTRO 1]] -> 0 | AF69: =IF($BP$8 = "SI",IF(Tabla4[[#This Row],[TIPO CONTRATO]]="Indefinido",BDD!S71*2.4%,IF(Tabla4[[#This Row],[TIPO CONTRATO]]="PLAZO FIJO",BDD!S71*3%,0)),0) -> 0 | AM69: =BDD!S71*Tabla4[[#This Row],[% SIS]] -> 0 | AP69: =BDD!S71*Tabla4[[#This Row],[%MUTUAL]] -> 0
K70: 66 | L70: =IF(BDD!J72=0," ",BDD!J72) ->  | O70: =IF(BDD!S72<_TOPEIMPONIBLE,BDD!S72*Tabla4[[#This Row],[%AFP]],_TOPEIMPONIBLE*Tabla4[[#This Row],[%AFP]]) -> 0 | R70: =IF(BDD!S72<_TOPEIMPONIBLE,BDD!S72*Tabla4[[#This Row],[%SALUD]],_TOPEIMPONIBLE*Tabla4[[#This Row],[%SALUD]]) -> 0 | U70: =BDD!S72*Tabla4[[#This Row],[%SEGURO]] -> 0 | W70: =IF(Tabla4[[#This Row],[TOTAL UF]]-Tabla4[[#This Row],[TOTAL SALUD]]<=0,0,Tabla4[[#This Row],[TOTAL UF]]-Tabla4[[#This Row],[TOTAL SALUD]]) -> 0 | Y70: =BDD!$N$4 -> 37838.55 | Z70: =Tabla4[[#This Row],[PACTO UF]]*Tabla4[[#This Row],[VALOR UF]] -> 0 | AA70: IMPUESTO UNICO | AB70: =BDD!S72-Tabla4[[#This Row],[TOTAL AFP]]-Tabla4[[#This Row],[TOTAL SALUD]]-Tabla4[[#This Row],[TOTAL SEGURO CESANTIA]]-Tabla4[[#This Row],[TOTAL ADICIONAL]] -> 0 | AC70: =IF(Tabla4[[#This Row],[PASO DESC. UNIC.]]<=$AT$5,0,IF(Tabla4[[#This Row],[PASO DESC. UNIC.]]<=$AT$6,Tabla4[[#This Row],[PASO DESC. UNIC.]]*$AU$6-$AV$6,IF(Tabla4[[#This Row],[PASO DESC. UNIC.]]<=$AT$7,Tabla4[[#This Row],[PASO DESC. UNIC.]]*$AU$7-$AV$7,IF(Tabla4[[#This Row],[PASO DESC. UNIC.]]<=$AT$8,Tabla4[[#This Row],[PASO DESC. UNIC.]]*$AU$8-$AV$8,IF(Tabla4[[#This Row],[PASO DESC. UNIC.]]<=$AT$9,Tabla4[[#This Row],[PASO DESC. UNIC.]]*$AU$9-$AV$9,IF(Tabla4[[#This Row],[PASO DESC. UNIC.]]<=$AT$10,Tabla4[[#This Row],[PASO DESC. UNIC.]]*$AU$10-$AV$10,IF(Tabla4[[#This Row],[PASO DESC. UNIC.]]>=$AS$11,Tabla4[[#This Row],[PASO DESC. UNIC.]]*$AU$11-$AV$11))))))) -> 0 | AD70: =Tabla4[[#This Row],[TOTAL AFP]]+Tabla4[[#This Row],[TOTAL SALUD]]+Tabla4[[#This Row],[TOTAL SEGURO CESANTIA]]+Tabla4[[#This Row],[TOTAL ADICIONAL]]+Tabla4[[#This Row],[VALOR IMP U.]]+Tabla4[[#This Row],[VALOR OTRO 2]]+Tabla4[[#This Row],[VALOR OTRO 1]] -> 0 | AF70: =IF($BP$8 = "SI",IF(Tabla4[[#This Row],[TIPO CONTRATO]]="Indefinido",BDD!S72*2.4%,IF(Tabla4[[#This Row],[TIPO CONTRATO]]="PLAZO FIJO",BDD!S72*3%,0)),0) -> 0 | AM70: =BDD!S72*Tabla4[[#This Row],[% SIS]] -> 0 | AP70: =BDD!S72*Tabla4[[#This Row],[%MUTUAL]] -> 0
K71: 67 | L71: =IF(BDD!J73=0," ",BDD!J73) ->  | O71: =IF(BDD!S73<_TOPEIMPONIBLE,BDD!S73*Tabla4[[#This Row],[%AFP]],_TOPEIMPONIBLE*Tabla4[[#This Row],[%AFP]]) -> 0 | R71: =IF(BDD!S73<_TOPEIMPONIBLE,BDD!S73*Tabla4[[#This Row],[%SALUD]],_TOPEIMPONIBLE*Tabla4[[#This Row],[%SALUD]]) -> 0 | U71: =BDD!S73*Tabla4[[#This Row],[%SEGURO]] -> 0 | W71: =IF(Tabla4[[#This Row],[TOTAL UF]]-Tabla4[[#This Row],[TOTAL SALUD]]<=0,0,Tabla4[[#This Row],[TOTAL UF]]-Tabla4[[#This Row],[TOTAL SALUD]]) -> 0 | Y71: =BDD!$N$4 -> 37838.55 | Z71: =Tabla4[[#This Row],[PACTO UF]]*Tabla4[[#This Row],[VALOR UF]] -> 0 | AA71: IMPUESTO UNICO | AB71: =BDD!S73-Tabla4[[#This Row],[TOTAL AFP]]-Tabla4[[#This Row],[TOTAL SALUD]]-Tabla4[[#This Row],[TOTAL SEGURO CESANTIA]]-Tabla4[[#This Row],[TOTAL ADICIONAL]] -> 0 | AC71: =IF(Tabla4[[#This Row],[PASO DESC. UNIC.]]<=$AT$5,0,IF(Tabla4[[#This Row],[PASO DESC. UNIC.]]<=$AT$6,Tabla4[[#This Row],[PASO DESC. UNIC.]]*$AU$6-$AV$6,IF(Tabla4[[#This Row],[PASO DESC. UNIC.]]<=$AT$7,Tabla4[[#This Row],[PASO DESC. UNIC.]]*$AU$7-$AV$7,IF(Tabla4[[#This Row],[PASO DESC. UNIC.]]<=$AT$8,Tabla4[[#This Row],[PASO DESC. UNIC.]]*$AU$8-$AV$8,IF(Tabla4[[#This Row],[PASO DESC. UNIC.]]<=$AT$9,Tabla4[[#This Row],[PASO DESC. UNIC.]]*$AU$9-$AV$9,IF(Tabla4[[#This Row],[PASO DESC. UNIC.]]<=$AT$10,Tabla4[[#This Row],[PASO DESC. UNIC.]]*$AU$10-$AV$10,IF(Tabla4[[#This Row],[PASO DESC. UNIC.]]>=$AS$11,Tabla4[[#This Row],[PASO DESC. UNIC.]]*$AU$11-$AV$11))))))) -> 0 | AD71: =Tabla4[[#This Row],[TOTAL AFP]]+Tabla4[[#This Row],[TOTAL SALUD]]+Tabla4[[#This Row],[TOTAL SEGURO CESANTIA]]+Tabla4[[#This Row],[TOTAL ADICIONAL]]+Tabla4[[#This Row],[VALOR IMP U.]]+Tabla4[[#This Row],[VALOR OTRO 2]]+Tabla4[[#This Row],[VALOR OTRO 1]] -> 0 | AF71: =IF($BP$8 = "SI",IF(Tabla4[[#This Row],[TIPO CONTRATO]]="Indefinido",BDD!S73*2.4%,IF(Tabla4[[#This Row],[TIPO CONTRATO]]="PLAZO FIJO",BDD!S73*3%,0)),0) -> 0 | AM71: =BDD!S73*Tabla4[[#This Row],[% SIS]] -> 0 | AP71: =BDD!S73*Tabla4[[#This Row],[%MUTUAL]] -> 0
K72: 68 | L72: =IF(BDD!J74=0," ",BDD!J74) ->  | O72: =IF(BDD!S74<_TOPEIMPONIBLE,BDD!S74*Tabla4[[#This Row],[%AFP]],_TOPEIMPONIBLE*Tabla4[[#This Row],[%AFP]]) -> 0 | R72: =IF(BDD!S74<_TOPEIMPONIBLE,BDD!S74*Tabla4[[#This Row],[%SALUD]],_TOPEIMPONIBLE*Tabla4[[#This Row],[%SALUD]]) -> 0 | U72: =BDD!S74*Tabla4[[#This Row],[%SEGURO]] -> 0 | W72: =IF(Tabla4[[#This Row],[TOTAL UF]]-Tabla4[[#This Row],[TOTAL SALUD]]<=0,0,Tabla4[[#This Row],[TOTAL UF]]-Tabla4[[#This Row],[TOTAL SALUD]]) -> 0 | Y72: =BDD!$N$4 -> 37838.55 | Z72: =Tabla4[[#This Row],[PACTO UF]]*Tabla4[[#This Row],[VALOR UF]] -> 0 | AA72: IMPUESTO UNICO | AB72: =BDD!S74-Tabla4[[#This Row],[TOTAL AFP]]-Tabla4[[#This Row],[TOTAL SALUD]]-Tabla4[[#This Row],[TOTAL SEGURO CESANTIA]]-Tabla4[[#This Row],[TOTAL ADICIONAL]] -> 0 | AC72: =IF(Tabla4[[#This Row],[PASO DESC. UNIC.]]<=$AT$5,0,IF(Tabla4[[#This Row],[PASO DESC. UNIC.]]<=$AT$6,Tabla4[[#This Row],[PASO DESC. UNIC.]]*$AU$6-$AV$6,IF(Tabla4[[#This Row],[PASO DESC. UNIC.]]<=$AT$7,Tabla4[[#This Row],[PASO DESC. UNIC.]]*$AU$7-$AV$7,IF(Tabla4[[#This Row],[PASO DESC. UNIC.]]<=$AT$8,Tabla4[[#This Row],[PASO DESC. UNIC.]]*$AU$8-$AV$8,IF(Tabla4[[#This Row],[PASO DESC. UNIC.]]<=$AT$9,Tabla4[[#This Row],[PASO DESC. UNIC.]]*$AU$9-$AV$9,IF(Tabla4[[#This Row],[PASO DESC. UNIC.]]<=$AT$10,Tabla4[[#This Row],[PASO DESC. UNIC.]]*$AU$10-$AV$10,IF(Tabla4[[#This Row],[PASO DESC. UNIC.]]>=$AS$11,Tabla4[[#This Row],[PASO DESC. UNIC.]]*$AU$11-$AV$11))))))) -> 0 | AD72: =Tabla4[[#This Row],[TOTAL AFP]]+Tabla4[[#This Row],[TOTAL SALUD]]+Tabla4[[#This Row],[TOTAL SEGURO CESANTIA]]+Tabla4[[#This Row],[TOTAL ADICIONAL]]+Tabla4[[#This Row],[VALOR IMP U.]]+Tabla4[[#This Row],[VALOR OTRO 2]]+Tabla4[[#This Row],[VALOR OTRO 1]] -> 0 | AF72: =IF($BP$8 = "SI",IF(Tabla4[[#This Row],[TIPO CONTRATO]]="Indefinido",BDD!S74*2.4%,IF(Tabla4[[#This Row],[TIPO CONTRATO]]="PLAZO FIJO",BDD!S74*3%,0)),0) -> 0 | AM72: =BDD!S74*Tabla4[[#This Row],[% SIS]] -> 0 | AP72: =BDD!S74*Tabla4[[#This Row],[%MUTUAL]] -> 0
K73: 69 | L73: =IF(BDD!J75=0," ",BDD!J75) ->  | O73: =IF(BDD!S75<_TOPEIMPONIBLE,BDD!S75*Tabla4[[#This Row],[%AFP]],_TOPEIMPONIBLE*Tabla4[[#This Row],[%AFP]]) -> 0 | R73: =IF(BDD!S75<_TOPEIMPONIBLE,BDD!S75*Tabla4[[#This Row],[%SALUD]],_TOPEIMPONIBLE*Tabla4[[#This Row],[%SALUD]]) -> 0 | U73: =BDD!S75*Tabla4[[#This Row],[%SEGURO]] -> 0 | W73: =IF(Tabla4[[#This Row],[TOTAL UF]]-Tabla4[[#This Row],[TOTAL SALUD]]<=0,0,Tabla4[[#This Row],[TOTAL UF]]-Tabla4[[#This Row],[TOTAL SALUD]]) -> 0 | Y73: =BDD!$N$4 -> 37838.55 | Z73: =Tabla4[[#This Row],[PACTO UF]]*Tabla4[[#This Row],[VALOR UF]] -> 0 | AA73: IMPUESTO UNICO | AB73: =BDD!S75-Tabla4[[#This Row],[TOTAL AFP]]-Tabla4[[#This Row],[TOTAL SALUD]]-Tabla4[[#This Row],[TOTAL SEGURO CESANTIA]]-Tabla4[[#This Row],[TOTAL ADICIONAL]] -> 0 | AC73: =IF(Tabla4[[#This Row],[PASO DESC. UNIC.]]<=$AT$5,0,IF(Tabla4[[#This Row],[PASO DESC. UNIC.]]<=$AT$6,Tabla4[[#This Row],[PASO DESC. UNIC.]]*$AU$6-$AV$6,IF(Tabla4[[#This Row],[PASO DESC. UNIC.]]<=$AT$7,Tabla4[[#This Row],[PASO DESC. UNIC.]]*$AU$7-$AV$7,IF(Tabla4[[#This Row],[PASO DESC. UNIC.]]<=$AT$8,Tabla4[[#This Row],[PASO DESC. UNIC.]]*$AU$8-$AV$8,IF(Tabla4[[#This Row],[PASO DESC. UNIC.]]<=$AT$9,Tabla4[[#This Row],[PASO DESC. UNIC.]]*$AU$9-$AV$9,IF(Tabla4[[#This Row],[PASO DESC. UNIC.]]<=$AT$10,Tabla4[[#This Row],[PASO DESC. UNIC.]]*$AU$10-$AV$10,IF(Tabla4[[#This Row],[PASO DESC. UNIC.]]>=$AS$11,Tabla4[[#This Row],[PASO DESC. UNIC.]]*$AU$11-$AV$11))))))) -> 0 | AD73: =Tabla4[[#This Row],[TOTAL AFP]]+Tabla4[[#This Row],[TOTAL SALUD]]+Tabla4[[#This Row],[TOTAL SEGURO CESANTIA]]+Tabla4[[#This Row],[TOTAL ADICIONAL]]+Tabla4[[#This Row],[VALOR IMP U.]]+Tabla4[[#This Row],[VALOR OTRO 2]]+Tabla4[[#This Row],[VALOR OTRO 1]] -> 0 | AF73: =IF($BP$8 = "SI",IF(Tabla4[[#This Row],[TIPO CONTRATO]]="Indefinido",BDD!S75*2.4%,IF(Tabla4[[#This Row],[TIPO CONTRATO]]="PLAZO FIJO",BDD!S75*3%,0)),0) -> 0 | AM73: =BDD!S75*Tabla4[[#This Row],[% SIS]] -> 0 | AP73: =BDD!S75*Tabla4[[#This Row],[%MUTUAL]] -> 0
K74: 70 | L74: =IF(BDD!J76=0," ",BDD!J76) ->  | O74: =IF(BDD!S76<_TOPEIMPONIBLE,BDD!S76*Tabla4[[#This Row],[%AFP]],_TOPEIMPONIBLE*Tabla4[[#This Row],[%AFP]]) -> 0 | R74: =IF(BDD!S76<_TOPEIMPONIBLE,BDD!S76*Tabla4[[#This Row],[%SALUD]],_TOPEIMPONIBLE*Tabla4[[#This Row],[%SALUD]]) -> 0 | U74: =BDD!S76*Tabla4[[#This Row],[%SEGURO]] -> 0 | W74: =IF(Tabla4[[#This Row],[TOTAL UF]]-Tabla4[[#This Row],[TOTAL SALUD]]<=0,0,Tabla4[[#This Row],[TOTAL UF]]-Tabla4[[#This Row],[TOTAL SALUD]]) -> 0 | Y74: =BDD!$N$4 -> 37838.55 | Z74: =Tabla4[[#This Row],[PACTO UF]]*Tabla4[[#This Row],[VALOR UF]] -> 0 | AA74: IMPUESTO UNICO | AB74: =BDD!S76-Tabla4[[#This Row],[TOTAL AFP]]-Tabla4[[#This Row],[TOTAL SALUD]]-Tabla4[[#This Row],[TOTAL SEGURO CESANTIA]]-Tabla4[[#This Row],[TOTAL ADICIONAL]] -> 0 | AC74: =IF(Tabla4[[#This Row],[PASO DESC. UNIC.]]<=$AT$5,0,IF(Tabla4[[#This Row],[PASO DESC. UNIC.]]<=$AT$6,Tabla4[[#This Row],[PASO DESC. UNIC.]]*$AU$6-$AV$6,IF(Tabla4[[#This Row],[PASO DESC. UNIC.]]<=$AT$7,Tabla4[[#This Row],[PASO DESC. UNIC.]]*$AU$7-$AV$7,IF(Tabla4[[#This Row],[PASO DESC. UNIC.]]<=$AT$8,Tabla4[[#This Row],[PASO DESC. UNIC.]]*$AU$8-$AV$8,IF(Tabla4[[#This Row],[PASO DESC. UNIC.]]<=$AT$9,Tabla4[[#This Row],[PASO DESC. UNIC.]]*$AU$9-$AV$9,IF(Tabla4[[#This Row],[PASO DESC. UNIC.]]<=$AT$10,Tabla4[[#This Row],[PASO DESC. UNIC.]]*$AU$10-$AV$10,IF(Tabla4[[#This Row],[PASO DESC. UNIC.]]>=$AS$11,Tabla4[[#This Row],[PASO DESC. UNIC.]]*$AU$11-$AV$11))))))) -> 0 | AD74: =Tabla4[[#This Row],[TOTAL AFP]]+Tabla4[[#This Row],[TOTAL SALUD]]+Tabla4[[#This Row],[TOTAL SEGURO CESANTIA]]+Tabla4[[#This Row],[TOTAL ADICIONAL]]+Tabla4[[#This Row],[VALOR IMP U.]]+Tabla4[[#This Row],[VALOR OTRO 2]]+Tabla4[[#This Row],[VALOR OTRO 1]] -> 0 | AF74: =IF($BP$8 = "SI",IF(Tabla4[[#This Row],[TIPO CONTRATO]]="Indefinido",BDD!S76*2.4%,IF(Tabla4[[#This Row],[TIPO CONTRATO]]="PLAZO FIJO",BDD!S76*3%,0)),0) -> 0 | AM74: =BDD!S76*Tabla4[[#This Row],[% SIS]] -> 0 | AP74: =BDD!S76*Tabla4[[#This Row],[%MUTUAL]] -> 0
K75: 71 | L75: =IF(BDD!J77=0," ",BDD!J77) ->  | O75: =IF(BDD!S77<_TOPEIMPONIBLE,BDD!S77*Tabla4[[#This Row],[%AFP]],_TOPEIMPONIBLE*Tabla4[[#This Row],[%AFP]]) -> 0 | R75: =IF(BDD!S77<_TOPEIMPONIBLE,BDD!S77*Tabla4[[#This Row],[%SALUD]],_TOPEIMPONIBLE*Tabla4[[#This Row],[%SALUD]]) -> 0 | U75: =BDD!S77*Tabla4[[#This Row],[%SEGURO]] -> 0 | W75: =IF(Tabla4[[#This Row],[TOTAL UF]]-Tabla4[[#This Row],[TOTAL SALUD]]<=0,0,Tabla4[[#This Row],[TOTAL UF]]-Tabla4[[#This Row],[TOTAL SALUD]]) -> 0 | Y75: =BDD!$N$4 -> 37838.55 | Z75: =Tabla4[[#This Row],[PACTO UF]]*Tabla4[[#This Row],[VALOR UF]] -> 0 | AA75: IMPUESTO UNICO | AB75: =BDD!S77-Tabla4[[#This Row],[TOTAL AFP]]-Tabla4[[#This Row],[TOTAL SALUD]]-Tabla4[[#This Row],[TOTAL SEGURO CESANTIA]]-Tabla4[[#This Row],[TOTAL ADICIONAL]] -> 0 | AC75: =IF(Tabla4[[#This Row],[PASO DESC. UNIC.]]<=$AT$5,0,IF(Tabla4[[#This Row],[PASO DESC. UNIC.]]<=$AT$6,Tabla4[[#This Row],[PASO DESC. UNIC.]]*$AU$6-$AV$6,IF(Tabla4[[#This Row],[PASO DESC. UNIC.]]<=$AT$7,Tabla4[[#This Row],[PASO DESC. UNIC.]]*$AU$7-$AV$7,IF(Tabla4[[#This Row],[PASO DESC. UNIC.]]<=$AT$8,Tabla4[[#This Row],[PASO DESC. UNIC.]]*$AU$8-$AV$8,IF(Tabla4[[#This Row],[PASO DESC. UNIC.]]<=$AT$9,Tabla4[[#This Row],[PASO DESC. UNIC.]]*$AU$9-$AV$9,IF(Tabla4[[#This Row],[PASO DESC. UNIC.]]<=$AT$10,Tabla4[[#This Row],[PASO DESC. UNIC.]]*$AU$10-$AV$10,IF(Tabla4[[#This Row],[PASO DESC. UNIC.]]>=$AS$11,Tabla4[[#This Row],[PASO DESC. UNIC.]]*$AU$11-$AV$11))))))) -> 0 | AD75: =Tabla4[[#This Row],[TOTAL AFP]]+Tabla4[[#This Row],[TOTAL SALUD]]+Tabla4[[#This Row],[TOTAL SEGURO CESANTIA]]+Tabla4[[#This Row],[TOTAL ADICIONAL]]+Tabla4[[#This Row],[VALOR IMP U.]]+Tabla4[[#This Row],[VALOR OTRO 2]]+Tabla4[[#This Row],[VALOR OTRO 1]] -> 0 | AF75: =IF($BP$8 = "SI",IF(Tabla4[[#This Row],[TIPO CONTRATO]]="Indefinido",BDD!S77*2.4%,IF(Tabla4[[#This Row],[TIPO CONTRATO]]="PLAZO FIJO",BDD!S77*3%,0)),0) -> 0 | AM75: =BDD!S77*Tabla4[[#This Row],[% SIS]] -> 0 | AP75: =BDD!S77*Tabla4[[#This Row],[%MUTUAL]] -> 0
K76: 72 | L76: =IF(BDD!J78=0," ",BDD!J78) ->  | O76: =IF(BDD!S78<_TOPEIMPONIBLE,BDD!S78*Tabla4[[#This Row],[%AFP]],_TOPEIMPONIBLE*Tabla4[[#This Row],[%AFP]]) -> 0 | R76: =IF(BDD!S78<_TOPEIMPONIBLE,BDD!S78*Tabla4[[#This Row],[%SALUD]],_TOPEIMPONIBLE*Tabla4[[#This Row],[%SALUD]]) -> 0 | U76: =BDD!S78*Tabla4[[#This Row],[%SEGURO]] -> 0 | W76: =IF(Tabla4[[#This Row],[TOTAL UF]]-Tabla4[[#This Row],[TOTAL SALUD]]<=0,0,Tabla4[[#This Row],[TOTAL UF]]-Tabla4[[#This Row],[TOTAL SALUD]]) -> 0 | Y76: =BDD!$N$4 -> 37838.55 | Z76: =Tabla4[[#This Row],[PACTO UF]]*Tabla4[[#This Row],[VALOR UF]] -> 0 | AA76: IMPUESTO UNICO | AB76: =BDD!S78-Tabla4[[#This Row],[TOTAL AFP]]-Tabla4[[#This Row],[TOTAL SALUD]]-Tabla4[[#This Row],[TOTAL SEGURO CESANTIA]]-Tabla4[[#This Row],[TOTAL ADICIONAL]] -> 0 | AC76: =IF(Tabla4[[#This Row],[PASO DESC. UNIC.]]<=$AT$5,0,IF(Tabla4[[#This Row],[PASO DESC. UNIC.]]<=$AT$6,Tabla4[[#This Row],[PASO DESC. UNIC.]]*$AU$6-$AV$6,IF(Tabla4[[#This Row],[PASO DESC. UNIC.]]<=$AT$7,Tabla4[[#This Row],[PASO DESC. UNIC.]]*$AU$7-$AV$7,IF(Tabla4[[#This Row],[PASO DESC. UNIC.]]<=$AT$8,Tabla4[[#This Row],[PASO DESC. UNIC.]]*$AU$8-$AV$8,IF(Tabla4[[#This Row],[PASO DESC. UNIC.]]<=$AT$9,Tabla4[[#This Row],[PASO DESC. UNIC.]]*$AU$9-$AV$9,IF(Tabla4[[#This Row],[PASO DESC. UNIC.]]<=$AT$10,Tabla4[[#This Row],[PASO DESC. UNIC.]]*$AU$10-$AV$10,IF(Tabla4[[#This Row],[PASO DESC. UNIC.]]>=$AS$11,Tabla4[[#This Row],[PASO DESC. UNIC.]]*$AU$11-$AV$11))))))) -> 0 | AD76: =Tabla4[[#This Row],[TOTAL AFP]]+Tabla4[[#This Row],[TOTAL SALUD]]+Tabla4[[#This Row],[TOTAL SEGURO CESANTIA]]+Tabla4[[#This Row],[TOTAL ADICIONAL]]+Tabla4[[#This Row],[VALOR IMP U.]]+Tabla4[[#This Row],[VALOR OTRO 2]]+Tabla4[[#This Row],[VALOR OTRO 1]] -> 0 | AF76: =IF($BP$8 = "SI",IF(Tabla4[[#This Row],[TIPO CONTRATO]]="Indefinido",BDD!S78*2.4%,IF(Tabla4[[#This Row],[TIPO CONTRATO]]="PLAZO FIJO",BDD!S78*3%,0)),0) -> 0 | AM76: =BDD!S78*Tabla4[[#This Row],[% SIS]] -> 0 | AP76: =BDD!S78*Tabla4[[#This Row],[%MUTUAL]] -> 0
K77: 73 | L77: =IF(BDD!J79=0," ",BDD!J79) ->  | O77: =IF(BDD!S79<_TOPEIMPONIBLE,BDD!S79*Tabla4[[#This Row],[%AFP]],_TOPEIMPONIBLE*Tabla4[[#This Row],[%AFP]]) -> 0 | R77: =IF(BDD!S79<_TOPEIMPONIBLE,BDD!S79*Tabla4[[#This Row],[%SALUD]],_TOPEIMPONIBLE*Tabla4[[#This Row],[%SALUD]]) -> 0 | U77: =BDD!S79*Tabla4[[#This Row],[%SEGURO]] -> 0 | W77: =IF(Tabla4[[#This Row],[TOTAL UF]]-Tabla4[[#This Row],[TOTAL SALUD]]<=0,0,Tabla4[[#This Row],[TOTAL UF]]-Tabla4[[#This Row],[TOTAL SALUD]]) -> 0 | Y77: =BDD!$N$4 -> 37838.55 | Z77: =Tabla4[[#This Row],[PACTO UF]]*Tabla4[[#This Row],[VALOR UF]] -> 0 | AA77: IMPUESTO UNICO | AB77: =BDD!S79-Tabla4[[#This Row],[TOTAL AFP]]-Tabla4[[#This Row],[TOTAL SALUD]]-Tabla4[[#This Row],[TOTAL SEGURO CESANTIA]]-Tabla4[[#This Row],[TOTAL ADICIONAL]] -> 0 | AC77: =IF(Tabla4[[#This Row],[PASO DESC. UNIC.]]<=$AT$5,0,IF(Tabla4[[#This Row],[PASO DESC. UNIC.]]<=$AT$6,Tabla4[[#This Row],[PASO DESC. UNIC.]]*$AU$6-$AV$6,IF(Tabla4[[#This Row],[PASO DESC. UNIC.]]<=$AT$7,Tabla4[[#This Row],[PASO DESC. UNIC.]]*$AU$7-$AV$7,IF(Tabla4[[#This Row],[PASO DESC. UNIC.]]<=$AT$8,Tabla4[[#This Row],[PASO DESC. UNIC.]]*$AU$8-$AV$8,IF(Tabla4[[#This Row],[PASO DESC. UNIC.]]<=$AT$9,Tabla4[[#This Row],[PASO DESC. UNIC.]]*$AU$9-$AV$9,IF(Tabla4[[#This Row],[PASO DESC. UNIC.]]<=$AT$10,Tabla4[[#This Row],[PASO DESC. UNIC.]]*$AU$10-$AV$10,IF(Tabla4[[#This Row],[PASO DESC. UNIC.]]>=$AS$11,Tabla4[[#This Row],[PASO DESC. UNIC.]]*$AU$11-$AV$11))))))) -> 0 | AD77: =Tabla4[[#This Row],[TOTAL AFP]]+Tabla4[[#This Row],[TOTAL SALUD]]+Tabla4[[#This Row],[TOTAL SEGURO CESANTIA]]+Tabla4[[#This Row],[TOTAL ADICIONAL]]+Tabla4[[#This Row],[VALOR IMP U.]]+Tabla4[[#This Row],[VALOR OTRO 2]]+Tabla4[[#This Row],[VALOR OTRO 1]] -> 0 | AF77: =IF($BP$8 = "SI",IF(Tabla4[[#This Row],[TIPO CONTRATO]]="Indefinido",BDD!S79*2.4%,IF(Tabla4[[#This Row],[TIPO CONTRATO]]="PLAZO FIJO",BDD!S79*3%,0)),0) -> 0 | AM77: =BDD!S79*Tabla4[[#This Row],[% SIS]] -> 0 | AP77: =BDD!S79*Tabla4[[#This Row],[%MUTUAL]] -> 0
K78: 74 | L78: =IF(BDD!J80=0," ",BDD!J80) ->  | O78: =IF(BDD!S80<_TOPEIMPONIBLE,BDD!S80*Tabla4[[#This Row],[%AFP]],_TOPEIMPONIBLE*Tabla4[[#This Row],[%AFP]]) -> 0 | R78: =IF(BDD!S80<_TOPEIMPONIBLE,BDD!S80*Tabla4[[#This Row],[%SALUD]],_TOPEIMPONIBLE*Tabla4[[#This Row],[%SALUD]]) -> 0 | U78: =BDD!S80*Tabla4[[#This Row],[%SEGURO]] -> 0 | W78: =IF(Tabla4[[#This Row],[TOTAL UF]]-Tabla4[[#This Row],[TOTAL SALUD]]<=0,0,Tabla4[[#This Row],[TOTAL UF]]-Tabla4[[#This Row],[TOTAL SALUD]]) -> 0 | Y78: =BDD!$N$4 -> 37838.55 | Z78: =Tabla4[[#This Row],[PACTO UF]]*Tabla4[[#This Row],[VALOR UF]] -> 0 | AA78: IMPUESTO UNICO | AB78: =BDD!S80-Tabla4[[#This Row],[TOTAL AFP]]-Tabla4[[#This Row],[TOTAL SALUD]]-Tabla4[[#This Row],[TOTAL SEGURO CESANTIA]]-Tabla4[[#This Row],[TOTAL ADICIONAL]] -> 0 | AC78: =IF(Tabla4[[#This Row],[PASO DESC. UNIC.]]<=$AT$5,0,IF(Tabla4[[#This Row],[PASO DESC. UNIC.]]<=$AT$6,Tabla4[[#This Row],[PASO DESC. UNIC.]]*$AU$6-$AV$6,IF(Tabla4[[#This Row],[PASO DESC. UNIC.]]<=$AT$7,Tabla4[[#This Row],[PASO DESC. UNIC.]]*$AU$7-$AV$7,IF(Tabla4[[#This Row],[PASO DESC. UNIC.]]<=$AT$8,Tabla4[[#This Row],[PASO DESC. UNIC.]]*$AU$8-$AV$8,IF(Tabla4[[#This Row],[PASO DESC. UNIC.]]<=$AT$9,Tabla4[[#This Row],[PASO DESC. UNIC.]]*$AU$9-$AV$9,IF(Tabla4[[#This Row],[PASO DESC. UNIC.]]<=$AT$10,Tabla4[[#This Row],[PASO DESC. UNIC.]]*$AU$10-$AV$10,IF(Tabla4[[#This Row],[PASO DESC. UNIC.]]>=$AS$11,Tabla4[[#This Row],[PASO DESC. UNIC.]]*$AU$11-$AV$11))))))) -> 0 | AD78: =Tabla4[[#This Row],[TOTAL AFP]]+Tabla4[[#This Row],[TOTAL SALUD]]+Tabla4[[#This Row],[TOTAL SEGURO CESANTIA]]+Tabla4[[#This Row],[TOTAL ADICIONAL]]+Tabla4[[#This Row],[VALOR IMP U.]]+Tabla4[[#This Row],[VALOR OTRO 2]]+Tabla4[[#This Row],[VALOR OTRO 1]] -> 0 | AF78: =IF($BP$8 = "SI",IF(Tabla4[[#This Row],[TIPO CONTRATO]]="Indefinido",BDD!S80*2.4%,IF(Tabla4[[#This Row],[TIPO CONTRATO]]="PLAZO FIJO",BDD!S80*3%,0)),0) -> 0 | AM78: =BDD!S80*Tabla4[[#This Row],[% SIS]] -> 0 | AP78: =BDD!S80*Tabla4[[#This Row],[%MUTUAL]] -> 0
K79: 75 | L79: =IF(BDD!J81=0," ",BDD!J81) ->  | O79: =IF(BDD!S81<_TOPEIMPONIBLE,BDD!S81*Tabla4[[#This Row],[%AFP]],_TOPEIMPONIBLE*Tabla4[[#This Row],[%AFP]]) -> 0 | R79: =IF(BDD!S81<_TOPEIMPONIBLE,BDD!S81*Tabla4[[#This Row],[%SALUD]],_TOPEIMPONIBLE*Tabla4[[#This Row],[%SALUD]]) -> 0 | U79: =BDD!S81*Tabla4[[#This Row],[%SEGURO]] -> 0 | W79: =IF(Tabla4[[#This Row],[TOTAL UF]]-Tabla4[[#This Row],[TOTAL SALUD]]<=0,0,Tabla4[[#This Row],[TOTAL UF]]-Tabla4[[#This Row],[TOTAL SALUD]]) -> 0 | Y79: =BDD!$N$4 -> 37838.55 | Z79: =Tabla4[[#This Row],[PACTO UF]]*Tabla4[[#This Row],[VALOR UF]] -> 0 | AA79: IMPUESTO UNICO | AB79: =BDD!S81-Tabla4[[#This Row],[TOTAL AFP]]-Tabla4[[#This Row],[TOTAL SALUD]]-Tabla4[[#This Row],[TOTAL SEGURO CESANTIA]]-Tabla4[[#This Row],[TOTAL ADICIONAL]] -> 0 | AC79: =IF(Tabla4[[#This Row],[PASO DESC. UNIC.]]<=$AT$5,0,IF(Tabla4[[#This Row],[PASO DESC. UNIC.]]<=$AT$6,Tabla4[[#This Row],[PASO DESC. UNIC.]]*$AU$6-$AV$6,IF(Tabla4[[#This Row],[PASO DESC. UNIC.]]<=$AT$7,Tabla4[[#This Row],[PASO DESC. UNIC.]]*$AU$7-$AV$7,IF(Tabla4[[#This Row],[PASO DESC. UNIC.]]<=$AT$8,Tabla4[[#This Row],[PASO DESC. UNIC.]]*$AU$8-$AV$8,IF(Tabla4[[#This Row],[PASO DESC. UNIC.]]<=$AT$9,Tabla4[[#This Row],[PASO DESC. UNIC.]]*$AU$9-$AV$9,IF(Tabla4[[#This Row],[PASO DESC. UNIC.]]<=$AT$10,Tabla4[[#This Row],[PASO DESC. UNIC.]]*$AU$10-$AV$10,IF(Tabla4[[#This Row],[PASO DESC. UNIC.]]>=$AS$11,Tabla4[[#This Row],[PASO DESC. UNIC.]]*$AU$11-$AV$11))))))) -> 0 | AD79: =Tabla4[[#This Row],[TOTAL AFP]]+Tabla4[[#This Row],[TOTAL SALUD]]+Tabla4[[#This Row],[TOTAL SEGURO CESANTIA]]+Tabla4[[#This Row],[TOTAL ADICIONAL]]+Tabla4[[#This Row],[VALOR IMP U.]]+Tabla4[[#This Row],[VALOR OTRO 2]]+Tabla4[[#This Row],[VALOR OTRO 1]] -> 0 | AF79: =IF($BP$8 = "SI",IF(Tabla4[[#This Row],[TIPO CONTRATO]]="Indefinido",BDD!S81*2.4%,IF(Tabla4[[#This Row],[TIPO CONTRATO]]="PLAZO FIJO",BDD!S81*3%,0)),0) -> 0 | AM79: =BDD!S81*Tabla4[[#This Row],[% SIS]] -> 0 | AP79: =BDD!S81*Tabla4[[#This Row],[%MUTUAL]] -> 0
K80: 76 | L80: =IF(BDD!J82=0," ",BDD!J82) ->  | O80: =IF(BDD!S82<_TOPEIMPONIBLE,BDD!S82*Tabla4[[#This Row],[%AFP]],_TOPEIMPONIBLE*Tabla4[[#This Row],[%AFP]]) -> 0 | R80: =IF(BDD!S82<_TOPEIMPONIBLE,BDD!S82*Tabla4[[#This Row],[%SALUD]],_TOPEIMPONIBLE*Tabla4[[#This Row],[%SALUD]]) -> 0 | U80: =BDD!S82*Tabla4[[#This Row],[%SEGURO]] -> 0 | W80: =IF(Tabla4[[#This Row],[TOTAL UF]]-Tabla4[[#This Row],[TOTAL SALUD]]<=0,0,Tabla4[[#This Row],[TOTAL UF]]-Tabla4[[#This Row],[TOTAL SALUD]]) -> 0 | Y80: =BDD!$N$4 -> 37838.55 | Z80: =Tabla4[[#This Row],[PACTO UF]]*Tabla4[[#This Row],[VALOR UF]] -> 0 | AA80: IMPUESTO UNICO | AB80: =BDD!S82-Tabla4[[#This Row],[TOTAL AFP]]-Tabla4[[#This Row],[TOTAL SALUD]]-Tabla4[[#This Row],[TOTAL SEGURO CESANTIA]]-Tabla4[[#This Row],[TOTAL ADICIONAL]] -> 0 | AC80: =IF(Tabla4[[#This Row],[PASO DESC. UNIC.]]<=$AT$5,0,IF(Tabla4[[#This Row],[PASO DESC. UNIC.]]<=$AT$6,Tabla4[[#This Row],[PASO DESC. UNIC.]]*$AU$6-$AV$6,IF(Tabla4[[#This Row],[PASO DESC. UNIC.]]<=$AT$7,Tabla4[[#This Row],[PASO DESC. UNIC.]]*$AU$7-$AV$7,IF(Tabla4[[#This Row],[PASO DESC. UNIC.]]<=$AT$8,Tabla4[[#This Row],[PASO DESC. UNIC.]]*$AU$8-$AV$8,IF(Tabla4[[#This Row],[PASO DESC. UNIC.]]<=$AT$9,Tabla4[[#This Row],[PASO DESC. UNIC.]]*$AU$9-$AV$9,IF(Tabla4[[#This Row],[PASO DESC. UNIC.]]<=$AT$10,Tabla4[[#This Row],[PASO DESC. UNIC.]]*$AU$10-$AV$10,IF(Tabla4[[#This Row],[PASO DESC. UNIC.]]>=$AS$11,Tabla4[[#This Row],[PASO DESC. UNIC.]]*$AU$11-$AV$11))))))) -> 0 | AD80: =Tabla4[[#This Row],[TOTAL AFP]]+Tabla4[[#This Row],[TOTAL SALUD]]+Tabla4[[#This Row],[TOTAL SEGURO CESANTIA]]+Tabla4[[#This Row],[TOTAL ADICIONAL]]+Tabla4[[#This Row],[VALOR IMP U.]]+Tabla4[[#This Row],[VALOR OTRO 2]]+Tabla4[[#This Row],[VALOR OTRO 1]] -> 0 | AF80: =IF($BP$8 = "SI",IF(Tabla4[[#This Row],[TIPO CONTRATO]]="Indefinido",BDD!S82*2.4%,IF(Tabla4[[#This Row],[TIPO CONTRATO]]="PLAZO FIJO",BDD!S82*3%,0)),0) -> 0 | AM80: =BDD!S82*Tabla4[[#This Row],[% SIS]] -> 0 | AP80: =BDD!S82*Tabla4[[#This Row],[%MUTUAL]] -> 0
K81: 77 | L81: =IF(BDD!J83=0," ",BDD!J83) ->  | O81: =IF(BDD!S83<_TOPEIMPONIBLE,BDD!S83*Tabla4[[#This Row],[%AFP]],_TOPEIMPONIBLE*Tabla4[[#This Row],[%AFP]]) -> 0 | R81: =IF(BDD!S83<_TOPEIMPONIBLE,BDD!S83*Tabla4[[#This Row],[%SALUD]],_TOPEIMPONIBLE*Tabla4[[#This Row],[%SALUD]]) -> 0 | U81: =BDD!S83*Tabla4[[#This Row],[%SEGURO]] -> 0 | W81: =IF(Tabla4[[#This Row],[TOTAL UF]]-Tabla4[[#This Row],[TOTAL SALUD]]<=0,0,Tabla4[[#This Row],[TOTAL UF]]-Tabla4[[#This Row],[TOTAL SALUD]]) -> 0 | Y81: =BDD!$N$4 -> 37838.55 | Z81: =Tabla4[[#This Row],[PACTO UF]]*Tabla4[[#This Row],[VALOR UF]] -> 0 | AA81: IMPUESTO UNICO | AB81: =BDD!S83-Tabla4[[#This Row],[TOTAL AFP]]-Tabla4[[#This Row],[TOTAL SALUD]]-Tabla4[[#This Row],[TOTAL SEGURO CESANTIA]]-Tabla4[[#This Row],[TOTAL ADICIONAL]] -> 0 | AC81: =IF(Tabla4[[#This Row],[PASO DESC. UNIC.]]<=$AT$5,0,IF(Tabla4[[#This Row],[PASO DESC. UNIC.]]<=$AT$6,Tabla4[[#This Row],[PASO DESC. UNIC.]]*$AU$6-$AV$6,IF(Tabla4[[#This Row],[PASO DESC. UNIC.]]<=$AT$7,Tabla4[[#This Row],[PASO DESC. UNIC.]]*$AU$7-$AV$7,IF(Tabla4[[#This Row],[PASO DESC. UNIC.]]<=$AT$8,Tabla4[[#This Row],[PASO DESC. UNIC.]]*$AU$8-$AV$8,IF(Tabla4[[#This Row],[PASO DESC. UNIC.]]<=$AT$9,Tabla4[[#This Row],[PASO DESC. UNIC.]]*$AU$9-$AV$9,IF(Tabla4[[#This Row],[PASO DESC. UNIC.]]<=$AT$10,Tabla4[[#This Row],[PASO DESC. UNIC.]]*$AU$10-$AV$10,IF(Tabla4[[#This Row],[PASO DESC. UNIC.]]>=$AS$11,Tabla4[[#This Row],[PASO DESC. UNIC.]]*$AU$11-$AV$11))))))) -> 0 | AD81: =Tabla4[[#This Row],[TOTAL AFP]]+Tabla4[[#This Row],[TOTAL SALUD]]+Tabla4[[#This Row],[TOTAL SEGURO CESANTIA]]+Tabla4[[#This Row],[TOTAL ADICIONAL]]+Tabla4[[#This Row],[VALOR IMP U.]]+Tabla4[[#This Row],[VALOR OTRO 2]]+Tabla4[[#This Row],[VALOR OTRO 1]] -> 0 | AF81: =IF($BP$8 = "SI",IF(Tabla4[[#This Row],[TIPO CONTRATO]]="Indefinido",BDD!S83*2.4%,IF(Tabla4[[#This Row],[TIPO CONTRATO]]="PLAZO FIJO",BDD!S83*3%,0)),0) -> 0 | AM81: =BDD!S83*Tabla4[[#This Row],[% SIS]] -> 0 | AP81: =BDD!S83*Tabla4[[#This Row],[%MUTUAL]] -> 0
K82: 78 | L82: =IF(BDD!J84=0," ",BDD!J84) ->  | O82: =IF(BDD!S84<_TOPEIMPONIBLE,BDD!S84*Tabla4[[#This Row],[%AFP]],_TOPEIMPONIBLE*Tabla4[[#This Row],[%AFP]]) -> 0 | R82: =IF(BDD!S84<_TOPEIMPONIBLE,BDD!S84*Tabla4[[#This Row],[%SALUD]],_TOPEIMPONIBLE*Tabla4[[#This Row],[%SALUD]]) -> 0 | U82: =BDD!S84*Tabla4[[#This Row],[%SEGURO]] -> 0 | W82: =IF(Tabla4[[#This Row],[TOTAL UF]]-Tabla4[[#This Row],[TOTAL SALUD]]<=0,0,Tabla4[[#This Row],[TOTAL UF]]-Tabla4[[#This Row],[TOTAL SALUD]]) -> 0 | Y82: =BDD!$N$4 -> 37838.55 | Z82: =Tabla4[[#This Row],[PACTO UF]]*Tabla4[[#This Row],[VALOR UF]] -> 0 | AA82: IMPUESTO UNICO | AB82: =BDD!S84-Tabla4[[#This Row],[TOTAL AFP]]-Tabla4[[#This Row],[TOTAL SALUD]]-Tabla4[[#This Row],[TOTAL SEGURO CESANTIA]]-Tabla4[[#This Row],[TOTAL ADICIONAL]] -> 0 | AC82: =IF(Tabla4[[#This Row],[PASO DESC. UNIC.]]<=$AT$5,0,IF(Tabla4[[#This Row],[PASO DESC. UNIC.]]<=$AT$6,Tabla4[[#This Row],[PASO DESC. UNIC.]]*$AU$6-$AV$6,IF(Tabla4[[#This Row],[PASO DESC. UNIC.]]<=$AT$7,Tabla4[[#This Row],[PASO DESC. UNIC.]]*$AU$7-$AV$7,IF(Tabla4[[#This Row],[PASO DESC. UNIC.]]<=$AT$8,Tabla4[[#This Row],[PASO DESC. UNIC.]]*$AU$8-$AV$8,IF(Tabla4[[#This Row],[PASO DESC. UNIC.]]<=$AT$9,Tabla4[[#This Row],[PASO DESC. UNIC.]]*$AU$9-$AV$9,IF(Tabla4[[#This Row],[PASO DESC. UNIC.]]<=$AT$10,Tabla4[[#This Row],[PASO DESC. UNIC.]]*$AU$10-$AV$10,IF(Tabla4[[#This Row],[PASO DESC. UNIC.]]>=$AS$11,Tabla4[[#This Row],[PASO DESC. UNIC.]]*$AU$11-$AV$11))))))) -> 0 | AD82: =Tabla4[[#This Row],[TOTAL AFP]]+Tabla4[[#This Row],[TOTAL SALUD]]+Tabla4[[#This Row],[TOTAL SEGURO CESANTIA]]+Tabla4[[#This Row],[TOTAL ADICIONAL]]+Tabla4[[#This Row],[VALOR IMP U.]]+Tabla4[[#This Row],[VALOR OTRO 2]]+Tabla4[[#This Row],[VALOR OTRO 1]] -> 0 | AF82: =IF($BP$8 = "SI",IF(Tabla4[[#This Row],[TIPO CONTRATO]]="Indefinido",BDD!S84*2.4%,IF(Tabla4[[#This Row],[TIPO CONTRATO]]="PLAZO FIJO",BDD!S84*3%,0)),0) -> 0 | AM82: =BDD!S84*Tabla4[[#This Row],[% SIS]] -> 0 | AP82: =BDD!S84*Tabla4[[#This Row],[%MUTUAL]] -> 0
K83: 79 | L83: =IF(BDD!J85=0," ",BDD!J85) ->  | O83: =IF(BDD!S85<_TOPEIMPONIBLE,BDD!S85*Tabla4[[#This Row],[%AFP]],_TOPEIMPONIBLE*Tabla4[[#This Row],[%AFP]]) -> 0 | R83: =IF(BDD!S85<_TOPEIMPONIBLE,BDD!S85*Tabla4[[#This Row],[%SALUD]],_TOPEIMPONIBLE*Tabla4[[#This Row],[%SALUD]]) -> 0 | U83: =BDD!S85*Tabla4[[#This Row],[%SEGURO]] -> 0 | W83: =IF(Tabla4[[#This Row],[TOTAL UF]]-Tabla4[[#This Row],[TOTAL SALUD]]<=0,0,Tabla4[[#This Row],[TOTAL UF]]-Tabla4[[#This Row],[TOTAL SALUD]]) -> 0 | Y83: =BDD!$N$4 -> 37838.55 | Z83: =Tabla4[[#This Row],[PACTO UF]]*Tabla4[[#This Row],[VALOR UF]] -> 0 | AA83: IMPUESTO UNICO | AB83: =BDD!S85-Tabla4[[#This Row],[TOTAL AFP]]-Tabla4[[#This Row],[TOTAL SALUD]]-Tabla4[[#This Row],[TOTAL SEGURO CESANTIA]]-Tabla4[[#This Row],[TOTAL ADICIONAL]] -> 0 | AC83: =IF(Tabla4[[#This Row],[PASO DESC. UNIC.]]<=$AT$5,0,IF(Tabla4[[#This Row],[PASO DESC. UNIC.]]<=$AT$6,Tabla4[[#This Row],[PASO DESC. UNIC.]]*$AU$6-$AV$6,IF(Tabla4[[#This Row],[PASO DESC. UNIC.]]<=$AT$7,Tabla4[[#This Row],[PASO DESC. UNIC.]]*$AU$7-$AV$7,IF(Tabla4[[#This Row],[PASO DESC. UNIC.]]<=$AT$8,Tabla4[[#This Row],[PASO DESC. UNIC.]]*$AU$8-$AV$8,IF(Tabla4[[#This Row],[PASO DESC. UNIC.]]<=$AT$9,Tabla4[[#This Row],[PASO DESC. UNIC.]]*$AU$9-$AV$9,IF(Tabla4[[#This Row],[PASO DESC. UNIC.]]<=$AT$10,Tabla4[[#This Row],[PASO DESC. UNIC.]]*$AU$10-$AV$10,IF(Tabla4[[#This Row],[PASO DESC. UNIC.]]>=$AS$11,Tabla4[[#This Row],[PASO DESC. UNIC.]]*$AU$11-$AV$11))))))) -> 0 | AD83: =Tabla4[[#This Row],[TOTAL AFP]]+Tabla4[[#This Row],[TOTAL SALUD]]+Tabla4[[#This Row],[TOTAL SEGURO CESANTIA]]+Tabla4[[#This Row],[TOTAL ADICIONAL]]+Tabla4[[#This Row],[VALOR IMP U.]]+Tabla4[[#This Row],[VALOR OTRO 2]]+Tabla4[[#This Row],[VALOR OTRO 1]] -> 0 | AF83: =IF($BP$8 = "SI",IF(Tabla4[[#This Row],[TIPO CONTRATO]]="Indefinido",BDD!S85*2.4%,IF(Tabla4[[#This Row],[TIPO CONTRATO]]="PLAZO FIJO",BDD!S85*3%,0)),0) -> 0 | AM83: =BDD!S85*Tabla4[[#This Row],[% SIS]] -> 0 | AP83: =BDD!S85*Tabla4[[#This Row],[%MUTUAL]] -> 0
K84: 80 | L84: =IF(BDD!J86=0," ",BDD!J86) ->  | O84: =IF(BDD!S86<_TOPEIMPONIBLE,BDD!S86*Tabla4[[#This Row],[%AFP]],_TOPEIMPONIBLE*Tabla4[[#This Row],[%AFP]]) -> 0 | R84: =IF(BDD!S86<_TOPEIMPONIBLE,BDD!S86*Tabla4[[#This Row],[%SALUD]],_TOPEIMPONIBLE*Tabla4[[#This Row],[%SALUD]]) -> 0 | U84: =BDD!S86*Tabla4[[#This Row],[%SEGURO]] -> 0 | W84: =IF(Tabla4[[#This Row],[TOTAL UF]]-Tabla4[[#This Row],[TOTAL SALUD]]<=0,0,Tabla4[[#This Row],[TOTAL UF]]-Tabla4[[#This Row],[TOTAL SALUD]]) -> 0 | Y84: =BDD!$N$4 -> 37838.55 | Z84: =Tabla4[[#This Row],[PACTO UF]]*Tabla4[[#This Row],[VALOR UF]] -> 0 | AA84: IMPUESTO UNICO | AB84: =BDD!S86-Tabla4[[#This Row],[TOTAL AFP]]-Tabla4[[#This Row],[TOTAL SALUD]]-Tabla4[[#This Row],[TOTAL SEGURO CESANTIA]]-Tabla4[[#This Row],[TOTAL ADICIONAL]] -> 0 | AC84: =IF(Tabla4[[#This Row],[PASO DESC. UNIC.]]<=$AT$5,0,IF(Tabla4[[#This Row],[PASO DESC. UNIC.]]<=$AT$6,Tabla4[[#This Row],[PASO DESC. UNIC.]]*$AU$6-$AV$6,IF(Tabla4[[#This Row],[PASO DESC. UNIC.]]<=$AT$7,Tabla4[[#This Row],[PASO DESC. UNIC.]]*$AU$7-$AV$7,IF(Tabla4[[#This Row],[PASO DESC. UNIC.]]<=$AT$8,Tabla4[[#This Row],[PASO DESC. UNIC.]]*$AU$8-$AV$8,IF(Tabla4[[#This Row],[PASO DESC. UNIC.]]<=$AT$9,Tabla4[[#This Row],[PASO DESC. UNIC.]]*$AU$9-$AV$9,IF(Tabla4[[#This Row],[PASO DESC. UNIC.]]<=$AT$10,Tabla4[[#This Row],[PASO DESC. UNIC.]]*$AU$10-$AV$10,IF(Tabla4[[#This Row],[PASO DESC. UNIC.]]>=$AS$11,Tabla4[[#This Row],[PASO DESC. UNIC.]]*$AU$11-$AV$11))))))) -> 0 | AD84: =Tabla4[[#This Row],[TOTAL AFP]]+Tabla4[[#This Row],[TOTAL SALUD]]+Tabla4[[#This Row],[TOTAL SEGURO CESANTIA]]+Tabla4[[#This Row],[TOTAL ADICIONAL]]+Tabla4[[#This Row],[VALOR IMP U.]]+Tabla4[[#This Row],[VALOR OTRO 2]]+Tabla4[[#This Row],[VALOR OTRO 1]] -> 0 | AF84: =IF($BP$8 = "SI",IF(Tabla4[[#This Row],[TIPO CONTRATO]]="Indefinido",BDD!S86*2.4%,IF(Tabla4[[#This Row],[TIPO CONTRATO]]="PLAZO FIJO",BDD!S86*3%,0)),0) -> 0 | AM84: =BDD!S86*Tabla4[[#This Row],[% SIS]] -> 0 | AP84: =BDD!S86*Tabla4[[#This Row],[%MUTUAL]] -> 0
K85: 81 | L85: =IF(BDD!J87=0," ",BDD!J87) ->  | O85: =IF(BDD!S87<_TOPEIMPONIBLE,BDD!S87*Tabla4[[#This Row],[%AFP]],_TOPEIMPONIBLE*Tabla4[[#This Row],[%AFP]]) -> 0 | R85: =IF(BDD!S87<_TOPEIMPONIBLE,BDD!S87*Tabla4[[#This Row],[%SALUD]],_TOPEIMPONIBLE*Tabla4[[#This Row],[%SALUD]]) -> 0 | U85: =BDD!S87*Tabla4[[#This Row],[%SEGURO]] -> 0 | W85: =IF(Tabla4[[#This Row],[TOTAL UF]]-Tabla4[[#This Row],[TOTAL SALUD]]<=0,0,Tabla4[[#This Row],[TOTAL UF]]-Tabla4[[#This Row],[TOTAL SALUD]]) -> 0 | Y85: =BDD!$N$4 -> 37838.55 | Z85: =Tabla4[[#This Row],[PACTO UF]]*Tabla4[[#This Row],[VALOR UF]] -> 0 | AA85: IMPUESTO UNICO | AB85: =BDD!S87-Tabla4[[#This Row],[TOTAL AFP]]-Tabla4[[#This Row],[TOTAL SALUD]]-Tabla4[[#This Row],[TOTAL SEGURO CESANTIA]]-Tabla4[[#This Row],[TOTAL ADICIONAL]] -> 0 | AC85: =IF(Tabla4[[#This Row],[PASO DESC. UNIC.]]<=$AT$5,0,IF(Tabla4[[#This Row],[PASO DESC. UNIC.]]<=$AT$6,Tabla4[[#This Row],[PASO DESC. UNIC.]]*$AU$6-$AV$6,IF(Tabla4[[#This Row],[PASO DESC. UNIC.]]<=$AT$7,Tabla4[[#This Row],[PASO DESC. UNIC.]]*$AU$7-$AV$7,IF(Tabla4[[#This Row],[PASO DESC. UNIC.]]<=$AT$8,Tabla4[[#This Row],[PASO DESC. UNIC.]]*$AU$8-$AV$8,IF(Tabla4[[#This Row],[PASO DESC. UNIC.]]<=$AT$9,Tabla4[[#This Row],[PASO DESC. UNIC.]]*$AU$9-$AV$9,IF(Tabla4[[#This Row],[PASO DESC. UNIC.]]<=$AT$10,Tabla4[[#This Row],[PASO DESC. UNIC.]]*$AU$10-$AV$10,IF(Tabla4[[#This Row],[PASO DESC. UNIC.]]>=$AS$11,Tabla4[[#This Row],[PASO DESC. UNIC.]]*$AU$11-$AV$11))))))) -> 0 | AD85: =Tabla4[[#This Row],[TOTAL AFP]]+Tabla4[[#This Row],[TOTAL SALUD]]+Tabla4[[#This Row],[TOTAL SEGURO CESANTIA]]+Tabla4[[#This Row],[TOTAL ADICIONAL]]+Tabla4[[#This Row],[VALOR IMP U.]]+Tabla4[[#This Row],[VALOR OTRO 2]]+Tabla4[[#This Row],[VALOR OTRO 1]] -> 0 | AF85: =IF($BP$8 = "SI",IF(Tabla4[[#This Row],[TIPO CONTRATO]]="Indefinido",BDD!S87*2.4%,IF(Tabla4[[#This Row],[TIPO CONTRATO]]="PLAZO FIJO",BDD!S87*3%,0)),0) -> 0 | AM85: =BDD!S87*Tabla4[[#This Row],[% SIS]] -> 0 | AP85: =BDD!S87*Tabla4[[#This Row],[%MUTUAL]] -> 0
K86: 82 | L86: =IF(BDD!J88=0," ",BDD!J88) ->  | O86: =IF(BDD!S88<_TOPEIMPONIBLE,BDD!S88*Tabla4[[#This Row],[%AFP]],_TOPEIMPONIBLE*Tabla4[[#This Row],[%AFP]]) -> 0 | R86: =IF(BDD!S88<_TOPEIMPONIBLE,BDD!S88*Tabla4[[#This Row],[%SALUD]],_TOPEIMPONIBLE*Tabla4[[#This Row],[%SALUD]]) -> 0 | U86: =BDD!S88*Tabla4[[#This Row],[%SEGURO]] -> 0 | W86: =IF(Tabla4[[#This Row],[TOTAL UF]]-Tabla4[[#This Row],[TOTAL SALUD]]<=0,0,Tabla4[[#This Row],[TOTAL UF]]-Tabla4[[#This Row],[TOTAL SALUD]]) -> 0 | Y86: =BDD!$N$4 -> 37838.55 | Z86: =Tabla4[[#This Row],[PACTO UF]]*Tabla4[[#This Row],[VALOR UF]] -> 0 | AA86: IMPUESTO UNICO | AB86: =BDD!S88-Tabla4[[#This Row],[TOTAL AFP]]-Tabla4[[#This Row],[TOTAL SALUD]]-Tabla4[[#This Row],[TOTAL SEGURO CESANTIA]]-Tabla4[[#This Row],[TOTAL ADICIONAL]] -> 0 | AC86: =IF(Tabla4[[#This Row],[PASO DESC. UNIC.]]<=$AT$5,0,IF(Tabla4[[#This Row],[PASO DESC. UNIC.]]<=$AT$6,Tabla4[[#This Row],[PASO DESC. UNIC.]]*$AU$6-$AV$6,IF(Tabla4[[#This Row],[PASO DESC. UNIC.]]<=$AT$7,Tabla4[[#This Row],[PASO DESC. UNIC.]]*$AU$7-$AV$7,IF(Tabla4[[#This Row],[PASO DESC. UNIC.]]<=$AT$8,Tabla4[[#This Row],[PASO DESC. UNIC.]]*$AU$8-$AV$8,IF(Tabla4[[#This Row],[PASO DESC. UNIC.]]<=$AT$9,Tabla4[[#This Row],[PASO DESC. UNIC.]]*$AU$9-$AV$9,IF(Tabla4[[#This Row],[PASO DESC. UNIC.]]<=$AT$10,Tabla4[[#This Row],[PASO DESC. UNIC.]]*$AU$10-$AV$10,IF(Tabla4[[#This Row],[PASO DESC. UNIC.]]>=$AS$11,Tabla4[[#This Row],[PASO DESC. UNIC.]]*$AU$11-$AV$11))))))) -> 0 | AD86: =Tabla4[[#This Row],[TOTAL AFP]]+Tabla4[[#This Row],[TOTAL SALUD]]+Tabla4[[#This Row],[TOTAL SEGURO CESANTIA]]+Tabla4[[#This Row],[TOTAL ADICIONAL]]+Tabla4[[#This Row],[VALOR IMP U.]]+Tabla4[[#This Row],[VALOR OTRO 2]]+Tabla4[[#This Row],[VALOR OTRO 1]] -> 0 | AF86: =IF($BP$8 = "SI",IF(Tabla4[[#This Row],[TIPO CONTRATO]]="Indefinido",BDD!S88*2.4%,IF(Tabla4[[#This Row],[TIPO CONTRATO]]="PLAZO FIJO",BDD!S88*3%,0)),0) -> 0 | AM86: =BDD!S88*Tabla4[[#This Row],[% SIS]] -> 0 | AP86: =BDD!S88*Tabla4[[#This Row],[%MUTUAL]] -> 0
K87: 83 | L87: =IF(BDD!J89=0," ",BDD!J89) ->  | O87: =IF(BDD!S89<_TOPEIMPONIBLE,BDD!S89*Tabla4[[#This Row],[%AFP]],_TOPEIMPONIBLE*Tabla4[[#This Row],[%AFP]]) -> 0 | R87: =IF(BDD!S89<_TOPEIMPONIBLE,BDD!S89*Tabla4[[#This Row],[%SALUD]],_TOPEIMPONIBLE*Tabla4[[#This Row],[%SALUD]]) -> 0 | U87: =BDD!S89*Tabla4[[#This Row],[%SEGURO]] -> 0 | W87: =IF(Tabla4[[#This Row],[TOTAL UF]]-Tabla4[[#This Row],[TOTAL SALUD]]<=0,0,Tabla4[[#This Row],[TOTAL UF]]-Tabla4[[#This Row],[TOTAL SALUD]]) -> 0 | Y87: =BDD!$N$4 -> 37838.55 | Z87: =Tabla4[[#This Row],[PACTO UF]]*Tabla4[[#This Row],[VALOR UF]] -> 0 | AA87: IMPUESTO UNICO | AB87: =BDD!S89-Tabla4[[#This Row],[TOTAL AFP]]-Tabla4[[#This Row],[TOTAL SALUD]]-Tabla4[[#This Row],[TOTAL SEGURO CESANTIA]]-Tabla4[[#This Row],[TOTAL ADICIONAL]] -> 0 | AC87: =IF(Tabla4[[#This Row],[PASO DESC. UNIC.]]<=$AT$5,0,IF(Tabla4[[#This Row],[PASO DESC. UNIC.]]<=$AT$6,Tabla4[[#This Row],[PASO DESC. UNIC.]]*$AU$6-$AV$6,IF(Tabla4[[#This Row],[PASO DESC. UNIC.]]<=$AT$7,Tabla4[[#This Row],[PASO DESC. UNIC.]]*$AU$7-$AV$7,IF(Tabla4[[#This Row],[PASO DESC. UNIC.]]<=$AT$8,Tabla4[[#This Row],[PASO DESC. UNIC.]]*$AU$8-$AV$8,IF(Tabla4[[#This Row],[PASO DESC. UNIC.]]<=$AT$9,Tabla4[[#This Row],[PASO DESC. UNIC.]]*$AU$9-$AV$9,IF(Tabla4[[#This Row],[PASO DESC. UNIC.]]<=$AT$10,Tabla4[[#This Row],[PASO DESC. UNIC.]]*$AU$10-$AV$10,IF(Tabla4[[#This Row],[PASO DESC. UNIC.]]>=$AS$11,Tabla4[[#This Row],[PASO DESC. UNIC.]]*$AU$11-$AV$11))))))) -> 0 | AD87: =Tabla4[[#This Row],[TOTAL AFP]]+Tabla4[[#This Row],[TOTAL SALUD]]+Tabla4[[#This Row],[TOTAL SEGURO CESANTIA]]+Tabla4[[#This Row],[TOTAL ADICIONAL]]+Tabla4[[#This Row],[VALOR IMP U.]]+Tabla4[[#This Row],[VALOR OTRO 2]]+Tabla4[[#This Row],[VALOR OTRO 1]] -> 0 | AF87: =IF($BP$8 = "SI",IF(Tabla4[[#This Row],[TIPO CONTRATO]]="Indefinido",BDD!S89*2.4%,IF(Tabla4[[#This Row],[TIPO CONTRATO]]="PLAZO FIJO",BDD!S89*3%,0)),0) -> 0 | AM87: =BDD!S89*Tabla4[[#This Row],[% SIS]] -> 0 | AP87: =BDD!S89*Tabla4[[#This Row],[%MUTUAL]] -> 0
K88: 84 | L88: =IF(BDD!J90=0," ",BDD!J90) ->  | O88: =IF(BDD!S90<_TOPEIMPONIBLE,BDD!S90*Tabla4[[#This Row],[%AFP]],_TOPEIMPONIBLE*Tabla4[[#This Row],[%AFP]]) -> 0 | R88: =IF(BDD!S90<_TOPEIMPONIBLE,BDD!S90*Tabla4[[#This Row],[%SALUD]],_TOPEIMPONIBLE*Tabla4[[#This Row],[%SALUD]]) -> 0 | U88: =BDD!S90*Tabla4[[#This Row],[%SEGURO]] -> 0 | W88: =IF(Tabla4[[#This Row],[TOTAL UF]]-Tabla4[[#This Row],[TOTAL SALUD]]<=0,0,Tabla4[[#This Row],[TOTAL UF]]-Tabla4[[#This Row],[TOTAL SALUD]]) -> 0 | Y88: =BDD!$N$4 -> 37838.55 | Z88: =Tabla4[[#This Row],[PACTO UF]]*Tabla4[[#This Row],[VALOR UF]] -> 0 | AA88: IMPUESTO UNICO | AB88: =BDD!S90-Tabla4[[#This Row],[TOTAL AFP]]-Tabla4[[#This Row],[TOTAL SALUD]]-Tabla4[[#This Row],[TOTAL SEGURO CESANTIA]]-Tabla4[[#This Row],[TOTAL ADICIONAL]] -> 0 | AC88: =IF(Tabla4[[#This Row],[PASO DESC. UNIC.]]<=$AT$5,0,IF(Tabla4[[#This Row],[PASO DESC. UNIC.]]<=$AT$6,Tabla4[[#This Row],[PASO DESC. UNIC.]]*$AU$6-$AV$6,IF(Tabla4[[#This Row],[PASO DESC. UNIC.]]<=$AT$7,Tabla4[[#This Row],[PASO DESC. UNIC.]]*$AU$7-$AV$7,IF(Tabla4[[#This Row],[PASO DESC. UNIC.]]<=$AT$8,Tabla4[[#This Row],[PASO DESC. UNIC.]]*$AU$8-$AV$8,IF(Tabla4[[#This Row],[PASO DESC. UNIC.]]<=$AT$9,Tabla4[[#This Row],[PASO DESC. UNIC.]]*$AU$9-$AV$9,IF(Tabla4[[#This Row],[PASO DESC. UNIC.]]<=$AT$10,Tabla4[[#This Row],[PASO DESC. UNIC.]]*$AU$10-$AV$10,IF(Tabla4[[#This Row],[PASO DESC. UNIC.]]>=$AS$11,Tabla4[[#This Row],[PASO DESC. UNIC.]]*$AU$11-$AV$11))))))) -> 0 | AD88: =Tabla4[[#This Row],[TOTAL AFP]]+Tabla4[[#This Row],[TOTAL SALUD]]+Tabla4[[#This Row],[TOTAL SEGURO CESANTIA]]+Tabla4[[#This Row],[TOTAL ADICIONAL]]+Tabla4[[#This Row],[VALOR IMP U.]]+Tabla4[[#This Row],[VALOR OTRO 2]]+Tabla4[[#This Row],[VALOR OTRO 1]] -> 0 | AF88: =IF($BP$8 = "SI",IF(Tabla4[[#This Row],[TIPO CONTRATO]]="Indefinido",BDD!S90*2.4%,IF(Tabla4[[#This Row],[TIPO CONTRATO]]="PLAZO FIJO",BDD!S90*3%,0)),0) -> 0 | AM88: =BDD!S90*Tabla4[[#This Row],[% SIS]] -> 0 | AP88: =BDD!S90*Tabla4[[#This Row],[%MUTUAL]] -> 0
K89: 85 | L89: =IF(BDD!J91=0," ",BDD!J91) ->  | O89: =IF(BDD!S91<_TOPEIMPONIBLE,BDD!S91*Tabla4[[#This Row],[%AFP]],_TOPEIMPONIBLE*Tabla4[[#This Row],[%AFP]]) -> 0 | R89: =IF(BDD!S91<_TOPEIMPONIBLE,BDD!S91*Tabla4[[#This Row],[%SALUD]],_TOPEIMPONIBLE*Tabla4[[#This Row],[%SALUD]]) -> 0 | U89: =BDD!S91*Tabla4[[#This Row],[%SEGURO]] -> 0 | W89: =IF(Tabla4[[#This Row],[TOTAL UF]]-Tabla4[[#This Row],[TOTAL SALUD]]<=0,0,Tabla4[[#This Row],[TOTAL UF]]-Tabla4[[#This Row],[TOTAL SALUD]]) -> 0 | Y89: =BDD!$N$4 -> 37838.55 | Z89: =Tabla4[[#This Row],[PACTO UF]]*Tabla4[[#This Row],[VALOR UF]] -> 0 | AA89: IMPUESTO UNICO | AB89: =BDD!S91-Tabla4[[#This Row],[TOTAL AFP]]-Tabla4[[#This Row],[TOTAL SALUD]]-Tabla4[[#This Row],[TOTAL SEGURO CESANTIA]]-Tabla4[[#This Row],[TOTAL ADICIONAL]] -> 0 | AC89: =IF(Tabla4[[#This Row],[PASO DESC. UNIC.]]<=$AT$5,0,IF(Tabla4[[#This Row],[PASO DESC. UNIC.]]<=$AT$6,Tabla4[[#This Row],[PASO DESC. UNIC.]]*$AU$6-$AV$6,IF(Tabla4[[#This Row],[PASO DESC. UNIC.]]<=$AT$7,Tabla4[[#This Row],[PASO DESC. UNIC.]]*$AU$7-$AV$7,IF(Tabla4[[#This Row],[PASO DESC. UNIC.]]<=$AT$8,Tabla4[[#This Row],[PASO DESC. UNIC.]]*$AU$8-$AV$8,IF(Tabla4[[#This Row],[PASO DESC. UNIC.]]<=$AT$9,Tabla4[[#This Row],[PASO DESC. UNIC.]]*$AU$9-$AV$9,IF(Tabla4[[#This Row],[PASO DESC. UNIC.]]<=$AT$10,Tabla4[[#This Row],[PASO DESC. UNIC.]]*$AU$10-$AV$10,IF(Tabla4[[#This Row],[PASO DESC. UNIC.]]>=$AS$11,Tabla4[[#This Row],[PASO DESC. UNIC.]]*$AU$11-$AV$11))))))) -> 0 | AD89: =Tabla4[[#This Row],[TOTAL AFP]]+Tabla4[[#This Row],[TOTAL SALUD]]+Tabla4[[#This Row],[TOTAL SEGURO CESANTIA]]+Tabla4[[#This Row],[TOTAL ADICIONAL]]+Tabla4[[#This Row],[VALOR IMP U.]]+Tabla4[[#This Row],[VALOR OTRO 2]]+Tabla4[[#This Row],[VALOR OTRO 1]] -> 0 | AF89: =IF($BP$8 = "SI",IF(Tabla4[[#This Row],[TIPO CONTRATO]]="Indefinido",BDD!S91*2.4%,IF(Tabla4[[#This Row],[TIPO CONTRATO]]="PLAZO FIJO",BDD!S91*3%,0)),0) -> 0 | AM89: =BDD!S91*Tabla4[[#This Row],[% SIS]] -> 0 | AP89: =BDD!S91*Tabla4[[#This Row],[%MUTUAL]] -> 0
K90: 86 | L90: =IF(BDD!J92=0," ",BDD!J92) ->  | O90: =IF(BDD!S92<_TOPEIMPONIBLE,BDD!S92*Tabla4[[#This Row],[%AFP]],_TOPEIMPONIBLE*Tabla4[[#This Row],[%AFP]]) -> 0 | R90: =IF(BDD!S92<_TOPEIMPONIBLE,BDD!S92*Tabla4[[#This Row],[%SALUD]],_TOPEIMPONIBLE*Tabla4[[#This Row],[%SALUD]]) -> 0 | U90: =BDD!S92*Tabla4[[#This Row],[%SEGURO]] -> 0 | W90: =IF(Tabla4[[#This Row],[TOTAL UF]]-Tabla4[[#This Row],[TOTAL SALUD]]<=0,0,Tabla4[[#This Row],[TOTAL UF]]-Tabla4[[#This Row],[TOTAL SALUD]]) -> 0 | Y90: =BDD!$N$4 -> 37838.55 | Z90: =Tabla4[[#This Row],[PACTO UF]]*Tabla4[[#This Row],[VALOR UF]] -> 0 | AA90: IMPUESTO UNICO | AB90: =BDD!S92-Tabla4[[#This Row],[TOTAL AFP]]-Tabla4[[#This Row],[TOTAL SALUD]]-Tabla4[[#This Row],[TOTAL SEGURO CESANTIA]]-Tabla4[[#This Row],[TOTAL ADICIONAL]] -> 0 | AC90: =IF(Tabla4[[#This Row],[PASO DESC. UNIC.]]<=$AT$5,0,IF(Tabla4[[#This Row],[PASO DESC. UNIC.]]<=$AT$6,Tabla4[[#This Row],[PASO DESC. UNIC.]]*$AU$6-$AV$6,IF(Tabla4[[#This Row],[PASO DESC. UNIC.]]<=$AT$7,Tabla4[[#This Row],[PASO DESC. UNIC.]]*$AU$7-$AV$7,IF(Tabla4[[#This Row],[PASO DESC. UNIC.]]<=$AT$8,Tabla4[[#This Row],[PASO DESC. UNIC.]]*$AU$8-$AV$8,IF(Tabla4[[#This Row],[PASO DESC. UNIC.]]<=$AT$9,Tabla4[[#This Row],[PASO DESC. UNIC.]]*$AU$9-$AV$9,IF(Tabla4[[#This Row],[PASO DESC. UNIC.]]<=$AT$10,Tabla4[[#This Row],[PASO DESC. UNIC.]]*$AU$10-$AV$10,IF(Tabla4[[#This Row],[PASO DESC. UNIC.]]>=$AS$11,Tabla4[[#This Row],[PASO DESC. UNIC.]]*$AU$11-$AV$11))))))) -> 0 | AD90: =Tabla4[[#This Row],[TOTAL AFP]]+Tabla4[[#This Row],[TOTAL SALUD]]+Tabla4[[#This Row],[TOTAL SEGURO CESANTIA]]+Tabla4[[#This Row],[TOTAL ADICIONAL]]+Tabla4[[#This Row],[VALOR IMP U.]]+Tabla4[[#This Row],[VALOR OTRO 2]]+Tabla4[[#This Row],[VALOR OTRO 1]] -> 0 | AF90: =IF($BP$8 = "SI",IF(Tabla4[[#This Row],[TIPO CONTRATO]]="Indefinido",BDD!S92*2.4%,IF(Tabla4[[#This Row],[TIPO CONTRATO]]="PLAZO FIJO",BDD!S92*3%,0)),0) -> 0 | AM90: =BDD!S92*Tabla4[[#This Row],[% SIS]] -> 0 | AP90: =BDD!S92*Tabla4[[#This Row],[%MUTUAL]] -> 0
K91: 87 | L91: =IF(BDD!J93=0," ",BDD!J93) ->  | O91: =IF(BDD!S93<_TOPEIMPONIBLE,BDD!S93*Tabla4[[#This Row],[%AFP]],_TOPEIMPONIBLE*Tabla4[[#This Row],[%AFP]]) -> 0 | R91: =IF(BDD!S93<_TOPEIMPONIBLE,BDD!S93*Tabla4[[#This Row],[%SALUD]],_TOPEIMPONIBLE*Tabla4[[#This Row],[%SALUD]]) -> 0 | U91: =BDD!S93*Tabla4[[#This Row],[%SEGURO]] -> 0 | W91: =IF(Tabla4[[#This Row],[TOTAL UF]]-Tabla4[[#This Row],[TOTAL SALUD]]<=0,0,Tabla4[[#This Row],[TOTAL UF]]-Tabla4[[#This Row],[TOTAL SALUD]]) -> 0 | Y91: =BDD!$N$4 -> 37838.55 | Z91: =Tabla4[[#This Row],[PACTO UF]]*Tabla4[[#This Row],[VALOR UF]] -> 0 | AA91: IMPUESTO UNICO | AB91: =BDD!S93-Tabla4[[#This Row],[TOTAL AFP]]-Tabla4[[#This Row],[TOTAL SALUD]]-Tabla4[[#This Row],[TOTAL SEGURO CESANTIA]]-Tabla4[[#This Row],[TOTAL ADICIONAL]] -> 0 | AC91: =IF(Tabla4[[#This Row],[PASO DESC. UNIC.]]<=$AT$5,0,IF(Tabla4[[#This Row],[PASO DESC. UNIC.]]<=$AT$6,Tabla4[[#This Row],[PASO DESC. UNIC.]]*$AU$6-$AV$6,IF(Tabla4[[#This Row],[PASO DESC. UNIC.]]<=$AT$7,Tabla4[[#This Row],[PASO DESC. UNIC.]]*$AU$7-$AV$7,IF(Tabla4[[#This Row],[PASO DESC. UNIC.]]<=$AT$8,Tabla4[[#This Row],[PASO DESC. UNIC.]]*$AU$8-$AV$8,IF(Tabla4[[#This Row],[PASO DESC. UNIC.]]<=$AT$9,Tabla4[[#This Row],[PASO DESC. UNIC.]]*$AU$9-$AV$9,IF(Tabla4[[#This Row],[PASO DESC. UNIC.]]<=$AT$10,Tabla4[[#This Row],[PASO DESC. UNIC.]]*$AU$10-$AV$10,IF(Tabla4[[#This Row],[PASO DESC. UNIC.]]>=$AS$11,Tabla4[[#This Row],[PASO DESC. UNIC.]]*$AU$11-$AV$11))))))) -> 0 | AD91: =Tabla4[[#This Row],[TOTAL AFP]]+Tabla4[[#This Row],[TOTAL SALUD]]+Tabla4[[#This Row],[TOTAL SEGURO CESANTIA]]+Tabla4[[#This Row],[TOTAL ADICIONAL]]+Tabla4[[#This Row],[VALOR IMP U.]]+Tabla4[[#This Row],[VALOR OTRO 2]]+Tabla4[[#This Row],[VALOR OTRO 1]] -> 0 | AF91: =IF($BP$8 = "SI",IF(Tabla4[[#This Row],[TIPO CONTRATO]]="Indefinido",BDD!S93*2.4%,IF(Tabla4[[#This Row],[TIPO CONTRATO]]="PLAZO FIJO",BDD!S93*3%,0)),0) -> 0 | AM91: =BDD!S93*Tabla4[[#This Row],[% SIS]] -> 0 | AP91: =BDD!S93*Tabla4[[#This Row],[%MUTUAL]] -> 0
K92: 88 | L92: =IF(BDD!J94=0," ",BDD!J94) ->  | O92: =IF(BDD!S94<_TOPEIMPONIBLE,BDD!S94*Tabla4[[#This Row],[%AFP]],_TOPEIMPONIBLE*Tabla4[[#This Row],[%AFP]]) -> 0 | R92: =IF(BDD!S94<_TOPEIMPONIBLE,BDD!S94*Tabla4[[#This Row],[%SALUD]],_TOPEIMPONIBLE*Tabla4[[#This Row],[%SALUD]]) -> 0 | U92: =BDD!S94*Tabla4[[#This Row],[%SEGURO]] -> 0 | W92: =IF(Tabla4[[#This Row],[TOTAL UF]]-Tabla4[[#This Row],[TOTAL SALUD]]<=0,0,Tabla4[[#This Row],[TOTAL UF]]-Tabla4[[#This Row],[TOTAL SALUD]]) -> 0 | Y92: =BDD!$N$4 -> 37838.55 | Z92: =Tabla4[[#This Row],[PACTO UF]]*Tabla4[[#This Row],[VALOR UF]] -> 0 | AA92: IMPUESTO UNICO | AB92: =BDD!S94-Tabla4[[#This Row],[TOTAL AFP]]-Tabla4[[#This Row],[TOTAL SALUD]]-Tabla4[[#This Row],[TOTAL SEGURO CESANTIA]]-Tabla4[[#This Row],[TOTAL ADICIONAL]] -> 0 | AC92: =IF(Tabla4[[#This Row],[PASO DESC. UNIC.]]<=$AT$5,0,IF(Tabla4[[#This Row],[PASO DESC. UNIC.]]<=$AT$6,Tabla4[[#This Row],[PASO DESC. UNIC.]]*$AU$6-$AV$6,IF(Tabla4[[#This Row],[PASO DESC. UNIC.]]<=$AT$7,Tabla4[[#This Row],[PASO DESC. UNIC.]]*$AU$7-$AV$7,IF(Tabla4[[#This Row],[PASO DESC. UNIC.]]<=$AT$8,Tabla4[[#This Row],[PASO DESC. UNIC.]]*$AU$8-$AV$8,IF(Tabla4[[#This Row],[PASO DESC. UNIC.]]<=$AT$9,Tabla4[[#This Row],[PASO DESC. UNIC.]]*$AU$9-$AV$9,IF(Tabla4[[#This Row],[PASO DESC. UNIC.]]<=$AT$10,Tabla4[[#This Row],[PASO DESC. UNIC.]]*$AU$10-$AV$10,IF(Tabla4[[#This Row],[PASO DESC. UNIC.]]>=$AS$11,Tabla4[[#This Row],[PASO DESC. UNIC.]]*$AU$11-$AV$11))))))) -> 0 | AD92: =Tabla4[[#This Row],[TOTAL AFP]]+Tabla4[[#This Row],[TOTAL SALUD]]+Tabla4[[#This Row],[TOTAL SEGURO CESANTIA]]+Tabla4[[#This Row],[TOTAL ADICIONAL]]+Tabla4[[#This Row],[VALOR IMP U.]]+Tabla4[[#This Row],[VALOR OTRO 2]]+Tabla4[[#This Row],[VALOR OTRO 1]] -> 0 | AF92: =IF($BP$8 = "SI",IF(Tabla4[[#This Row],[TIPO CONTRATO]]="Indefinido",BDD!S94*2.4%,IF(Tabla4[[#This Row],[TIPO CONTRATO]]="PLAZO FIJO",BDD!S94*3%,0)),0) -> 0 | AM92: =BDD!S94*Tabla4[[#This Row],[% SIS]] -> 0 | AP92: =BDD!S94*Tabla4[[#This Row],[%MUTUAL]] -> 0
K93: 89 | L93: =IF(BDD!J95=0," ",BDD!J95) ->  | O93: =IF(BDD!S95<_TOPEIMPONIBLE,BDD!S95*Tabla4[[#This Row],[%AFP]],_TOPEIMPONIBLE*Tabla4[[#This Row],[%AFP]]) -> 0 | R93: =IF(BDD!S95<_TOPEIMPONIBLE,BDD!S95*Tabla4[[#This Row],[%SALUD]],_TOPEIMPONIBLE*Tabla4[[#This Row],[%SALUD]]) -> 0 | U93: =BDD!S95*Tabla4[[#This Row],[%SEGURO]] -> 0 | W93: =IF(Tabla4[[#This Row],[TOTAL UF]]-Tabla4[[#This Row],[TOTAL SALUD]]<=0,0,Tabla4[[#This Row],[TOTAL UF]]-Tabla4[[#This Row],[TOTAL SALUD]]) -> 0 | Y93: =BDD!$N$4 -> 37838.55 | Z93: =Tabla4[[#This Row],[PACTO UF]]*Tabla4[[#This Row],[VALOR UF]] -> 0 | AA93: IMPUESTO UNICO | AB93: =BDD!S95-Tabla4[[#This Row],[TOTAL AFP]]-Tabla4[[#This Row],[TOTAL SALUD]]-Tabla4[[#This Row],[TOTAL SEGURO CESANTIA]]-Tabla4[[#This Row],[TOTAL ADICIONAL]] -> 0 | AC93: =IF(Tabla4[[#This Row],[PASO DESC. UNIC.]]<=$AT$5,0,IF(Tabla4[[#This Row],[PASO DESC. UNIC.]]<=$AT$6,Tabla4[[#This Row],[PASO DESC. UNIC.]]*$AU$6-$AV$6,IF(Tabla4[[#This Row],[PASO DESC. UNIC.]]<=$AT$7,Tabla4[[#This Row],[PASO DESC. UNIC.]]*$AU$7-$AV$7,IF(Tabla4[[#This Row],[PASO DESC. UNIC.]]<=$AT$8,Tabla4[[#This Row],[PASO DESC. UNIC.]]*$AU$8-$AV$8,IF(Tabla4[[#This Row],[PASO DESC. UNIC.]]<=$AT$9,Tabla4[[#This Row],[PASO DESC. UNIC.]]*$AU$9-$AV$9,IF(Tabla4[[#This Row],[PASO DESC. UNIC.]]<=$AT$10,Tabla4[[#This Row],[PASO DESC. UNIC.]]*$AU$10-$AV$10,IF(Tabla4[[#This Row],[PASO DESC. UNIC.]]>=$AS$11,Tabla4[[#This Row],[PASO DESC. UNIC.]]*$AU$11-$AV$11))))))) -> 0 | AD93: =Tabla4[[#This Row],[TOTAL AFP]]+Tabla4[[#This Row],[TOTAL SALUD]]+Tabla4[[#This Row],[TOTAL SEGURO CESANTIA]]+Tabla4[[#This Row],[TOTAL ADICIONAL]]+Tabla4[[#This Row],[VALOR IMP U.]]+Tabla4[[#This Row],[VALOR OTRO 2]]+Tabla4[[#This Row],[VALOR OTRO 1]] -> 0 | AF93: =IF($BP$8 = "SI",IF(Tabla4[[#This Row],[TIPO CONTRATO]]="Indefinido",BDD!S95*2.4%,IF(Tabla4[[#This Row],[TIPO CONTRATO]]="PLAZO FIJO",BDD!S95*3%,0)),0) -> 0 | AM93: =BDD!S95*Tabla4[[#This Row],[% SIS]] -> 0 | AP93: =BDD!S95*Tabla4[[#This Row],[%MUTUAL]] -> 0
K94: 90 | L94: =IF(BDD!J96=0," ",BDD!J96) ->  | O94: =IF(BDD!S96<_TOPEIMPONIBLE,BDD!S96*Tabla4[[#This Row],[%AFP]],_TOPEIMPONIBLE*Tabla4[[#This Row],[%AFP]]) -> 0 | R94: =IF(BDD!S96<_TOPEIMPONIBLE,BDD!S96*Tabla4[[#This Row],[%SALUD]],_TOPEIMPONIBLE*Tabla4[[#This Row],[%SALUD]]) -> 0 | U94: =BDD!S96*Tabla4[[#This Row],[%SEGURO]] -> 0 | W94: =IF(Tabla4[[#This Row],[TOTAL UF]]-Tabla4[[#This Row],[TOTAL SALUD]]<=0,0,Tabla4[[#This Row],[TOTAL UF]]-Tabla4[[#This Row],[TOTAL SALUD]]) -> 0 | Y94: =BDD!$N$4 -> 37838.55 | Z94: =Tabla4[[#This Row],[PACTO UF]]*Tabla4[[#This Row],[VALOR UF]] -> 0 | AA94: IMPUESTO UNICO | AB94: =BDD!S96-Tabla4[[#This Row],[TOTAL AFP]]-Tabla4[[#This Row],[TOTAL SALUD]]-Tabla4[[#This Row],[TOTAL SEGURO CESANTIA]]-Tabla4[[#This Row],[TOTAL ADICIONAL]] -> 0 | AC94: =IF(Tabla4[[#This Row],[PASO DESC. UNIC.]]<=$AT$5,0,IF(Tabla4[[#This Row],[PASO DESC. UNIC.]]<=$AT$6,Tabla4[[#This Row],[PASO DESC. UNIC.]]*$AU$6-$AV$6,IF(Tabla4[[#This Row],[PASO DESC. UNIC.]]<=$AT$7,Tabla4[[#This Row],[PASO DESC. UNIC.]]*$AU$7-$AV$7,IF(Tabla4[[#This Row],[PASO DESC. UNIC.]]<=$AT$8,Tabla4[[#This Row],[PASO DESC. UNIC.]]*$AU$8-$AV$8,IF(Tabla4[[#This Row],[PASO DESC. UNIC.]]<=$AT$9,Tabla4[[#This Row],[PASO DESC. UNIC.]]*$AU$9-$AV$9,IF(Tabla4[[#This Row],[PASO DESC. UNIC.]]<=$AT$10,Tabla4[[#This Row],[PASO DESC. UNIC.]]*$AU$10-$AV$10,IF(Tabla4[[#This Row],[PASO DESC. UNIC.]]>=$AS$11,Tabla4[[#This Row],[PASO DESC. UNIC.]]*$AU$11-$AV$11))))))) -> 0 | AD94: =Tabla4[[#This Row],[TOTAL AFP]]+Tabla4[[#This Row],[TOTAL SALUD]]+Tabla4[[#This Row],[TOTAL SEGURO CESANTIA]]+Tabla4[[#This Row],[TOTAL ADICIONAL]]+Tabla4[[#This Row],[VALOR IMP U.]]+Tabla4[[#This Row],[VALOR OTRO 2]]+Tabla4[[#This Row],[VALOR OTRO 1]] -> 0 | AF94: =IF($BP$8 = "SI",IF(Tabla4[[#This Row],[TIPO CONTRATO]]="Indefinido",BDD!S96*2.4%,IF(Tabla4[[#This Row],[TIPO CONTRATO]]="PLAZO FIJO",BDD!S96*3%,0)),0) -> 0 | AM94: =BDD!S96*Tabla4[[#This Row],[% SIS]] -> 0 | AP94: =BDD!S96*Tabla4[[#This Row],[%MUTUAL]] -> 0
K95: 91 | L95: =IF(BDD!J97=0," ",BDD!J97) ->  | O95: =IF(BDD!S97<_TOPEIMPONIBLE,BDD!S97*Tabla4[[#This Row],[%AFP]],_TOPEIMPONIBLE*Tabla4[[#This Row],[%AFP]]) -> 0 | R95: =IF(BDD!S97<_TOPEIMPONIBLE,BDD!S97*Tabla4[[#This Row],[%SALUD]],_TOPEIMPONIBLE*Tabla4[[#This Row],[%SALUD]]) -> 0 | U95: =BDD!S97*Tabla4[[#This Row],[%SEGURO]] -> 0 | W95: =IF(Tabla4[[#This Row],[TOTAL UF]]-Tabla4[[#This Row],[TOTAL SALUD]]<=0,0,Tabla4[[#This Row],[TOTAL UF]]-Tabla4[[#This Row],[TOTAL SALUD]]) -> 0 | Y95: =BDD!$N$4 -> 37838.55 | Z95: =Tabla4[[#This Row],[PACTO UF]]*Tabla4[[#This Row],[VALOR UF]] -> 0 | AA95: IMPUESTO UNICO | AB95: =BDD!S97-Tabla4[[#This Row],[TOTAL AFP]]-Tabla4[[#This Row],[TOTAL SALUD]]-Tabla4[[#This Row],[TOTAL SEGURO CESANTIA]]-Tabla4[[#This Row],[TOTAL ADICIONAL]] -> 0 | AC95: =IF(Tabla4[[#This Row],[PASO DESC. UNIC.]]<=$AT$5,0,IF(Tabla4[[#This Row],[PASO DESC. UNIC.]]<=$AT$6,Tabla4[[#This Row],[PASO DESC. UNIC.]]*$AU$6-$AV$6,IF(Tabla4[[#This Row],[PASO DESC. UNIC.]]<=$AT$7,Tabla4[[#This Row],[PASO DESC. UNIC.]]*$AU$7-$AV$7,IF(Tabla4[[#This Row],[PASO DESC. UNIC.]]<=$AT$8,Tabla4[[#This Row],[PASO DESC. UNIC.]]*$AU$8-$AV$8,IF(Tabla4[[#This Row],[PASO DESC. UNIC.]]<=$AT$9,Tabla4[[#This Row],[PASO DESC. UNIC.]]*$AU$9-$AV$9,IF(Tabla4[[#This Row],[PASO DESC. UNIC.]]<=$AT$10,Tabla4[[#This Row],[PASO DESC. UNIC.]]*$AU$10-$AV$10,IF(Tabla4[[#This Row],[PASO DESC. UNIC.]]>=$AS$11,Tabla4[[#This Row],[PASO DESC. UNIC.]]*$AU$11-$AV$11))))))) -> 0 | AD95: =Tabla4[[#This Row],[TOTAL AFP]]+Tabla4[[#This Row],[TOTAL SALUD]]+Tabla4[[#This Row],[TOTAL SEGURO CESANTIA]]+Tabla4[[#This Row],[TOTAL ADICIONAL]]+Tabla4[[#This Row],[VALOR IMP U.]]+Tabla4[[#This Row],[VALOR OTRO 2]]+Tabla4[[#This Row],[VALOR OTRO 1]] -> 0 | AF95: =IF($BP$8 = "SI",IF(Tabla4[[#This Row],[TIPO CONTRATO]]="Indefinido",BDD!S97*2.4%,IF(Tabla4[[#This Row],[TIPO CONTRATO]]="PLAZO FIJO",BDD!S97*3%,0)),0) -> 0 | AM95: =BDD!S97*Tabla4[[#This Row],[% SIS]] -> 0 | AP95: =BDD!S97*Tabla4[[#This Row],[%MUTUAL]] -> 0
K96: 92 | L96: =IF(BDD!J98=0," ",BDD!J98) ->  | O96: =IF(BDD!S98<_TOPEIMPONIBLE,BDD!S98*Tabla4[[#This Row],[%AFP]],_TOPEIMPONIBLE*Tabla4[[#This Row],[%AFP]]) -> 0 | R96: =IF(BDD!S98<_TOPEIMPONIBLE,BDD!S98*Tabla4[[#This Row],[%SALUD]],_TOPEIMPONIBLE*Tabla4[[#This Row],[%SALUD]]) -> 0 | U96: =BDD!S98*Tabla4[[#This Row],[%SEGURO]] -> 0 | W96: =IF(Tabla4[[#This Row],[TOTAL UF]]-Tabla4[[#This Row],[TOTAL SALUD]]<=0,0,Tabla4[[#This Row],[TOTAL UF]]-Tabla4[[#This Row],[TOTAL SALUD]]) -> 0 | Y96: =BDD!$N$4 -> 37838.55 | Z96: =Tabla4[[#This Row],[PACTO UF]]*Tabla4[[#This Row],[VALOR UF]] -> 0 | AA96: IMPUESTO UNICO | AB96: =BDD!S98-Tabla4[[#This Row],[TOTAL AFP]]-Tabla4[[#This Row],[TOTAL SALUD]]-Tabla4[[#This Row],[TOTAL SEGURO CESANTIA]]-Tabla4[[#This Row],[TOTAL ADICIONAL]] -> 0 | AC96: =IF(Tabla4[[#This Row],[PASO DESC. UNIC.]]<=$AT$5,0,IF(Tabla4[[#This Row],[PASO DESC. UNIC.]]<=$AT$6,Tabla4[[#This Row],[PASO DESC. UNIC.]]*$AU$6-$AV$6,IF(Tabla4[[#This Row],[PASO DESC. UNIC.]]<=$AT$7,Tabla4[[#This Row],[PASO DESC. UNIC.]]*$AU$7-$AV$7,IF(Tabla4[[#This Row],[PASO DESC. UNIC.]]<=$AT$8,Tabla4[[#This Row],[PASO DESC. UNIC.]]*$AU$8-$AV$8,IF(Tabla4[[#This Row],[PASO DESC. UNIC.]]<=$AT$9,Tabla4[[#This Row],[PASO DESC. UNIC.]]*$AU$9-$AV$9,IF(Tabla4[[#This Row],[PASO DESC. UNIC.]]<=$AT$10,Tabla4[[#This Row],[PASO DESC. UNIC.]]*$AU$10-$AV$10,IF(Tabla4[[#This Row],[PASO DESC. UNIC.]]>=$AS$11,Tabla4[[#This Row],[PASO DESC. UNIC.]]*$AU$11-$AV$11))))))) -> 0 | AD96: =Tabla4[[#This Row],[TOTAL AFP]]+Tabla4[[#This Row],[TOTAL SALUD]]+Tabla4[[#This Row],[TOTAL SEGURO CESANTIA]]+Tabla4[[#This Row],[TOTAL ADICIONAL]]+Tabla4[[#This Row],[VALOR IMP U.]]+Tabla4[[#This Row],[VALOR OTRO 2]]+Tabla4[[#This Row],[VALOR OTRO 1]] -> 0 | AF96: =IF($BP$8 = "SI",IF(Tabla4[[#This Row],[TIPO CONTRATO]]="Indefinido",BDD!S98*2.4%,IF(Tabla4[[#This Row],[TIPO CONTRATO]]="PLAZO FIJO",BDD!S98*3%,0)),0) -> 0 | AM96: =BDD!S98*Tabla4[[#This Row],[% SIS]] -> 0 | AP96: =BDD!S98*Tabla4[[#This Row],[%MUTUAL]] -> 0
K97: 93 | L97: =IF(BDD!J99=0," ",BDD!J99) ->  | O97: =IF(BDD!S99<_TOPEIMPONIBLE,BDD!S99*Tabla4[[#This Row],[%AFP]],_TOPEIMPONIBLE*Tabla4[[#This Row],[%AFP]]) -> 0 | R97: =IF(BDD!S99<_TOPEIMPONIBLE,BDD!S99*Tabla4[[#This Row],[%SALUD]],_TOPEIMPONIBLE*Tabla4[[#This Row],[%SALUD]]) -> 0 | U97: =BDD!S99*Tabla4[[#This Row],[%SEGURO]] -> 0 | W97: =IF(Tabla4[[#This Row],[TOTAL UF]]-Tabla4[[#This Row],[TOTAL SALUD]]<=0,0,Tabla4[[#This Row],[TOTAL UF]]-Tabla4[[#This Row],[TOTAL SALUD]]) -> 0 | Y97: =BDD!$N$4 -> 37838.55 | Z97: =Tabla4[[#This Row],[PACTO UF]]*Tabla4[[#This Row],[VALOR UF]] -> 0 | AA97: IMPUESTO UNICO | AB97: =BDD!S99-Tabla4[[#This Row],[TOTAL AFP]]-Tabla4[[#This Row],[TOTAL SALUD]]-Tabla4[[#This Row],[TOTAL SEGURO CESANTIA]]-Tabla4[[#This Row],[TOTAL ADICIONAL]] -> 0 | AC97: =IF(Tabla4[[#This Row],[PASO DESC. UNIC.]]<=$AT$5,0,IF(Tabla4[[#This Row],[PASO DESC. UNIC.]]<=$AT$6,Tabla4[[#This Row],[PASO DESC. UNIC.]]*$AU$6-$AV$6,IF(Tabla4[[#This Row],[PASO DESC. UNIC.]]<=$AT$7,Tabla4[[#This Row],[PASO DESC. UNIC.]]*$AU$7-$AV$7,IF(Tabla4[[#This Row],[PASO DESC. UNIC.]]<=$AT$8,Tabla4[[#This Row],[PASO DESC. UNIC.]]*$AU$8-$AV$8,IF(Tabla4[[#This Row],[PASO DESC. UNIC.]]<=$AT$9,Tabla4[[#This Row],[PASO DESC. UNIC.]]*$AU$9-$AV$9,IF(Tabla4[[#This Row],[PASO DESC. UNIC.]]<=$AT$10,Tabla4[[#This Row],[PASO DESC. UNIC.]]*$AU$10-$AV$10,IF(Tabla4[[#This Row],[PASO DESC. UNIC.]]>=$AS$11,Tabla4[[#This Row],[PASO DESC. UNIC.]]*$AU$11-$AV$11))))))) -> 0 | AD97: =Tabla4[[#This Row],[TOTAL AFP]]+Tabla4[[#This Row],[TOTAL SALUD]]+Tabla4[[#This Row],[TOTAL SEGURO CESANTIA]]+Tabla4[[#This Row],[TOTAL ADICIONAL]]+Tabla4[[#This Row],[VALOR IMP U.]]+Tabla4[[#This Row],[VALOR OTRO 2]]+Tabla4[[#This Row],[VALOR OTRO 1]] -> 0 | AF97: =IF($BP$8 = "SI",IF(Tabla4[[#This Row],[TIPO CONTRATO]]="Indefinido",BDD!S99*2.4%,IF(Tabla4[[#This Row],[TIPO CONTRATO]]="PLAZO FIJO",BDD!S99*3%,0)),0) -> 0 | AM97: =BDD!S99*Tabla4[[#This Row],[% SIS]] -> 0 | AP97: =BDD!S99*Tabla4[[#This Row],[%MUTUAL]] -> 0
K98: 94 | L98: =IF(BDD!J100=0," ",BDD!J100) ->  | O98: =IF(BDD!S100<_TOPEIMPONIBLE,BDD!S100*Tabla4[[#This Row],[%AFP]],_TOPEIMPONIBLE*Tabla4[[#This Row],[%AFP]]) -> 0 | R98: =IF(BDD!S100<_TOPEIMPONIBLE,BDD!S100*Tabla4[[#This Row],[%SALUD]],_TOPEIMPONIBLE*Tabla4[[#This Row],[%SALUD]]) -> 0 | U98: =BDD!S100*Tabla4[[#This Row],[%SEGURO]] -> 0 | W98: =IF(Tabla4[[#This Row],[TOTAL UF]]-Tabla4[[#This Row],[TOTAL SALUD]]<=0,0,Tabla4[[#This Row],[TOTAL UF]]-Tabla4[[#This Row],[TOTAL SALUD]]) -> 0 | Y98: =BDD!$N$4 -> 37838.55 | Z98: =Tabla4[[#This Row],[PACTO UF]]*Tabla4[[#This Row],[VALOR UF]] -> 0 | AA98: IMPUESTO UNICO | AB98: =BDD!S100-Tabla4[[#This Row],[TOTAL AFP]]-Tabla4[[#This Row],[TOTAL SALUD]]-Tabla4[[#This Row],[TOTAL SEGURO CESANTIA]]-Tabla4[[#This Row],[TOTAL ADICIONAL]] -> 0 | AC98: =IF(Tabla4[[#This Row],[PASO DESC. UNIC.]]<=$AT$5,0,IF(Tabla4[[#This Row],[PASO DESC. UNIC.]]<=$AT$6,Tabla4[[#This Row],[PASO DESC. UNIC.]]*$AU$6-$AV$6,IF(Tabla4[[#This Row],[PASO DESC. UNIC.]]<=$AT$7,Tabla4[[#This Row],[PASO DESC. UNIC.]]*$AU$7-$AV$7,IF(Tabla4[[#This Row],[PASO DESC. UNIC.]]<=$AT$8,Tabla4[[#This Row],[PASO DESC. UNIC.]]*$AU$8-$AV$8,IF(Tabla4[[#This Row],[PASO DESC. UNIC.]]<=$AT$9,Tabla4[[#This Row],[PASO DESC. UNIC.]]*$AU$9-$AV$9,IF(Tabla4[[#This Row],[PASO DESC. UNIC.]]<=$AT$10,Tabla4[[#This Row],[PASO DESC. UNIC.]]*$AU$10-$AV$10,IF(Tabla4[[#This Row],[PASO DESC. UNIC.]]>=$AS$11,Tabla4[[#This Row],[PASO DESC. UNIC.]]*$AU$11-$AV$11))))))) -> 0 | AD98: =Tabla4[[#This Row],[TOTAL AFP]]+Tabla4[[#This Row],[TOTAL SALUD]]+Tabla4[[#This Row],[TOTAL SEGURO CESANTIA]]+Tabla4[[#This Row],[TOTAL ADICIONAL]]+Tabla4[[#This Row],[VALOR IMP U.]]+Tabla4[[#This Row],[VALOR OTRO 2]]+Tabla4[[#This Row],[VALOR OTRO 1]] -> 0 | AF98: =IF($BP$8 = "SI",IF(Tabla4[[#This Row],[TIPO CONTRATO]]="Indefinido",BDD!S100*2.4%,IF(Tabla4[[#This Row],[TIPO CONTRATO]]="PLAZO FIJO",BDD!S100*3%,0)),0) -> 0 | AM98: =BDD!S100*Tabla4[[#This Row],[% SIS]] -> 0 | AP98: =BDD!S100*Tabla4[[#This Row],[%MUTUAL]] -> 0
K99: 95 | L99: =IF(BDD!J101=0," ",BDD!J101) ->  | O99: =IF(BDD!S101<_TOPEIMPONIBLE,BDD!S101*Tabla4[[#This Row],[%AFP]],_TOPEIMPONIBLE*Tabla4[[#This Row],[%AFP]]) -> 0 | R99: =IF(BDD!S101<_TOPEIMPONIBLE,BDD!S101*Tabla4[[#This Row],[%SALUD]],_TOPEIMPONIBLE*Tabla4[[#This Row],[%SALUD]]) -> 0 | U99: =BDD!S101*Tabla4[[#This Row],[%SEGURO]] -> 0 | W99: =IF(Tabla4[[#This Row],[TOTAL UF]]-Tabla4[[#This Row],[TOTAL SALUD]]<=0,0,Tabla4[[#This Row],[TOTAL UF]]-Tabla4[[#This Row],[TOTAL SALUD]]) -> 0 | Y99: =BDD!$N$4 -> 37838.55 | Z99: =Tabla4[[#This Row],[PACTO UF]]*Tabla4[[#This Row],[VALOR UF]] -> 0 | AA99: IMPUESTO UNICO | AB99: =BDD!S101-Tabla4[[#This Row],[TOTAL AFP]]-Tabla4[[#This Row],[TOTAL SALUD]]-Tabla4[[#This Row],[TOTAL SEGURO CESANTIA]]-Tabla4[[#This Row],[TOTAL ADICIONAL]] -> 0 | AC99: =IF(Tabla4[[#This Row],[PASO DESC. UNIC.]]<=$AT$5,0,IF(Tabla4[[#This Row],[PASO DESC. UNIC.]]<=$AT$6,Tabla4[[#This Row],[PASO DESC. UNIC.]]*$AU$6-$AV$6,IF(Tabla4[[#This Row],[PASO DESC. UNIC.]]<=$AT$7,Tabla4[[#This Row],[PASO DESC. UNIC.]]*$AU$7-$AV$7,IF(Tabla4[[#This Row],[PASO DESC. UNIC.]]<=$AT$8,Tabla4[[#This Row],[PASO DESC. UNIC.]]*$AU$8-$AV$8,IF(Tabla4[[#This Row],[PASO DESC. UNIC.]]<=$AT$9,Tabla4[[#This Row],[PASO DESC. UNIC.]]*$AU$9-$AV$9,IF(Tabla4[[#This Row],[PASO DESC. UNIC.]]<=$AT$10,Tabla4[[#This Row],[PASO DESC. UNIC.]]*$AU$10-$AV$10,IF(Tabla4[[#This Row],[PASO DESC. UNIC.]]>=$AS$11,Tabla4[[#This Row],[PASO DESC. UNIC.]]*$AU$11-$AV$11))))))) -> 0 | AD99: =Tabla4[[#This Row],[TOTAL AFP]]+Tabla4[[#This Row],[TOTAL SALUD]]+Tabla4[[#This Row],[TOTAL SEGURO CESANTIA]]+Tabla4[[#This Row],[TOTAL ADICIONAL]]+Tabla4[[#This Row],[VALOR IMP U.]]+Tabla4[[#This Row],[VALOR OTRO 2]]+Tabla4[[#This Row],[VALOR OTRO 1]] -> 0 | AF99: =IF($BP$8 = "SI",IF(Tabla4[[#This Row],[TIPO CONTRATO]]="Indefinido",BDD!S101*2.4%,IF(Tabla4[[#This Row],[TIPO CONTRATO]]="PLAZO FIJO",BDD!S101*3%,0)),0) -> 0 | AM99: =BDD!S101*Tabla4[[#This Row],[% SIS]] -> 0 | AP99: =BDD!S101*Tabla4[[#This Row],[%MUTUAL]] -> 0
K100: 96 | L100: =IF(BDD!J102=0," ",BDD!J102) ->  | O100: =IF(BDD!S102<_TOPEIMPONIBLE,BDD!S102*Tabla4[[#This Row],[%AFP]],_TOPEIMPONIBLE*Tabla4[[#This Row],[%AFP]]) -> 0 | R100: =IF(BDD!S102<_TOPEIMPONIBLE,BDD!S102*Tabla4[[#This Row],[%SALUD]],_TOPEIMPONIBLE*Tabla4[[#This Row],[%SALUD]]) -> 0 | U100: =BDD!S102*Tabla4[[#This Row],[%SEGURO]] -> 0 | W100: =IF(Tabla4[[#This Row],[TOTAL UF]]-Tabla4[[#This Row],[TOTAL SALUD]]<=0,0,Tabla4[[#This Row],[TOTAL UF]]-Tabla4[[#This Row],[TOTAL SALUD]]) -> 0 | Y100: =BDD!$N$4 -> 37838.55 | Z100: =Tabla4[[#This Row],[PACTO UF]]*Tabla4[[#This Row],[VALOR UF]] -> 0 | AA100: IMPUESTO UNICO | AB100: =BDD!S102-Tabla4[[#This Row],[TOTAL AFP]]-Tabla4[[#This Row],[TOTAL SALUD]]-Tabla4[[#This Row],[TOTAL SEGURO CESANTIA]]-Tabla4[[#This Row],[TOTAL ADICIONAL]] -> 0 | AC100: =IF(Tabla4[[#This Row],[PASO DESC. UNIC.]]<=$AT$5,0,IF(Tabla4[[#This Row],[PASO DESC. UNIC.]]<=$AT$6,Tabla4[[#This Row],[PASO DESC. UNIC.]]*$AU$6-$AV$6,IF(Tabla4[[#This Row],[PASO DESC. UNIC.]]<=$AT$7,Tabla4[[#This Row],[PASO DESC. UNIC.]]*$AU$7-$AV$7,IF(Tabla4[[#This Row],[PASO DESC. UNIC.]]<=$AT$8,Tabla4[[#This Row],[PASO DESC. UNIC.]]*$AU$8-$AV$8,IF(Tabla4[[#This Row],[PASO DESC. UNIC.]]<=$AT$9,Tabla4[[#This Row],[PASO DESC. UNIC.]]*$AU$9-$AV$9,IF(Tabla4[[#This Row],[PASO DESC. UNIC.]]<=$AT$10,Tabla4[[#This Row],[PASO DESC. UNIC.]]*$AU$10-$AV$10,IF(Tabla4[[#This Row],[PASO DESC. UNIC.]]>=$AS$11,Tabla4[[#This Row],[PASO DESC. UNIC.]]*$AU$11-$AV$11))))))) -> 0 | AD100: =Tabla4[[#This Row],[TOTAL AFP]]+Tabla4[[#This Row],[TOTAL SALUD]]+Tabla4[[#This Row],[TOTAL SEGURO CESANTIA]]+Tabla4[[#This Row],[TOTAL ADICIONAL]]+Tabla4[[#This Row],[VALOR IMP U.]]+Tabla4[[#This Row],[VALOR OTRO 2]]+Tabla4[[#This Row],[VALOR OTRO 1]] -> 0 | AF100: =IF($BP$8 = "SI",IF(Tabla4[[#This Row],[TIPO CONTRATO]]="Indefinido",BDD!S102*2.4%,IF(Tabla4[[#This Row],[TIPO CONTRATO]]="PLAZO FIJO",BDD!S102*3%,0)),0) -> 0 | AM100: =BDD!S102*Tabla4[[#This Row],[% SIS]] -> 0 | AP100: =BDD!S102*Tabla4[[#This Row],[%MUTUAL]] -> 0
K101: 97 | L101: =IF(BDD!J103=0," ",BDD!J103) ->  | O101: =IF(BDD!S103<_TOPEIMPONIBLE,BDD!S103*Tabla4[[#This Row],[%AFP]],_TOPEIMPONIBLE*Tabla4[[#This Row],[%AFP]]) -> 0 | R101: =IF(BDD!S103<_TOPEIMPONIBLE,BDD!S103*Tabla4[[#This Row],[%SALUD]],_TOPEIMPONIBLE*Tabla4[[#This Row],[%SALUD]]) -> 0 | U101: =BDD!S103*Tabla4[[#This Row],[%SEGURO]] -> 0 | W101: =IF(Tabla4[[#This Row],[TOTAL UF]]-Tabla4[[#This Row],[TOTAL SALUD]]<=0,0,Tabla4[[#This Row],[TOTAL UF]]-Tabla4[[#This Row],[TOTAL SALUD]]) -> 0 | Y101: =BDD!$N$4 -> 37838.55 | Z101: =Tabla4[[#This Row],[PACTO UF]]*Tabla4[[#This Row],[VALOR UF]] -> 0 | AA101: IMPUESTO UNICO | AB101: =BDD!S103-Tabla4[[#This Row],[TOTAL AFP]]-Tabla4[[#This Row],[TOTAL SALUD]]-Tabla4[[#This Row],[TOTAL SEGURO CESANTIA]]-Tabla4[[#This Row],[TOTAL ADICIONAL]] -> 0 | AC101: =IF(Tabla4[[#This Row],[PASO DESC. UNIC.]]<=$AT$5,0,IF(Tabla4[[#This Row],[PASO DESC. UNIC.]]<=$AT$6,Tabla4[[#This Row],[PASO DESC. UNIC.]]*$AU$6-$AV$6,IF(Tabla4[[#This Row],[PASO DESC. UNIC.]]<=$AT$7,Tabla4[[#This Row],[PASO DESC. UNIC.]]*$AU$7-$AV$7,IF(Tabla4[[#This Row],[PASO DESC. UNIC.]]<=$AT$8,Tabla4[[#This Row],[PASO DESC. UNIC.]]*$AU$8-$AV$8,IF(Tabla4[[#This Row],[PASO DESC. UNIC.]]<=$AT$9,Tabla4[[#This Row],[PASO DESC. UNIC.]]*$AU$9-$AV$9,IF(Tabla4[[#This Row],[PASO DESC. UNIC.]]<=$AT$10,Tabla4[[#This Row],[PASO DESC. UNIC.]]*$AU$10-$AV$10,IF(Tabla4[[#This Row],[PASO DESC. UNIC.]]>=$AS$11,Tabla4[[#This Row],[PASO DESC. UNIC.]]*$AU$11-$AV$11))))))) -> 0 | AD101: =Tabla4[[#This Row],[TOTAL AFP]]+Tabla4[[#This Row],[TOTAL SALUD]]+Tabla4[[#This Row],[TOTAL SEGURO CESANTIA]]+Tabla4[[#This Row],[TOTAL ADICIONAL]]+Tabla4[[#This Row],[VALOR IMP U.]]+Tabla4[[#This Row],[VALOR OTRO 2]]+Tabla4[[#This Row],[VALOR OTRO 1]] -> 0 | AF101: =IF($BP$8 = "SI",IF(Tabla4[[#This Row],[TIPO CONTRATO]]="Indefinido",BDD!S103*2.4%,IF(Tabla4[[#This Row],[TIPO CONTRATO]]="PLAZO FIJO",BDD!S103*3%,0)),0) -> 0 | AM101: =BDD!S103*Tabla4[[#This Row],[% SIS]] -> 0 | AP101: =BDD!S103*Tabla4[[#This Row],[%MUTUAL]] -> 0
K102: 98 | L102: =IF(BDD!J104=0," ",BDD!J104) ->  | O102: =IF(BDD!S104<_TOPEIMPONIBLE,BDD!S104*Tabla4[[#This Row],[%AFP]],_TOPEIMPONIBLE*Tabla4[[#This Row],[%AFP]]) -> 0 | R102: =IF(BDD!S104<_TOPEIMPONIBLE,BDD!S104*Tabla4[[#This Row],[%SALUD]],_TOPEIMPONIBLE*Tabla4[[#This Row],[%SALUD]]) -> 0 | U102: =BDD!S104*Tabla4[[#This Row],[%SEGURO]] -> 0 | W102: =IF(Tabla4[[#This Row],[TOTAL UF]]-Tabla4[[#This Row],[TOTAL SALUD]]<=0,0,Tabla4[[#This Row],[TOTAL UF]]-Tabla4[[#This Row],[TOTAL SALUD]]) -> 0 | Y102: =BDD!$N$4 -> 37838.55 | Z102: =Tabla4[[#This Row],[PACTO UF]]*Tabla4[[#This Row],[VALOR UF]] -> 0 | AA102: IMPUESTO UNICO | AB102: =BDD!S104-Tabla4[[#This Row],[TOTAL AFP]]-Tabla4[[#This Row],[TOTAL SALUD]]-Tabla4[[#This Row],[TOTAL SEGURO CESANTIA]]-Tabla4[[#This Row],[TOTAL ADICIONAL]] -> 0 | AC102: =IF(Tabla4[[#This Row],[PASO DESC. UNIC.]]<=$AT$5,0,IF(Tabla4[[#This Row],[PASO DESC. UNIC.]]<=$AT$6,Tabla4[[#This Row],[PASO DESC. UNIC.]]*$AU$6-$AV$6,IF(Tabla4[[#This Row],[PASO DESC. UNIC.]]<=$AT$7,Tabla4[[#This Row],[PASO DESC. UNIC.]]*$AU$7-$AV$7,IF(Tabla4[[#This Row],[PASO DESC. UNIC.]]<=$AT$8,Tabla4[[#This Row],[PASO DESC. UNIC.]]*$AU$8-$AV$8,IF(Tabla4[[#This Row],[PASO DESC. UNIC.]]<=$AT$9,Tabla4[[#This Row],[PASO DESC. UNIC.]]*$AU$9-$AV$9,IF(Tabla4[[#This Row],[PASO DESC. UNIC.]]<=$AT$10,Tabla4[[#This Row],[PASO DESC. UNIC.]]*$AU$10-$AV$10,IF(Tabla4[[#This Row],[PASO DESC. UNIC.]]>=$AS$11,Tabla4[[#This Row],[PASO DESC. UNIC.]]*$AU$11-$AV$11))))))) -> 0 | AD102: =Tabla4[[#This Row],[TOTAL AFP]]+Tabla4[[#This Row],[TOTAL SALUD]]+Tabla4[[#This Row],[TOTAL SEGURO CESANTIA]]+Tabla4[[#This Row],[TOTAL ADICIONAL]]+Tabla4[[#This Row],[VALOR IMP U.]]+Tabla4[[#This Row],[VALOR OTRO 2]]+Tabla4[[#This Row],[VALOR OTRO 1]] -> 0 | AF102: =IF($BP$8 = "SI",IF(Tabla4[[#This Row],[TIPO CONTRATO]]="Indefinido",BDD!S104*2.4%,IF(Tabla4[[#This Row],[TIPO CONTRATO]]="PLAZO FIJO",BDD!S104*3%,0)),0) -> 0 | AM102: =BDD!S104*Tabla4[[#This Row],[% SIS]] -> 0 | AP102: =BDD!S104*Tabla4[[#This Row],[%MUTUAL]] -> 0
K103: 99 | L103: =IF(BDD!J105=0," ",BDD!J105) ->  | O103: =IF(BDD!S105<_TOPEIMPONIBLE,BDD!S105*Tabla4[[#This Row],[%AFP]],_TOPEIMPONIBLE*Tabla4[[#This Row],[%AFP]]) -> 0 | R103: =IF(BDD!S105<_TOPEIMPONIBLE,BDD!S105*Tabla4[[#This Row],[%SALUD]],_TOPEIMPONIBLE*Tabla4[[#This Row],[%SALUD]]) -> 0 | U103: =BDD!S105*Tabla4[[#This Row],[%SEGURO]] -> 0 | W103: =IF(Tabla4[[#This Row],[TOTAL UF]]-Tabla4[[#This Row],[TOTAL SALUD]]<=0,0,Tabla4[[#This Row],[TOTAL UF]]-Tabla4[[#This Row],[TOTAL SALUD]]) -> 0 | Y103: =BDD!$N$4 -> 37838.55 | Z103: =Tabla4[[#This Row],[PACTO UF]]*Tabla4[[#This Row],[VALOR UF]] -> 0 | AA103: IMPUESTO UNICO | AB103: =BDD!S105-Tabla4[[#This Row],[TOTAL AFP]]-Tabla4[[#This Row],[TOTAL SALUD]]-Tabla4[[#This Row],[TOTAL SEGURO CESANTIA]]-Tabla4[[#This Row],[TOTAL ADICIONAL]] -> 0 | AC103: =IF(Tabla4[[#This Row],[PASO DESC. UNIC.]]<=$AT$5,0,IF(Tabla4[[#This Row],[PASO DESC. UNIC.]]<=$AT$6,Tabla4[[#This Row],[PASO DESC. UNIC.]]*$AU$6-$AV$6,IF(Tabla4[[#This Row],[PASO DESC. UNIC.]]<=$AT$7,Tabla4[[#This Row],[PASO DESC. UNIC.]]*$AU$7-$AV$7,IF(Tabla4[[#This Row],[PASO DESC. UNIC.]]<=$AT$8,Tabla4[[#This Row],[PASO DESC. UNIC.]]*$AU$8-$AV$8,IF(Tabla4[[#This Row],[PASO DESC. UNIC.]]<=$AT$9,Tabla4[[#This Row],[PASO DESC. UNIC.]]*$AU$9-$AV$9,IF(Tabla4[[#This Row],[PASO DESC. UNIC.]]<=$AT$10,Tabla4[[#This Row],[PASO DESC. UNIC.]]*$AU$10-$AV$10,IF(Tabla4[[#This Row],[PASO DESC. UNIC.]]>=$AS$11,Tabla4[[#This Row],[PASO DESC. UNIC.]]*$AU$11-$AV$11))))))) -> 0 | AD103: =Tabla4[[#This Row],[TOTAL AFP]]+Tabla4[[#This Row],[TOTAL SALUD]]+Tabla4[[#This Row],[TOTAL SEGURO CESANTIA]]+Tabla4[[#This Row],[TOTAL ADICIONAL]]+Tabla4[[#This Row],[VALOR IMP U.]]+Tabla4[[#This Row],[VALOR OTRO 2]]+Tabla4[[#This Row],[VALOR OTRO 1]] -> 0 | AF103: =IF($BP$8 = "SI",IF(Tabla4[[#This Row],[TIPO CONTRATO]]="Indefinido",BDD!S105*2.4%,IF(Tabla4[[#This Row],[TIPO CONTRATO]]="PLAZO FIJO",BDD!S105*3%,0)),0) -> 0 | AM103: =BDD!S105*Tabla4[[#This Row],[% SIS]] -> 0 | AP103: =BDD!S105*Tabla4[[#This Row],[%MUTUAL]] -> 0
K104: 100 | L104: =IF(BDD!J106=0," ",BDD!J106) ->  | O104: =IF(BDD!S106<_TOPEIMPONIBLE,BDD!S106*Tabla4[[#This Row],[%AFP]],_TOPEIMPONIBLE*Tabla4[[#This Row],[%AFP]]) -> 0 | R104: =IF(BDD!S106<_TOPEIMPONIBLE,BDD!S106*Tabla4[[#This Row],[%SALUD]],_TOPEIMPONIBLE*Tabla4[[#This Row],[%SALUD]]) -> 0 | U104: =BDD!S106*Tabla4[[#This Row],[%SEGURO]] -> 0 | W104: =IF(Tabla4[[#This Row],[TOTAL UF]]-Tabla4[[#This Row],[TOTAL SALUD]]<=0,0,Tabla4[[#This Row],[TOTAL UF]]-Tabla4[[#This Row],[TOTAL SALUD]]) -> 0 | Y104: =BDD!$N$4 -> 37838.55 | Z104: =Tabla4[[#This Row],[PACTO UF]]*Tabla4[[#This Row],[VALOR UF]] -> 0 | AA104: IMPUESTO UNICO | AB104: =BDD!S106-Tabla4[[#This Row],[TOTAL AFP]]-Tabla4[[#This Row],[TOTAL SALUD]]-Tabla4[[#This Row],[TOTAL SEGURO CESANTIA]]-Tabla4[[#This Row],[TOTAL ADICIONAL]] -> 0 | AC104: =IF(Tabla4[[#This Row],[PASO DESC. UNIC.]]<=$AT$5,0,IF(Tabla4[[#This Row],[PASO DESC. UNIC.]]<=$AT$6,Tabla4[[#This Row],[PASO DESC. UNIC.]]*$AU$6-$AV$6,IF(Tabla4[[#This Row],[PASO DESC. UNIC.]]<=$AT$7,Tabla4[[#This Row],[PASO DESC. UNIC.]]*$AU$7-$AV$7,IF(Tabla4[[#This Row],[PASO DESC. UNIC.]]<=$AT$8,Tabla4[[#This Row],[PASO DESC. UNIC.]]*$AU$8-$AV$8,IF(Tabla4[[#This Row],[PASO DESC. UNIC.]]<=$AT$9,Tabla4[[#This Row],[PASO DESC. UNIC.]]*$AU$9-$AV$9,IF(Tabla4[[#This Row],[PASO DESC. UNIC.]]<=$AT$10,Tabla4[[#This Row],[PASO DESC. UNIC.]]*$AU$10-$AV$10,IF(Tabla4[[#This Row],[PASO DESC. UNIC.]]>=$AS$11,Tabla4[[#This Row],[PASO DESC. UNIC.]]*$AU$11-$AV$11))))))) -> 0 | AD104: =Tabla4[[#This Row],[TOTAL AFP]]+Tabla4[[#This Row],[TOTAL SALUD]]+Tabla4[[#This Row],[TOTAL SEGURO CESANTIA]]+Tabla4[[#This Row],[TOTAL ADICIONAL]]+Tabla4[[#This Row],[VALOR IMP U.]]+Tabla4[[#This Row],[VALOR OTRO 2]]+Tabla4[[#This Row],[VALOR OTRO 1]] -> 0 | AF104: =IF($BP$8 = "SI",IF(Tabla4[[#This Row],[TIPO CONTRATO]]="Indefinido",BDD!S106*2.4%,IF(Tabla4[[#This Row],[TIPO CONTRATO]]="PLAZO FIJO",BDD!S106*3%,0)),0) -> 0 | AM104: =BDD!S106*Tabla4[[#This Row],[% SIS]] -> 0 | AP104: =BDD!S106*Tabla4[[#This Row],[%MUTUAL]] -> 0
K105: 101 | L105: =IF(BDD!J107=0," ",BDD!J107) ->  | O105: =IF(BDD!S107<_TOPEIMPONIBLE,BDD!S107*Tabla4[[#This Row],[%AFP]],_TOPEIMPONIBLE*Tabla4[[#This Row],[%AFP]]) -> 0 | R105: =IF(BDD!S107<_TOPEIMPONIBLE,BDD!S107*Tabla4[[#This Row],[%SALUD]],_TOPEIMPONIBLE*Tabla4[[#This Row],[%SALUD]]) -> 0 | U105: =BDD!S107*Tabla4[[#This Row],[%SEGURO]] -> 0 | W105: =IF(Tabla4[[#This Row],[TOTAL UF]]-Tabla4[[#This Row],[TOTAL SALUD]]<=0,0,Tabla4[[#This Row],[TOTAL UF]]-Tabla4[[#This Row],[TOTAL SALUD]]) -> 0 | Y105: =BDD!$N$4 -> 37838.55 | Z105: =Tabla4[[#This Row],[PACTO UF]]*Tabla4[[#This Row],[VALOR UF]] -> 0 | AA105: IMPUESTO UNICO | AB105: =BDD!S107-Tabla4[[#This Row],[TOTAL AFP]]-Tabla4[[#This Row],[TOTAL SALUD]]-Tabla4[[#This Row],[TOTAL SEGURO CESANTIA]]-Tabla4[[#This Row],[TOTAL ADICIONAL]] -> 0 | AC105: =IF(Tabla4[[#This Row],[PASO DESC. UNIC.]]<=$AT$5,0,IF(Tabla4[[#This Row],[PASO DESC. UNIC.]]<=$AT$6,Tabla4[[#This Row],[PASO DESC. UNIC.]]*$AU$6-$AV$6,IF(Tabla4[[#This Row],[PASO DESC. UNIC.]]<=$AT$7,Tabla4[[#This Row],[PASO DESC. UNIC.]]*$AU$7-$AV$7,IF(Tabla4[[#This Row],[PASO DESC. UNIC.]]<=$AT$8,Tabla4[[#This Row],[PASO DESC. UNIC.]]*$AU$8-$AV$8,IF(Tabla4[[#This Row],[PASO DESC. UNIC.]]<=$AT$9,Tabla4[[#This Row],[PASO DESC. UNIC.]]*$AU$9-$AV$9,IF(Tabla4[[#This Row],[PASO DESC. UNIC.]]<=$AT$10,Tabla4[[#This Row],[PASO DESC. UNIC.]]*$AU$10-$AV$10,IF(Tabla4[[#This Row],[PASO DESC. UNIC.]]>=$AS$11,Tabla4[[#This Row],[PASO DESC. UNIC.]]*$AU$11-$AV$11))))))) -> 0 | AD105: =Tabla4[[#This Row],[TOTAL AFP]]+Tabla4[[#This Row],[TOTAL SALUD]]+Tabla4[[#This Row],[TOTAL SEGURO CESANTIA]]+Tabla4[[#This Row],[TOTAL ADICIONAL]]+Tabla4[[#This Row],[VALOR IMP U.]]+Tabla4[[#This Row],[VALOR OTRO 2]]+Tabla4[[#This Row],[VALOR OTRO 1]] -> 0 | AF105: =IF($BP$8 = "SI",IF(Tabla4[[#This Row],[TIPO CONTRATO]]="Indefinido",BDD!S107*2.4%,IF(Tabla4[[#This Row],[TIPO CONTRATO]]="PLAZO FIJO",BDD!S107*3%,0)),0) -> 0 | AM105: =BDD!S107*Tabla4[[#This Row],[% SIS]] -> 0 | AP105: =BDD!S107*Tabla4[[#This Row],[%MUTUAL]] -> 0
K106: 102 | L106: =IF(BDD!J108=0," ",BDD!J108) ->  | O106: =IF(BDD!S108<_TOPEIMPONIBLE,BDD!S108*Tabla4[[#This Row],[%AFP]],_TOPEIMPONIBLE*Tabla4[[#This Row],[%AFP]]) -> 0 | R106: =IF(BDD!S108<_TOPEIMPONIBLE,BDD!S108*Tabla4[[#This Row],[%SALUD]],_TOPEIMPONIBLE*Tabla4[[#This Row],[%SALUD]]) -> 0 | U106: =BDD!S108*Tabla4[[#This Row],[%SEGURO]] -> 0 | W106: =IF(Tabla4[[#This Row],[TOTAL UF]]-Tabla4[[#This Row],[TOTAL SALUD]]<=0,0,Tabla4[[#This Row],[TOTAL UF]]-Tabla4[[#This Row],[TOTAL SALUD]]) -> 0 | Y106: =BDD!$N$4 -> 37838.55 | Z106: =Tabla4[[#This Row],[PACTO UF]]*Tabla4[[#This Row],[VALOR UF]] -> 0 | AA106: IMPUESTO UNICO | AB106: =BDD!S108-Tabla4[[#This Row],[TOTAL AFP]]-Tabla4[[#This Row],[TOTAL SALUD]]-Tabla4[[#This Row],[TOTAL SEGURO CESANTIA]]-Tabla4[[#This Row],[TOTAL ADICIONAL]] -> 0 | AC106: =IF(Tabla4[[#This Row],[PASO DESC. UNIC.]]<=$AT$5,0,IF(Tabla4[[#This Row],[PASO DESC. UNIC.]]<=$AT$6,Tabla4[[#This Row],[PASO DESC. UNIC.]]*$AU$6-$AV$6,IF(Tabla4[[#This Row],[PASO DESC. UNIC.]]<=$AT$7,Tabla4[[#This Row],[PASO DESC. UNIC.]]*$AU$7-$AV$7,IF(Tabla4[[#This Row],[PASO DESC. UNIC.]]<=$AT$8,Tabla4[[#This Row],[PASO DESC. UNIC.]]*$AU$8-$AV$8,IF(Tabla4[[#This Row],[PASO DESC. UNIC.]]<=$AT$9,Tabla4[[#This Row],[PASO DESC. UNIC.]]*$AU$9-$AV$9,IF(Tabla4[[#This Row],[PASO DESC. UNIC.]]<=$AT$10,Tabla4[[#This Row],[PASO DESC. UNIC.]]*$AU$10-$AV$10,IF(Tabla4[[#This Row],[PASO DESC. UNIC.]]>=$AS$11,Tabla4[[#This Row],[PASO DESC. UNIC.]]*$AU$11-$AV$11))))))) -> 0 | AD106: =Tabla4[[#This Row],[TOTAL AFP]]+Tabla4[[#This Row],[TOTAL SALUD]]+Tabla4[[#This Row],[TOTAL SEGURO CESANTIA]]+Tabla4[[#This Row],[TOTAL ADICIONAL]]+Tabla4[[#This Row],[VALOR IMP U.]]+Tabla4[[#This Row],[VALOR OTRO 2]]+Tabla4[[#This Row],[VALOR OTRO 1]] -> 0 | AF106: =IF($BP$8 = "SI",IF(Tabla4[[#This Row],[TIPO CONTRATO]]="Indefinido",BDD!S108*2.4%,IF(Tabla4[[#This Row],[TIPO CONTRATO]]="PLAZO FIJO",BDD!S108*3%,0)),0) -> 0 | AM106: =BDD!S108*Tabla4[[#This Row],[% SIS]] -> 0 | AP106: =BDD!S108*Tabla4[[#This Row],[%MUTUAL]] -> 0
K107: 103 | L107: =IF(BDD!J109=0," ",BDD!J109) ->  | O107: =IF(BDD!S109<_TOPEIMPONIBLE,BDD!S109*Tabla4[[#This Row],[%AFP]],_TOPEIMPONIBLE*Tabla4[[#This Row],[%AFP]]) -> 0 | R107: =IF(BDD!S109<_TOPEIMPONIBLE,BDD!S109*Tabla4[[#This Row],[%SALUD]],_TOPEIMPONIBLE*Tabla4[[#This Row],[%SALUD]]) -> 0 | U107: =BDD!S109*Tabla4[[#This Row],[%SEGURO]] -> 0 | W107: =IF(Tabla4[[#This Row],[TOTAL UF]]-Tabla4[[#This Row],[TOTAL SALUD]]<=0,0,Tabla4[[#This Row],[TOTAL UF]]-Tabla4[[#This Row],[TOTAL SALUD]]) -> 0 | Y107: =BDD!$N$4 -> 37838.55 | Z107: =Tabla4[[#This Row],[PACTO UF]]*Tabla4[[#This Row],[VALOR UF]] -> 0 | AA107: IMPUESTO UNICO | AB107: =BDD!S109-Tabla4[[#This Row],[TOTAL AFP]]-Tabla4[[#This Row],[TOTAL SALUD]]-Tabla4[[#This Row],[TOTAL SEGURO CESANTIA]]-Tabla4[[#This Row],[TOTAL ADICIONAL]] -> 0 | AC107: =IF(Tabla4[[#This Row],[PASO DESC. UNIC.]]<=$AT$5,0,IF(Tabla4[[#This Row],[PASO DESC. UNIC.]]<=$AT$6,Tabla4[[#This Row],[PASO DESC. UNIC.]]*$AU$6-$AV$6,IF(Tabla4[[#This Row],[PASO DESC. UNIC.]]<=$AT$7,Tabla4[[#This Row],[PASO DESC. UNIC.]]*$AU$7-$AV$7,IF(Tabla4[[#This Row],[PASO DESC. UNIC.]]<=$AT$8,Tabla4[[#This Row],[PASO DESC. UNIC.]]*$AU$8-$AV$8,IF(Tabla4[[#This Row],[PASO DESC. UNIC.]]<=$AT$9,Tabla4[[#This Row],[PASO DESC. UNIC.]]*$AU$9-$AV$9,IF(Tabla4[[#This Row],[PASO DESC. UNIC.]]<=$AT$10,Tabla4[[#This Row],[PASO DESC. UNIC.]]*$AU$10-$AV$10,IF(Tabla4[[#This Row],[PASO DESC. UNIC.]]>=$AS$11,Tabla4[[#This Row],[PASO DESC. UNIC.]]*$AU$11-$AV$11))))))) -> 0 | AD107: =Tabla4[[#This Row],[TOTAL AFP]]+Tabla4[[#This Row],[TOTAL SALUD]]+Tabla4[[#This Row],[TOTAL SEGURO CESANTIA]]+Tabla4[[#This Row],[TOTAL ADICIONAL]]+Tabla4[[#This Row],[VALOR IMP U.]]+Tabla4[[#This Row],[VALOR OTRO 2]]+Tabla4[[#This Row],[VALOR OTRO 1]] -> 0 | AF107: =IF($BP$8 = "SI",IF(Tabla4[[#This Row],[TIPO CONTRATO]]="Indefinido",BDD!S109*2.4%,IF(Tabla4[[#This Row],[TIPO CONTRATO]]="PLAZO FIJO",BDD!S109*3%,0)),0) -> 0 | AM107: =BDD!S109*Tabla4[[#This Row],[% SIS]] -> 0 | AP107: =BDD!S109*Tabla4[[#This Row],[%MUTUAL]] -> 0
K108: 104 | L108: =IF(BDD!J110=0," ",BDD!J110) ->  | O108: =IF(BDD!S110<_TOPEIMPONIBLE,BDD!S110*Tabla4[[#This Row],[%AFP]],_TOPEIMPONIBLE*Tabla4[[#This Row],[%AFP]]) -> 0 | R108: =IF(BDD!S110<_TOPEIMPONIBLE,BDD!S110*Tabla4[[#This Row],[%SALUD]],_TOPEIMPONIBLE*Tabla4[[#This Row],[%SALUD]]) -> 0 | U108: =BDD!S110*Tabla4[[#This Row],[%SEGURO]] -> 0 | W108: =IF(Tabla4[[#This Row],[TOTAL UF]]-Tabla4[[#This Row],[TOTAL SALUD]]<=0,0,Tabla4[[#This Row],[TOTAL UF]]-Tabla4[[#This Row],[TOTAL SALUD]]) -> 0 | Y108: =BDD!$N$4 -> 37838.55 | Z108: =Tabla4[[#This Row],[PACTO UF]]*Tabla4[[#This Row],[VALOR UF]] -> 0 | AA108: IMPUESTO UNICO | AB108: =BDD!S110-Tabla4[[#This Row],[TOTAL AFP]]-Tabla4[[#This Row],[TOTAL SALUD]]-Tabla4[[#This Row],[TOTAL SEGURO CESANTIA]]-Tabla4[[#This Row],[TOTAL ADICIONAL]] -> 0 | AC108: =IF(Tabla4[[#This Row],[PASO DESC. UNIC.]]<=$AT$5,0,IF(Tabla4[[#This Row],[PASO DESC. UNIC.]]<=$AT$6,Tabla4[[#This Row],[PASO DESC. UNIC.]]*$AU$6-$AV$6,IF(Tabla4[[#This Row],[PASO DESC. UNIC.]]<=$AT$7,Tabla4[[#This Row],[PASO DESC. UNIC.]]*$AU$7-$AV$7,IF(Tabla4[[#This Row],[PASO DESC. UNIC.]]<=$AT$8,Tabla4[[#This Row],[PASO DESC. UNIC.]]*$AU$8-$AV$8,IF(Tabla4[[#This Row],[PASO DESC. UNIC.]]<=$AT$9,Tabla4[[#This Row],[PASO DESC. UNIC.]]*$AU$9-$AV$9,IF(Tabla4[[#This Row],[PASO DESC. UNIC.]]<=$AT$10,Tabla4[[#This Row],[PASO DESC. UNIC.]]*$AU$10-$AV$10,IF(Tabla4[[#This Row],[PASO DESC. UNIC.]]>=$AS$11,Tabla4[[#This Row],[PASO DESC. UNIC.]]*$AU$11-$AV$11))))))) -> 0 | AD108: =Tabla4[[#This Row],[TOTAL AFP]]+Tabla4[[#This Row],[TOTAL SALUD]]+Tabla4[[#This Row],[TOTAL SEGURO CESANTIA]]+Tabla4[[#This Row],[TOTAL ADICIONAL]]+Tabla4[[#This Row],[VALOR IMP U.]]+Tabla4[[#This Row],[VALOR OTRO 2]]+Tabla4[[#This Row],[VALOR OTRO 1]] -> 0 | AF108: =IF($BP$8 = "SI",IF(Tabla4[[#This Row],[TIPO CONTRATO]]="Indefinido",BDD!S110*2.4%,IF(Tabla4[[#This Row],[TIPO CONTRATO]]="PLAZO FIJO",BDD!S110*3%,0)),0) -> 0 | AM108: =BDD!S110*Tabla4[[#This Row],[% SIS]] -> 0 | AP108: =BDD!S110*Tabla4[[#This Row],[%MUTUAL]] -> 0
K109: 105 | L109: =IF(BDD!J111=0," ",BDD!J111) ->  | O109: =IF(BDD!S111<_TOPEIMPONIBLE,BDD!S111*Tabla4[[#This Row],[%AFP]],_TOPEIMPONIBLE*Tabla4[[#This Row],[%AFP]]) -> 0 | R109: =IF(BDD!S111<_TOPEIMPONIBLE,BDD!S111*Tabla4[[#This Row],[%SALUD]],_TOPEIMPONIBLE*Tabla4[[#This Row],[%SALUD]]) -> 0 | U109: =BDD!S111*Tabla4[[#This Row],[%SEGURO]] -> 0 | W109: =IF(Tabla4[[#This Row],[TOTAL UF]]-Tabla4[[#This Row],[TOTAL SALUD]]<=0,0,Tabla4[[#This Row],[TOTAL UF]]-Tabla4[[#This Row],[TOTAL SALUD]]) -> 0 | Y109: =BDD!$N$4 -> 37838.55 | Z109: =Tabla4[[#This Row],[PACTO UF]]*Tabla4[[#This Row],[VALOR UF]] -> 0 | AA109: IMPUESTO UNICO | AB109: =BDD!S111-Tabla4[[#This Row],[TOTAL AFP]]-Tabla4[[#This Row],[TOTAL SALUD]]-Tabla4[[#This Row],[TOTAL SEGURO CESANTIA]]-Tabla4[[#This Row],[TOTAL ADICIONAL]] -> 0 | AC109: =IF(Tabla4[[#This Row],[PASO DESC. UNIC.]]<=$AT$5,0,IF(Tabla4[[#This Row],[PASO DESC. UNIC.]]<=$AT$6,Tabla4[[#This Row],[PASO DESC. UNIC.]]*$AU$6-$AV$6,IF(Tabla4[[#This Row],[PASO DESC. UNIC.]]<=$AT$7,Tabla4[[#This Row],[PASO DESC. UNIC.]]*$AU$7-$AV$7,IF(Tabla4[[#This Row],[PASO DESC. UNIC.]]<=$AT$8,Tabla4[[#This Row],[PASO DESC. UNIC.]]*$AU$8-$AV$8,IF(Tabla4[[#This Row],[PASO DESC. UNIC.]]<=$AT$9,Tabla4[[#This Row],[PASO DESC. UNIC.]]*$AU$9-$AV$9,IF(Tabla4[[#This Row],[PASO DESC. UNIC.]]<=$AT$10,Tabla4[[#This Row],[PASO DESC. UNIC.]]*$AU$10-$AV$10,IF(Tabla4[[#This Row],[PASO DESC. UNIC.]]>=$AS$11,Tabla4[[#This Row],[PASO DESC. UNIC.]]*$AU$11-$AV$11))))))) -> 0 | AD109: =Tabla4[[#This Row],[TOTAL AFP]]+Tabla4[[#This Row],[TOTAL SALUD]]+Tabla4[[#This Row],[TOTAL SEGURO CESANTIA]]+Tabla4[[#This Row],[TOTAL ADICIONAL]]+Tabla4[[#This Row],[VALOR IMP U.]]+Tabla4[[#This Row],[VALOR OTRO 2]]+Tabla4[[#This Row],[VALOR OTRO 1]] -> 0 | AF109: =IF($BP$8 = "SI",IF(Tabla4[[#This Row],[TIPO CONTRATO]]="Indefinido",BDD!S111*2.4%,IF(Tabla4[[#This Row],[TIPO CONTRATO]]="PLAZO FIJO",BDD!S111*3%,0)),0) -> 0 | AM109: =BDD!S111*Tabla4[[#This Row],[% SIS]] -> 0 | AP109: =BDD!S111*Tabla4[[#This Row],[%MUTUAL]] -> 0
K110: 106 | L110: =IF(BDD!J112=0," ",BDD!J112) ->  | O110: =IF(BDD!S112<_TOPEIMPONIBLE,BDD!S112*Tabla4[[#This Row],[%AFP]],_TOPEIMPONIBLE*Tabla4[[#This Row],[%AFP]]) -> 0 | R110: =IF(BDD!S112<_TOPEIMPONIBLE,BDD!S112*Tabla4[[#This Row],[%SALUD]],_TOPEIMPONIBLE*Tabla4[[#This Row],[%SALUD]]) -> 0 | U110: =BDD!S112*Tabla4[[#This Row],[%SEGURO]] -> 0 | W110: =IF(Tabla4[[#This Row],[TOTAL UF]]-Tabla4[[#This Row],[TOTAL SALUD]]<=0,0,Tabla4[[#This Row],[TOTAL UF]]-Tabla4[[#This Row],[TOTAL SALUD]]) -> 0 | Y110: =BDD!$N$4 -> 37838.55 | Z110: =Tabla4[[#This Row],[PACTO UF]]*Tabla4[[#This Row],[VALOR UF]] -> 0 | AA110: IMPUESTO UNICO | AB110: =BDD!S112-Tabla4[[#This Row],[TOTAL AFP]]-Tabla4[[#This Row],[TOTAL SALUD]]-Tabla4[[#This Row],[TOTAL SEGURO CESANTIA]]-Tabla4[[#This Row],[TOTAL ADICIONAL]] -> 0 | AC110: =IF(Tabla4[[#This Row],[PASO DESC. UNIC.]]<=$AT$5,0,IF(Tabla4[[#This Row],[PASO DESC. UNIC.]]<=$AT$6,Tabla4[[#This Row],[PASO DESC. UNIC.]]*$AU$6-$AV$6,IF(Tabla4[[#This Row],[PASO DESC. UNIC.]]<=$AT$7,Tabla4[[#This Row],[PASO DESC. UNIC.]]*$AU$7-$AV$7,IF(Tabla4[[#This Row],[PASO DESC. UNIC.]]<=$AT$8,Tabla4[[#This Row],[PASO DESC. UNIC.]]*$AU$8-$AV$8,IF(Tabla4[[#This Row],[PASO DESC. UNIC.]]<=$AT$9,Tabla4[[#This Row],[PASO DESC. UNIC.]]*$AU$9-$AV$9,IF(Tabla4[[#This Row],[PASO DESC. UNIC.]]<=$AT$10,Tabla4[[#This Row],[PASO DESC. UNIC.]]*$AU$10-$AV$10,IF(Tabla4[[#This Row],[PASO DESC. UNIC.]]>=$AS$11,Tabla4[[#This Row],[PASO DESC. UNIC.]]*$AU$11-$AV$11))))))) -> 0 | AD110: =Tabla4[[#This Row],[TOTAL AFP]]+Tabla4[[#This Row],[TOTAL SALUD]]+Tabla4[[#This Row],[TOTAL SEGURO CESANTIA]]+Tabla4[[#This Row],[TOTAL ADICIONAL]]+Tabla4[[#This Row],[VALOR IMP U.]]+Tabla4[[#This Row],[VALOR OTRO 2]]+Tabla4[[#This Row],[VALOR OTRO 1]] -> 0 | AF110: =IF($BP$8 = "SI",IF(Tabla4[[#This Row],[TIPO CONTRATO]]="Indefinido",BDD!S112*2.4%,IF(Tabla4[[#This Row],[TIPO CONTRATO]]="PLAZO FIJO",BDD!S112*3%,0)),0) -> 0 | AM110: =BDD!S112*Tabla4[[#This Row],[% SIS]] -> 0 | AP110: =BDD!S112*Tabla4[[#This Row],[%MUTUAL]] -> 0
K111: 107 | L111: =IF(BDD!J113=0," ",BDD!J113) ->  | O111: =IF(BDD!S113<_TOPEIMPONIBLE,BDD!S113*Tabla4[[#This Row],[%AFP]],_TOPEIMPONIBLE*Tabla4[[#This Row],[%AFP]]) -> 0 | R111: =IF(BDD!S113<_TOPEIMPONIBLE,BDD!S113*Tabla4[[#This Row],[%SALUD]],_TOPEIMPONIBLE*Tabla4[[#This Row],[%SALUD]]) -> 0 | U111: =BDD!S113*Tabla4[[#This Row],[%SEGURO]] -> 0 | W111: =IF(Tabla4[[#This Row],[TOTAL UF]]-Tabla4[[#This Row],[TOTAL SALUD]]<=0,0,Tabla4[[#This Row],[TOTAL UF]]-Tabla4[[#This Row],[TOTAL SALUD]]) -> 0 | Y111: =BDD!$N$4 -> 37838.55 | Z111: =Tabla4[[#This Row],[PACTO UF]]*Tabla4[[#This Row],[VALOR UF]] -> 0 | AA111: IMPUESTO UNICO | AB111: =BDD!S113-Tabla4[[#This Row],[TOTAL AFP]]-Tabla4[[#This Row],[TOTAL SALUD]]-Tabla4[[#This Row],[TOTAL SEGURO CESANTIA]]-Tabla4[[#This Row],[TOTAL ADICIONAL]] -> 0 | AC111: =IF(Tabla4[[#This Row],[PASO DESC. UNIC.]]<=$AT$5,0,IF(Tabla4[[#This Row],[PASO DESC. UNIC.]]<=$AT$6,Tabla4[[#This Row],[PASO DESC. UNIC.]]*$AU$6-$AV$6,IF(Tabla4[[#This Row],[PASO DESC. UNIC.]]<=$AT$7,Tabla4[[#This Row],[PASO DESC. UNIC.]]*$AU$7-$AV$7,IF(Tabla4[[#This Row],[PASO DESC. UNIC.]]<=$AT$8,Tabla4[[#This Row],[PASO DESC. UNIC.]]*$AU$8-$AV$8,IF(Tabla4[[#This Row],[PASO DESC. UNIC.]]<=$AT$9,Tabla4[[#This Row],[PASO DESC. UNIC.]]*$AU$9-$AV$9,IF(Tabla4[[#This Row],[PASO DESC. UNIC.]]<=$AT$10,Tabla4[[#This Row],[PASO DESC. UNIC.]]*$AU$10-$AV$10,IF(Tabla4[[#This Row],[PASO DESC. UNIC.]]>=$AS$11,Tabla4[[#This Row],[PASO DESC. UNIC.]]*$AU$11-$AV$11))))))) -> 0 | AD111: =Tabla4[[#This Row],[TOTAL AFP]]+Tabla4[[#This Row],[TOTAL SALUD]]+Tabla4[[#This Row],[TOTAL SEGURO CESANTIA]]+Tabla4[[#This Row],[TOTAL ADICIONAL]]+Tabla4[[#This Row],[VALOR IMP U.]]+Tabla4[[#This Row],[VALOR OTRO 2]]+Tabla4[[#This Row],[VALOR OTRO 1]] -> 0 | AF111: =IF($BP$8 = "SI",IF(Tabla4[[#This Row],[TIPO CONTRATO]]="Indefinido",BDD!S113*2.4%,IF(Tabla4[[#This Row],[TIPO CONTRATO]]="PLAZO FIJO",BDD!S113*3%,0)),0) -> 0 | AM111: =BDD!S113*Tabla4[[#This Row],[% SIS]] -> 0 | AP111: =BDD!S113*Tabla4[[#This Row],[%MUTUAL]] -> 0
K112: 108 | L112: =IF(BDD!J114=0," ",BDD!J114) ->  | O112: =IF(BDD!S114<_TOPEIMPONIBLE,BDD!S114*Tabla4[[#This Row],[%AFP]],_TOPEIMPONIBLE*Tabla4[[#This Row],[%AFP]]) -> 0 | R112: =IF(BDD!S114<_TOPEIMPONIBLE,BDD!S114*Tabla4[[#This Row],[%SALUD]],_TOPEIMPONIBLE*Tabla4[[#This Row],[%SALUD]]) -> 0 | U112: =BDD!S114*Tabla4[[#This Row],[%SEGURO]] -> 0 | W112: =IF(Tabla4[[#This Row],[TOTAL UF]]-Tabla4[[#This Row],[TOTAL SALUD]]<=0,0,Tabla4[[#This Row],[TOTAL UF]]-Tabla4[[#This Row],[TOTAL SALUD]]) -> 0 | Y112: =BDD!$N$4 -> 37838.55 | Z112: =Tabla4[[#This Row],[PACTO UF]]*Tabla4[[#This Row],[VALOR UF]] -> 0 | AA112: IMPUESTO UNICO | AB112: =BDD!S114-Tabla4[[#This Row],[TOTAL AFP]]-Tabla4[[#This Row],[TOTAL SALUD]]-Tabla4[[#This Row],[TOTAL SEGURO CESANTIA]]-Tabla4[[#This Row],[TOTAL ADICIONAL]] -> 0 | AC112: =IF(Tabla4[[#This Row],[PASO DESC. UNIC.]]<=$AT$5,0,IF(Tabla4[[#This Row],[PASO DESC. UNIC.]]<=$AT$6,Tabla4[[#This Row],[PASO DESC. UNIC.]]*$AU$6-$AV$6,IF(Tabla4[[#This Row],[PASO DESC. UNIC.]]<=$AT$7,Tabla4[[#This Row],[PASO DESC. UNIC.]]*$AU$7-$AV$7,IF(Tabla4[[#This Row],[PASO DESC. UNIC.]]<=$AT$8,Tabla4[[#This Row],[PASO DESC. UNIC.]]*$AU$8-$AV$8,IF(Tabla4[[#This Row],[PASO DESC. UNIC.]]<=$AT$9,Tabla4[[#This Row],[PASO DESC. UNIC.]]*$AU$9-$AV$9,IF(Tabla4[[#This Row],[PASO DESC. UNIC.]]<=$AT$10,Tabla4[[#This Row],[PASO DESC. UNIC.]]*$AU$10-$AV$10,IF(Tabla4[[#This Row],[PASO DESC. UNIC.]]>=$AS$11,Tabla4[[#This Row],[PASO DESC. UNIC.]]*$AU$11-$AV$11))))))) -> 0 | AD112: =Tabla4[[#This Row],[TOTAL AFP]]+Tabla4[[#This Row],[TOTAL SALUD]]+Tabla4[[#This Row],[TOTAL SEGURO CESANTIA]]+Tabla4[[#This Row],[TOTAL ADICIONAL]]+Tabla4[[#This Row],[VALOR IMP U.]]+Tabla4[[#This Row],[VALOR OTRO 2]]+Tabla4[[#This Row],[VALOR OTRO 1]] -> 0 | AF112: =IF($BP$8 = "SI",IF(Tabla4[[#This Row],[TIPO CONTRATO]]="Indefinido",BDD!S114*2.4%,IF(Tabla4[[#This Row],[TIPO CONTRATO]]="PLAZO FIJO",BDD!S114*3%,0)),0) -> 0 | AM112: =BDD!S114*Tabla4[[#This Row],[% SIS]] -> 0 | AP112: =BDD!S114*Tabla4[[#This Row],[%MUTUAL]] -> 0
K113: 109 | L113: =IF(BDD!J115=0," ",BDD!J115) ->  | O113: =IF(BDD!S115<_TOPEIMPONIBLE,BDD!S115*Tabla4[[#This Row],[%AFP]],_TOPEIMPONIBLE*Tabla4[[#This Row],[%AFP]]) -> 0 | R113: =IF(BDD!S115<_TOPEIMPONIBLE,BDD!S115*Tabla4[[#This Row],[%SALUD]],_TOPEIMPONIBLE*Tabla4[[#This Row],[%SALUD]]) -> 0 | U113: =BDD!S115*Tabla4[[#This Row],[%SEGURO]] -> 0 | W113: =IF(Tabla4[[#This Row],[TOTAL UF]]-Tabla4[[#This Row],[TOTAL SALUD]]<=0,0,Tabla4[[#This Row],[TOTAL UF]]-Tabla4[[#This Row],[TOTAL SALUD]]) -> 0 | Y113: =BDD!$N$4 -> 37838.55 | Z113: =Tabla4[[#This Row],[PACTO UF]]*Tabla4[[#This Row],[VALOR UF]] -> 0 | AA113: IMPUESTO UNICO | AB113: =BDD!S115-Tabla4[[#This Row],[TOTAL AFP]]-Tabla4[[#This Row],[TOTAL SALUD]]-Tabla4[[#This Row],[TOTAL SEGURO CESANTIA]]-Tabla4[[#This Row],[TOTAL ADICIONAL]] -> 0 | AC113: =IF(Tabla4[[#This Row],[PASO DESC. UNIC.]]<=$AT$5,0,IF(Tabla4[[#This Row],[PASO DESC. UNIC.]]<=$AT$6,Tabla4[[#This Row],[PASO DESC. UNIC.]]*$AU$6-$AV$6,IF(Tabla4[[#This Row],[PASO DESC. UNIC.]]<=$AT$7,Tabla4[[#This Row],[PASO DESC. UNIC.]]*$AU$7-$AV$7,IF(Tabla4[[#This Row],[PASO DESC. UNIC.]]<=$AT$8,Tabla4[[#This Row],[PASO DESC. UNIC.]]*$AU$8-$AV$8,IF(Tabla4[[#This Row],[PASO DESC. UNIC.]]<=$AT$9,Tabla4[[#This Row],[PASO DESC. UNIC.]]*$AU$9-$AV$9,IF(Tabla4[[#This Row],[PASO DESC. UNIC.]]<=$AT$10,Tabla4[[#This Row],[PASO DESC. UNIC.]]*$AU$10-$AV$10,IF(Tabla4[[#This Row],[PASO DESC. UNIC.]]>=$AS$11,Tabla4[[#This Row],[PASO DESC. UNIC.]]*$AU$11-$AV$11))))))) -> 0 | AD113: =Tabla4[[#This Row],[TOTAL AFP]]+Tabla4[[#This Row],[TOTAL SALUD]]+Tabla4[[#This Row],[TOTAL SEGURO CESANTIA]]+Tabla4[[#This Row],[TOTAL ADICIONAL]]+Tabla4[[#This Row],[VALOR IMP U.]]+Tabla4[[#This Row],[VALOR OTRO 2]]+Tabla4[[#This Row],[VALOR OTRO 1]] -> 0 | AF113: =IF($BP$8 = "SI",IF(Tabla4[[#This Row],[TIPO CONTRATO]]="Indefinido",BDD!S115*2.4%,IF(Tabla4[[#This Row],[TIPO CONTRATO]]="PLAZO FIJO",BDD!S115*3%,0)),0) -> 0 | AM113: =BDD!S115*Tabla4[[#This Row],[% SIS]] -> 0 | AP113: =BDD!S115*Tabla4[[#This Row],[%MUTUAL]] -> 0
K114: 110 | L114: =IF(BDD!J116=0," ",BDD!J116) ->  | O114: =IF(BDD!S116<_TOPEIMPONIBLE,BDD!S116*Tabla4[[#This Row],[%AFP]],_TOPEIMPONIBLE*Tabla4[[#This Row],[%AFP]]) -> 0 | R114: =IF(BDD!S116<_TOPEIMPONIBLE,BDD!S116*Tabla4[[#This Row],[%SALUD]],_TOPEIMPONIBLE*Tabla4[[#This Row],[%SALUD]]) -> 0 | U114: =BDD!S116*Tabla4[[#This Row],[%SEGURO]] -> 0 | W114: =IF(Tabla4[[#This Row],[TOTAL UF]]-Tabla4[[#This Row],[TOTAL SALUD]]<=0,0,Tabla4[[#This Row],[TOTAL UF]]-Tabla4[[#This Row],[TOTAL SALUD]]) -> 0 | Y114: =BDD!$N$4 -> 37838.55 | Z114: =Tabla4[[#This Row],[PACTO UF]]*Tabla4[[#This Row],[VALOR UF]] -> 0 | AA114: IMPUESTO UNICO | AB114: =BDD!S116-Tabla4[[#This Row],[TOTAL AFP]]-Tabla4[[#This Row],[TOTAL SALUD]]-Tabla4[[#This Row],[TOTAL SEGURO CESANTIA]]-Tabla4[[#This Row],[TOTAL ADICIONAL]] -> 0 | AC114: =IF(Tabla4[[#This Row],[PASO DESC. UNIC.]]<=$AT$5,0,IF(Tabla4[[#This Row],[PASO DESC. UNIC.]]<=$AT$6,Tabla4[[#This Row],[PASO DESC. UNIC.]]*$AU$6-$AV$6,IF(Tabla4[[#This Row],[PASO DESC. UNIC.]]<=$AT$7,Tabla4[[#This Row],[PASO DESC. UNIC.]]*$AU$7-$AV$7,IF(Tabla4[[#This Row],[PASO DESC. UNIC.]]<=$AT$8,Tabla4[[#This Row],[PASO DESC. UNIC.]]*$AU$8-$AV$8,IF(Tabla4[[#This Row],[PASO DESC. UNIC.]]<=$AT$9,Tabla4[[#This Row],[PASO DESC. UNIC.]]*$AU$9-$AV$9,IF(Tabla4[[#This Row],[PASO DESC. UNIC.]]<=$AT$10,Tabla4[[#This Row],[PASO DESC. UNIC.]]*$AU$10-$AV$10,IF(Tabla4[[#This Row],[PASO DESC. UNIC.]]>=$AS$11,Tabla4[[#This Row],[PASO DESC. UNIC.]]*$AU$11-$AV$11))))))) -> 0 | AD114: =Tabla4[[#This Row],[TOTAL AFP]]+Tabla4[[#This Row],[TOTAL SALUD]]+Tabla4[[#This Row],[TOTAL SEGURO CESANTIA]]+Tabla4[[#This Row],[TOTAL ADICIONAL]]+Tabla4[[#This Row],[VALOR IMP U.]]+Tabla4[[#This Row],[VALOR OTRO 2]]+Tabla4[[#This Row],[VALOR OTRO 1]] -> 0 | AF114: =IF($BP$8 = "SI",IF(Tabla4[[#This Row],[TIPO CONTRATO]]="Indefinido",BDD!S116*2.4%,IF(Tabla4[[#This Row],[TIPO CONTRATO]]="PLAZO FIJO",BDD!S116*3%,0)),0) -> 0 | AM114: =BDD!S116*Tabla4[[#This Row],[% SIS]] -> 0 | AP114: =BDD!S116*Tabla4[[#This Row],[%MUTUAL]] -> 0
K115: 111 | L115: =IF(BDD!J117=0," ",BDD!J117) ->  | O115: =IF(BDD!S117<_TOPEIMPONIBLE,BDD!S117*Tabla4[[#This Row],[%AFP]],_TOPEIMPONIBLE*Tabla4[[#This Row],[%AFP]]) -> 0 | R115: =IF(BDD!S117<_TOPEIMPONIBLE,BDD!S117*Tabla4[[#This Row],[%SALUD]],_TOPEIMPONIBLE*Tabla4[[#This Row],[%SALUD]]) -> 0 | U115: =BDD!S117*Tabla4[[#This Row],[%SEGURO]] -> 0 | W115: =IF(Tabla4[[#This Row],[TOTAL UF]]-Tabla4[[#This Row],[TOTAL SALUD]]<=0,0,Tabla4[[#This Row],[TOTAL UF]]-Tabla4[[#This Row],[TOTAL SALUD]]) -> 0 | Y115: =BDD!$N$4 -> 37838.55 | Z115: =Tabla4[[#This Row],[PACTO UF]]*Tabla4[[#This Row],[VALOR UF]] -> 0 | AA115: IMPUESTO UNICO | AB115: =BDD!S117-Tabla4[[#This Row],[TOTAL AFP]]-Tabla4[[#This Row],[TOTAL SALUD]]-Tabla4[[#This Row],[TOTAL SEGURO CESANTIA]]-Tabla4[[#This Row],[TOTAL ADICIONAL]] -> 0 | AC115: =IF(Tabla4[[#This Row],[PASO DESC. UNIC.]]<=$AT$5,0,IF(Tabla4[[#This Row],[PASO DESC. UNIC.]]<=$AT$6,Tabla4[[#This Row],[PASO DESC. UNIC.]]*$AU$6-$AV$6,IF(Tabla4[[#This Row],[PASO DESC. UNIC.]]<=$AT$7,Tabla4[[#This Row],[PASO DESC. UNIC.]]*$AU$7-$AV$7,IF(Tabla4[[#This Row],[PASO DESC. UNIC.]]<=$AT$8,Tabla4[[#This Row],[PASO DESC. UNIC.]]*$AU$8-$AV$8,IF(Tabla4[[#This Row],[PASO DESC. UNIC.]]<=$AT$9,Tabla4[[#This Row],[PASO DESC. UNIC.]]*$AU$9-$AV$9,IF(Tabla4[[#This Row],[PASO DESC. UNIC.]]<=$AT$10,Tabla4[[#This Row],[PASO DESC. UNIC.]]*$AU$10-$AV$10,IF(Tabla4[[#This Row],[PASO DESC. UNIC.]]>=$AS$11,Tabla4[[#This Row],[PASO DESC. UNIC.]]*$AU$11-$AV$11))))))) -> 0 | AD115: =Tabla4[[#This Row],[TOTAL AFP]]+Tabla4[[#This Row],[TOTAL SALUD]]+Tabla4[[#This Row],[TOTAL SEGURO CESANTIA]]+Tabla4[[#This Row],[TOTAL ADICIONAL]]+Tabla4[[#This Row],[VALOR IMP U.]]+Tabla4[[#This Row],[VALOR OTRO 2]]+Tabla4[[#This Row],[VALOR OTRO 1]] -> 0 | AF115: =IF($BP$8 = "SI",IF(Tabla4[[#This Row],[TIPO CONTRATO]]="Indefinido",BDD!S117*2.4%,IF(Tabla4[[#This Row],[TIPO CONTRATO]]="PLAZO FIJO",BDD!S117*3%,0)),0) -> 0 | AM115: =BDD!S117*Tabla4[[#This Row],[% SIS]] -> 0 | AP115: =BDD!S117*Tabla4[[#This Row],[%MUTUAL]] -> 0
K116: 112 | L116: =IF(BDD!J118=0," ",BDD!J118) ->  | O116: =IF(BDD!S118<_TOPEIMPONIBLE,BDD!S118*Tabla4[[#This Row],[%AFP]],_TOPEIMPONIBLE*Tabla4[[#This Row],[%AFP]]) -> 0 | R116: =IF(BDD!S118<_TOPEIMPONIBLE,BDD!S118*Tabla4[[#This Row],[%SALUD]],_TOPEIMPONIBLE*Tabla4[[#This Row],[%SALUD]]) -> 0 | U116: =BDD!S118*Tabla4[[#This Row],[%SEGURO]] -> 0 | W116: =IF(Tabla4[[#This Row],[TOTAL UF]]-Tabla4[[#This Row],[TOTAL SALUD]]<=0,0,Tabla4[[#This Row],[TOTAL UF]]-Tabla4[[#This Row],[TOTAL SALUD]]) -> 0 | Y116: =BDD!$N$4 -> 37838.55 | Z116: =Tabla4[[#This Row],[PACTO UF]]*Tabla4[[#This Row],[VALOR UF]] -> 0 | AA116: IMPUESTO UNICO | AB116: =BDD!S118-Tabla4[[#This Row],[TOTAL AFP]]-Tabla4[[#This Row],[TOTAL SALUD]]-Tabla4[[#This Row],[TOTAL SEGURO CESANTIA]]-Tabla4[[#This Row],[TOTAL ADICIONAL]] -> 0 | AC116: =IF(Tabla4[[#This Row],[PASO DESC. UNIC.]]<=$AT$5,0,IF(Tabla4[[#This Row],[PASO DESC. UNIC.]]<=$AT$6,Tabla4[[#This Row],[PASO DESC. UNIC.]]*$AU$6-$AV$6,IF(Tabla4[[#This Row],[PASO DESC. UNIC.]]<=$AT$7,Tabla4[[#This Row],[PASO DESC. UNIC.]]*$AU$7-$AV$7,IF(Tabla4[[#This Row],[PASO DESC. UNIC.]]<=$AT$8,Tabla4[[#This Row],[PASO DESC. UNIC.]]*$AU$8-$AV$8,IF(Tabla4[[#This Row],[PASO DESC. UNIC.]]<=$AT$9,Tabla4[[#This Row],[PASO DESC. UNIC.]]*$AU$9-$AV$9,IF(Tabla4[[#This Row],[PASO DESC. UNIC.]]<=$AT$10,Tabla4[[#This Row],[PASO DESC. UNIC.]]*$AU$10-$AV$10,IF(Tabla4[[#This Row],[PASO DESC. UNIC.]]>=$AS$11,Tabla4[[#This Row],[PASO DESC. UNIC.]]*$AU$11-$AV$11))))))) -> 0 | AD116: =Tabla4[[#This Row],[TOTAL AFP]]+Tabla4[[#This Row],[TOTAL SALUD]]+Tabla4[[#This Row],[TOTAL SEGURO CESANTIA]]+Tabla4[[#This Row],[TOTAL ADICIONAL]]+Tabla4[[#This Row],[VALOR IMP U.]]+Tabla4[[#This Row],[VALOR OTRO 2]]+Tabla4[[#This Row],[VALOR OTRO 1]] -> 0 | AF116: =IF($BP$8 = "SI",IF(Tabla4[[#This Row],[TIPO CONTRATO]]="Indefinido",BDD!S118*2.4%,IF(Tabla4[[#This Row],[TIPO CONTRATO]]="PLAZO FIJO",BDD!S118*3%,0)),0) -> 0 | AM116: =BDD!S118*Tabla4[[#This Row],[% SIS]] -> 0 | AP116: =BDD!S118*Tabla4[[#This Row],[%MUTUAL]] -> 0
K117: 113 | L117: =IF(BDD!J119=0," ",BDD!J119) ->  | O117: =IF(BDD!S119<_TOPEIMPONIBLE,BDD!S119*Tabla4[[#This Row],[%AFP]],_TOPEIMPONIBLE*Tabla4[[#This Row],[%AFP]]) -> 0 | R117: =IF(BDD!S119<_TOPEIMPONIBLE,BDD!S119*Tabla4[[#This Row],[%SALUD]],_TOPEIMPONIBLE*Tabla4[[#This Row],[%SALUD]]) -> 0 | U117: =BDD!S119*Tabla4[[#This Row],[%SEGURO]] -> 0 | W117: =IF(Tabla4[[#This Row],[TOTAL UF]]-Tabla4[[#This Row],[TOTAL SALUD]]<=0,0,Tabla4[[#This Row],[TOTAL UF]]-Tabla4[[#This Row],[TOTAL SALUD]]) -> 0 | Y117: =BDD!$N$4 -> 37838.55 | Z117: =Tabla4[[#This Row],[PACTO UF]]*Tabla4[[#This Row],[VALOR UF]] -> 0 | AA117: IMPUESTO UNICO | AB117: =BDD!S119-Tabla4[[#This Row],[TOTAL AFP]]-Tabla4[[#This Row],[TOTAL SALUD]]-Tabla4[[#This Row],[TOTAL SEGURO CESANTIA]]-Tabla4[[#This Row],[TOTAL ADICIONAL]] -> 0 | AC117: =IF(Tabla4[[#This Row],[PASO DESC. UNIC.]]<=$AT$5,0,IF(Tabla4[[#This Row],[PASO DESC. UNIC.]]<=$AT$6,Tabla4[[#This Row],[PASO DESC. UNIC.]]*$AU$6-$AV$6,IF(Tabla4[[#This Row],[PASO DESC. UNIC.]]<=$AT$7,Tabla4[[#This Row],[PASO DESC. UNIC.]]*$AU$7-$AV$7,IF(Tabla4[[#This Row],[PASO DESC. UNIC.]]<=$AT$8,Tabla4[[#This Row],[PASO DESC. UNIC.]]*$AU$8-$AV$8,IF(Tabla4[[#This Row],[PASO DESC. UNIC.]]<=$AT$9,Tabla4[[#This Row],[PASO DESC. UNIC.]]*$AU$9-$AV$9,IF(Tabla4[[#This Row],[PASO DESC. UNIC.]]<=$AT$10,Tabla4[[#This Row],[PASO DESC. UNIC.]]*$AU$10-$AV$10,IF(Tabla4[[#This Row],[PASO DESC. UNIC.]]>=$AS$11,Tabla4[[#This Row],[PASO DESC. UNIC.]]*$AU$11-$AV$11))))))) -> 0 | AD117: =Tabla4[[#This Row],[TOTAL AFP]]+Tabla4[[#This Row],[TOTAL SALUD]]+Tabla4[[#This Row],[TOTAL SEGURO CESANTIA]]+Tabla4[[#This Row],[TOTAL ADICIONAL]]+Tabla4[[#This Row],[VALOR IMP U.]]+Tabla4[[#This Row],[VALOR OTRO 2]]+Tabla4[[#This Row],[VALOR OTRO 1]] -> 0 | AF117: =IF($BP$8 = "SI",IF(Tabla4[[#This Row],[TIPO CONTRATO]]="Indefinido",BDD!S119*2.4%,IF(Tabla4[[#This Row],[TIPO CONTRATO]]="PLAZO FIJO",BDD!S119*3%,0)),0) -> 0 | AM117: =BDD!S119*Tabla4[[#This Row],[% SIS]] -> 0 | AP117: =BDD!S119*Tabla4[[#This Row],[%MUTUAL]] -> 0
K118: 114 | L118: =IF(BDD!J120=0," ",BDD!J120) ->  | O118: =IF(BDD!S120<_TOPEIMPONIBLE,BDD!S120*Tabla4[[#This Row],[%AFP]],_TOPEIMPONIBLE*Tabla4[[#This Row],[%AFP]]) -> 0 | R118: =IF(BDD!S120<_TOPEIMPONIBLE,BDD!S120*Tabla4[[#This Row],[%SALUD]],_TOPEIMPONIBLE*Tabla4[[#This Row],[%SALUD]]) -> 0 | U118: =BDD!S120*Tabla4[[#This Row],[%SEGURO]] -> 0 | W118: =IF(Tabla4[[#This Row],[TOTAL UF]]-Tabla4[[#This Row],[TOTAL SALUD]]<=0,0,Tabla4[[#This Row],[TOTAL UF]]-Tabla4[[#This Row],[TOTAL SALUD]]) -> 0 | Y118: =BDD!$N$4 -> 37838.55 | Z118: =Tabla4[[#This Row],[PACTO UF]]*Tabla4[[#This Row],[VALOR UF]] -> 0 | AA118: IMPUESTO UNICO | AB118: =BDD!S120-Tabla4[[#This Row],[TOTAL AFP]]-Tabla4[[#This Row],[TOTAL SALUD]]-Tabla4[[#This Row],[TOTAL SEGURO CESANTIA]]-Tabla4[[#This Row],[TOTAL ADICIONAL]] -> 0 | AC118: =IF(Tabla4[[#This Row],[PASO DESC. UNIC.]]<=$AT$5,0,IF(Tabla4[[#This Row],[PASO DESC. UNIC.]]<=$AT$6,Tabla4[[#This Row],[PASO DESC. UNIC.]]*$AU$6-$AV$6,IF(Tabla4[[#This Row],[PASO DESC. UNIC.]]<=$AT$7,Tabla4[[#This Row],[PASO DESC. UNIC.]]*$AU$7-$AV$7,IF(Tabla4[[#This Row],[PASO DESC. UNIC.]]<=$AT$8,Tabla4[[#This Row],[PASO DESC. UNIC.]]*$AU$8-$AV$8,IF(Tabla4[[#This Row],[PASO DESC. UNIC.]]<=$AT$9,Tabla4[[#This Row],[PASO DESC. UNIC.]]*$AU$9-$AV$9,IF(Tabla4[[#This Row],[PASO DESC. UNIC.]]<=$AT$10,Tabla4[[#This Row],[PASO DESC. UNIC.]]*$AU$10-$AV$10,IF(Tabla4[[#This Row],[PASO DESC. UNIC.]]>=$AS$11,Tabla4[[#This Row],[PASO DESC. UNIC.]]*$AU$11-$AV$11))))))) -> 0 | AD118: =Tabla4[[#This Row],[TOTAL AFP]]+Tabla4[[#This Row],[TOTAL SALUD]]+Tabla4[[#This Row],[TOTAL SEGURO CESANTIA]]+Tabla4[[#This Row],[TOTAL ADICIONAL]]+Tabla4[[#This Row],[VALOR IMP U.]]+Tabla4[[#This Row],[VALOR OTRO 2]]+Tabla4[[#This Row],[VALOR OTRO 1]] -> 0 | AF118: =IF($BP$8 = "SI",IF(Tabla4[[#This Row],[TIPO CONTRATO]]="Indefinido",BDD!S120*2.4%,IF(Tabla4[[#This Row],[TIPO CONTRATO]]="PLAZO FIJO",BDD!S120*3%,0)),0) -> 0 | AM118: =BDD!S120*Tabla4[[#This Row],[% SIS]] -> 0 | AP118: =BDD!S120*Tabla4[[#This Row],[%MUTUAL]] -> 0
K119: 115 | L119: =IF(BDD!J121=0," ",BDD!J121) ->  | O119: =IF(BDD!S121<_TOPEIMPONIBLE,BDD!S121*Tabla4[[#This Row],[%AFP]],_TOPEIMPONIBLE*Tabla4[[#This Row],[%AFP]]) -> 0 | R119: =IF(BDD!S121<_TOPEIMPONIBLE,BDD!S121*Tabla4[[#This Row],[%SALUD]],_TOPEIMPONIBLE*Tabla4[[#This Row],[%SALUD]]) -> 0 | U119: =BDD!S121*Tabla4[[#This Row],[%SEGURO]] -> 0 | W119: =IF(Tabla4[[#This Row],[TOTAL UF]]-Tabla4[[#This Row],[TOTAL SALUD]]<=0,0,Tabla4[[#This Row],[TOTAL UF]]-Tabla4[[#This Row],[TOTAL SALUD]]) -> 0 | Y119: =BDD!$N$4 -> 37838.55 | Z119: =Tabla4[[#This Row],[PACTO UF]]*Tabla4[[#This Row],[VALOR UF]] -> 0 | AA119: IMPUESTO UNICO | AB119: =BDD!S121-Tabla4[[#This Row],[TOTAL AFP]]-Tabla4[[#This Row],[TOTAL SALUD]]-Tabla4[[#This Row],[TOTAL SEGURO CESANTIA]]-Tabla4[[#This Row],[TOTAL ADICIONAL]] -> 0 | AC119: =IF(Tabla4[[#This Row],[PASO DESC. UNIC.]]<=$AT$5,0,IF(Tabla4[[#This Row],[PASO DESC. UNIC.]]<=$AT$6,Tabla4[[#This Row],[PASO DESC. UNIC.]]*$AU$6-$AV$6,IF(Tabla4[[#This Row],[PASO DESC. UNIC.]]<=$AT$7,Tabla4[[#This Row],[PASO DESC. UNIC.]]*$AU$7-$AV$7,IF(Tabla4[[#This Row],[PASO DESC. UNIC.]]<=$AT$8,Tabla4[[#This Row],[PASO DESC. UNIC.]]*$AU$8-$AV$8,IF(Tabla4[[#This Row],[PASO DESC. UNIC.]]<=$AT$9,Tabla4[[#This Row],[PASO DESC. UNIC.]]*$AU$9-$AV$9,IF(Tabla4[[#This Row],[PASO DESC. UNIC.]]<=$AT$10,Tabla4[[#This Row],[PASO DESC. UNIC.]]*$AU$10-$AV$10,IF(Tabla4[[#This Row],[PASO DESC. UNIC.]]>=$AS$11,Tabla4[[#This Row],[PASO DESC. UNIC.]]*$AU$11-$AV$11))))))) -> 0 | AD119: =Tabla4[[#This Row],[TOTAL AFP]]+Tabla4[[#This Row],[TOTAL SALUD]]+Tabla4[[#This Row],[TOTAL SEGURO CESANTIA]]+Tabla4[[#This Row],[TOTAL ADICIONAL]]+Tabla4[[#This Row],[VALOR IMP U.]]+Tabla4[[#This Row],[VALOR OTRO 2]]+Tabla4[[#This Row],[VALOR OTRO 1]] -> 0 | AF119: =IF($BP$8 = "SI",IF(Tabla4[[#This Row],[TIPO CONTRATO]]="Indefinido",BDD!S121*2.4%,IF(Tabla4[[#This Row],[TIPO CONTRATO]]="PLAZO FIJO",BDD!S121*3%,0)),0) -> 0 | AM119: =BDD!S121*Tabla4[[#This Row],[% SIS]] -> 0 | AP119: =BDD!S121*Tabla4[[#This Row],[%MUTUAL]] -> 0
K120: 116 | L120: =IF(BDD!J122=0," ",BDD!J122) ->  | O120: =IF(BDD!S122<_TOPEIMPONIBLE,BDD!S122*Tabla4[[#This Row],[%AFP]],_TOPEIMPONIBLE*Tabla4[[#This Row],[%AFP]]) -> 0 | R120: =IF(BDD!S122<_TOPEIMPONIBLE,BDD!S122*Tabla4[[#This Row],[%SALUD]],_TOPEIMPONIBLE*Tabla4[[#This Row],[%SALUD]]) -> 0 | U120: =BDD!S122*Tabla4[[#This Row],[%SEGURO]] -> 0 | W120: =IF(Tabla4[[#This Row],[TOTAL UF]]-Tabla4[[#This Row],[TOTAL SALUD]]<=0,0,Tabla4[[#This Row],[TOTAL UF]]-Tabla4[[#This Row],[TOTAL SALUD]]) -> 0 | Y120: =BDD!$N$4 -> 37838.55 | Z120: =Tabla4[[#This Row],[PACTO UF]]*Tabla4[[#This Row],[VALOR UF]] -> 0 | AA120: IMPUESTO UNICO | AB120: =BDD!S122-Tabla4[[#This Row],[TOTAL AFP]]-Tabla4[[#This Row],[TOTAL SALUD]]-Tabla4[[#This Row],[TOTAL SEGURO CESANTIA]]-Tabla4[[#This Row],[TOTAL ADICIONAL]] -> 0 | AC120: =IF(Tabla4[[#This Row],[PASO DESC. UNIC.]]<=$AT$5,0,IF(Tabla4[[#This Row],[PASO DESC. UNIC.]]<=$AT$6,Tabla4[[#This Row],[PASO DESC. UNIC.]]*$AU$6-$AV$6,IF(Tabla4[[#This Row],[PASO DESC. UNIC.]]<=$AT$7,Tabla4[[#This Row],[PASO DESC. UNIC.]]*$AU$7-$AV$7,IF(Tabla4[[#This Row],[PASO DESC. UNIC.]]<=$AT$8,Tabla4[[#This Row],[PASO DESC. UNIC.]]*$AU$8-$AV$8,IF(Tabla4[[#This Row],[PASO DESC. UNIC.]]<=$AT$9,Tabla4[[#This Row],[PASO DESC. UNIC.]]*$AU$9-$AV$9,IF(Tabla4[[#This Row],[PASO DESC. UNIC.]]<=$AT$10,Tabla4[[#This Row],[PASO DESC. UNIC.]]*$AU$10-$AV$10,IF(Tabla4[[#This Row],[PASO DESC. UNIC.]]>=$AS$11,Tabla4[[#This Row],[PASO DESC. UNIC.]]*$AU$11-$AV$11))))))) -> 0 | AD120: =Tabla4[[#This Row],[TOTAL AFP]]+Tabla4[[#This Row],[TOTAL SALUD]]+Tabla4[[#This Row],[TOTAL SEGURO CESANTIA]]+Tabla4[[#This Row],[TOTAL ADICIONAL]]+Tabla4[[#This Row],[VALOR IMP U.]]+Tabla4[[#This Row],[VALOR OTRO 2]]+Tabla4[[#This Row],[VALOR OTRO 1]] -> 0 | AF120: =IF($BP$8 = "SI",IF(Tabla4[[#This Row],[TIPO CONTRATO]]="Indefinido",BDD!S122*2.4%,IF(Tabla4[[#This Row],[TIPO CONTRATO]]="PLAZO FIJO",BDD!S122*3%,0)),0) -> 0 | AM120: =BDD!S122*Tabla4[[#This Row],[% SIS]] -> 0 | AP120: =BDD!S122*Tabla4[[#This Row],[%MUTUAL]] -> 0
K121: 117 | L121: =IF(BDD!J123=0," ",BDD!J123) ->  | O121: =IF(BDD!S123<_TOPEIMPONIBLE,BDD!S123*Tabla4[[#This Row],[%AFP]],_TOPEIMPONIBLE*Tabla4[[#This Row],[%AFP]]) -> 0 | R121: =IF(BDD!S123<_TOPEIMPONIBLE,BDD!S123*Tabla4[[#This Row],[%SALUD]],_TOPEIMPONIBLE*Tabla4[[#This Row],[%SALUD]]) -> 0 | U121: =BDD!S123*Tabla4[[#This Row],[%SEGURO]] -> 0 | W121: =IF(Tabla4[[#This Row],[TOTAL UF]]-Tabla4[[#This Row],[TOTAL SALUD]]<=0,0,Tabla4[[#This Row],[TOTAL UF]]-Tabla4[[#This Row],[TOTAL SALUD]]) -> 0 | Y121: =BDD!$N$4 -> 37838.55 | Z121: =Tabla4[[#This Row],[PACTO UF]]*Tabla4[[#This Row],[VALOR UF]] -> 0 | AA121: IMPUESTO UNICO | AB121: =BDD!S123-Tabla4[[#This Row],[TOTAL AFP]]-Tabla4[[#This Row],[TOTAL SALUD]]-Tabla4[[#This Row],[TOTAL SEGURO CESANTIA]]-Tabla4[[#This Row],[TOTAL ADICIONAL]] -> 0 | AC121: =IF(Tabla4[[#This Row],[PASO DESC. UNIC.]]<=$AT$5,0,IF(Tabla4[[#This Row],[PASO DESC. UNIC.]]<=$AT$6,Tabla4[[#This Row],[PASO DESC. UNIC.]]*$AU$6-$AV$6,IF(Tabla4[[#This Row],[PASO DESC. UNIC.]]<=$AT$7,Tabla4[[#This Row],[PASO DESC. UNIC.]]*$AU$7-$AV$7,IF(Tabla4[[#This Row],[PASO DESC. UNIC.]]<=$AT$8,Tabla4[[#This Row],[PASO DESC. UNIC.]]*$AU$8-$AV$8,IF(Tabla4[[#This Row],[PASO DESC. UNIC.]]<=$AT$9,Tabla4[[#This Row],[PASO DESC. UNIC.]]*$AU$9-$AV$9,IF(Tabla4[[#This Row],[PASO DESC. UNIC.]]<=$AT$10,Tabla4[[#This Row],[PASO DESC. UNIC.]]*$AU$10-$AV$10,IF(Tabla4[[#This Row],[PASO DESC. UNIC.]]>=$AS$11,Tabla4[[#This Row],[PASO DESC. UNIC.]]*$AU$11-$AV$11))))))) -> 0 | AD121: =Tabla4[[#This Row],[TOTAL AFP]]+Tabla4[[#This Row],[TOTAL SALUD]]+Tabla4[[#This Row],[TOTAL SEGURO CESANTIA]]+Tabla4[[#This Row],[TOTAL ADICIONAL]]+Tabla4[[#This Row],[VALOR IMP U.]]+Tabla4[[#This Row],[VALOR OTRO 2]]+Tabla4[[#This Row],[VALOR OTRO 1]] -> 0 | AF121: =IF($BP$8 = "SI",IF(Tabla4[[#This Row],[TIPO CONTRATO]]="Indefinido",BDD!S123*2.4%,IF(Tabla4[[#This Row],[TIPO CONTRATO]]="PLAZO FIJO",BDD!S123*3%,0)),0) -> 0 | AM121: =BDD!S123*Tabla4[[#This Row],[% SIS]] -> 0 | AP121: =BDD!S123*Tabla4[[#This Row],[%MUTUAL]] -> 0
K122: 118 | L122: =IF(BDD!J124=0," ",BDD!J124) ->  | O122: =IF(BDD!S124<_TOPEIMPONIBLE,BDD!S124*Tabla4[[#This Row],[%AFP]],_TOPEIMPONIBLE*Tabla4[[#This Row],[%AFP]]) -> 0 | R122: =IF(BDD!S124<_TOPEIMPONIBLE,BDD!S124*Tabla4[[#This Row],[%SALUD]],_TOPEIMPONIBLE*Tabla4[[#This Row],[%SALUD]]) -> 0 | U122: =BDD!S124*Tabla4[[#This Row],[%SEGURO]] -> 0 | W122: =IF(Tabla4[[#This Row],[TOTAL UF]]-Tabla4[[#This Row],[TOTAL SALUD]]<=0,0,Tabla4[[#This Row],[TOTAL UF]]-Tabla4[[#This Row],[TOTAL SALUD]]) -> 0 | Y122: =BDD!$N$4 -> 37838.55 | Z122: =Tabla4[[#This Row],[PACTO UF]]*Tabla4[[#This Row],[VALOR UF]] -> 0 | AA122: IMPUESTO UNICO | AB122: =BDD!S124-Tabla4[[#This Row],[TOTAL AFP]]-Tabla4[[#This Row],[TOTAL SALUD]]-Tabla4[[#This Row],[TOTAL SEGURO CESANTIA]]-Tabla4[[#This Row],[TOTAL ADICIONAL]] -> 0 | AC122: =IF(Tabla4[[#This Row],[PASO DESC. UNIC.]]<=$AT$5,0,IF(Tabla4[[#This Row],[PASO DESC. UNIC.]]<=$AT$6,Tabla4[[#This Row],[PASO DESC. UNIC.]]*$AU$6-$AV$6,IF(Tabla4[[#This Row],[PASO DESC. UNIC.]]<=$AT$7,Tabla4[[#This Row],[PASO DESC. UNIC.]]*$AU$7-$AV$7,IF(Tabla4[[#This Row],[PASO DESC. UNIC.]]<=$AT$8,Tabla4[[#This Row],[PASO DESC. UNIC.]]*$AU$8-$AV$8,IF(Tabla4[[#This Row],[PASO DESC. UNIC.]]<=$AT$9,Tabla4[[#This Row],[PASO DESC. UNIC.]]*$AU$9-$AV$9,IF(Tabla4[[#This Row],[PASO DESC. UNIC.]]<=$AT$10,Tabla4[[#This Row],[PASO DESC. UNIC.]]*$AU$10-$AV$10,IF(Tabla4[[#This Row],[PASO DESC. UNIC.]]>=$AS$11,Tabla4[[#This Row],[PASO DESC. UNIC.]]*$AU$11-$AV$11))))))) -> 0 | AD122: =Tabla4[[#This Row],[TOTAL AFP]]+Tabla4[[#This Row],[TOTAL SALUD]]+Tabla4[[#This Row],[TOTAL SEGURO CESANTIA]]+Tabla4[[#This Row],[TOTAL ADICIONAL]]+Tabla4[[#This Row],[VALOR IMP U.]]+Tabla4[[#This Row],[VALOR OTRO 2]]+Tabla4[[#This Row],[VALOR OTRO 1]] -> 0 | AF122: =IF($BP$8 = "SI",IF(Tabla4[[#This Row],[TIPO CONTRATO]]="Indefinido",BDD!S124*2.4%,IF(Tabla4[[#This Row],[TIPO CONTRATO]]="PLAZO FIJO",BDD!S124*3%,0)),0) -> 0 | AM122: =BDD!S124*Tabla4[[#This Row],[% SIS]] -> 0 | AP122: =BDD!S124*Tabla4[[#This Row],[%MUTUAL]] -> 0
K123: 119 | L123: =IF(BDD!J125=0," ",BDD!J125) ->  | O123: =IF(BDD!S125<_TOPEIMPONIBLE,BDD!S125*Tabla4[[#This Row],[%AFP]],_TOPEIMPONIBLE*Tabla4[[#This Row],[%AFP]]) -> 0 | R123: =IF(BDD!S125<_TOPEIMPONIBLE,BDD!S125*Tabla4[[#This Row],[%SALUD]],_TOPEIMPONIBLE*Tabla4[[#This Row],[%SALUD]]) -> 0 | U123: =BDD!S125*Tabla4[[#This Row],[%SEGURO]] -> 0 | W123: =IF(Tabla4[[#This Row],[TOTAL UF]]-Tabla4[[#This Row],[TOTAL SALUD]]<=0,0,Tabla4[[#This Row],[TOTAL UF]]-Tabla4[[#This Row],[TOTAL SALUD]]) -> 0 | Y123: =BDD!$N$4 -> 37838.55 | Z123: =Tabla4[[#This Row],[PACTO UF]]*Tabla4[[#This Row],[VALOR UF]] -> 0 | AA123: IMPUESTO UNICO | AB123: =BDD!S125-Tabla4[[#This Row],[TOTAL AFP]]-Tabla4[[#This Row],[TOTAL SALUD]]-Tabla4[[#This Row],[TOTAL SEGURO CESANTIA]]-Tabla4[[#This Row],[TOTAL ADICIONAL]] -> 0 | AC123: =IF(Tabla4[[#This Row],[PASO DESC. UNIC.]]<=$AT$5,0,IF(Tabla4[[#This Row],[PASO DESC. UNIC.]]<=$AT$6,Tabla4[[#This Row],[PASO DESC. UNIC.]]*$AU$6-$AV$6,IF(Tabla4[[#This Row],[PASO DESC. UNIC.]]<=$AT$7,Tabla4[[#This Row],[PASO DESC. UNIC.]]*$AU$7-$AV$7,IF(Tabla4[[#This Row],[PASO DESC. UNIC.]]<=$AT$8,Tabla4[[#This Row],[PASO DESC. UNIC.]]*$AU$8-$AV$8,IF(Tabla4[[#This Row],[PASO DESC. UNIC.]]<=$AT$9,Tabla4[[#This Row],[PASO DESC. UNIC.]]*$AU$9-$AV$9,IF(Tabla4[[#This Row],[PASO DESC. UNIC.]]<=$AT$10,Tabla4[[#This Row],[PASO DESC. UNIC.]]*$AU$10-$AV$10,IF(Tabla4[[#This Row],[PASO DESC. UNIC.]]>=$AS$11,Tabla4[[#This Row],[PASO DESC. UNIC.]]*$AU$11-$AV$11))))))) -> 0 | AD123: =Tabla4[[#This Row],[TOTAL AFP]]+Tabla4[[#This Row],[TOTAL SALUD]]+Tabla4[[#This Row],[TOTAL SEGURO CESANTIA]]+Tabla4[[#This Row],[TOTAL ADICIONAL]]+Tabla4[[#This Row],[VALOR IMP U.]]+Tabla4[[#This Row],[VALOR OTRO 2]]+Tabla4[[#This Row],[VALOR OTRO 1]] -> 0 | AF123: =IF($BP$8 = "SI",IF(Tabla4[[#This Row],[TIPO CONTRATO]]="Indefinido",BDD!S125*2.4%,IF(Tabla4[[#This Row],[TIPO CONTRATO]]="PLAZO FIJO",BDD!S125*3%,0)),0) -> 0 | AM123: =BDD!S125*Tabla4[[#This Row],[% SIS]] -> 0 | AP123: =BDD!S125*Tabla4[[#This Row],[%MUTUAL]] -> 0
K124: 120 | L124: =IF(BDD!J126=0," ",BDD!J126) ->  | O124: =IF(BDD!S126<_TOPEIMPONIBLE,BDD!S126*Tabla4[[#This Row],[%AFP]],_TOPEIMPONIBLE*Tabla4[[#This Row],[%AFP]]) -> 0 | R124: =IF(BDD!S126<_TOPEIMPONIBLE,BDD!S126*Tabla4[[#This Row],[%SALUD]],_TOPEIMPONIBLE*Tabla4[[#This Row],[%SALUD]]) -> 0 | U124: =BDD!S126*Tabla4[[#This Row],[%SEGURO]] -> 0 | W124: =IF(Tabla4[[#This Row],[TOTAL UF]]-Tabla4[[#This Row],[TOTAL SALUD]]<=0,0,Tabla4[[#This Row],[TOTAL UF]]-Tabla4[[#This Row],[TOTAL SALUD]]) -> 0 | Y124: =BDD!$N$4 -> 37838.55 | Z124: =Tabla4[[#This Row],[PACTO UF]]*Tabla4[[#This Row],[VALOR UF]] -> 0 | AA124: IMPUESTO UNICO | AB124: =BDD!S126-Tabla4[[#This Row],[TOTAL AFP]]-Tabla4[[#This Row],[TOTAL SALUD]]-Tabla4[[#This Row],[TOTAL SEGURO CESANTIA]]-Tabla4[[#This Row],[TOTAL ADICIONAL]] -> 0 | AC124: =IF(Tabla4[[#This Row],[PASO DESC. UNIC.]]<=$AT$5,0,IF(Tabla4[[#This Row],[PASO DESC. UNIC.]]<=$AT$6,Tabla4[[#This Row],[PASO DESC. UNIC.]]*$AU$6-$AV$6,IF(Tabla4[[#This Row],[PASO DESC. UNIC.]]<=$AT$7,Tabla4[[#This Row],[PASO DESC. UNIC.]]*$AU$7-$AV$7,IF(Tabla4[[#This Row],[PASO DESC. UNIC.]]<=$AT$8,Tabla4[[#This Row],[PASO DESC. UNIC.]]*$AU$8-$AV$8,IF(Tabla4[[#This Row],[PASO DESC. UNIC.]]<=$AT$9,Tabla4[[#This Row],[PASO DESC. UNIC.]]*$AU$9-$AV$9,IF(Tabla4[[#This Row],[PASO DESC. UNIC.]]<=$AT$10,Tabla4[[#This Row],[PASO DESC. UNIC.]]*$AU$10-$AV$10,IF(Tabla4[[#This Row],[PASO DESC. UNIC.]]>=$AS$11,Tabla4[[#This Row],[PASO DESC. UNIC.]]*$AU$11-$AV$11))))))) -> 0 | AD124: =Tabla4[[#This Row],[TOTAL AFP]]+Tabla4[[#This Row],[TOTAL SALUD]]+Tabla4[[#This Row],[TOTAL SEGURO CESANTIA]]+Tabla4[[#This Row],[TOTAL ADICIONAL]]+Tabla4[[#This Row],[VALOR IMP U.]]+Tabla4[[#This Row],[VALOR OTRO 2]]+Tabla4[[#This Row],[VALOR OTRO 1]] -> 0 | AF124: =IF($BP$8 = "SI",IF(Tabla4[[#This Row],[TIPO CONTRATO]]="Indefinido",BDD!S126*2.4%,IF(Tabla4[[#This Row],[TIPO CONTRATO]]="PLAZO FIJO",BDD!S126*3%,0)),0) -> 0 | AM124: =BDD!S126*Tabla4[[#This Row],[% SIS]] -> 0 | AP124: =BDD!S126*Tabla4[[#This Row],[%MUTUAL]] -> 0
K125: 121 | L125: =IF(BDD!J127=0," ",BDD!J127) ->  | O125: =IF(BDD!S127<_TOPEIMPONIBLE,BDD!S127*Tabla4[[#This Row],[%AFP]],_TOPEIMPONIBLE*Tabla4[[#This Row],[%AFP]]) -> 0 | R125: =IF(BDD!S127<_TOPEIMPONIBLE,BDD!S127*Tabla4[[#This Row],[%SALUD]],_TOPEIMPONIBLE*Tabla4[[#This Row],[%SALUD]]) -> 0 | U125: =BDD!S127*Tabla4[[#This Row],[%SEGURO]] -> 0 | W125: =IF(Tabla4[[#This Row],[TOTAL UF]]-Tabla4[[#This Row],[TOTAL SALUD]]<=0,0,Tabla4[[#This Row],[TOTAL UF]]-Tabla4[[#This Row],[TOTAL SALUD]]) -> 0 | Y125: =BDD!$N$4 -> 37838.55 | Z125: =Tabla4[[#This Row],[PACTO UF]]*Tabla4[[#This Row],[VALOR UF]] -> 0 | AA125: IMPUESTO UNICO | AB125: =BDD!S127-Tabla4[[#This Row],[TOTAL AFP]]-Tabla4[[#This Row],[TOTAL SALUD]]-Tabla4[[#This Row],[TOTAL SEGURO CESANTIA]]-Tabla4[[#This Row],[TOTAL ADICIONAL]] -> 0 | AC125: =IF(Tabla4[[#This Row],[PASO DESC. UNIC.]]<=$AT$5,0,IF(Tabla4[[#This Row],[PASO DESC. UNIC.]]<=$AT$6,Tabla4[[#This Row],[PASO DESC. UNIC.]]*$AU$6-$AV$6,IF(Tabla4[[#This Row],[PASO DESC. UNIC.]]<=$AT$7,Tabla4[[#This Row],[PASO DESC. UNIC.]]*$AU$7-$AV$7,IF(Tabla4[[#This Row],[PASO DESC. UNIC.]]<=$AT$8,Tabla4[[#This Row],[PASO DESC. UNIC.]]*$AU$8-$AV$8,IF(Tabla4[[#This Row],[PASO DESC. UNIC.]]<=$AT$9,Tabla4[[#This Row],[PASO DESC. UNIC.]]*$AU$9-$AV$9,IF(Tabla4[[#This Row],[PASO DESC. UNIC.]]<=$AT$10,Tabla4[[#This Row],[PASO DESC. UNIC.]]*$AU$10-$AV$10,IF(Tabla4[[#This Row],[PASO DESC. UNIC.]]>=$AS$11,Tabla4[[#This Row],[PASO DESC. UNIC.]]*$AU$11-$AV$11))))))) -> 0 | AD125: =Tabla4[[#This Row],[TOTAL AFP]]+Tabla4[[#This Row],[TOTAL SALUD]]+Tabla4[[#This Row],[TOTAL SEGURO CESANTIA]]+Tabla4[[#This Row],[TOTAL ADICIONAL]]+Tabla4[[#This Row],[VALOR IMP U.]]+Tabla4[[#This Row],[VALOR OTRO 2]]+Tabla4[[#This Row],[VALOR OTRO 1]] -> 0 | AF125: =IF($BP$8 = "SI",IF(Tabla4[[#This Row],[TIPO CONTRATO]]="Indefinido",BDD!S127*2.4%,IF(Tabla4[[#This Row],[TIPO CONTRATO]]="PLAZO FIJO",BDD!S127*3%,0)),0) -> 0 | AM125: =BDD!S127*Tabla4[[#This Row],[% SIS]] -> 0 | AP125: =BDD!S127*Tabla4[[#This Row],[%MUTUAL]] -> 0
K126: 122 | L126: =IF(BDD!J128=0," ",BDD!J128) ->  | O126: =IF(BDD!S128<_TOPEIMPONIBLE,BDD!S128*Tabla4[[#This Row],[%AFP]],_TOPEIMPONIBLE*Tabla4[[#This Row],[%AFP]]) -> 0 | R126: =IF(BDD!S128<_TOPEIMPONIBLE,BDD!S128*Tabla4[[#This Row],[%SALUD]],_TOPEIMPONIBLE*Tabla4[[#This Row],[%SALUD]]) -> 0 | U126: =BDD!S128*Tabla4[[#This Row],[%SEGURO]] -> 0 | W126: =IF(Tabla4[[#This Row],[TOTAL UF]]-Tabla4[[#This Row],[TOTAL SALUD]]<=0,0,Tabla4[[#This Row],[TOTAL UF]]-Tabla4[[#This Row],[TOTAL SALUD]]) -> 0 | Y126: =BDD!$N$4 -> 37838.55 | Z126: =Tabla4[[#This Row],[PACTO UF]]*Tabla4[[#This Row],[VALOR UF]] -> 0 | AA126: IMPUESTO UNICO | AB126: =BDD!S128-Tabla4[[#This Row],[TOTAL AFP]]-Tabla4[[#This Row],[TOTAL SALUD]]-Tabla4[[#This Row],[TOTAL SEGURO CESANTIA]]-Tabla4[[#This Row],[TOTAL ADICIONAL]] -> 0 | AC126: =IF(Tabla4[[#This Row],[PASO DESC. UNIC.]]<=$AT$5,0,IF(Tabla4[[#This Row],[PASO DESC. UNIC.]]<=$AT$6,Tabla4[[#This Row],[PASO DESC. UNIC.]]*$AU$6-$AV$6,IF(Tabla4[[#This Row],[PASO DESC. UNIC.]]<=$AT$7,Tabla4[[#This Row],[PASO DESC. UNIC.]]*$AU$7-$AV$7,IF(Tabla4[[#This Row],[PASO DESC. UNIC.]]<=$AT$8,Tabla4[[#This Row],[PASO DESC. UNIC.]]*$AU$8-$AV$8,IF(Tabla4[[#This Row],[PASO DESC. UNIC.]]<=$AT$9,Tabla4[[#This Row],[PASO DESC. UNIC.]]*$AU$9-$AV$9,IF(Tabla4[[#This Row],[PASO DESC. UNIC.]]<=$AT$10,Tabla4[[#This Row],[PASO DESC. UNIC.]]*$AU$10-$AV$10,IF(Tabla4[[#This Row],[PASO DESC. UNIC.]]>=$AS$11,Tabla4[[#This Row],[PASO DESC. UNIC.]]*$AU$11-$AV$11))))))) -> 0 | AD126: =Tabla4[[#This Row],[TOTAL AFP]]+Tabla4[[#This Row],[TOTAL SALUD]]+Tabla4[[#This Row],[TOTAL SEGURO CESANTIA]]+Tabla4[[#This Row],[TOTAL ADICIONAL]]+Tabla4[[#This Row],[VALOR IMP U.]]+Tabla4[[#This Row],[VALOR OTRO 2]]+Tabla4[[#This Row],[VALOR OTRO 1]] -> 0 | AF126: =IF($BP$8 = "SI",IF(Tabla4[[#This Row],[TIPO CONTRATO]]="Indefinido",BDD!S128*2.4%,IF(Tabla4[[#This Row],[TIPO CONTRATO]]="PLAZO FIJO",BDD!S128*3%,0)),0) -> 0 | AM126: =BDD!S128*Tabla4[[#This Row],[% SIS]] -> 0 | AP126: =BDD!S128*Tabla4[[#This Row],[%MUTUAL]] -> 0
K127: 123 | L127: =IF(BDD!J129=0," ",BDD!J129) ->  | O127: =IF(BDD!S129<_TOPEIMPONIBLE,BDD!S129*Tabla4[[#This Row],[%AFP]],_TOPEIMPONIBLE*Tabla4[[#This Row],[%AFP]]) -> 0 | R127: =IF(BDD!S129<_TOPEIMPONIBLE,BDD!S129*Tabla4[[#This Row],[%SALUD]],_TOPEIMPONIBLE*Tabla4[[#This Row],[%SALUD]]) -> 0 | U127: =BDD!S129*Tabla4[[#This Row],[%SEGURO]] -> 0 | W127: =IF(Tabla4[[#This Row],[TOTAL UF]]-Tabla4[[#This Row],[TOTAL SALUD]]<=0,0,Tabla4[[#This Row],[TOTAL UF]]-Tabla4[[#This Row],[TOTAL SALUD]]) -> 0 | Y127: =BDD!$N$4 -> 37838.55 | Z127: =Tabla4[[#This Row],[PACTO UF]]*Tabla4[[#This Row],[VALOR UF]] -> 0 | AA127: IMPUESTO UNICO | AB127: =BDD!S129-Tabla4[[#This Row],[TOTAL AFP]]-Tabla4[[#This Row],[TOTAL SALUD]]-Tabla4[[#This Row],[TOTAL SEGURO CESANTIA]]-Tabla4[[#This Row],[TOTAL ADICIONAL]] -> 0 | AC127: =IF(Tabla4[[#This Row],[PASO DESC. UNIC.]]<=$AT$5,0,IF(Tabla4[[#This Row],[PASO DESC. UNIC.]]<=$AT$6,Tabla4[[#This Row],[PASO DESC. UNIC.]]*$AU$6-$AV$6,IF(Tabla4[[#This Row],[PASO DESC. UNIC.]]<=$AT$7,Tabla4[[#This Row],[PASO DESC. UNIC.]]*$AU$7-$AV$7,IF(Tabla4[[#This Row],[PASO DESC. UNIC.]]<=$AT$8,Tabla4[[#This Row],[PASO DESC. UNIC.]]*$AU$8-$AV$8,IF(Tabla4[[#This Row],[PASO DESC. UNIC.]]<=$AT$9,Tabla4[[#This Row],[PASO DESC. UNIC.]]*$AU$9-$AV$9,IF(Tabla4[[#This Row],[PASO DESC. UNIC.]]<=$AT$10,Tabla4[[#This Row],[PASO DESC. UNIC.]]*$AU$10-$AV$10,IF(Tabla4[[#This Row],[PASO DESC. UNIC.]]>=$AS$11,Tabla4[[#This Row],[PASO DESC. UNIC.]]*$AU$11-$AV$11))))))) -> 0 | AD127: =Tabla4[[#This Row],[TOTAL AFP]]+Tabla4[[#This Row],[TOTAL SALUD]]+Tabla4[[#This Row],[TOTAL SEGURO CESANTIA]]+Tabla4[[#This Row],[TOTAL ADICIONAL]]+Tabla4[[#This Row],[VALOR IMP U.]]+Tabla4[[#This Row],[VALOR OTRO 2]]+Tabla4[[#This Row],[VALOR OTRO 1]] -> 0 | AF127: =IF($BP$8 = "SI",IF(Tabla4[[#This Row],[TIPO CONTRATO]]="Indefinido",BDD!S129*2.4%,IF(Tabla4[[#This Row],[TIPO CONTRATO]]="PLAZO FIJO",BDD!S129*3%,0)),0) -> 0 | AM127: =BDD!S129*Tabla4[[#This Row],[% SIS]] -> 0 | AP127: =BDD!S129*Tabla4[[#This Row],[%MUTUAL]] -> 0
K128: 124 | L128: =IF(BDD!J130=0," ",BDD!J130) ->  | O128: =IF(BDD!S130<_TOPEIMPONIBLE,BDD!S130*Tabla4[[#This Row],[%AFP]],_TOPEIMPONIBLE*Tabla4[[#This Row],[%AFP]]) -> 0 | R128: =IF(BDD!S130<_TOPEIMPONIBLE,BDD!S130*Tabla4[[#This Row],[%SALUD]],_TOPEIMPONIBLE*Tabla4[[#This Row],[%SALUD]]) -> 0 | U128: =BDD!S130*Tabla4[[#This Row],[%SEGURO]] -> 0 | W128: =IF(Tabla4[[#This Row],[TOTAL UF]]-Tabla4[[#This Row],[TOTAL SALUD]]<=0,0,Tabla4[[#This Row],[TOTAL UF]]-Tabla4[[#This Row],[TOTAL SALUD]]) -> 0 | Y128: =BDD!$N$4 -> 37838.55 | Z128: =Tabla4[[#This Row],[PACTO UF]]*Tabla4[[#This Row],[VALOR UF]] -> 0 | AA128: IMPUESTO UNICO | AB128: =BDD!S130-Tabla4[[#This Row],[TOTAL AFP]]-Tabla4[[#This Row],[TOTAL SALUD]]-Tabla4[[#This Row],[TOTAL SEGURO CESANTIA]]-Tabla4[[#This Row],[TOTAL ADICIONAL]] -> 0 | AC128: =IF(Tabla4[[#This Row],[PASO DESC. UNIC.]]<=$AT$5,0,IF(Tabla4[[#This Row],[PASO DESC. UNIC.]]<=$AT$6,Tabla4[[#This Row],[PASO DESC. UNIC.]]*$AU$6-$AV$6,IF(Tabla4[[#This Row],[PASO DESC. UNIC.]]<=$AT$7,Tabla4[[#This Row],[PASO DESC. UNIC.]]*$AU$7-$AV$7,IF(Tabla4[[#This Row],[PASO DESC. UNIC.]]<=$AT$8,Tabla4[[#This Row],[PASO DESC. UNIC.]]*$AU$8-$AV$8,IF(Tabla4[[#This Row],[PASO DESC. UNIC.]]<=$AT$9,Tabla4[[#This Row],[PASO DESC. UNIC.]]*$AU$9-$AV$9,IF(Tabla4[[#This Row],[PASO DESC. UNIC.]]<=$AT$10,Tabla4[[#This Row],[PASO DESC. UNIC.]]*$AU$10-$AV$10,IF(Tabla4[[#This Row],[PASO DESC. UNIC.]]>=$AS$11,Tabla4[[#This Row],[PASO DESC. UNIC.]]*$AU$11-$AV$11))))))) -> 0 | AD128: =Tabla4[[#This Row],[TOTAL AFP]]+Tabla4[[#This Row],[TOTAL SALUD]]+Tabla4[[#This Row],[TOTAL SEGURO CESANTIA]]+Tabla4[[#This Row],[TOTAL ADICIONAL]]+Tabla4[[#This Row],[VALOR IMP U.]]+Tabla4[[#This Row],[VALOR OTRO 2]]+Tabla4[[#This Row],[VALOR OTRO 1]] -> 0 | AF128: =IF($BP$8 = "SI",IF(Tabla4[[#This Row],[TIPO CONTRATO]]="Indefinido",BDD!S130*2.4%,IF(Tabla4[[#This Row],[TIPO CONTRATO]]="PLAZO FIJO",BDD!S130*3%,0)),0) -> 0 | AM128: =BDD!S130*Tabla4[[#This Row],[% SIS]] -> 0 | AP128: =BDD!S130*Tabla4[[#This Row],[%MUTUAL]] -> 0
K129: 125 | L129: =IF(BDD!J131=0," ",BDD!J131) ->  | O129: =IF(BDD!S131<_TOPEIMPONIBLE,BDD!S131*Tabla4[[#This Row],[%AFP]],_TOPEIMPONIBLE*Tabla4[[#This Row],[%AFP]]) -> 0 | R129: =IF(BDD!S131<_TOPEIMPONIBLE,BDD!S131*Tabla4[[#This Row],[%SALUD]],_TOPEIMPONIBLE*Tabla4[[#This Row],[%SALUD]]) -> 0 | U129: =BDD!S131*Tabla4[[#This Row],[%SEGURO]] -> 0 | W129: =IF(Tabla4[[#This Row],[TOTAL UF]]-Tabla4[[#This Row],[TOTAL SALUD]]<=0,0,Tabla4[[#This Row],[TOTAL UF]]-Tabla4[[#This Row],[TOTAL SALUD]]) -> 0 | Y129: =BDD!$N$4 -> 37838.55 | Z129: =Tabla4[[#This Row],[PACTO UF]]*Tabla4[[#This Row],[VALOR UF]] -> 0 | AA129: IMPUESTO UNICO | AB129: =BDD!S131-Tabla4[[#This Row],[TOTAL AFP]]-Tabla4[[#This Row],[TOTAL SALUD]]-Tabla4[[#This Row],[TOTAL SEGURO CESANTIA]]-Tabla4[[#This Row],[TOTAL ADICIONAL]] -> 0 | AC129: =IF(Tabla4[[#This Row],[PASO DESC. UNIC.]]<=$AT$5,0,IF(Tabla4[[#This Row],[PASO DESC. UNIC.]]<=$AT$6,Tabla4[[#This Row],[PASO DESC. UNIC.]]*$AU$6-$AV$6,IF(Tabla4[[#This Row],[PASO DESC. UNIC.]]<=$AT$7,Tabla4[[#This Row],[PASO DESC. UNIC.]]*$AU$7-$AV$7,IF(Tabla4[[#This Row],[PASO DESC. UNIC.]]<=$AT$8,Tabla4[[#This Row],[PASO DESC. UNIC.]]*$AU$8-$AV$8,IF(Tabla4[[#This Row],[PASO DESC. UNIC.]]<=$AT$9,Tabla4[[#This Row],[PASO DESC. UNIC.]]*$AU$9-$AV$9,IF(Tabla4[[#This Row],[PASO DESC. UNIC.]]<=$AT$10,Tabla4[[#This Row],[PASO DESC. UNIC.]]*$AU$10-$AV$10,IF(Tabla4[[#This Row],[PASO DESC. UNIC.]]>=$AS$11,Tabla4[[#This Row],[PASO DESC. UNIC.]]*$AU$11-$AV$11))))))) -> 0 | AD129: =Tabla4[[#This Row],[TOTAL AFP]]+Tabla4[[#This Row],[TOTAL SALUD]]+Tabla4[[#This Row],[TOTAL SEGURO CESANTIA]]+Tabla4[[#This Row],[TOTAL ADICIONAL]]+Tabla4[[#This Row],[VALOR IMP U.]]+Tabla4[[#This Row],[VALOR OTRO 2]]+Tabla4[[#This Row],[VALOR OTRO 1]] -> 0 | AF129: =IF($BP$8 = "SI",IF(Tabla4[[#This Row],[TIPO CONTRATO]]="Indefinido",BDD!S131*2.4%,IF(Tabla4[[#This Row],[TIPO CONTRATO]]="PLAZO FIJO",BDD!S131*3%,0)),0) -> 0 | AM129: =BDD!S131*Tabla4[[#This Row],[% SIS]] -> 0 | AP129: =BDD!S131*Tabla4[[#This Row],[%MUTUAL]] -> 0
K130: 126 | L130: =IF(BDD!J132=0," ",BDD!J132) ->  | O130: =IF(BDD!S132<_TOPEIMPONIBLE,BDD!S132*Tabla4[[#This Row],[%AFP]],_TOPEIMPONIBLE*Tabla4[[#This Row],[%AFP]]) -> 0 | R130: =IF(BDD!S132<_TOPEIMPONIBLE,BDD!S132*Tabla4[[#This Row],[%SALUD]],_TOPEIMPONIBLE*Tabla4[[#This Row],[%SALUD]]) -> 0 | U130: =BDD!S132*Tabla4[[#This Row],[%SEGURO]] -> 0 | W130: =IF(Tabla4[[#This Row],[TOTAL UF]]-Tabla4[[#This Row],[TOTAL SALUD]]<=0,0,Tabla4[[#This Row],[TOTAL UF]]-Tabla4[[#This Row],[TOTAL SALUD]]) -> 0 | Y130: =BDD!$N$4 -> 37838.55 | Z130: =Tabla4[[#This Row],[PACTO UF]]*Tabla4[[#This Row],[VALOR UF]] -> 0 | AA130: IMPUESTO UNICO | AB130: =BDD!S132-Tabla4[[#This Row],[TOTAL AFP]]-Tabla4[[#This Row],[TOTAL SALUD]]-Tabla4[[#This Row],[TOTAL SEGURO CESANTIA]]-Tabla4[[#This Row],[TOTAL ADICIONAL]] -> 0 | AC130: =IF(Tabla4[[#This Row],[PASO DESC. UNIC.]]<=$AT$5,0,IF(Tabla4[[#This Row],[PASO DESC. UNIC.]]<=$AT$6,Tabla4[[#This Row],[PASO DESC. UNIC.]]*$AU$6-$AV$6,IF(Tabla4[[#This Row],[PASO DESC. UNIC.]]<=$AT$7,Tabla4[[#This Row],[PASO DESC. UNIC.]]*$AU$7-$AV$7,IF(Tabla4[[#This Row],[PASO DESC. UNIC.]]<=$AT$8,Tabla4[[#This Row],[PASO DESC. UNIC.]]*$AU$8-$AV$8,IF(Tabla4[[#This Row],[PASO DESC. UNIC.]]<=$AT$9,Tabla4[[#This Row],[PASO DESC. UNIC.]]*$AU$9-$AV$9,IF(Tabla4[[#This Row],[PASO DESC. UNIC.]]<=$AT$10,Tabla4[[#This Row],[PASO DESC. UNIC.]]*$AU$10-$AV$10,IF(Tabla4[[#This Row],[PASO DESC. UNIC.]]>=$AS$11,Tabla4[[#This Row],[PASO DESC. UNIC.]]*$AU$11-$AV$11))))))) -> 0 | AD130: =Tabla4[[#This Row],[TOTAL AFP]]+Tabla4[[#This Row],[TOTAL SALUD]]+Tabla4[[#This Row],[TOTAL SEGURO CESANTIA]]+Tabla4[[#This Row],[TOTAL ADICIONAL]]+Tabla4[[#This Row],[VALOR IMP U.]]+Tabla4[[#This Row],[VALOR OTRO 2]]+Tabla4[[#This Row],[VALOR OTRO 1]] -> 0 | AF130: =IF($BP$8 = "SI",IF(Tabla4[[#This Row],[TIPO CONTRATO]]="Indefinido",BDD!S132*2.4%,IF(Tabla4[[#This Row],[TIPO CONTRATO]]="PLAZO FIJO",BDD!S132*3%,0)),0) -> 0 | AM130: =BDD!S132*Tabla4[[#This Row],[% SIS]] -> 0 | AP130: =BDD!S132*Tabla4[[#This Row],[%MUTUAL]] -> 0
K131: 127 | L131: =IF(BDD!J133=0," ",BDD!J133) ->  | O131: =IF(BDD!S133<_TOPEIMPONIBLE,BDD!S133*Tabla4[[#This Row],[%AFP]],_TOPEIMPONIBLE*Tabla4[[#This Row],[%AFP]]) -> 0 | R131: =IF(BDD!S133<_TOPEIMPONIBLE,BDD!S133*Tabla4[[#This Row],[%SALUD]],_TOPEIMPONIBLE*Tabla4[[#This Row],[%SALUD]]) -> 0 | U131: =BDD!S133*Tabla4[[#This Row],[%SEGURO]] -> 0 | W131: =IF(Tabla4[[#This Row],[TOTAL UF]]-Tabla4[[#This Row],[TOTAL SALUD]]<=0,0,Tabla4[[#This Row],[TOTAL UF]]-Tabla4[[#This Row],[TOTAL SALUD]]) -> 0 | Y131: =BDD!$N$4 -> 37838.55 | Z131: =Tabla4[[#This Row],[PACTO UF]]*Tabla4[[#This Row],[VALOR UF]] -> 0 | AA131: IMPUESTO UNICO | AB131: =BDD!S133-Tabla4[[#This Row],[TOTAL AFP]]-Tabla4[[#This Row],[TOTAL SALUD]]-Tabla4[[#This Row],[TOTAL SEGURO CESANTIA]]-Tabla4[[#This Row],[TOTAL ADICIONAL]] -> 0 | AC131: =IF(Tabla4[[#This Row],[PASO DESC. UNIC.]]<=$AT$5,0,IF(Tabla4[[#This Row],[PASO DESC. UNIC.]]<=$AT$6,Tabla4[[#This Row],[PASO DESC. UNIC.]]*$AU$6-$AV$6,IF(Tabla4[[#This Row],[PASO DESC. UNIC.]]<=$AT$7,Tabla4[[#This Row],[PASO DESC. UNIC.]]*$AU$7-$AV$7,IF(Tabla4[[#This Row],[PASO DESC. UNIC.]]<=$AT$8,Tabla4[[#This Row],[PASO DESC. UNIC.]]*$AU$8-$AV$8,IF(Tabla4[[#This Row],[PASO DESC. UNIC.]]<=$AT$9,Tabla4[[#This Row],[PASO DESC. UNIC.]]*$AU$9-$AV$9,IF(Tabla4[[#This Row],[PASO DESC. UNIC.]]<=$AT$10,Tabla4[[#This Row],[PASO DESC. UNIC.]]*$AU$10-$AV$10,IF(Tabla4[[#This Row],[PASO DESC. UNIC.]]>=$AS$11,Tabla4[[#This Row],[PASO DESC. UNIC.]]*$AU$11-$AV$11))))))) -> 0 | AD131: =Tabla4[[#This Row],[TOTAL AFP]]+Tabla4[[#This Row],[TOTAL SALUD]]+Tabla4[[#This Row],[TOTAL SEGURO CESANTIA]]+Tabla4[[#This Row],[TOTAL ADICIONAL]]+Tabla4[[#This Row],[VALOR IMP U.]]+Tabla4[[#This Row],[VALOR OTRO 2]]+Tabla4[[#This Row],[VALOR OTRO 1]] -> 0 | AF131: =IF($BP$8 = "SI",IF(Tabla4[[#This Row],[TIPO CONTRATO]]="Indefinido",BDD!S133*2.4%,IF(Tabla4[[#This Row],[TIPO CONTRATO]]="PLAZO FIJO",BDD!S133*3%,0)),0) -> 0 | AM131: =BDD!S133*Tabla4[[#This Row],[% SIS]] -> 0 | AP131: =BDD!S133*Tabla4[[#This Row],[%MUTUAL]] -> 0
K132: 128 | L132: =IF(BDD!J134=0," ",BDD!J134) ->  | O132: =IF(BDD!S134<_TOPEIMPONIBLE,BDD!S134*Tabla4[[#This Row],[%AFP]],_TOPEIMPONIBLE*Tabla4[[#This Row],[%AFP]]) -> 0 | R132: =IF(BDD!S134<_TOPEIMPONIBLE,BDD!S134*Tabla4[[#This Row],[%SALUD]],_TOPEIMPONIBLE*Tabla4[[#This Row],[%SALUD]]) -> 0 | U132: =BDD!S134*Tabla4[[#This Row],[%SEGURO]] -> 0 | W132: =IF(Tabla4[[#This Row],[TOTAL UF]]-Tabla4[[#This Row],[TOTAL SALUD]]<=0,0,Tabla4[[#This Row],[TOTAL UF]]-Tabla4[[#This Row],[TOTAL SALUD]]) -> 0 | Y132: =BDD!$N$4 -> 37838.55 | Z132: =Tabla4[[#This Row],[PACTO UF]]*Tabla4[[#This Row],[VALOR UF]] -> 0 | AA132: IMPUESTO UNICO | AB132: =BDD!S134-Tabla4[[#This Row],[TOTAL AFP]]-Tabla4[[#This Row],[TOTAL SALUD]]-Tabla4[[#This Row],[TOTAL SEGURO CESANTIA]]-Tabla4[[#This Row],[TOTAL ADICIONAL]] -> 0 | AC132: =IF(Tabla4[[#This Row],[PASO DESC. UNIC.]]<=$AT$5,0,IF(Tabla4[[#This Row],[PASO DESC. UNIC.]]<=$AT$6,Tabla4[[#This Row],[PASO DESC. UNIC.]]*$AU$6-$AV$6,IF(Tabla4[[#This Row],[PASO DESC. UNIC.]]<=$AT$7,Tabla4[[#This Row],[PASO DESC. UNIC.]]*$AU$7-$AV$7,IF(Tabla4[[#This Row],[PASO DESC. UNIC.]]<=$AT$8,Tabla4[[#This Row],[PASO DESC. UNIC.]]*$AU$8-$AV$8,IF(Tabla4[[#This Row],[PASO DESC. UNIC.]]<=$AT$9,Tabla4[[#This Row],[PASO DESC. UNIC.]]*$AU$9-$AV$9,IF(Tabla4[[#This Row],[PASO DESC. UNIC.]]<=$AT$10,Tabla4[[#This Row],[PASO DESC. UNIC.]]*$AU$10-$AV$10,IF(Tabla4[[#This Row],[PASO DESC. UNIC.]]>=$AS$11,Tabla4[[#This Row],[PASO DESC. UNIC.]]*$AU$11-$AV$11))))))) -> 0 | AD132: =Tabla4[[#This Row],[TOTAL AFP]]+Tabla4[[#This Row],[TOTAL SALUD]]+Tabla4[[#This Row],[TOTAL SEGURO CESANTIA]]+Tabla4[[#This Row],[TOTAL ADICIONAL]]+Tabla4[[#This Row],[VALOR IMP U.]]+Tabla4[[#This Row],[VALOR OTRO 2]]+Tabla4[[#This Row],[VALOR OTRO 1]] -> 0 | AF132: =IF($BP$8 = "SI",IF(Tabla4[[#This Row],[TIPO CONTRATO]]="Indefinido",BDD!S134*2.4%,IF(Tabla4[[#This Row],[TIPO CONTRATO]]="PLAZO FIJO",BDD!S134*3%,0)),0) -> 0 | AM132: =BDD!S134*Tabla4[[#This Row],[% SIS]] -> 0 | AP132: =BDD!S134*Tabla4[[#This Row],[%MUTUAL]] -> 0
K133: 129 | L133: =IF(BDD!J135=0," ",BDD!J135) ->  | O133: =IF(BDD!S135<_TOPEIMPONIBLE,BDD!S135*Tabla4[[#This Row],[%AFP]],_TOPEIMPONIBLE*Tabla4[[#This Row],[%AFP]]) -> 0 | R133: =IF(BDD!S135<_TOPEIMPONIBLE,BDD!S135*Tabla4[[#This Row],[%SALUD]],_TOPEIMPONIBLE*Tabla4[[#This Row],[%SALUD]]) -> 0 | U133: =BDD!S135*Tabla4[[#This Row],[%SEGURO]] -> 0 | W133: =IF(Tabla4[[#This Row],[TOTAL UF]]-Tabla4[[#This Row],[TOTAL SALUD]]<=0,0,Tabla4[[#This Row],[TOTAL UF]]-Tabla4[[#This Row],[TOTAL SALUD]]) -> 0 | Y133: =BDD!$N$4 -> 37838.55 | Z133: =Tabla4[[#This Row],[PACTO UF]]*Tabla4[[#This Row],[VALOR UF]] -> 0 | AA133: IMPUESTO UNICO | AB133: =BDD!S135-Tabla4[[#This Row],[TOTAL AFP]]-Tabla4[[#This Row],[TOTAL SALUD]]-Tabla4[[#This Row],[TOTAL SEGURO CESANTIA]]-Tabla4[[#This Row],[TOTAL ADICIONAL]] -> 0 | AC133: =IF(Tabla4[[#This Row],[PASO DESC. UNIC.]]<=$AT$5,0,IF(Tabla4[[#This Row],[PASO DESC. UNIC.]]<=$AT$6,Tabla4[[#This Row],[PASO DESC. UNIC.]]*$AU$6-$AV$6,IF(Tabla4[[#This Row],[PASO DESC. UNIC.]]<=$AT$7,Tabla4[[#This Row],[PASO DESC. UNIC.]]*$AU$7-$AV$7,IF(Tabla4[[#This Row],[PASO DESC. UNIC.]]<=$AT$8,Tabla4[[#This Row],[PASO DESC. UNIC.]]*$AU$8-$AV$8,IF(Tabla4[[#This Row],[PASO DESC. UNIC.]]<=$AT$9,Tabla4[[#This Row],[PASO DESC. UNIC.]]*$AU$9-$AV$9,IF(Tabla4[[#This Row],[PASO DESC. UNIC.]]<=$AT$10,Tabla4[[#This Row],[PASO DESC. UNIC.]]*$AU$10-$AV$10,IF(Tabla4[[#This Row],[PASO DESC. UNIC.]]>=$AS$11,Tabla4[[#This Row],[PASO DESC. UNIC.]]*$AU$11-$AV$11))))))) -> 0 | AD133: =Tabla4[[#This Row],[TOTAL AFP]]+Tabla4[[#This Row],[TOTAL SALUD]]+Tabla4[[#This Row],[TOTAL SEGURO CESANTIA]]+Tabla4[[#This Row],[TOTAL ADICIONAL]]+Tabla4[[#This Row],[VALOR IMP U.]]+Tabla4[[#This Row],[VALOR OTRO 2]]+Tabla4[[#This Row],[VALOR OTRO 1]] -> 0 | AF133: =IF($BP$8 = "SI",IF(Tabla4[[#This Row],[TIPO CONTRATO]]="Indefinido",BDD!S135*2.4%,IF(Tabla4[[#This Row],[TIPO CONTRATO]]="PLAZO FIJO",BDD!S135*3%,0)),0) -> 0 | AM133: =BDD!S135*Tabla4[[#This Row],[% SIS]] -> 0 | AP133: =BDD!S135*Tabla4[[#This Row],[%MUTUAL]] -> 0
K134: 130 | L134: =IF(BDD!J136=0," ",BDD!J136) ->  | O134: =IF(BDD!S136<_TOPEIMPONIBLE,BDD!S136*Tabla4[[#This Row],[%AFP]],_TOPEIMPONIBLE*Tabla4[[#This Row],[%AFP]]) -> 0 | R134: =IF(BDD!S136<_TOPEIMPONIBLE,BDD!S136*Tabla4[[#This Row],[%SALUD]],_TOPEIMPONIBLE*Tabla4[[#This Row],[%SALUD]]) -> 0 | U134: =BDD!S136*Tabla4[[#This Row],[%SEGURO]] -> 0 | W134: =IF(Tabla4[[#This Row],[TOTAL UF]]-Tabla4[[#This Row],[TOTAL SALUD]]<=0,0,Tabla4[[#This Row],[TOTAL UF]]-Tabla4[[#This Row],[TOTAL SALUD]]) -> 0 | Y134: =BDD!$N$4 -> 37838.55 | Z134: =Tabla4[[#This Row],[PACTO UF]]*Tabla4[[#This Row],[VALOR UF]] -> 0 | AA134: IMPUESTO UNICO | AB134: =BDD!S136-Tabla4[[#This Row],[TOTAL AFP]]-Tabla4[[#This Row],[TOTAL SALUD]]-Tabla4[[#This Row],[TOTAL SEGURO CESANTIA]]-Tabla4[[#This Row],[TOTAL ADICIONAL]] -> 0 | AC134: =IF(Tabla4[[#This Row],[PASO DESC. UNIC.]]<=$AT$5,0,IF(Tabla4[[#This Row],[PASO DESC. UNIC.]]<=$AT$6,Tabla4[[#This Row],[PASO DESC. UNIC.]]*$AU$6-$AV$6,IF(Tabla4[[#This Row],[PASO DESC. UNIC.]]<=$AT$7,Tabla4[[#This Row],[PASO DESC. UNIC.]]*$AU$7-$AV$7,IF(Tabla4[[#This Row],[PASO DESC. UNIC.]]<=$AT$8,Tabla4[[#This Row],[PASO DESC. UNIC.]]*$AU$8-$AV$8,IF(Tabla4[[#This Row],[PASO DESC. UNIC.]]<=$AT$9,Tabla4[[#This Row],[PASO DESC. UNIC.]]*$AU$9-$AV$9,IF(Tabla4[[#This Row],[PASO DESC. UNIC.]]<=$AT$10,Tabla4[[#This Row],[PASO DESC. UNIC.]]*$AU$10-$AV$10,IF(Tabla4[[#This Row],[PASO DESC. UNIC.]]>=$AS$11,Tabla4[[#This Row],[PASO DESC. UNIC.]]*$AU$11-$AV$11))))))) -> 0 | AD134: =Tabla4[[#This Row],[TOTAL AFP]]+Tabla4[[#This Row],[TOTAL SALUD]]+Tabla4[[#This Row],[TOTAL SEGURO CESANTIA]]+Tabla4[[#This Row],[TOTAL ADICIONAL]]+Tabla4[[#This Row],[VALOR IMP U.]]+Tabla4[[#This Row],[VALOR OTRO 2]]+Tabla4[[#This Row],[VALOR OTRO 1]] -> 0 | AF134: =IF($BP$8 = "SI",IF(Tabla4[[#This Row],[TIPO CONTRATO]]="Indefinido",BDD!S136*2.4%,IF(Tabla4[[#This Row],[TIPO CONTRATO]]="PLAZO FIJO",BDD!S136*3%,0)),0) -> 0 | AM134: =BDD!S136*Tabla4[[#This Row],[% SIS]] -> 0 | AP134: =BDD!S136*Tabla4[[#This Row],[%MUTUAL]] -> 0
K135: 131 | L135: =IF(BDD!J137=0," ",BDD!J137) ->  | O135: =IF(BDD!S137<_TOPEIMPONIBLE,BDD!S137*Tabla4[[#This Row],[%AFP]],_TOPEIMPONIBLE*Tabla4[[#This Row],[%AFP]]) -> 0 | R135: =IF(BDD!S137<_TOPEIMPONIBLE,BDD!S137*Tabla4[[#This Row],[%SALUD]],_TOPEIMPONIBLE*Tabla4[[#This Row],[%SALUD]]) -> 0 | U135: =BDD!S137*Tabla4[[#This Row],[%SEGURO]] -> 0 | W135: =IF(Tabla4[[#This Row],[TOTAL UF]]-Tabla4[[#This Row],[TOTAL SALUD]]<=0,0,Tabla4[[#This Row],[TOTAL UF]]-Tabla4[[#This Row],[TOTAL SALUD]]) -> 0 | Y135: =BDD!$N$4 -> 37838.55 | Z135: =Tabla4[[#This Row],[PACTO UF]]*Tabla4[[#This Row],[VALOR UF]] -> 0 | AA135: IMPUESTO UNICO | AB135: =BDD!S137-Tabla4[[#This Row],[TOTAL AFP]]-Tabla4[[#This Row],[TOTAL SALUD]]-Tabla4[[#This Row],[TOTAL SEGURO CESANTIA]]-Tabla4[[#This Row],[TOTAL ADICIONAL]] -> 0 | AC135: =IF(Tabla4[[#This Row],[PASO DESC. UNIC.]]<=$AT$5,0,IF(Tabla4[[#This Row],[PASO DESC. UNIC.]]<=$AT$6,Tabla4[[#This Row],[PASO DESC. UNIC.]]*$AU$6-$AV$6,IF(Tabla4[[#This Row],[PASO DESC. UNIC.]]<=$AT$7,Tabla4[[#This Row],[PASO DESC. UNIC.]]*$AU$7-$AV$7,IF(Tabla4[[#This Row],[PASO DESC. UNIC.]]<=$AT$8,Tabla4[[#This Row],[PASO DESC. UNIC.]]*$AU$8-$AV$8,IF(Tabla4[[#This Row],[PASO DESC. UNIC.]]<=$AT$9,Tabla4[[#This Row],[PASO DESC. UNIC.]]*$AU$9-$AV$9,IF(Tabla4[[#This Row],[PASO DESC. UNIC.]]<=$AT$10,Tabla4[[#This Row],[PASO DESC. UNIC.]]*$AU$10-$AV$10,IF(Tabla4[[#This Row],[PASO DESC. UNIC.]]>=$AS$11,Tabla4[[#This Row],[PASO DESC. UNIC.]]*$AU$11-$AV$11))))))) -> 0 | AD135: =Tabla4[[#This Row],[TOTAL AFP]]+Tabla4[[#This Row],[TOTAL SALUD]]+Tabla4[[#This Row],[TOTAL SEGURO CESANTIA]]+Tabla4[[#This Row],[TOTAL ADICIONAL]]+Tabla4[[#This Row],[VALOR IMP U.]]+Tabla4[[#This Row],[VALOR OTRO 2]]+Tabla4[[#This Row],[VALOR OTRO 1]] -> 0 | AF135: =IF($BP$8 = "SI",IF(Tabla4[[#This Row],[TIPO CONTRATO]]="Indefinido",BDD!S137*2.4%,IF(Tabla4[[#This Row],[TIPO CONTRATO]]="PLAZO FIJO",BDD!S137*3%,0)),0) -> 0 | AM135: =BDD!S137*Tabla4[[#This Row],[% SIS]] -> 0 | AP135: =BDD!S137*Tabla4[[#This Row],[%MUTUAL]] -> 0
K136: 132 | L136: =IF(BDD!J138=0," ",BDD!J138) ->  | O136: =IF(BDD!S138<_TOPEIMPONIBLE,BDD!S138*Tabla4[[#This Row],[%AFP]],_TOPEIMPONIBLE*Tabla4[[#This Row],[%AFP]]) -> 0 | R136: =IF(BDD!S138<_TOPEIMPONIBLE,BDD!S138*Tabla4[[#This Row],[%SALUD]],_TOPEIMPONIBLE*Tabla4[[#This Row],[%SALUD]]) -> 0 | U136: =BDD!S138*Tabla4[[#This Row],[%SEGURO]] -> 0 | W136: =IF(Tabla4[[#This Row],[TOTAL UF]]-Tabla4[[#This Row],[TOTAL SALUD]]<=0,0,Tabla4[[#This Row],[TOTAL UF]]-Tabla4[[#This Row],[TOTAL SALUD]]) -> 0 | Y136: =BDD!$N$4 -> 37838.55 | Z136: =Tabla4[[#This Row],[PACTO UF]]*Tabla4[[#This Row],[VALOR UF]] -> 0 | AA136: IMPUESTO UNICO | AB136: =BDD!S138-Tabla4[[#This Row],[TOTAL AFP]]-Tabla4[[#This Row],[TOTAL SALUD]]-Tabla4[[#This Row],[TOTAL SEGURO CESANTIA]]-Tabla4[[#This Row],[TOTAL ADICIONAL]] -> 0 | AC136: =IF(Tabla4[[#This Row],[PASO DESC. UNIC.]]<=$AT$5,0,IF(Tabla4[[#This Row],[PASO DESC. UNIC.]]<=$AT$6,Tabla4[[#This Row],[PASO DESC. UNIC.]]*$AU$6-$AV$6,IF(Tabla4[[#This Row],[PASO DESC. UNIC.]]<=$AT$7,Tabla4[[#This Row],[PASO DESC. UNIC.]]*$AU$7-$AV$7,IF(Tabla4[[#This Row],[PASO DESC. UNIC.]]<=$AT$8,Tabla4[[#This Row],[PASO DESC. UNIC.]]*$AU$8-$AV$8,IF(Tabla4[[#This Row],[PASO DESC. UNIC.]]<=$AT$9,Tabla4[[#This Row],[PASO DESC. UNIC.]]*$AU$9-$AV$9,IF(Tabla4[[#This Row],[PASO DESC. UNIC.]]<=$AT$10,Tabla4[[#This Row],[PASO DESC. UNIC.]]*$AU$10-$AV$10,IF(Tabla4[[#This Row],[PASO DESC. UNIC.]]>=$AS$11,Tabla4[[#This Row],[PASO DESC. UNIC.]]*$AU$11-$AV$11))))))) -> 0 | AD136: =Tabla4[[#This Row],[TOTAL AFP]]+Tabla4[[#This Row],[TOTAL SALUD]]+Tabla4[[#This Row],[TOTAL SEGURO CESANTIA]]+Tabla4[[#This Row],[TOTAL ADICIONAL]]+Tabla4[[#This Row],[VALOR IMP U.]]+Tabla4[[#This Row],[VALOR OTRO 2]]+Tabla4[[#This Row],[VALOR OTRO 1]] -> 0 | AF136: =IF($BP$8 = "SI",IF(Tabla4[[#This Row],[TIPO CONTRATO]]="Indefinido",BDD!S138*2.4%,IF(Tabla4[[#This Row],[TIPO CONTRATO]]="PLAZO FIJO",BDD!S138*3%,0)),0) -> 0 | AM136: =BDD!S138*Tabla4[[#This Row],[% SIS]] -> 0 | AP136: =BDD!S138*Tabla4[[#This Row],[%MUTUAL]] -> 0
